Workbook

Sheet FIO (hidden)
A1: Nom de l'outil | B1: Outil PAC GeniaConfig
A2: Version | B2: =LOOKUP("zz",To_Do!B:B) -> V2_81
A3: Date d'application de la version | B3: 23/04/2024
A4: Date limite d'application | B4: 2025-01-31
A6: Nom de la version (visible) | B6: =B1&" "&B2&" du "&B3 -> Outil PAC GeniaConfig V2_81 du 23/04/2024
A7: Date_enregistrement | B7: =Date_enregistrement -> 2024-05-30 | D7: ="Il reste "&_xlfn.DAYS(B7,TODAY())&" jours avant expiration de l'outil" -> Il reste 36 jours avant expiration de l'outil
A8: Date dépassée | B8: =IF(Date_enregistrement="",FALSE,IF(TODAY()>Date_enregistrement+15,TRUE,FALSE)) -> FALSE
A14: PRIMERY COLOR | B14: SDBG
B15: 203/13/38
B19: 255/255/255
B21: 2010-10-10
A22: SDBG secondary red
A23: RED | B23: 151/27/47
B24: 0.8
B25: 0.6
B26: 0.4
A27: SDBG functional blue
A28: Blue | B28: 0/175/215
A29: Cold Water | B29: 0.8
A30: Graphs & Charts | B30: 0.6
B31: 0.4
A32: SDBG functional green
A33: People & Product Pictures | B33: 132/189/0
A34: (details, accessories,
A38: SDBG functional yellow
A39: Warnings | B39: 255/209/0
A40: Error Messages
A41: Special Requirements
A42: Neutral State

Sheet To_Do (hidden)
A1: Date | B1: Logiciel PAC_2020 v2 | C1: Feuille | D1: Modification faite / à faire | E1: 0.25 | F1: 0.5 | G1: 0.75 | H1: 1 | I1: Date réalisé à 100% | J1: Date réalisé à 100% par qui | K1: Réponce ou commentaire | L1: Non du fichier
D2: Vaillant - Logiciel PAC 2022 V2v00_00042 sans BDD_G | I2: 2022-08-04
B3: V2v00_00045 | D3: correction taux de couverture 80% -> 70%
B4: V2v01_00081 | D4: debugage | E4: x | F4: x | G4: x | H4: x | I4: 2022-09-20
B5: V2v02_00082 | D5: Ajout bouton téléchargement schéma | E5: x | F5: x | G5: x | H5: x | I5: 2022-09-22
B6: V2v02_00083 | C6: SchémaListe | D6: Correction schéma hybride "GeniaAir Max-H-B-D" dans la sélection + maj chiffrage sans RED 3 | E6: x | F6: x | G6: x | H6: x | I6: 2022-09-22
C7: BDD_Commun | D7: Sondes chauffage mise à jour MiPro, MiProSense, radio… | E7: x | F7: x | G7: x | H7: x | I7: 2022-09-22
A8: 2022-10-06 | B8: V2_10 | C8: BDD_Commun | D8: Correction RED3_RED5 impoosé qd cascade comme schémas groupe | E8: x | F8: x | G8: x | H8: x | I8: 2022-10-06
A9: 2022-10-12 | B9: V2_11 | D9: Ajout du bouton "Générer PDF"
B10: V2_13 | D10: protégé
B11: V2_14 | D11: mise à jour suivant V2-13 VA | E11: x | F11: x | G11: x | H11: x | I11: 2022-10-28
B12: V2_15 | D12: Correction affichage HSP dans le rapport pièce par pièce | E12: x | F12: x | G12: x | H12: x | I12: 2022-11-24
B13: V2_16 | D13: Correction Tbase départment 13 | E13: x | F13: x | G13: x | H13: x | I13: 2022-11-25
B14: V2_17 | D14: q1824 = =SI(ESTERREUR(RECHERCHEV(Choix_chaudiere_appoint;BDD_Ch!H6:L105;5;FAUX));FAUX;RECHERCHEV(Choix_chaudiere_appoint;BDD_Ch!H6:L105;5;FAUX)) | E14: x | F14: x | G14: x | H14: x | I14: 2022-11-25
B15: V2_17 | C15: Paramétrage | D15: gamme eligible CEE Hybride | E15: x | F15: x | G15: x | H15: x | I15: 2022-11-25
B16: V2_17 | D16: Eta s à 55 °C | E16: x | F16: x | G16: x | H16: x | I16: 2022-11-25
B17: V2_17 | C17: renseignement | D17: N° SIRET | E17: x | F17: x | G17: x | H17: x | I17: 2022-11-25
C18: Calculs | D18: Recherche de la t° Ext en fonction de la 2 ° pac dans la liste de la gamme BDD-Gx | E18: x | F18: x | G18: x | H18: x | I18: 2022-12-05
C19: FIO | D19: Pjlage nommé Nom_outil_AVV | E19: x | F19: x | G19: x | H19: x | I19: 2023-01-11
B20: V2_18 | C20: Paramétrage | D20: Changement du texte en cellules G172, G178, G183 | E20: x | F20: x | G20: x | H20: x
B21: V2_18 | C21: chiffrage | D21: Ajout de bouton + macro | E21: x | F21: x | G21: x | H21: x
B22: V2_18 | C22: Quoideneuf | D22: Ajout de l'onglet | E22: x | F22: x | G22: x | H22: x
B23: V2_18 | C23: renseignement | D23: Ajout d'un lien vers l'onglet Quoideneuf | E23: x | F23: x | G23: x | H23: x
B24: V2_19 | C24: Renseignement | D24: Ajout d'un bouton pour réinitialiser le projet | E24: x | F24: x | G24: x | H24: x
B25: V2_19 | C25: CP_ville | D25: Modif T base du départment 70 | E25: x | F25: x | G25: x | H25: x
B26: V2_19 | C26: BDD_Dev | D26: Modif tableau altitude | E26: x | F26: x | G26: x | H26: x
B27: V2_19 | C27: Rapport_Simpli | D27: Ajout d'un bouton pour fusionner des PDF | E27: x | F27: x | G27: x | H27: x
B28: V2_20 | C28: Calcul | D28: Correction cellule C1313 (ajout d'un MAX) | E28: x | F28: x | G28: x | H28: x
B29: V2_21 | C29: chiffrage | D29: Correction erreur de calcul du prix total | E29: x | F29: x | G29: x | H29: x
B30: V2_22 | C30: chiffrage | D30: Amélioration du userform pour ajouter une référence au chiffrage
B31: V2_23 | C31: chiffrage | D31: Mise en forme des cellules (lignes libres)
B32: V2_23 | C32: macro | D32: Initialisation : quantité corrigée dans chiffrage, alimentation elec en monophasé
B33: V2_24 | C33: TARIF | D33: 2023 | E33: x | F33: x | G33: x | H33: x
B34: V2_25 | C34: FIO | D34: plage nommée Nom_outil_AVV | E34: x | F34: x | G34: x | H34: x
C35: calcul | D35: bug restriction sur accessoire ballon serie // | E35: x | F35: x | G35: x | H35: x
B36: V2_26 | C36: calcul | D36: "Meh 60" remplacer par "Res" | E36: x | F36: x | G36: x | H36: x | I36: 2023-01-17 | J36: GM
D37: Image dans accessoires | E37: x | F37: x | G37: x | H37: x | I37: 2023-01-20 | J37: GM
D38: ajout coupleur bus genia air tek hybride | E38: x | F38: x | G38: x | H38: x | I38: 2023-01-20 | J38: GM
C39: Bdd_Produit | D39: T° limite amont | E39: x | F39: x | G39: x | H39: x | I39: 2023-01-26 | J39: GM
C40: Rapport_Simpli | D40: affichage conditionnel du message "document a conserver…. | E40: x | F40: x | G40: x | H40: x | I40: 2023-01-26 | J40: GM
C41: Calculs | D41: part P PAC sur Deperd dif en Hybride pas tenir compte de la T° arret pac | E41: x | F41: x | G41: x | H41: x | I41: 2023-01-26 | J41: GM
B42: V2_28 | C42: Calculs | D42: Correction d'affichage de puissance dans le rapport si calcul pièce par pièce | E42: x | F42: x | G42: x | H42: x | I42: 2023-02-03 | J42: SDA
B43: V2_28 | C43: BDD_Dev | D43: Ajout de la possibilité de sélectionner "Plancher chauffant" dans le tableau pièce par pièce | E43: x | F43: x | G43: x | H43: x | I43: 2023-02-03 | J43: SDA
B44: V2_28 | C44: Rapport_PàP | D44: Ajout de la surface totale et surface totale vitrée dans le rapport pièce par pièce | E44: x | F44: x | G44: x | H44: x | I44: 2023-02-03 | J44: SDA
B45: V2_29 | C45: Calculs | D45: Correction erreur affichage | E45: x | F45: x | G45: x | H45: x
B46: V2_30 | C46: Macro | D46: Sauvegarde des infos installateur dans la base de registre | E46: x | F46: x | G46: x | H46: x | I46: 2023-02-08 | J46: SDA
B47: V2_31 | C47: Aide | D47: Ajout de l'onglet d'aide | E47: x | F47: x | G47: x | H47: x | I47: 2023-03-02 | J47: SDA
B48: V2_31 | C48: Calculs | D48: Modif calcul T° radiateur en pièce par pièce | E48: x | F48: x | G48: x | H48: x | I48: 2023-03-02 | J48: SDA
B49: V2_32 | C49: Divers onglets | D49: Faire apparaitre le module L10 + L11 lors de la sélection d'une colonne GeniaSet split 3kW | E49: x | F49: x | G49: x | H49: x | I49: 2023-03-07 | J49: SDA
B50: V2_33 | C50: Macro | D50: Ajout de l'importation d'un ancien projet | E50: x | F50: x | G50: x | H50: x | I50: 2023-03-08 | J50: SDA
B51: V2_33 | C51: Ribbon | D51: Ajout du ribbon | E51: x | F51: x | G51: x | H51: x | I51: 2023-03-13 | J51: SDA
B52: V2_34 | C52: BDD_G4 | D52: Mise à jour puissance 8 et 10kW Tek | E52: x | F52: x | G52: x | H52: x | I52: 2023-03-13 | J52: SDA
B53: V2_35 | C53: Ribbon | D53: Ajout du bouton "Prix des énergies" | E53: x | F53: x | G53: x | H53: x | I53: 2023-03-14 | J53: SDA
B54: V2_35 | C54: Macro | D54: Importation ancien projet : ajout du choix de la PAC dans ChoixPAC2 | E54: x | F54: x | G54: x | H54: x | I54: 2023-03-14 | J54: SDA
B55: V2_35 | C55: PrixEnergie | D55: Mise à jour des prix des énergies | E55: x | F55: x | G55: x | H55: x | I55: 2023-03-14 | J55: SDA
B56: V2_36 | C56: BDD_Acc_Ch | D56: Correction de la référence de la buse verticale 80/125 pour les chaudières Thema Condens | E56: x | F56: x | G56: x | H56: x | I56: 2023-03-29 | J56: SDA
B57: V2_36 | C57: macro | D57: Correction de la macro à l'ouverture et à l'enregistrement du fichier | E57: x | F57: x | G57: x | H57: x | I57: 2023-03-29 | J57: SDA
B58: V2_37 | C58: CP_ville | D58: Mise à jour des départments 22, 29, 50 et 56 | E58: x | F58: x | G58: x | H58: x | I58: 2023-03-30 | J58: SDA
B59: V2_38 | C59: BDD_Dev | D59: Ajout de pièce pour le PàP | E59: x | F59: x | G59: x | H59: x | I59: 2023-04-04 | J59: SDA
B60: V2_38 | C60: BDD_Dev | D60: Ajout de "Sans émetteur" | E60: x | F60: x | G60: x | H60: x | I60: 2023-04-04 | J60: SDA
B61: V2_39 | C61: BDD_Commun | D61: Ajout de 100 lignes pour les accessoires PAC (ajout option circu + V3V si > 10kW) | E61: x | F61: x | G61: x | H61: x | I61: 2023-04-05 | J61: SDA
B62: V2_39 | C62: Calculs | D62: Ajout de 100 lignes pour le chiffrage | E62: x | F62: x | G62: x | H62: x | I62: 2023-04-05 | J62: SDA
B63: V2_40 | C63: BDD_G1 à G4 | D63: Ajout de 100 lignes pour le chiffrage | E63: x | F63: x | G63: x | H63: x | I63: 2023-04-06 | J63: SDA
B64: V2_41 | C64: Data_Tech | D64: MàJ des valeurs Eta S GeniaAir split et Max | E64: x | F64: x | G64: x | H64: x | I64: 2023-05-10 | J64: SDA
B65: V2_42 | C65: BDD_Commun | D65: Modif des lignes "Ballon découplage > 60L" en "Ballon de découplage ou volume libre > 60L" | E65: x | F65: x | G65: x | H65: x | I65: 2023-05-11 | J65: SDA
B66: V2_43 | C66: CP_ville | D66: Modif Tbase Paris | E66: x | F66: x | G66: x | H66: x | I66: 2023-05-23 | J66: SDA
B67: V2_44 | C67: Macro | D67: Ajout sauvegarde infos projeteur | E67: x | F67: x | G67: x | H67: x | I67: 2023-05-23 | J67: SDA
B68: V2_44 | C68: Macro | D68: Ajout importation fiche de renseignement web | E68: x | F68: x | G68: x | H68: x | I68: 2023-06-01 | J68: SDA
B69: V2_44 | C69: Macro | D69: Blocage de l'avancement avec les bouton du ribbon si il y a une erreur dans une page | E69: x | F69: x | G69: x | H69: x | I69: 2023-06-01 | J69: SDA
B70: V2_44 | C70: Calculs | D70: Déboguage altitude dans le 66 | E70: x | F70: x | G70: x | H70: x | I70: 2023-06-01 | J70: SDA
B71: V2_45 | C71: ChoixPAC | D71: Correction bug bouton suivant en hybride | E71: x | F71: x | G71: x | H71: x | I71: 2023-06-07 | J71: SDA
B72: V2_46 | C72: Renseignement | D72: Correction de la liste des villes pour le projeteur et l'installateur (on renvoyait toujours la liste des villes du code postal client) | E72: x | F72: x | G72: x | H72: x | I72: 2023-06-08 | J72: SDA
B73: V2_46 | C73: Simpli | D73: Vérification des données dans le calcul pièce par pièce avec affichage d'erreurs éventuelles | E73: x | F73: x | G73: x | H73: x | I73: 2023-06-08 | J73: SDA
B74: V2_47 | C74: Macro | D74: Correction dans l'importation de la fiche de renseignement | E74: x | F74: x | G74: x | H74: x | I74: 2023-06-12 | J74: SDA
B75: V2_48 | C75: Simpli | D75: Ajout d'un message dans le calcul pièce par pièce si la taille d'un radiateur dépasse 300cm | E75: x | F75: x | G75: x | H75: x | I75: 2023-06-12 | J75: SDA
B76: V2_49 | C76: Calculs | D76: ecriture 130 % au lieu de 110% (CEE) | E76: x | F76: x | G76: x | H76: x | I76: 2023-06-19 | J76: GM
B77: V2_49 | C77: ChoixPAC2 | D77: ecriture 130 % au lieu de 110% (CEE) | E77: x | F77: x | G77: x | H77: x | I77: 2023-06-19 | J77: GM
B78: V2_49 | C78: calculs | D78: Ortographe Document à conserver pour les contrôles dans le cadre du dispositif des certificats d’économies d’énergie | E78: x | F78: x | G78: x | H78: x | I78: 2023-06-29 | J78: GM
B79: V2_49 | C79: Schema | D79: GeniaAir Split-Q-B-D2 > 10 kW | E79: X | F79: X | G79: X | H79: X | I79: 2023-06-29 | J79: GM
B80: V2_49 | C80: Schema | D80: GeniaAir Split-Q-B-DM < 10 kW (integré) | E80: x | F80: x | G80: x | H80: x | I80: 2023-06-29 | J80: GM
B81: V2_49 | C81: Schema | D81: dif entre > et < à 10 kW | E81: x | F81: x | G81: x | H81: x | I81: 2023-06-29 | J81: GM
B82: V2_49 | C82: BDD_G3 | D82: " a prevoir volume tampon … 11 et 15 carrection | E82: x | F82: x | G82: x | H82: x | I82: 2023-06-29 | J82: GM
B83: V2_49 | C83: Calcul | D83: pas d affichage de solution si P PAC de la gamme < 70 % | E83: x | F83: x | G83: x | H83: x | I83: 2023-06-29 | J83: GM
B84: V2_50 | C84: Data_Tech | D84: valeur eta S GeniaSet Max 15 | E84: x | F84: x | G84: x | H84: x | I84: 2023-06-30 | J84: GM
B85: V2_50 | C85: Data_Tech | D85: ligne 262 =SI(Systeme_PAC_hybride=FAUX;DF318;SI(Chaudiere_hybride_neuve_ou_existante=1;"NA";SI(Solution_éligible_CEE<>1;"NA";ARRONDI(INDEX(Data_Tech_PAC;Calculs!$AI$1302;COLONNE()-$E$8)*100;0)))) | E85: x | F85: x | G85: x | H85: x | I85: 2023-06-30 | J85: GM
B86: V2_51 | C86: Data_Tech | D86: Ajout des données techniques pour les GeniaAir Split avec ballon FEW 200 | E86: x | F86: x | G86: x | H86: x | I86: 2023-07-11 | J86: SDA
A87: 2023-08-03 | B87: V2_52 | C87: Rapport_Simpli | D87: Modification affichage surfaces du bâtiment et des vivrages | E87: x | F87: x | G87: x | H87: x | I87: 2023-08-03 | J87: GM
A88: 2023-08-03 | B88: V2_52 | C88: Calcul | D88: Débugage cas des hybride H1302=SI(G1302="";0;SI(Systeme_PAC_hybride=VRAI;G1302/Deperditions_Valeur_retenue;G1302/SI(T1302>T°base_corrigée;S1302;Deperditions_Valeur_retenue))) | E88: x | F88: x | G88: x | H88: x | I88: 2023-08-03 | J88: GM
A89: 2023-08-03 | B89: V2_52 | C89: TARIF | D89: Mise à jour tarif 09/2023 (2023-V2) | E89: x | F89: x | G89: x | H89: x | I89: 2023-08-03 | J89: GM
B90: V2_53 | C90: Macro | D90: Ajout de la fonction sauvegarde + nouveau menu dans le ribbon | E90: x | F90: x | G90: x | H90: x | I90: 2023-08-21 | J90: SDA
B91: V2_54 | C91: BDD_Dev | D91: Ajout du triple vitrage | E91: x | F91: x | G91: x | H91: x | I91: 2023-09-06 | J91: SDA
B92: V2_55 | C92: Macro | D92: Correction importation d'une offre | E92: x | F92: x | G92: x | H92: x | I92: 2023-09-12 | J92: SDA
B93: V2_56 | C93: Macro | D93: Activation du bouton dans le ribbon "importer fiche de renseignement" | E93: x | F93: x | G93: x | H93: x | I93: 2023-09-15 | J93: SDA
B94: V2_57 | C94: BDD_Commun | D94: Retirer Red 3 si chiffrage d'un système hybride "GeniaAir Max + 1 circuit direct" | E94: x | F94: x | G94: x | H94: x | I94: 2023-10-04 | J94: JD
B95: V2_58 | C95: Macro | D95: Correction effacement des données installateur et projeteur | E95: x | F95: x | G95: x | H95: x | I95: 2023-10-05 | J95: SDA
B96: V2_59 | C96: Rapport_Simpli | D96: Suppression du type de machine et de l'EtaS dans la note de dimensionnement | E96: x | F96: x | G96: x | H96: x | I96: 2023-10-09 | J96: SDA
B97: V2_60 | C97: Aide | D97: Ajout du QR code de la fiche de renseignement web | E97: x | F97: x | G97: x | H97: x | I97: 2023-10-10 | J97: SDA
B98: V2_61 | C98: Macro | D98: Correction importation fiche de renseignement (Production ECS oui/non) | E98: x | F98: x | G98: x | H98: x | I98: 2023-10-10 | J98: SDA
B99: V2_62 | C99: SchemaListe | D99: Ajout deschéma pour la Tek | E99: x | F99: x | G99: x | H99: x | I99: 2023-10-18 | J99: SDA
B100: V2_63 | C100: SchemaListe | D100: Ajout deschéma pour la Tek | E100: x | F100: x | G100: x | H100: x | I100: 2023-10-27 | J100: SDA
B101: V2_64 | C101: Macro | D101: Correction nom/Prénom pour fiche de renseignement | E101: x | F101: x | G101: x | H101: x | I101: 2023-10-30 | J101: SDA
B102: V2_64 | C102: TARIF | D102: Changement du nom de la carte ebus PAC hybride | E102: x | F102: x | G102: x | H102: x | I102: 2023-10-30 | J102: SDA
B103: V2_65 | C103: BDD_Dev | D103: Ajout "Année après 2017" et "Valeurs utilisateur" | E103: x | F103: x | G103: x | H103: x | I103: 2023-11-09 | J103: SDA
B104: V2_66 | C104: Macro | D104: Correction de l'importation de l'année de construction | E104: x | F104: x | G104: x | H104: x | I104: 2023-11-16 | J104: SDA
B105: V2_67 | C105: Macro | D105: Modif importation offre | E105: x | F105: x | G105: x | H105: x | I105: 2023-11-21 | J105: SDA
B106: V2_67 | C106: Rapport_Simpli | D106: Modif cellule C260 | E106: x | F106: x | G106: x | H106: x | I106: 2023-11-21 | J106: SDA
B107: V2_68 | C107: Schema | D107: Changement du numéro de schéma GeniaAir Split-EI-B-DM | E107: x | F107: x | G107: x | H107: x | I107: 2023-11-22 | J107: SDA
B108: V2_69 | C108: macro | D108: Modif fonction "Ouvrir_offre" | E108: x | F108: x | G108: x | H108: x | I108: 2023-11-27 | J108: SDA
B109: V2_69_001 | C109: Tout | D109: remplacement Moduzone Z 20 B par "C" 0020093951 -> 0010039990 | E109: x | F109: x | G109: x | H109: x | I109: 2023-12-20 | J109: GM
B110: V2_69_001 | C110: Tout | D110: NF PAC | E110: x | F110: x | G110: x | H110: x | I110: 2023-12-20 | J110: GM
C111: Tout | D111: debugage Genia Et Genia TEK valeuys de puissance manquantes > 0°C dans datatech | E111: x | F111: x | G111: x | H111: x | I111: 2023-12-21 | J111: GM
C112: BDD_Gx | D112: Gestion des cascade du point de vue accessoire elevctrique : au niveau du devis ajour "si cascade prevoir VR/RED si pas present et VR38 n-1 pac)
D113: BDD_Commun par gamme | E113: x | F113: x | G113: x | H113: x | I113: 2024-02-07 | J113: GM
D114: créer dans BDD_Commun un cas hybride D et hybride Q-D
B115: V2_70 | D115: BAR-TH-171 | E115: x | F115: x | G115: x | H115: x | I115: 2024-01-03 | J115: GM
B116: V2_70 | C116: TARIF | D116: Tarif 2024 | E116: x | F116: x | G116: x | H116: x | I116: 2024-01-03 | J116: GM
B117: V2_71 | C117: SchemaListe | D117: schema split ajout | E117: x | F117: x | G117: x | H117: x | I117: 2024-01-04 | J117: GM
B118: V2_72 | C118: Calculs | D118: transfert des produit ajouté manuellement | E118: x | F118: x | G118: x | H118: x | I118: 2024-01-04 | J118: GM
B119: V2_73 | C119: Calculs | D119: transfert des "A prévoir" | E119: x | F119: x | G119: x | H119: x | I119: 2024-01-04 | J119: GM
B120: V2_73 | C120: Rapport_Simpli | D120: Presentation des chaudiere dans les rapports Hybride | E120: x | F120: x | G120: x | H120: x | I120: 2024-01-04 | J120: GM
B121: V2_73 | C121: accessoires | D121: Choix des accessoires intégrés | E121: x | F121: x | G121: x | H121: x | I121: 2024-01-04 | J121: GM
B122: V2_74 | C122: Calculs | D122: Energie à choisir dans l'hybridation | E122: x | F122: x | G122: x | H122: x | I122: 2024-02-07 | J122: GM
B123: V2_74 | C123: ChoixPAC1Hybride | D123: Energie à choisir dans l'hybridation | E123: x | F123: x | G123: x | H123: x | I123: 2024-02-08 | J123: GM
B124: V2_75 | D124: debugage + corrretion choix regul cascade | E124: x | F124: x | G124: x | H124: x | I124: 2024-02-09 | J124: GM
B125: V2_76 | C125: SchémaListe | D125: Nouveau numéro de schéma pour : GeniaAir Max-Res-B-DM GeniaAir Max-Res-EI-B-DM | E125: x | F125: x | G125: x | H125: x | I125: 2024-02-15 | J125: SDA
B126: V2_76 | C126: Export | D126: Colonne B : ajout de la fonction "VALEUR.EN.TEXTE" | E126: x | F126: x | G126: x | H126: x | I126: 2024-02-15 | J126: SDA
B127: V2_76 | C127: Paramétrage | D127: Changé "En série" par "En série externe" Changé "En série interne" par "Tampon série 18L" | E127: x | F127: x | G127: x | H127: x | I127: 2024-02-15 | J127: SDA
B128: V2_76 | C128: BDD_Gx | D128: Correction affichage ballon tampon 18L série | E128: x | F128: x | G128: x | H128: x | I128: 2024-02-15 | J128: SDA
B129: V2_77 | C129: Calculs | D129: Correction du schéma si choix colonne GeniaAir Tek avec une zone chauffage sans ballon tampon | E129: x | F129: x | G129: x | H129: x | I129: 2024-02-29 | J129: SDA
B130: V2_78 | C130: Macro | D130: Correction de l'importation fonction hybride et mode ECS | E130: x | F130: x | G130: x | H130: x | I130: 2024-03-19 | J130: SDA
B131: V2_79 | C131: ChoixPAC2 | D131: Correction cosmetique de l'affichage de la compatibilité DTU, RGE, CEE | E131: x | F131: x | G131: x | H131: x | I131: 2024-04-10 | J131: SDA
B132: V2_79 | C132: Bdd_Produit | D132: Correction cellule N84 et N85 | E132: x | F132: x | G132: x | H132: x | I132: 2024-04-10 | J132: SDA
B133: V2_79 | C133: Data_Tech | D133: Correction informations module murale Tek Hybride (section câble, masse) | E133: x | F133: x | G133: x | H133: x | I133: 2024-04-10 | J133: SDA
B134: V2_80 | C134: BDD_G2 | D134: Ajout du ballon de 50 L pour la GeniaAir / GeniaSet 10kW | E134: x | F134: x | G134: x | H134: x | I134: 2024-04-17 | J134: SDA
B135: V2_81 | C135: Fiche_ErP | D135: Ajout du téléchargement des données et de la fiche ErP correspondant à la configuration de PAC choisie | E135: x | F135: x | G135: x | H135: x | I135: 2024-04-23 | J135: SDA
B136: V2_81 | C136: Recherche_ErP | D136: Création de l'onglet | E136: x | F136: x | G136: x | H136: x | I136: 2024-04-23 | J136: SDA

Sheet Export (hidden)
A1: description | B1: Logiciel PAC_2020 v2 | C1: Qté | D1: ligne active | E1: nombre de ligne active | H1: Export1 | I1: ="'Export'!A2:A"&N -> 'Export'!A2:A10 | Z1: Commentaire
A2: =Calculs!AI1248 -> PAC | B2: =_xlfn.VALUETOTEXT(Calculs!AJ1248) -> 0010031697 | C2: =Calculs!AL1248 -> 1 | D2: =IF(OR(C2=0,C2="",C2="-"),0,1) -> 1 | E2: =SUM(D2:D42)+1 -> 10 | H2: Export2 | I2: ="'Export'!B2:B"&N -> 'Export'!B2:B10 | Z2: =IF(ISBLANK(Calculs!AN1289),"",Calculs!AN1289) -> A prévoir : zone 1 circulateur (après bouteille ou ballon tampon), vanne(s) de réglage de débit sur le secondaire, vannes type exogel ®, filtre à tamis sur le retour pac, soupape différentielle (repère 9d), vase expansion, soupape, manomètre.,
A3: =Calculs!AI1249 -> Accessoires hydrauliques et électriques | B3: =_xlfn.VALUETOTEXT(Calculs!AJ1249) -> 0010036670 | C3: =Calculs!AL1249 -> 1 | D3: =IF(OR(C3=0,C3="",C3="-"),0,1) -> 1 | H3: Export3 | I3: ="'Export'!C2:C"&N -> 'Export'!C2:C10
A4: =Calculs!AI1250 ->  | B4: =_xlfn.VALUETOTEXT(Calculs!AJ1250) -> 0020221268 | C4: =Calculs!AL1250 -> 1 | D4: 1
A5: =Calculs!AI1251 ->  | B5: =_xlfn.VALUETOTEXT(Calculs!AJ1251) -> 0020020455 | C5: =Calculs!AL1251 -> 1 | D5: 1
A6: =Calculs!AI1252 -> Régulation : MiPro Sense Radio (tactile) | B6: =_xlfn.VALUETOTEXT(Calculs!AJ1252) -> 0020260979 | C6: =Calculs!AL1252 -> 1 | D6: 1
A7: =Calculs!AI1253 ->  | B7: =_xlfn.VALUETOTEXT(Calculs!AJ1253) -> 0020004238 | C7: =Calculs!AL1253 -> 1 | D7: 1
A8: =Calculs!AI1254 -> Accessoires Bouteille tampon En parallèle | B8: =_xlfn.VALUETOTEXT(Calculs!AJ1254) -> 8000015076 | C8: =Calculs!AL1254 -> 1 | D8: 1
A9: =Calculs!AI1255 -> Accessoires Découplage glycol : Pas de découplage | B9: =_xlfn.VALUETOTEXT(Calculs!AJ1255) -> 0020252059 | C9: =Calculs!AL1255 -> 1 | D9: 1
A10: =Calculs!AI1256 -> Mise en service | B10: =_xlfn.VALUETOTEXT(Calculs!AJ1256) -> 0010028531 | C10: =Calculs!AL1256 -> 1 | D10: 1
A11: =Calculs!AI1257 ->  | B11: =_xlfn.VALUETOTEXT(Calculs!AJ1257) ->  | C11: =Calculs!AL1257 ->  | D11: 0
A12: =Calculs!AI1258 ->  | B12: =_xlfn.VALUETOTEXT(Calculs!AJ1258) ->  | C12: =Calculs!AL1258 ->  | D12: 0
A13: =Calculs!AI1259 ->  | B13: =_xlfn.VALUETOTEXT(Calculs!AJ1259) ->  | C13: =Calculs!AL1259 ->  | D13: 0
A14: =Calculs!AI1260 ->  | B14: =_xlfn.VALUETOTEXT(Calculs!AJ1260) ->  | C14: =Calculs!AL1260 ->  | D14: 0
A15: =Calculs!AI1261 ->  | B15: =_xlfn.VALUETOTEXT(Calculs!AJ1261) ->  | C15: =Calculs!AL1261 ->  | D15: 0
A16: =Calculs!AI1262 ->  | B16: =_xlfn.VALUETOTEXT(Calculs!AJ1262) ->  | C16: =Calculs!AL1262 ->  | D16: 0
A17: =Calculs!AI1263 ->  | B17: =_xlfn.VALUETOTEXT(Calculs!AJ1263) ->  | C17: =Calculs!AL1263 ->  | D17: 0
A18: =Calculs!AI1264 ->  | B18: =_xlfn.VALUETOTEXT(Calculs!AJ1264) ->  | C18: =Calculs!AL1264 ->  | D18: 0
A19: =Calculs!AI1265 ->  | B19: =_xlfn.VALUETOTEXT(Calculs!AJ1265) ->  | C19: =Calculs!AL1265 ->  | D19: 0
A20: =Calculs!AI1266 ->  | B20: =_xlfn.VALUETOTEXT(Calculs!AJ1266) ->  | C20: =Calculs!AL1266 ->  | D20: 0
A21: =Calculs!AI1267 ->  | B21: =_xlfn.VALUETOTEXT(Calculs!AJ1267) ->  | C21: =Calculs!AL1267 ->  | D21: 0
A22: =Calculs!AI1268 ->  | B22: =_xlfn.VALUETOTEXT(Calculs!AJ1268) ->  | C22: =Calculs!AL1268 ->  | D22: 0
A23: =Calculs!AI1269 ->  | B23: =_xlfn.VALUETOTEXT(Calculs!AJ1269) ->  | C23: =Calculs!AL1269 ->  | D23: 0
A24: =Calculs!AI1270 ->  | B24: =_xlfn.VALUETOTEXT(Calculs!AJ1270) ->  | C24: =Calculs!AL1270 ->  | D24: 0
A25: =Calculs!AI1271 ->  | B25: =_xlfn.VALUETOTEXT(Calculs!AJ1271) ->  | C25: =Calculs!AL1271 ->  | D25: 0
A26: =Calculs!AI1272 ->  | B26: =_xlfn.VALUETOTEXT(Calculs!AJ1272) ->  | C26: =Calculs!AL1272 ->  | D26: 0
A27: =Calculs!AI1273 ->  | B27: =_xlfn.VALUETOTEXT(Calculs!AJ1273) ->  | C27: =Calculs!AL1273 ->  | D27: 0
A28: =Calculs!AI1274 ->  | B28: =_xlfn.VALUETOTEXT(Calculs!AJ1274) ->  | C28: =Calculs!AL1274 ->  | D28: 0
A29: =Calculs!AI1275 ->  | B29: =_xlfn.VALUETOTEXT(Calculs!AJ1275) ->  | C29: =Calculs!AL1275 ->  | D29: 0
A30: =Calculs!AI1276 ->  | B30: =_xlfn.VALUETOTEXT(Calculs!AJ1276) ->  | C30: =Calculs!AL1276 ->  | D30: 0
A31: =Calculs!AI1277 ->  | B31: =_xlfn.VALUETOTEXT(Calculs!AJ1277) ->  | C31: =Calculs!AL1277 ->  | D31: 0
A32: =Calculs!AI1278 ->  | B32: =_xlfn.VALUETOTEXT(Calculs!AJ1278) ->  | C32: =Calculs!AL1278 ->  | D32: 0
D33: =IF(OR(C33=0,C33="",C33="-"),0,1) -> 0
D34: 0
D35: 0
D36: 0
D37: 0
D38: 0
D39: 0
D40: 0
D41: 0
D42: 0

Sheet TARIF (hidden)
A1: Grande famille | B1: Sous-famille | C1: REFERENCE | D1: DESIGNATION | E1: Tarif 09/2023 (2023-V2) | F1: Eco-participation
A2: Photovoltaïque | B2: Kit complet | C2: 0010023995 | D2: Kit PV intégration 54 1 mod | E2: 3299 | F2: 0.5
A3: Solaire | B3: Capteurs pressurisés | C3: 0010008906 | D3: Capteur HelioPlan SRH 2.3 | E3: 1432 | F3: 6.67
A4: Pompes à chaleur | B4: Accessoires air/eau | C4: 0020269276 | D4: Access. raccord. L10 GeniaSet | E4: 44 | F4: 0.01
A5: Solaire | B5: Accessoires de montage | C5: 0020080176 | D5: Accroches larges pattes fix T | E5: 109 | F5: 0.01
A6: Chauffe Eau / Chauffe-bain | B6: Kits de raccordement et remplacement | C6: 0020234587 | D6: Opalia C vers Bayard | E6: 27 | F6: 0.01
A7: Chauffe Eau / Chauffe-bain | B7: Kits de raccordement et remplacement | C7: 0020234586 | D7: Kit Opalia C vers LM 25-26 | E7: 27 | F7: 0.01
A8: Chauffe Eau / Chauffe-bain | B8: Kits de raccordement et remplacement | C8: 0020234588 | D8: Opalia C vers SD27 | E8: 27 | F8: 0.01
A9: Ballons sanitaires | B9: Ballon sanitaire | C9: 0010021462 | D9: AQ Box mini-ball 10 L | E9: 862 | F9: 5
A10: Ballons sanitaires | B10: Accessoires | C10: 0020152983 | D10: Aquastat | E10: 51 | F10: 0.02
A11: Ballons sanitaires | B11: Ballons sanitaires échangeur | C11: 0010015959 | D11: Ballon Sol FE 120 BA | E11: 1243 | F11: 5
A12: Ballons sanitaires | B12: Ballons sanitaires échangeur | C12: 0010015960 | D12: Ballon Sol FE 150 BA | E12: 1334 | F12: 5
A13: Ballons sanitaires | B13: Ballons sanitaires échangeur | C13: 0010015961 | D13: Ballon Sol FE 200 BA | E13: 1510 | F13: 5
A14: Pompes à chaleur | B14: Ballons sanitaires | C14: 0020197909 | D14: Ballon FEW 200 ME pour PAC | E14: 1800 | F14: 5
A15: Pompes à chaleur | B15: Ballons sanitaires | C15: 0010020656 | D15: Ballon FEW 300/3 MR pour PAC | E15: 2100 | F15: 5
A16: Ballons sanitaires | B16: Ballons sanitaires échangeur | C16: 0010020650 | D16: FE 300/3 MR | E16: 1789 | F16: 5
A17: Ballons sanitaires | B17: Ballons sanitaires échangeur | C17: 0010020651 | D17: FE 400/3 MR | E17: 2243 | F17: 5
A18: Ballons sanitaires | B18: Ballons sanitaires échangeur | C18: 0010020652 | D18: FE 500/3 MR | E18: 2809 | F18: 5
A19: Solaire | B19: Ballons solaires | C19: 0010017737 | D19: HelioSet autov FES2 250 BiD | E19: 2833 | F19: 0.42
A20: Solaire | B20: Ballons solaires | C20: 0010017734 | D20: HelioSet autov FES1 150 BiDE | E20: 2815 | F20: 5
A21: Solaire | B21: Ballons solaires | C21: 0010017736 | D21: HelioSet autov FES1 250 BiDE | E21: 3237 | F21: 5
A22: Solaire | B22: Ballons solaires | C22: 0010017733 | D22: HelioSet autov monoFES1 150BiD | E22: 2224 | F22: 0.42
A23: Solaire | B23: Ballons solaires | C23: 0010017735 | D23: HelioSet autov monoFES1 250BiD | E23: 2646 | F23: 0.42
A24: Solaire | B24: Ballons solaires | C24: 0010017725 | D24: Ballon HelioSet nu FE 150/4 S | E24: 760 | F24: 5
A25: Solaire | B25: Ballons solaires | C25: 0010017726 | D25: Ballon HelioSet nu FE 250/4 S | E25: 1055 | F25: 5
A26: Solaire | B26: Ballons solaires | C26: 0010017728 | D26: Ballon HelioSet nu FE 350/4 S | E26: 1771 | F26: 5
A27: Ballons sanitaires | B27: Ballons sanitaires échangeur | C27: 0010023325 | D27: Ballon WE/2 100 ME | E27: 1141 | F27: 5
A28: Ballons sanitaires | B28: Ballons sanitaires échangeur | C28: 0010023326 | D28: Ballon WE 150/2 ME | E28: 1402 | F28: 5
A29: Ballons sanitaires | B29: Ballons sanitaires échangeur | C29: 0010023324 | D29: Ballon WE 75/2 ME | E29: 1006 | F29: 5
A30: Ballons sanitaires | B30: Ballons sanitaires chargement dynamique | C30: 0010023334 | D30: Ballon WEL 100/2 ME | E30: 717 | F30: 5
A31: Ballons sanitaires | B31: Ballons sanitaires chargement dynamique | C31: 0010023335 | D31: Ballon WEL 150/2 ME | E31: 965 | F31: 5
A32: Ballons sanitaires | B32: Ballons sanitaires chargement dynamique | C32: 0010023333 | D32: Ballon WEL 75/2 ME | E32: 540 | F32: 5
A33: Solaire | B33: Accessoires de montage | C33: 0020137803 | D33: Bati montage terrasse 1 capt | E33: 217 | F33: 0.01
A34: Solaire | B34: Accessoires de montage | C34: 0020137797 | D34: Bati montage terrasse capt.V | E34: 250 | F34: 0.01
A35: Chauffe Eau / Chauffe-bain | B35: Accessoires | C35: 0020234535 | D35: Batterie mélangeuse Opalia C | E35: 102 | F35: 0.01
A36: Chauffe Eau / Chauffe-bain | B36: Accessoires | C36: 0010012460 | D36: Bec verseur 19 cm Opalia C | E36: 49 | F36: 0.01
A37: Chauffe Eau / Chauffe-bain | B37: Accessoires | C37: 0010012459 | D37: Bec verseur 9 cm Opalia C | E37: 39 | F37: 0.01
A38: Fumisterie | B38: Accessoires | C38: 0020221353 | D38: Buse 60/100 coudée courte | E38: 42 | F38: 0.01
A39: Fumisterie | B39: Accessoires | C39: 0020199403 | D39: Buse 60/100 coudée longue | E39: 42 | F39: 0.01
A40: Fumisterie | B40: Accessoires | C40: 0020015064 | D40: Buse de réhausse Thema cds | E40: 123 | F40: 0.01
A41: Fumisterie | B41: Accessoires | C41: 0020199409 | D41: Buse verticale 60/100 | E41: 89 | F41: 0.01
A42: Fumisterie | B42: Ventouses | C42: 0020202466 | D42: Buse verticale Opalia F 80/125 | E42: 85 | F42: 0.01
A43: Fumisterie | B43: Accessoires | C43: 0020257015 | D43: Buse verticale cds 60/100 | E43: 42 | F43: 0.01
A44: Fumisterie | B44: Ventouses | C44: 0020276091 | D44: Buse verticale cds 80/125 | E44: 42 | F44: 0.01
A45: Photovoltaïque | B45: Accessoires | C45: 0010029031 | D45: Cable 2m interconnexion ondul | E45: 106 | F45: 0.02
A46: Solaire | B46: Accessoires | C46: 0020183368 | D46: Cable pompe anti-legionnelle | E46: 19 | F46: 0.02
A47: Solaire | B47: Accessoires de montage | C47: 0020160659 | D47: Cables ancrage anti-gliss | E47: 425 | F47: 0.01
A48: Chauffe Eau / Chauffe-bain | B48: Kits de raccordement et remplacement | C48: 0020175060 | D48: Cache Opalia avec batterie m | E48: 39 | F48: 0.01
A49: Chauffe Eau / Chauffe-bain | B49: Kits de raccordement et remplacement | C49: 0020175079 | D49: Cache Opalia sans batterie m | E49: 39 | F49: 0.01
A50: Chaudières | B50: Kits de raccordement et remplacement | C50: 0020220088 | D50: Cache tubulure Semia Cds | E50: 42 | F50: 0.01
A51: Chaudières | B51: Kits de raccordement et remplacement | C51: 0020220087 | D51: Cache tubulure Thema Cds | E51: 42 | F51: 0.01
A52: Chauffe Eau / Chauffe-bain | B52: Kits de raccordement et remplacement | C52: 0020234556 | D52: Cache-tubulures Opalia F | E52: 39 | F52: 0.01
A53: Chaudières | B53: Kits de raccordement et remplacement | C53: 0010025506 | D53: Cadre écarteur ThemaClassic BN | E53: 49 | F53: 0.03
A54: Chaudières | B54: Kits de raccordement et remplacement | C54: 0020136417 | D54: Cadre écarteur Iso Cds | E54: 76 | F54: 0.02
A55: Chauffe Eau / Chauffe-bain | B55: Kits de raccordement et remplacement | C55: 0020234559 | D55: Cadre écarteur Opalia F | E55: 49 | F55: 0.03
A56: Chaudières | B56: Kits de raccordement et remplacement | C56: 0020082851 | D56: Cadre écarteur Thema Cds | E56: 22 | F56: 0.02
A57: Chaudières | B57: Kits de raccordement et remplacement | C57: A2002900 | D57: Cadre écarteur ThemaClassic | E57: 49 | F57: 0.02
A58: Régulation | B58: Accessoires | C58: 0020162498 | D58: Capteur T° CETI monovalent | E58: 23 | F58: 0.02
A59: Régulation | B59: Accessoires | C59: 0020139896 | D59: Carte interface eBus PAC HYB | E59: 96 | F59: 0.12
A60: Régulation | B60: Accessoires | C60: 0020045084 | D60: Carte option | E60: 99 | F60: 0.12
A61: Régulation | B61: Accessoires | C61: 0020189396 | D61: Carte option BAZ | E61: 168 | F61: 0.12
A62: Fumisterie | B62: Accessoires | C62: 0020267922 | D62: Centreurs DN80 pour flex. x10 | E62: 70 | F62: 0.01
A63: Fumisterie | B63: Ventouses | C63: 0020081283 | D63: Clapet anti-retour pour 3CEp | E63: 57 | F63: 0.01
A64: Solaire | B64: Accessoires | C64: 0020020453 | D64: Collier fixation Twin tube | E64: 34 | F64: 0.01
A65: Photovoltaïque | B65: Accessoires | C65: 0010029027 | D65: Connecteur Onduleur Omnik | E65: 57 | F65: 0.01
A66: Régulation | B66: Accessoires | C66: 0020148777 | D66: Control box,VR40/BAZ,assy,SDBG | E66: 25 | F66: 0.12
A67: Fumisterie | B67: Accessoires | C67: 0020199404 | D67: Coude de rallonge 45° 60 / 100 | E67: 57 | F67: 0.01
A68: Fumisterie | B68: Accessoires | C68: 0020199416 | D68: Coude de rallonge 45° 80 / 125 | E68: 94 | F68: 0.01
A69: Fumisterie | B69: Accessoires | C69: 0020199402 | D69: Coude de rallonge 90° 60 / 100 | E69: 57 | F69: 0.01
A70: Fumisterie | B70: Accessoires | C70: 0020199414 | D70: Coude de rallonge 90° 80 / 125 | E70: 105 | F70: 0.01
A71: Fumisterie | B71: Accessoires | C71: 0020257014 | D71: Coude rallonge cds 15° 60/100 | E71: 78 | F71: 0.01
A72: Fumisterie | B72: Accessoires | C72: 0020242079 | D72: Coude rallonge cds 23° 60/100 | E72: 78 | F72: 0.01
A73: Fumisterie | B73: Accessoires | C73: 0020257009 | D73: Coude rallonge cds 87° 60/100 | E73: 64 | F73: 0.01
A74: Fumisterie | B74: Ventouses | C74: 0020257023 | D74: Coude rallonge cds 87° 80/125 | E74: 50 | F74: 0.01
A75: Chauffe-eau thermodynamique | B75: Accessoires | C75: 0020271552 | D75: Coude isolé 90 - D160 | E75: 61 | F75: 0.01
A76: Chauffe-eau thermodynamique | B76: Accessoires | C76: 0020271550 | D76: Coude isolé pvc 45 - D80/12 | E76: 54 | F76: 0.01
A77: Chauffe-eau thermodynamique | B77: Accessoires | C77: 0020171755 | D77: Coude pvc male/femelle 90 - | E77: 34 | F77: 0.01
A78: Fumisterie | B78: Accessoires | C78: 0020257010 | D78: Coudes rall. cds 45° 60/100 x2 | E78: 125 | F78: 0.01
A79: Fumisterie | B79: Accessoires | C79: 0020257024 | D79: Coudes rall. cds 45° 80/125 x2 | E79: 165 | F79: 0.01
A80: Fumisterie | B80: Accessoires | C80: 0020219536 | D80: Déflecteur de fumées | E80: 42 | F80: 0.01
A81: Chaudières | B81: Kits de raccordement et remplacement | C81: A2022500 | D81: Douilles longues Semia-Thema | E81: 22 | F81: 0.01
A82: Chaudières | B82: Kits de raccordement et remplacement | C82: A2022600 | D82: Douilles longues ThemaFast BT | E82: 48 | F82: 0.01
A83: Chaudières | B83: Kits de raccordement et remplacement | C83: 0020210110 | D83: Douilles courtes Semia-Thema | E83: 22 | F83: 0.01
A84: Chaudières | B84: Kits de raccordement et remplacement | C84: 0010025500 | D84: Douilles longues ThemaPlus BN | E84: 22 | F84: 0.01
A85: Chaudières | B85: Sol Gaz Condensation | C85: 0010014601 | D85: DuoMax Condens F 30 90 GN | E85: 5413 | F85: 5
A86: Chaudières | B86: Sol Gaz Condensation | C86: 0010014603 | D86: Duomax Condens F 34 150C GN | E86: 5699 | F86: 5
A87: Chaudières | B87: Sol Gaz Condensation | C87: 0010014602 | D87: Duomax Condens F 34 90 GN | E87: 5893 | F87: 5
A88: Régulation | B88: Régulateurs | C88: 0020076391 | D88: ExaBox 7J | E88: 254 | F88: 0.12
A89: Régulation | B89: Régulateurs | C89: 0020118071 | D89: Exacontrol E7 C | E89: 159 | F89: 0.12
A90: Régulation | B90: Régulateurs | C90: 0020049691 | D90: Exacontrol E7R B-B | E90: 359 | F90: 0.12
A91: Régulation | B91: Régulateurs | C91: 0020085060 | D91: Exacontrol E7R B-S | E91: 341 | F91: 0.12
A92: Régulation | B92: Régulateurs | C92: 0020147973 | D92: Exacontrol E7R C - Sh | E92: 373 | F92: 0.12
A93: Régulation | B93: Régulateurs | C93: 0020118072 | D93: Exacontrol E7R C-B | E93: 409 | F93: 0.12
A94: Régulation | B94: Accessoires | C94: 0020174071 | D94: Extension câble sonde 5 m | E94: 50 | F94: 0.02
A95: Régulation | B95: Accessoires | C95: 0020188587 | D95: Extension L 10 | E95: 252 | F95: 0.42
A96: Régulation | B96: Accessoires | C96: 0020188586 | D96: Extension L 11 | E96: 399 | F96: 0.42
A97: Solaire | B97: Accessoires | C97: 0020077251 | D97: Flexible 1m raccord | E97: 38 | F97: 0.01
A98: Solaire | B98: Accessoires | C98: 0020204492 | D98: Kit remplissage fluide solaire | E98: 79 | F98: 0.01
A99: Chauffe-eau thermodynamique | B99: Accessoires | C99: 0020171756 | D99: Gaine flexible isolé D160 L10m | E99: 297 | F99: 0.04
A100: Pompes à chaleur | B100: Unités extérieures air/eau | C100: 0010019770 | D100: GeniaAir 5 - 230 V | E100: 5034 | F100: 6.67
A101: Pompes à chaleur | B101: Unités extérieures air/eau | C101: 0010019771 | D101: GeniaAir 8 - 230 V | E101: 6527 | F101: 6.67
A102: Pompes à chaleur | B102: Unités extérieures air/eau | C102: 0010011923 | D102: GeniaAir 11 - 230 V | E102: 8141 | F102: 6.67
A103: Pompes à chaleur | B103: Unités extérieures air/eau | C103: 0010014418 | D103: GeniaAir 15 - 230 V | E103: 9546 | F103: 6.67
A104: Pompes à chaleur | B104: Unités extérieures air/eau | C104: 0010021148 | D104: GeniaAir Split 3 - 230 V | E104: 4842 | F104: 6.67
A105: Pompes à chaleur | B105: Unités extérieures air/eau | C105: 0010021149 | D105: GeniaAir Split 5 - 230 V | E105: 5593 | F105: 6.67
A106: Pompes à chaleur | B106: Unités extérieures air/eau | C106: 0010021150 | D106: GeniaAir Split 7 - 230 V | E106: 6744 | F106: 6.67
A107: Pompes à chaleur | B107: Unités extérieures air/eau | C107: 0010021151 | D107: GeniaAir Split 10 - 230 V | E107: 8818 | F107: 6.67
A108: Pompes à chaleur | B108: Unités extérieures air/eau | C108: 0010021152 | D108: GeniaAir Split 10 - 400 V | E108: 9293 | F108: 6.67
A109: Pompes à chaleur | B109: Unités extérieures air/eau | C109: 0010021153 | D109: GeniaAir Split 12 - 230 V | E109: 9892 | F109: 6.67
A110: Pompes à chaleur | B110: Unités extérieures air/eau | C110: 0010021154 | D110: GeniaAir Split 12 - 400 V | E110: 10422 | F110: 6.67
A111: Pompes à chaleur | B111: Unités intérieures air/eau | C111: 0010019374 | D111: Colonne GeniaSet (non découp) | E111: 3534 | F111: 5
A112: Pompes à chaleur | B112: Unités intérieures air/eau | C112: 0010019559 | D112: Colonne GeniaSet 5/8 (découp) | E112: 4026 | F112: 5
A113: Pompes à chaleur | B113: Unités intérieures air/eau | C113: 0010023173 | D113: GeniaSet Split 10-12 col. hyd. | E113: 4818 | F113: 5
A114: Pompes à chaleur | B114: Unités intérieures air/eau | C114: 0010023171 | D114: GeniaSet Split 3-5 col. hyd. | E114: 4648 | F114: 5
A115: Pompes à chaleur | B115: Unités intérieures air/eau | C115: 0010023172 | D115: GeniaSet Split 7 col. hyd. | E115: 4654 | F115: 5
A116: Chaudières | B116: Colonne Solaire Intégrée | C116: 0010014604 | D116: Heliotwin Condens F24 150/1 GN | E116: 6414 | F116: 5
A117: Pompes à chaleur | B117: Accessoires air/eau | C117: 0020231661 | D117: Interface PAC GeniaAir VWZ RP | E117: 293 | F117: 0.12
A118: Solaire | B118: Accessoires | C118: 0020020450 | D118: Isolation tressée - 2 X 750 mm | E118: 44 | F118: 0.01
A119: Fumisterie | B119: Accessoires | C119: 0010028093 | D119: Jeu 10 centreurs DN50 H-Flex | E119: 214 | F119: 0.06
A120: Photovoltaïque | B120: Kit complet | C120: 0010029038 | D120: Kit PV intégr 1 PAN.tuile | E120: 1950 | F120: 0.5
A121: Photovoltaïque | B121: Kit complet | C121: 0010029042 | D121: Kit PV toit terrasse 1 PANNEAU | E121: 1231 | F121: 0.36
A122: Photovoltaïque | B122: Kit complet | C122: 0010029039 | D122: Kit PV intégr 2 PANNEAUX | E122: 3150 | F122: 0.9
A123: Photovoltaïque | B123: Kit complet | C123: 0010029043 | D123: Kit PV toit terrasse 2 PANNEAU | E123: 2022 | F123: 0.7
A124: Photovoltaïque | B124: Kit complet | C124: 0010029037 | D124: KIT PV surtoit ardoise 2 PAN. | E124: 2056 | F124: 0.7
A125: Solaire | B125: Ballons solaires | C125: 0020204490 | D125: Pompe solaire additionnelle | E125: 432 | F125: 0.42
A126: Fumisterie | B126: Accessoires | C126: 085676D0 | D126: Kit adaptation 3CE 60 / 100 | E126: 105 | F126: 0.01
A127: Chauffe-eau thermodynamique | B127: Accessoires | C127: 0020188509 | D127: Kit aéraulique entrée/sortie | E127: 215 | F127: 0.14
A128: Fumisterie | B128: Accessoires | C128: 0010028091 | D128: Kit de base C(15)3 H-Flex | E128: 333 | F128: 0.03
A129: Ballons sanitaires | B129: Accessoires | C129: 0020151254 | D129: Pompe et raccordement WEL | E129: 680 | F129: 0.42
A130: Chaudières | B130: Kits de changement de gaz | C130: 0020258372 | D130: Kit gaz Corse pour Thema | E130: 122 | F130: 0.01
A131: Solaire | B131: Accessoires | C131: 0020193232 | D131: Kit de connexion tubulure cuiv | E131: 48 | F131: 0.01
A132: Chaudières | B132: Kits de changement de gaz | C132: 0020277176 | D132: Kit propane Thema BN | E132: 61 | F132: 0.01
A133: Pompes à chaleur | B133: Accessoires air/eau | C133: 0020220370 | D133: Kit de découp. GeniaSet 11/15 | E133: 505 | F133: 0.42
A134: Fumisterie | B134: Accessoires | C134: 08667800 | D134: Kit protection terminal 80/125 | E134: 103 | F134: 0.01
A135: Pompes à chaleur | B135: Accessoires air/eau | C135: 0020221268 | D135: Kit rac. GeniaSet chauf. seul | E135: 201 | F135: 0.01
A136: Pompes à chaleur | B136: Accessoires air/eau | C136: 0020252071 | D136: Kit rac. GeniaSet chauf. raf. | E136: 458 | F136: 0.01
A137: Solaire | B137: Accessoires | C137: 0020059923 | D137: Kit racc hydr ext1 capt.SRH | E137: 83 | F137: 0.02
A138: Solaire | B138: Accessoires | C138: 0020055217 | D138: Kit racc hydr ext champ SRH-V | E138: 65 | F138: 0.02
A139: Solaire | B139: Accessoires | C139: 0020059889 | D139: Kit racc hydr ext champ H T | E139: 65 | F139: 0.02
A140: Solaire | B140: Accessoires | C140: 0020146038 | D140: Kit racc hydr SRH 2.3 | E140: 96 | F140: 0.02
A141: Solaire | B141: Accessoires | C141: 0020146033 | D141: Kit racc hydr SRV 2.3 | E141: 96 | F141: 0.02
A142: Fumisterie | B142: Accessoires | C142: 0010028102 | D142: Kit raccordement 60/100 H-Flex | E142: 328 | F142: 0.01
A143: Chaudières | B143: Kits de raccordement et remplacement | C143: 0020106139 | D143: Kit Iso Cds vers CM Nectra | E143: 173 | F143: 0.04
A144: Chaudières | B144: Kits de raccordement et remplacement | C144: 0020106140 | D144: Kit Iso Cds vers Niagara | E144: 83 | F144: 0.05
A145: Chaudières | B145: Kits de raccordement et remplacement | C145: 0020106137 | D145: Kit Iso Cds vers Iso 97 | E145: 173 | F145: 0.04
A146: Chaudières | B146: Kits de raccordement et remplacement | C146: 0020106138 | D146: Kit Iso Cds vers Thelia Twin | E146: 83 | F146: 0.04
A147: Chaudières | B147: Accessoires solaires | C147: 0020041227 | D147: Transfo solaire plaque Thema | E147: 169 | F147: 0.01
A148: Fumisterie | B148: Accessoires | C148: 0010028125 | D148: Kit cheminée DN 50 H-Flex | E148: 698 | F148: 0.04
A149: Chaudières | B149: Kits de raccordement et remplacement | C149: 0020152748 | D149: Douilles longues Iso Condens | E149: 45 | F149: 0.01
A150: Fumisterie | B150: Accessoires | C150: 0020199443 | D150: Kit étanch. toit plat / alu | E150: 34 | F150: 0.02
A151: Fumisterie | B151: Accessoires | C151: 0020258677 | D151: Kit étanch. toit 25/45° brique | E151: 61 | F151: 0.1
A152: Fumisterie | B152: Accessoires | C152: 0020258676 | D152: Kit étanch. toit. 25-45° noir | E152: 61 | F152: 0.1
A153: Fumisterie | B153: Accessoires | C153: 0020258679 | D153: Kit étanch. toit 35/55° brique | E153: 61 | F153: 0.16
A154: Fumisterie | B154: Accessoires | C154: 0020258678 | D154: Kit étanch. toit. 35-55° noir | E154: 61 | F154: 0.16
A155: Fumisterie | B155: Accessoires | C155: 0020258675 | D155: Kit étanch. toit. 5-25° brique | E155: 61 | F155: 0.04
A156: Fumisterie | B156: Accessoires | C156: 0020258674 | D156: Kit étanch. toit. 5-25° noir | E156: 61 | F156: 0.11
A157: Chaudières | B157: Kits de raccordement et remplacement | C157: A2019000 | D157: Flexibles pour remplacement | E157: 297 | F157: 0.08
A158: Solaire | B158: Accessoires de montage | C158: 0020059939 | D158: Kit intégration - 1 capt H | E158: 999 | F158: 0.01
A159: Solaire | B159: Accessoires de montage | C159: 0020059941 | D159: Kit intégration - 2 capt SRH C | E159: 1717 | F159: 0.02
A160: Solaire | B160: Accessoires de montage | C160: 0020059940 | D160: Kit intégration 22à75° 1 C | E160: 842 | F160: 0.01
A161: Solaire | B161: Accessoires de montage | C161: 0020087869 | D161: Kit intégration 15à22° 1 C | E161: 842 | F161: 0.01
A162: Solaire | B162: Accessoires de montage | C162: 0020059884 | D162: Kit intégration 15à22° 2SRV | E162: 1250 | F162: 0.01
A163: Solaire | B163: Accessoires de montage | C163: 0020059887 | D163: Kit intégr 15° 22° -3 capt SRV | E163: 1717 | F163: 0.02
A164: Solaire | B164: Accessoires de montage | C164: 0020060167 | D164: Kit intégr 22à75° -extens SRV | E164: 467 | F164: 0.01
A165: Solaire | B165: Accessoires de montage | C165: 0020059942 | D165: Kit intégration 22à75°-2 SRV | E165: 1250 | F165: 0.02
A166: Solaire | B166: Accessoires de montage | C166: 0020060170 | D166: Kit intégr ext 1 capt horiz | E166: 483 | F166: 0.01
A167: Solaire | B167: Accessoires de montage | C167: 0020060166 | D167: Kit Intégration ext 1 SRH pose | E167: 734 | F167: 0.01
A168: Chaudières | B168: Kits de raccordement et remplacement | C168: 0020209803 | D168: Thema-Semia Cds vers Celtic | E168: 173 | F168: 0.01
A169: Chaudières | B169: Kits de raccordement et remplacement | C169: 0020202051 | D169: Thema-Semia Cds vers Acléis | E169: 173 | F169: 0.01
A170: Chaudières | B170: Kits de raccordement et remplacement | C170: 0020201965 | D170: Thema-Semia Cds vers GLM | E170: 173 | F170: 0.01
A171: Chaudières | B171: Kits de raccordement et remplacement | C171: 0020209710 | D171: Thema-Semia Cds vers Nectra | E171: 173 | F171: 0.01
A172: Fumisterie | B172: Accessoires | C172: 08537300 | D172: Kit protection terminal 60/100 | E172: 103 | F172: 0.01
A173: Solaire | B173: Accessoires | C173: 0020101163 | D173: Kit racc hydr ext 1 SRDV SU | E173: 64 | F173: 0.02
A174: Solaire | B174: Accessoires | C174: 0020101160 | D174: Kit racc hydr ext 1 SRDV TE | E174: 64 | F174: 0.02
A175: Solaire | B175: Accessoires de montage | C175: 0020160636 | D175: Kit rail pour bati horizontal | E175: 100 | F175: 0.01
A176: Solaire | B176: Accessoires de montage | C176: 0020160629 | D176: Kit rail pour bati en vertical | E176: 143 | F176: 0.01
A177: Chauffe-eau thermodynamique | B177: Accessoires | C177: 0020271551 | D177: Kit rallonge isolée 80/125L2m | E177: 135 | F177: 0.01
A178: Chauffe-eau thermodynamique | B178: Accessoires | C178: 0020190187 | D178: Kit rallonge isol D80/125 L1m | E178: 75 | F178: 0.01
A179: Chaudières | B179: Accessoires solaires | C179: 0020037598 | D179: Kit solaire plaque standard | E179: 437 | F179: 0.42
A180: Solaire | B180: Accessoires | C180: 0020145067 | D180: Kit racc hydr pour 1 SRD | E180: 35 | F180: 0.02
A181: Solaire | B181: Accessoires | C181: 0020143724 | D181: Kit racc hydr 1 SRDV 2.3 | E181: 100 | F181: 0.02
A182: Solaire | B182: Accessoires | C182: 0020146981 | D182: Kit racc hydr 3 SRD 2.3 | E182: 110 | F182: 0.02
A183: Chauffe Eau / Chauffe-bain | B183: Kits de raccordement et remplacement | C183: 0020234585 | D183: Kit universel flexible Opalia | E183: 42 | F183: 0.01
A184: Chauffe-eau thermodynamique | B184: Accessoires | C184: 0020190186 | D184: Kit ventouse isolée D80/125 - | E184: 193 | F184: 0.01
A185: Fumisterie | B185: Accessoires | C185: 0020199380 | D185: Ventouse horiz. 60/100 1 m | E185: 55 | F185: 0.02
A186: Chauffe-eau thermodynamique | B186: Accessoires | C186: 0010029003 | D186: Kit complet ventouse isol MACC | E186: 196 | F186: 0.01
A187: Fumisterie | B187: Ventouses | C187: 0020221352 | D187: Kit ventouse ch. bains + coude | E187: 50 | F187: 0.01
A188: Solaire | B188: Accessoires | C188: 0020193249 | D188: Limiteur de température ballon | E188: 57 | F188: 0.02
A189: Chauffe-eau thermodynamique | B189: Chauffe-eau thermodynamique | C189: 0010026820 | D189: Magna Aqua 100/3 CC | E189: 3160 | F189: 6.67
A190: Chauffe-eau thermodynamique | B190: Chauffe-eau thermodynamique | C190: 0010026821 | D190: Magna Aqua 150/3 CC | E190: 3425 | F190: 6.67
A191: Chauffe-eau thermodynamique | B191: Chauffe-eau thermodynamique | C191: 0010028217 | D191: Magna Aqua 200/3 | E191: 3525 | F191: 6.67
A192: Chauffe-eau thermodynamique | B192: Chauffe-eau thermodynamique | C192: 0010024436 | D192: Magna Aqua 200/3 RT | E192: 4050 | F192: 6.67
A193: Chauffe-eau thermodynamique | B193: Chauffe-eau thermodynamique | C193: 0010026828 | D193: Magna Aqua 270/3 | E193: 3700 | F193: 6.67
A194: Chauffe-eau thermodynamique | B194: Chauffe-eau thermodynamique | C194: 0010026829 | D194: Magna Aqua 270/3 C | E194: 4250 | F194: 6.67
A195: Chauffe-eau thermodynamique | B195: Chauffe-eau thermodynamique | C195: 0010026823 | D195: Magna Aqua 80/3 CC | E195: 2877 | F195: 6.67
A196: Fumisterie | B196: Accessoires | C196: 0020199400 | D196: Manchon ac. pts de mesure | E196: 25 | F196: 0.01
A197: Fumisterie | B197: Accessoires | C197: 0020267684 | D197: Manchon démontage cds 60/100 | E197: 56 | F197: 0.01
A198: Fumisterie | B198: Accessoires | C198: 0020257022 | D198: Manchon démontage cds 80/125 | E198: 73 | F198: 0.01
A199: Solaire | B199: Accessoires | C199: 0020020440 | D199: Mélange glycolé 30% - 10L sola | E199: 102 | F199: 0
A200: Solaire | B200: Accessoires | C200: 0020020406 | D200: Mélange glycolé 30% - 20L sola | E200: 214 | F200: 0
... 337 more rows

Sheet BDD_Acc_Ch (hidden)
B1: Logiciel PAC_2020 v2
D2: =Calculs!L93 -> INSTALLATIONS ET ACCESSOIRES pour la gamme BDD_G5 : ------------- | G2: HeBus-B-D
B3: 02/08/2022 | G3: 1 | H3: 2 | I3: 3 | J3: 4
F4: Schéma | G4: Semia / Thema | H4: IsoTwin / IsoMAx | I4: DuoMax
B5: Vers PARAMETRAGE | F5: Appoint | G5: Chaudière | H5: Chaudière | I5: Chaudière
F6: Mode gestion | G6: Simultané optimisé | H6: Simultané optimisé | I6: Simultané optimisé
F7: ECS
F8: =Calculs!D39 -> 
F9: =Calculs!D40 -> 
F10: =Calculs!D41 -> 
F11: =Calculs!D42 -> 
F12: =Calculs!D43 -> 
F13: .
D14: Réf. | E14: Dénomination | F14: PU HT
A15: 1 | B15: PAC | C15: Obligatoire | D15: . | E15: Accessoires Accessoires chaudière : Ventouse horizontale Ø 60/100 et autre | G15: . | H15: . | I15: . | J15: . | K15: .
C16: Oui | D16: 0010040209 | E16: =VLOOKUP($D16,MATRICE_VA,2,FALSE) -> Plaque de raccord Thema/Semia | F16: =VLOOKUP($D16,MATRICE_VA,3,FALSE) -> 173 | G16: 1
C17: Oui | D17: 0020210110 | E17: =VLOOKUP($D17,MATRICE_VA,2,FALSE) -> Douilles courtes Semia-Thema | F17: =VLOOKUP($D17,MATRICE_VA,3,FALSE) -> 22 | G17: 1
C18: Oui | D18: 0010040212 | E18: =VLOOKUP($D18,MATRICE_VA,2,FALSE) -> Plaque de raccordement DuoMax | F18: =VLOOKUP($D18,MATRICE_VA,3,FALSE) -> 232 | I18: 1
C19: Oui | D19: 0010040213 | E19: =VLOOKUP($D19,MATRICE_VA,2,FALSE) -> Plaque raccord IsoTwin/IsoMax | F19: =VLOOKUP($D19,MATRICE_VA,3,FALSE) -> 152 | H19: 1
C20: Oui | D20: 0010031039 | E20: =VLOOKUP($D20,MATRICE_VA,2,FALSE) -> Kit ventouse avec coude 60/100 | F20: =VLOOKUP($D20,MATRICE_VA,3,FALSE) -> 88 | G20: 1 | H20: 1 | I20: 1
B28: PAC | C28: Obligatoire | D28: . | E28: Accessoires Accessoires chaudière : Ventouse verticale Ø 60/100 et autre | G28: . | H28: . | I28: . | J28: . | K28: .
C29: Oui | D29: 0010040209 | E29: =VLOOKUP($D29,MATRICE_VA,2,FALSE) -> Plaque de raccord Thema/Semia | F29: =VLOOKUP($D29,MATRICE_VA,3,FALSE) -> 173 | G29: 1
C30: Oui | D30: 0020210110 | E30: Douilles courtes Semia-Thema | F30: 22 | G30: 1
C31: Oui | D31: 0010040212 | E31: Plaque de raccordement DuoMax | F31: 232 | I31: 1
C32: Oui | D32: 0010040213 | E32: Plaque raccord IsoTwin/IsoMax | F32: 152 | H32: 1
C33: Oui | D33: 0020257015 | E33: Buse verticale cds 60/100 | F33: 42 | G33: 1 | H33: 1 | I33: 1
C34: Ajustez les quantités | D34: 0020230604 | E34: Terminal toit. 60/100 noir | F34: 165 | G34: 1 | H34: 1 | I34: 1
C35: Ajustez les quantités | D35: 0020230605 | E35: Terminal toit. 60/100 brique | F35: 165 | G35: 1 | H35: 1 | I35: 1
B41: PAC | C41: Obligatoire | D41: . | E41: Accessoires Accessoires chaudière : Ventouse horizontale Ø 80/125 et autre | G41: . | H41: . | I41: . | J41: . | K41: .
C42: Oui | D42: 0010040209 | E42: =VLOOKUP($D42,MATRICE_VA,2,FALSE) -> Plaque de raccord Thema/Semia | F42: =VLOOKUP($D42,MATRICE_VA,3,FALSE) -> 173 | G42: 1
C43: Oui | D43: 0020210110 | E43: Douilles courtes Semia-Thema | F43: 22 | G43: 1
C44: Oui | D44: 0010040212 | E44: Plaque de raccordement DuoMax | F44: 232 | I44: 1
C45: Oui | D45: 0010040213 | E45: Plaque raccord IsoTwin/IsoMax | F45: 152 | H45: 1
C46: Oui | D46: 0010031033 | E46: Buse sortie verticale 80/125 | F46: 51 | G46: 1 | H46: 1 | I46: 1
C47: Oui | D47: 0020257023 | E47: Coude rallonge cds 87° 80/125 | F47: 50 | G47: 1 | H47: 1 | I47: 1
C48: Oui | D48: 0020257018 | E48: Terminal horizontal cds 80/125 | F48: 165 | G48: 1 | H48: 1 | I48: 1
B54: PAC | C54: Obligatoire | D54: . | E54: Accessoires Accessoires chaudière : Ventouse verticale Ø 80/125 et autre | G54: . | H54: . | I54: . | J54: . | K54: .
C55: Oui | D55: 0010040209 | E55: =VLOOKUP($D55,MATRICE_VA,2,FALSE) -> Plaque de raccord Thema/Semia | F55: =VLOOKUP($D55,MATRICE_VA,3,FALSE) -> 173 | G55: 1
C56: Oui | D56: 0020210110 | E56: Douilles courtes Semia-Thema | F56: 22 | G56: 1
C57: Oui | D57: 0010040212 | E57: Plaque de raccordement DuoMax | F57: 232 | I57: 1
C58: Oui | D58: 0010040213 | E58: Plaque raccord IsoTwin/IsoMax | F58: 152 | H58: 1
C59: Oui | D59: 0020276091 | E59: Buse verticale cds 80/125 | F59: =VLOOKUP($D59,MATRICE_VA,3,FALSE) -> 42 | G59: 1 | H59: 1 | I59: 1
C60: Ajustez les quantités | D60: 0020257016 | E60: Terminal toit. noir cds 80/125 | F60: 165 | G60: 1 | H60: 1 | I60: 1
C61: Ajustez les quantités | D61: 0020257017 | E61: Terminal toit.brique cds80/125 | F61: 165 | G61: 1 | H61: 1 | I61: 1
B67: PAC | C67: Obligatoire | D67: . | E67: Message d'erreur | G67: . | H67: . | I67: .
E68: Veuillez modifier la selection | G68: 1 | H68: 1 | I68: 1

Sheet BDD_G4 (hidden)
D2: =Calculs!J93 -> INSTALLATIONS ET ACCESSOIRES pour la gamme BDD_G4 : GeniaAir Tek | G2: Q-commun | H2: EI-commun | I2: commun-EI | J2: commun | K2: H-EI-commun | L2: H-commun-EI | M2: H-commun | N2: Hext-commun-EI | O2: Hext-commun | Y2: D | Z2: D2 | AA2: DM | AB2: B-D | AC2: B-D2 | AD2: B-D3 | AE2: B-M | AF2: B-M2 | AG2: B-M3 | AH2: B-DM | AI2: B-D2M | AJ2: B-DM2 | AK2: Q-D | AL2: Q-D2 | AM2: Q-DM | AN2: Q-B-D | AO2: Q-B-D2 | AP2: Q-B-D3 | AQ2: Q-B-M | AR2: Q-B-M2 | AS2: Q-B-M3 | AT2: Q-B-DM | AU2: Q-B-D2M | AV2: Q-B-DM2 | AW2: Cascade de PAC
G3: 1 | H3: 2 | I3: 3 | J3: 4 | K3: 5 | L3: 6 | M3: 7 | N3: 8 | O3: 9 | Y3: =COLUMN()-24 -> 1 | AB3: =COLUMN()-24 -> 4 | AC3: 5 | AD3: 6 | AE3: 7 | AF3: 8 | AG3: 9 | AH3: 10 | AI3: 11 | AJ3: 12 | AK3: 13 | AN3: =COLUMN()-24 -> 16 | AO3: 17 | AP3: 18 | AQ3: 19 | AR3: 20 | AS3: 21 | AT3: 22 | AU3: 23 | AV3: 24
E4: ="Recherche la configuration >> "&Calculs!$C$2020&" << =>" -> Recherche la configuration >> Colonne << => | F4: Schéma | G4: Colonne | H4: Ballon ECS avant Bouteille | I4: Ballon ECS aprés Bouteille | J4: Chauffage Seul | K4: Hybride et ballon ECS avant Bouteille | L4: Hybride et ballon ECS aprés Bouteille | M4: Hybride | N4: Hybride non Ebus et ballon ECS aprés Bouteille | O4: Hybride non Ebus chauffage Seul | Y4: circuit Direct | Z4: 2 circuits directs | AA4: circuit direct et mélangé | AB4: circuit direct sur bouteille | AC4: 2 circuits directs sur bouteille | AD4: 3 circuits directs sur bouteille | AE4: circuit mélangé sur bouteille | AF4: 2 circuits mélangés sur bouteille | AG4: 3 circuits mélangés sur bouteille | AH4: circuit direct et mélangé sur bouteille | AI4: 2 circuits directs et 1 mélangé sur bouteille | AJ4: 1 circuit direct et 2 mélangés sur bouteille | AK4: circuit Direct | AL4: 2 circuits directs | AM4: circuit direct et mélangé | AN4: circuit direct sur bouteille | AO4: 2 circuits directs sur bouteille | AP4: 3 circuits directs sur bouteille | AQ4: circuit mélangé sur bouteille | AR4: 2 circuits mélangés sur bouteille | AS4: 3 circuits mélangés sur bouteille | AT4: circuit direct et mélangé sur bouteille | AU4: 2 circuits directs et 1 mélangé sur bouteille | AV4: 1 circuit direct et 2 mélangés sur bouteille | AW4: Nombre de PAC valeur à multipliers au accessoires
B5: Vers PARAMETRAGE | F5: Appoint | G5: Appoint interne | H5: Electrique | I5: Electrique | J5: Electrique | K5: Chaudière neuve | L5: Chaudière neuve | M5: Chaudière neuve | N5: Chaudière existante | O5: Chaudière existante | AW5: =_xlfn.NUMBERVALUE(Calculs!$C$2179) -> 1
E6: ="Recherche la configuration >> "&Calculs!G2086&" << =>" -> Recherche la configuration >> Q-B-D << => | F6: Mode gestion | G6: Simultané | H6: Simultané | I6: Simultané | J6: Simultané | K6: Simultané optimisé | L6: Simultané optimisé | M6: Simultané optimisé | N6: Simultané optimisé | O6: Simultané optimisé
F7: ECS | G7: Var. impossible | H7: Var. possible | I7: Var. possible | J7: Var. impossible | K7: Var. possible | L7: Var. possible | M7: Var. impossible | N7: Var. possible | O7: Var. impossible
F8: =Calculs!D34 -> Régulation : | G8: Var. possible | H8: Var. possible | I8: Var. possible | J8: Var. possible | K8: Var. possible | L8: Var. possible | M8: Var. possible | N8: Var. possible | O8: Var. possible
E9: Dénomination de la colonne | F9: =Calculs!D35 -> Connectivité : | G9: Var. possible | H9: Var. possible | I9: Var. possible | J9: Var. possible | K9: Var. possible | L9: Var. possible | M9: Var. possible | N9: Var. possible | O9: Var. possible
E10: Genia Hybrid Tek | F10: =Calculs!D36 -> Instalation hydraulique : | G10: Var. possible | H10: Var. possible | I10: Var. possible | J10: Var. possible | K10: Var. possible | L10: Var. possible | M10: Var. possible | N10: Var. possible | O10: Var. possible
E11: Dénomination de la colonne | F11: =Calculs!D37 -> Kit de raccordements : | G11: Var. possible | H11: Var. impossible | I11: Var. impossible | J11: Var. impossible | K11: Var. impossible | L11: Var. impossible | M11: Var. impossible | N11: Var. impossible | O11: Var. impossible
E12: GeniaSet Tek | F12: =Calculs!D38 -> Supports unité extérieure : | G12: Var. possible | H12: Var. possible | I12: Var. possible | J12: Var. possible | K12: Var. possible | L12: Var. possible | M12: Var. possible | N12: Var. possible | O12: Var. possible
F13: .
D14: Réf. | E14: Dénomination | F14: PU HT
D15: . | E15: Pompes à chaleur de la gamme | F15: . | G15: . | H15: . | I15: . | J15: . | K15: . | L15: . | M15: . | N15: . | O15: .
D16: 0010038671 | E16: GeniaAir Tek 4 230 V | F16: =VLOOKUP(D16,MATRICE_VA,3,FALSE) -> 3486 | G16: 1 | H16: 1 | I16: 1 | J16: 1 | K16: 1 | L16: 1 | M16: 1 | N16: 1 | O16: 1 | AW16: 1
D17: 0010038672 | E17: GeniaAir Tek 6 230 V | F17: =VLOOKUP(D17,MATRICE_VA,3,FALSE) -> 4394 | G17: 1 | H17: 1 | I17: 1 | J17: 1 | K17: 1 | L17: 1 | M17: 1 | N17: 1 | O17: 1 | AW17: 1
D18: 0010038673 | E18: GeniaAir Tek 8 230 V | F18: =VLOOKUP(D18,MATRICE_VA,3,FALSE) -> 6216 | G18: 1 | H18: 1 | I18: 1 | J18: 1 | K18: 1 | L18: 1 | M18: 1 | N18: 1 | O18: 1 | AW18: 1
D19: 0010038674 | E19: GeniaAir Tek 10 230 V | F19: =VLOOKUP(D19,MATRICE_VA,3,FALSE) -> 6664 | G19: 1 | H19: 1 | I19: 1 | J19: 1 | K19: 1 | L19: 1 | M19: 1 | N19: 1 | O19: 1 | AW19: 1
B30: PAC | C30: Puissance | D30: . | E30: =Paramétrage!L158 -> Appoint électrique double service | F30: . | G30: . | H30: . | I30: . | J30: . | O30: .
C31: 5.5 | D31: 0010038171 | E31: =VLOOKUP(D31,MATRICE_VA,2,FALSE) -> Module mural Tek équipé | F31: =VLOOKUP(D31,MATRICE_VA,3,FALSE) -> 3332 | H31: 1 | I31: 1 | J31: 1 | AW31: 1
B45: PAC | C45: Puissance | D45: . | E45: =Paramétrage!M158 -> 0 | F45: . | G45: . | H45: . | I45: . | J45: . | O45: .
C60: Puissance | D60: . | E60: Chaudière | F60: . | G60: . | H60: . | I60: . | J60: . | O60: .
E61: chaudière | F61: 0 | K61: 1 | L61: 1 | M61: 1
D62: . | E62: Accessoires chaudière | F62: . | G62: . | H62: . | I62: . | J62: . | K62: . | L62: . | M62: . | N62: . | O62: .
A63: BDD_Acc_Ch
B75: PAC | C75: Obligatoire | D75: . | E75: Préparateur ECS | F75: . | G75: . | H75: . | I75: . | J75: . | O75: .
B90: PAC | C90: Obligatoire | D90: . | E90: Accessoires hydrauliques et électriques | F90: . | G90: . | H90: . | I90: . | J90: . | O90: .
C91: Non | D91: 0010038397 | E91: =VLOOKUP(D91,MATRICE_VA,2,FALSE) -> Anode à CI - GeniaSet Tek | F91: =VLOOKUP(D91,MATRICE_VA,3,FALSE) -> 204 | G91: 1
C92: Oui | D92: 0010038172 | E92: Module hydraulique mural GeniaAir Tek pour systèmes hybrides | F92: =VLOOKUP(D92,MATRICE_VA,3,FALSE) -> 2974 | K92: 1 | L92: 1 | M92: 1 | N92: 1 | O92: 1
C93: Oui | D93: 0020139896 | E93: Carte interface eBus | F93: =VLOOKUP(D93,MATRICE_VA,3,FALSE) -> 96 | K93: 1 | L93: 1 | M93: 1
C191: Oui | D191: 0010038166 | E191: =VLOOKUP($D191,MATRICE_VA,2,FALSE) -> GeniaSet Tek - 1 Zone | F191: =VLOOKUP(D191,MATRICE_VA,3,FALSE) -> 5117 | AK191: 1 | AL191: 1 | AN191: 1 | AO191: 1 | AP191: 1 | AQ191: 1 | AR191: 1 | AS191: 1 | AT191: 1 | AU191: 1 | AV191: 1
C192: Oui | D192: 0010038167 | E192: GeniaSet Tek - 2 Zones | F192: 6340 | AM192: 1
C193: Ajustez les quantités | D193: 0010039990 | E193: =VLOOKUP(D193,MATRICE_VA,2,FALSE) -> Module Z 20 C | Z193: 1 | AL193: 1
C196: Ajustez les quantités | D196: A prévoir | E196: Zone 1 Circulateur (après bouteille ou ballon tampon) | F196: - | AB196: 1 | AC196: 1 | AD196: 1 | AH196: 1 | AI196: 1 | AJ196: 1 | AP196: 1 | AU196: 1 | AV196: 1
C197: Ajustez les quantités | D197: A prévoir | E197: Zone 2 Circulateur (après bouteille ou ballon tampon) | F197: - | AC197: 1 | AD197: 1 | AI197: 1 | AP197: 1 | AU197: 1
C198: Ajustez les quantités | D198: A prévoir | E198: Zone 3 Circulateur (après bouteille ou ballon tampon) | F198: - | AD198: 1 | AP198: 1
C199: Ajustez les quantités | D199: A prévoir | E199: Zone 1 Circulateur et vanne 3 voies motorisées (230 V) | F199: - | AE199: 1 | AF199: 1 | AG199: 1 | AQ199: 1 | AR199: 1 | AS199: 1
C200: Ajustez les quantités | D200: A prévoir | E200: Zone 2 Circulateur et vanne 3 voies motorisées (230 V) | F200: - | AF200: 1 | AG200: 1 | AH200: 1 | AJ200: 1 | AR200: 1 | AS200: 1 | AV200: 1
C201: Ajustez les quantités | D201: A prévoir | E201: Zone 3 Circulateur et vanne 3 voies motorisées (230 V) | F201: - | AG201: 1 | AI201: 1 | AJ201: 1 | AS201: 1 | AU201: 1 | AV201: 1
B291: PAC | C291: Obligatoire | D291: . | E291: =Calculs!J$95 -> Accessoires ECS : Chaudière seule ou électrique | F291: =Calculs!K$95 -> . | G291: . | H291: . | I291: . | J291: . | O291: .
B302: PAC | C302: Obligatoire | D302: . | E302: =Calculs!J$96 -> Accessoires ECS : Ballon ECS 200 l PAC | F302: =Calculs!K$96 -> . | G302: . | H302: . | I302: . | J302: . | O302: .
B303: GeniaAir Tek 4 230 V | C303: Non | D303: 0020197909 | E303: =VLOOKUP(D303,MATRICE_VA,2,FALSE) -> Ballon FEW 200 ME pour PAC | F303: =VLOOKUP(D303,MATRICE_VA,3,FALSE) -> 1800 | H303: 1 | I303: 1 | K303: 1 | L303: 1 | N303: 1
B304: GeniaAir Tek 6 230 V | C304: Non | D304: 0020197909 | E304: =VLOOKUP(D304,MATRICE_VA,2,FALSE) -> Ballon FEW 200 ME pour PAC | F304: =VLOOKUP(D304,MATRICE_VA,3,FALSE) -> 1800 | H304: 1 | I304: 1 | K304: 1 | L304: 1 | N304: 1
B305: GeniaAir Tek 8 230 V | C305: Non | D305: 0020197909 | E305: =VLOOKUP(D305,MATRICE_VA,2,FALSE) -> Ballon FEW 200 ME pour PAC | F305: =VLOOKUP(D305,MATRICE_VA,3,FALSE) -> 1800 | H305: 1 | I305: 1 | K305: 1 | L305: 1 | N305: 1
B306: GeniaAir Tek 10 230 V | C306: Non | D306: 0020197909 | E306: =VLOOKUP(D306,MATRICE_VA,2,FALSE) -> Ballon FEW 200 ME pour PAC | F306: =VLOOKUP(D306,MATRICE_VA,3,FALSE) -> 1800 | H306: 1 | I306: 1 | K306: 1 | L306: 1 | N306: 1
C310: Ajustez les quantités | D310: 0020020455 | E310: =VLOOKUP(D310,MATRICE_VA,2,FALSE) -> Mitigeur thermostatique | F310: =VLOOKUP(D310,MATRICE_VA,3,FALSE) -> 134 | H310: 1 | I310: 1 | K310: 1 | L310: 1 | N310: 1
C312: Oui | D312: 0020222637 | E312: =VLOOKUP(D312,MATRICE_VA,2,FALSE) -> Sonde ballon/chauff connecteur | F312: =VLOOKUP(D312,MATRICE_VA,3,FALSE) -> 30 | H312: 1 | I312: 1 | K312: 1 | L312: 1 | N312: 1
B313: PAC | C313: Obligatoire | D313: . | E313: =Calculs!J$97 -> Accessoires ECS : Ballon ECS 300 l PAC | F313: =Calculs!K$96 -> . | G313: . | H313: . | I313: . | J313: . | O313: .
B314: GeniaAir Tek 4 230 V | C314: Non | D314: 0010020656 | E314: Ballon uniSTOR VIH RW 300/3 BR (déconseillé avec le modèle 4) | F314: =VLOOKUP(D314,MATRICE_VA,3,FALSE) -> 2100 | H314: 1 | I314: 1 | K314: 1 | L314: 1 | N314: 1
B315: GeniaAir Tek 6 230 V | C315: Non | D315: 0010020656 | E315: =VLOOKUP(D315,MATRICE_VA,2,FALSE) -> Ballon FEW 300/3 MR pour PAC | F315: =VLOOKUP(D315,MATRICE_VA,3,FALSE) -> 2100 | H315: 1 | I315: 1 | K315: 1 | L315: 1 | N315: 1
B316: GeniaAir Tek 8 230 V | C316: Non | D316: 0010020656 | E316: =VLOOKUP(D316,MATRICE_VA,2,FALSE) -> Ballon FEW 300/3 MR pour PAC | F316: =VLOOKUP(D316,MATRICE_VA,3,FALSE) -> 2100 | H316: 1 | I316: 1 | K316: 1 | L316: 1 | N316: 1
B317: GeniaAir Tek 10 230 V | C317: Non | D317: 0010020656 | E317: =VLOOKUP(D317,MATRICE_VA,2,FALSE) -> Ballon FEW 300/3 MR pour PAC | F317: =VLOOKUP(D317,MATRICE_VA,3,FALSE) -> 2100 | H317: 1 | I317: 1 | K317: 1 | L317: 1 | N317: 1
C321: Ajustez les quantités | D321: 0020020455 | E321: =VLOOKUP(D321,MATRICE_VA,2,FALSE) -> Mitigeur thermostatique | F321: =VLOOKUP(D321,MATRICE_VA,3,FALSE) -> 134 | H321: 1 | I321: 1 | K321: 1 | L321: 1 | N321: 1
C323: Oui | D323: 0020222637 | E323: =VLOOKUP(D323,MATRICE_VA,2,FALSE) -> Sonde ballon/chauff connecteur | F323: =VLOOKUP(D323,MATRICE_VA,3,FALSE) -> 30 | H323: 1 | I323: 1 | K323: 1 | L323: 1 | N323: 1
B324: PAC | C324: Obligatoire | D324: . | E324: =Calculs!J$98 -> Accessoires ECS : Ballon ECS 200 l | F324: =Calculs!K$96 -> . | G324: . | H324: . | I324: . | J324: . | O324: .
B335: PAC | C335: Obligatoire | D335: . | E335: =Calculs!J$99 -> Accessoires ECS : Ballon ECS 300 l | F335: =Calculs!K$96 -> . | G335: . | H335: . | I335: . | J335: . | O335: .
B346: PAC | C346: Obligatoire | D346: . | E346: =Calculs!J$100 -> Accessoires ECS : Ballon ECS intégré | F346: =Calculs!K$100 -> . | G346: . | H346: . | I346: . | J346: . | O346: .
B357: PAC | C357: Obligatoire | D357: . | E357: =Calculs!J$101 -> Régulation : MiPro Sense filaire (tactile) | F357: =Calculs!K$101 -> . | G357: . | H357: . | I357: . | J357: . | O357: .
A358: BDD_Commun | C358: Oui | D358: 0020260971 | E358: =VLOOKUP(D358,MATRICE_VA,2,FALSE) -> MiPro Sense | F358: =VLOOKUP(D358,MATRICE_VA,3,FALSE) -> 268 | Y358: 1 | AB358: 1 | AC358: 1 | AD358: 1 | AE358: 1 | AF358: 1 | AG358: 1 | AH358: 1 | AI358: 1 | AJ358: 1 | AK358: 1 | AL358: 1 | AN358: 1 | AO358: 1 | AP358: 1 | AQ358: 1 | AR358: 1 | AS358: 1 | AT358: 1 | AU358: 1 | AV358: 1
C359: Non | D359: 0020260982 | E359: =VLOOKUP(D359,MATRICE_VA,2,FALSE) -> Commande déportée MiPro Sense | F359: 264 | AC359: 1 | AD359: 2 | AF359: 1 | AG359: 2 | AH359: 1 | AI359: 2 | AJ359: 2 | AL359: 1 | AO359: 1 | AP359: 2 | AR359: 1 | AS359: 2 | AT359: 1 | AU359: 2 | AV359: 2
C361: Ajustez les quantités | D361: 0020257510 | E361: Module RED 5 | F361: 280 | AC361: 1 | AD361: 1 | AE361: 1 | AF361: 1 | AG361: 1 | AH361: 1 | AI361: 1 | AJ361: 1 | AO361: 1 | AP361: 1 | AQ361: 1 | AR361: 1 | AS361: 1 | AT361: 1 | AU361: 1 | AV361: 1 | AW361: =IF(AW5>1,1,0) -> 0
C362: Ajustez les quantités | D362: 0020257508 | E362: Module RED 3 | F362: 208 | Y362: 0 | AB362: 0 | AK362: 0 | AL362: 0 | AN362: 0 | AW362: =IF(OR(Systeme_PAC_hybride=TRUE,$AW$5>1),1,0) -> 0
C365: Oui | D365: 0020004238 | E365: =VLOOKUP(D365,MATRICE_VA,2,FALSE) -> Sonde ballon/chauffage | F365: 20 | AB365: 1 | AC365: 3 | AD365: 3 | AE365: 2 | AF365: 3 | AG365: 4 | AH365: 3 | AI365: 4 | AJ365: 4 | AK365: 0 | AL365: 3 | AN365: 1 | AO365: 3 | AP365: 4 | AQ365: 2 | AR365: 3 | AS365: 4 | AT365: 3 | AU365: 4 | AV365: 4 | AW365: =IF($AW$5>1,2,0) -> 0
C367: Oui | D367: 0020260979 | E367: MiPro Sense radio (obligatoire avec GeniaSet Tek 2 zones) | F367: =VLOOKUP(D367,MATRICE_VA,3,FALSE) -> 475 | AM367: 1
C368: Non | D368: 0020260988 | E368: =VLOOKUP(D368,MATRICE_VA,2,FALSE) -> Commande déport. MiPro Sense R | F368: =VLOOKUP(D368,MATRICE_VA,3,FALSE) -> 359 | AM368: 1
C369: Ajustez les quantités | D369: A prévoir | E369: https://www.saunierduval.fr/professionnel/outils-professionnels/outils-avant-vente/schematheque/?q=0020318110 | F369: - | AL369: 1
B378: PAC | C378: Obligatoire | D378: . | E378: =Calculs!J$102 -> Régulation : MiPro Sense Radio (tactile) | F378: =Calculs!K$102 -> . | G378: . | H378: . | I378: . | J378: . | O378: .
C379: Oui | D379: 0020260979 | E379: =VLOOKUP(D379,MATRICE_VA,2,FALSE) -> MiPro Sense radio | F379: =VLOOKUP(D379,MATRICE_VA,3,FALSE) -> 475 | Y379: 1 | AB379: 1 | AC379: 1 | AD379: 1 | AE379: 1 | AF379: 1 | AG379: 1 | AH379: 1 | AI379: 1 | AJ379: 1 | AK379: 1 | AL379: 1 | AM379: 1 | AN379: 1 | AO379: 1 | AP379: 1 | AQ379: 1 | AR379: 1 | AS379: 1 | AT379: 1 | AU379: 1 | AV379: 1
C380: Non | D380: 0020260988 | E380: =VLOOKUP(D380,MATRICE_VA,2,FALSE) -> Commande déport. MiPro Sense R | F380: =VLOOKUP(D380,MATRICE_VA,3,FALSE) -> 359 | AC380: 1 | AD380: 2 | AF380: 1 | AG380: 2 | AH380: 1 | AI380: 2 | AJ380: 2 | AL380: 1 | AM380: 1 | AO380: 1 | AP380: 2 | AR380: 1 | AS380: 2 | AT380: 1 | AU380: 2 | AV380: 2
C382: Ajustez les quantités | D382: 0020257510 | E382: Module RED 5 | F382: =VLOOKUP(D382,MATRICE_VA,3,FALSE) -> 280 | AC382: 1 | AD382: 1 | AE382: 1 | AF382: 1 | AG382: 1 | AH382: 1 | AI382: 1 | AJ382: 1 | AO382: 1 | AP382: 1 | AQ382: 1 | AR382: 1 | AS382: 1 | AT382: 1 | AU382: 1 | AV382: 1 | AW382: =IF($AW$5>1,1,0) -> 0
C383: Ajustez les quantités | D383: 0020257508 | E383: Module RED 3 | F383: =VLOOKUP(D383,MATRICE_VA,3,FALSE) -> 208 | Y383: 0 | AB383: 0 | AK383: 0 | AN383: 0 | AW383: =IF(OR(AND(Gamme_BDD_Gx<>"BDD_G1",Systeme_PAC_hybride=TRUE),$AW$5>1),1,0) -> 0
C386: Oui | D386: 0020004238 | E386: =VLOOKUP(D386,MATRICE_VA,2,FALSE) -> Sonde ballon/chauffage | F386: =VLOOKUP(D386,MATRICE_VA,3,FALSE) -> 20 | AB386: 1 | AC386: 3 | AD386: 4 | AE386: 2 | AF386: 3 | AG386: 4 | AH386: 3 | AI386: 4 | AJ386: 4 | AK386: 0 | AN386: 1 | AO386: 3 | AP386: 4 | AQ386: 2 | AR386: 3 | AS386: 4 | AT386: 3 | AU386: 4 | AV386: 4
B399: PAC | C399: Obligatoire | D399: . | E399: =Calculs!J$103 ->  | F399: =Calculs!K$103 ->  | G399: . | H399: . | I399: . | J399: . | O399: .
B420: PAC | C420: Obligatoire | D420: . | E420: =Calculs!J$104 ->  | F420: =Calculs!K$104 ->  | G420: . | H420: . | I420: . | J420: . | O420: .
B441: PAC | C441: Obligatoire | D441: . | E441: =Calculs!J$105 ->  | F441: =Calculs!K$105 ->  | G441: . | H441: . | I441: . | J441: . | O441: . | P441: . | Q441: . | R441: . | S441: . | AW441: .
A442: BDD_Commun
B462: PAC | C462: Obligatoire | D462: . | E462: =Calculs!J$106 -> Accessoires connectivité : MiGo Link | F462: =Calculs!K$106 -> . | G462: . | H462: . | I462: . | J462: . | O462: .
C463: Oui | D463: 0010037345 | E463: =VLOOKUP(D463,MATRICE_VA,2,FALSE) -> MiGo Link | F463: =VLOOKUP(D463,MATRICE_VA,3,FALSE) -> 171 | G463: 1 | H463: 1 | I463: 1 | J463: 1 | K463: 1 | L463: 1 | M463: 1 | N463: 1 | O463: 1
B473: PAC | C473: Obligatoire | D473: . | E473: =Calculs!J$107 -> Accessoires connectivité : Sans | F473: =Calculs!K$107 -> . | G473: . | H473: . | I473: . | J473: . | O473: .
B484: PAC | C484: Obligatoire | D484: . | E484: =Calculs!J$108 ->  | F484: =Calculs!K$108 ->  | G484: . | H484: . | I484: . | J484: . | O484: . | P484: . | Q484: . | R484: . | S484: .
B495: PAC | C495: Obligatoire | D495: . | E495: =Calculs!J$109 ->  | F495: =Calculs!K$109 ->  | G495: . | H495: . | I495: . | J495: . | O495: . | P495: . | Q495: . | R495: . | S495: .
B506: PAC | C506: Obligatoire | D506: . | E506: =Calculs!J$110 ->  | F506: =Calculs!K$110 ->  | G506: . | H506: . | I506: . | J506: . | O506: . | P506: . | Q506: . | R506: . | S506: .
C515: Ajustez les quantités | D515: A prévoir | E515: https://www.saunierduval.fr/professionnel/outils-professionnels/outils-avant-vente/schematheque/?q=0020318110 | F515: -
B517: PAC | C517: Obligatoire | D517: . | E517: =Calculs!J$111 -> Accessoires Instalation hydraulique : Ballon tampon en série | F517: =Calculs!K$111 -> . | G517: . | H517: . | I517: . | J517: . | K517: . | L517: . | M517: . | N517: . | O517: . | AW517: .
C518: Non | D518: 0010034127 | E518: =VLOOKUP($D518,MATRICE_VA,2,FALSE) -> Ballon de découplage 45 litres | F518: =VLOOKUP(D518,MATRICE_VA,3,FALSE) -> 627 | K518: 1 | L518: 1 | M518: 1 | N518: 1 | O518: 1
C519: Ajustez les quantités | D519: 8000015076 | E519: =VLOOKUP(D519,MATRICE_VA,2,FALSE) -> Ballon tampon WN RW 50/3 B | F519: 615 | G519: 1 | H519: 1 | I519: 1 | J519: 1
C520: Ajustez les quantités | D520: A prévoir | E520: https://www.saunierduval.fr/professionnel/outils-professionnels/outils-avant-vente/schematheque/?q=0020318110 | F520: - | G520: 1 | H520: 1 | I520: 1 | J520: 1
D533: 0010039990 | E533: =VLOOKUP(D533,MATRICE_VA,2,FALSE) -> Module Z 20 C | F533: =VLOOKUP(D533,MATRICE_VA,3,FALSE) -> 164 | Z533: 1 | AL533: 1
B538: PAC | C538: Obligatoire | D538: . | E538: =Calculs!J$112 -> Accessoires Instalation hydraulique : Accessoires intégrés | F538: =Calculs!K$112 -> . | G538: . | H538: . | I538: . | J538: . | K538: . | L538: . | M538: . | N538: . | O538: .
B559: PAC | C559: Obligatoire | D559: . | E559: =Calculs!J$113 -> Accessoires Instalation hydraulique : Ballon tampon en parallèle | F559: =Calculs!K$113 -> . | G559: . | H559: . | I559: . | J559: . | O559: . | P559: . | Q559: . | R559: . | S559: .
C560: Non | D560: 0010034127 | E560: =VLOOKUP($D560,MATRICE_VA,2,FALSE) -> Ballon de découplage 45 litres | F560: =VLOOKUP(D560,MATRICE_VA,3,FALSE) -> 627 | K560: 1 | L560: 1 | M560: 1 | N560: 1 | O560: 1 | T560: 1 | U560: 1 | V560: 1 | W560: 1 | X560: 1
C567: Ajustez les quantités | D567: 8000015076 | E567: =VLOOKUP(D567,MATRICE_VA,2,FALSE) -> Ballon tampon WN RW 50/3 B | F567: =VLOOKUP(D567,MATRICE_VA,3,FALSE) -> 615 | G567: 1 | H567: 1 | I567: 1 | J567: 1 | P567: 1 | Q567: 1 | R567: 1 | S567: 1
C575: Ajustez les quantités | D575: A prévoir | E575: Zone 1 Circulateur (après bouteille ou ballon tampon) | F575: - | AN575: 1 | AO575: 1 | AT575: 1
C576: Ajustez les quantités | D576: A prévoir | E576: Zone 2 Circulateur (après bouteille ou ballon tampon) | F576: - | AO576: 1
C577: Ajustez les quantités | D577: A prévoir | E577: Zone 2 Circulateur et vanne 3 voies motorisées (230 V) | F577: - | AT577: 1
B580: PAC | C580: Obligatoire | D580: . | E580: =Calculs!J$114 -> Accessoires Instalation hydraulique : Sans ballon tampon | F580: =Calculs!K$114 -> . | G580: . | H580: . | I580: . | J580: . | O580: . | P580: . | Q580: . | R580: . | S580: .
B601: PAC | C601: Obligatoire | D601: . | E601: =Calculs!J$115 ->  | F601: =Calculs!K$115 ->  | G601: . | H601: . | I601: . | J601: . | O601: . | P601: . | Q601: . | R601: . | S601: .
B622: PAC | C622: Obligatoire | D622: . | E622: =Calculs!J$116 -> Accessoires Kit de raccordements : Complet | F622: =Calculs!K$116 -> . | G622: . | H622: . | I622: . | J622: . | O622: .
C623: Oui | D623: 0010038387 | E623: Kit de raccordement hydraulique pour GeniaSet Tek avec mitigeur thermostatique, remplissage, disconnecteur, vannes d'arrêt et soupapes | F623: =VLOOKUP(D623,MATRICE_VA,3,FALSE) -> 160 | G623: 1
B633: PAC | C633: Obligatoire | D633: . | E633: =Calculs!J$117 -> Accessoires Kit de raccordements : Standard | F633: =Calculs!K$117 -> . | G633: . | H633: . | I633: . | J633: . | O633: .
C634: Oui | D634: 0010038389 | E634: Kit de raccordement hydraulique pour GeniaSet Tek avec vannes d'arrêt et soupapes | F634: =VLOOKUP(D634,MATRICE_VA,3,FALSE) -> 113 | G634: 1
C635: Ajustez les quantités | D635: 0020020455 | E635: =VLOOKUP(D635,MATRICE_VA,2,FALSE) -> Mitigeur thermostatique | F635: =VLOOKUP(D635,MATRICE_VA,3,FALSE) -> 134 | G635: 1
B644: PAC | C644: Obligatoire | D644: . | E644: =Calculs!J$118 -> Accessoires Kit de raccordements : Plafond bas | F644: =Calculs!K$118 -> . | G644: . | H644: . | I644: . | J644: . | O644: . | P644: . | Q644: . | R644: . | S644: .
C645: Oui | D645: 0010045533 | E645: Kit pour raccordements hydrauliques à droite pour GeniaSet Tek, optimisé pour plafond bas, à partir de 2,1 m | F645: =VLOOKUP(D645,MATRICE_VA,3,FALSE) -> 357 | G645: 1
C646: Oui | D646: 0010038389 | E646: Kit de raccordement hydraulique pour GeniaSet Tek avec vannes d'arrêt et soupapes | F646: =VLOOKUP(D646,MATRICE_VA,3,FALSE) -> 113 | G646: 1
C647: Ajustez les quantités | D647: 0020020455 | E647: =VLOOKUP(D647,MATRICE_VA,2,FALSE) -> Mitigeur thermostatique | F647: =VLOOKUP(D647,MATRICE_VA,3,FALSE) -> 134 | G647: 1
B655: PAC | C655: Obligatoire | D655: . | E655: =Calculs!J$119 ->  | F655: =Calculs!K$119 ->  | G655: . | H655: . | I655: . | J655: . | O655: . | P655: . | Q655: . | R655: . | S655: .
B666: PAC | C666: Obligatoire | D666: . | E666: =Calculs!J$120 ->  | F666: =Calculs!K$120 ->  | G666: . | H666: . | I666: . | J666: . | O666: . | P666: . | Q666: . | R666: . | S666: .
B677: PAC | C677: Obligatoire | D677: . | E677: =Calculs!J$121 -> Accessoires Supports unité extérieure : Plots anti-vibratiles en caoutchouc (x4) | F677: =Calculs!K$121 -> . | G677: . | H677: . | I677: . | J677: . | O677: .
C678: Non | D678: 0020252872 | E678: =VLOOKUP(D678,MATRICE_VA,2,FALSE) -> Plots anti-vibratiles (x4) | F678: =VLOOKUP(D678,MATRICE_VA,3,FALSE) -> 63 | G678: =_xlfn.NUMBERVALUE($AW678) -> 1 | H678: 1 | I678: 1 | J678: 1 | K678: 1 | L678: 1 | M678: 1 | N678: 1 | O678: 1 | AW678: =_xlfn.NUMBERVALUE($AW$5) -> 1
B688: PAC | C688: Obligatoire | D688: . | E688: =Calculs!J$122 -> Accessoires Supports unité extérieure : Support anti-vibratiles en caoutchouc | F688: =Calculs!K$122 -> . | G688: . | H688: . | I688: . | J688: . | O688: .
C689: Non | D689: 0020252059 | E689: =VLOOKUP(D689,MATRICE_VA,2,FALSE) -> Pieds anti-vibratiles 60 cm | F689: =VLOOKUP(D689,MATRICE_VA,3,FALSE) -> 125 | G689: =_xlfn.NUMBERVALUE($AW689) -> 1 | H689: 1 | I689: 1 | J689: 1 | K689: 1 | L689: 1 | M689: 1 | N689: 1 | O689: 1 | AW689: =_xlfn.NUMBERVALUE($AW$5) -> 1
B699: PAC | C699: Obligatoire | D699: . | E699: =Calculs!J$123 ->  | F699: =Calculs!K$123 ->  | G699: . | H699: . | I699: . | J699: . | O699: . | P699: . | Q699: . | R699: . | S699: .
B710: PAC | C710: Obligatoire | D710: . | E710: =Calculs!J$124 ->  | F710: =Calculs!K$124 ->  | G710: . | H710: . | I710: . | J710: . | O710: . | P710: . | Q710: . | R710: . | S710: .
B721: PAC | C721: Obligatoire | D721: . | E721: =Calculs!J$125 ->  | F721: =Calculs!K$125 ->  | G721: . | H721: . | I721: . | J721: . | O721: . | P721: . | Q721: . | R721: . | S721: .
B732: PAC | C732: Obligatoire | D732: . | E732: Mise en service | F732: . | G732: . | H732: . | I732: . | J732: . | K732: . | L732: . | M732: . | N732: . | O732: . | AW732: .
C733: Oui | D733: 0010028532 | E733: Mise en service GeniaAir Tek (à commander sur e-Shop) | F733: =VLOOKUP(D733,MATRICE_VA,3,FALSE) -> 350 | G733: =$AW733 -> 1 | H733: 1 | I733: 1 | J733: 1 | K733: 1 | L733: 1 | M733: 1 | N733: 1 | O733: 1 | AW733: =_xlfn.NUMBERVALUE($AW$5) -> 1
B743: PAC | C743: Obligatoire | D743: . | E743: Matériel à prévoir | F743: . | G743: . | H743: . | I743: . | J743: . | O743: .
C744: Ajustez les quantités | D744: A prévoir | E744: Filtre à tamis sur le retour PAC | F744: - | H744: =$AW744 -> 1 | I744: 1 | J744: 1 | K744: 1 | L744: 1 | M744: 1 | N744: 1 | O744: 1 | AW744: =_xlfn.NUMBERVALUE($AW$5) -> 1
C745: Ajustez les quantités | D745: A prévoir | E745: Soupape différentielle (repère 9d) | F745: - | J745: 1 | M745: 1
C747: Ajustez les quantités | D747: A prévoir | E747: Vase expansion, soupape, manomètre. | F747: - | H747: 1 | I747: 1 | J747: 1 | K747: 1 | L747: 1 | M747: 1
AW752: =_xlfn.NUMBERVALUE(IF($AW$5>1,0,1)) -> 1

Sheet BDD_G3 (hidden)
D2: =Calculs!H92 -> BDD_G3 : GeniaAir | G2: Q-commun | H2: EI-commun | I2: commun-EI | J2: commun | K2: H-EI-commun | L2: H-commun-EI | M2: H-commun | N2: Hext-commun-EI | O2: Hext-commun | P2: Q-E-commun | Q2: EI-E-commun | R2: E-commun-EI | S2: E-commun | T2: E-H-EI-commun | U2: E-H-commun-EI | V2: E-H-commun | W2: E-Hext-commun-EI | X2: E-Hext-commun | Y2: D | Z2: D2 | AA2: DM | AB2: B-D | AC2: B-D2 | AD2: B-D3 | AE2: B-M | AF2: B-M2 | AG2: B-M3 | AH2: B-DM | AI2: B-D2M | AJ2: B-DM2 | AK2: Q-D | AL2: Q-D2 | AM2: Q-DM | AN2: Q-B-D | AO2: Q-B-D2 | AP2: Q-B-D3 | AQ2: Q-B-M | AR2: Q-B-M2 | AS2: Q-B-M3 | AT2: Q-B-DM | AU2: Q-B-D2M | AV2: Q-B-DM2 | AW2: Cascade de PAC
G3: 1 | H3: 2 | I3: 3 | J3: 4 | K3: 5 | L3: 6 | M3: 7 | N3: 8 | O3: 9 | P3: 10 | Q3: 11 | R3: 12 | S3: 13 | T3: 14 | U3: 15 | V3: 16 | W3: 17 | X3: 18 | Y3: =COLUMN()-24 -> 1 | AB3: =COLUMN()-24 -> 4 | AC3: 5 | AD3: 6 | AE3: 7 | AF3: 8 | AG3: 9 | AH3: 10 | AI3: 11 | AJ3: 12 | AK3: 13 | AN3: =COLUMN()-24 -> 16 | AO3: 17 | AP3: 18 | AQ3: 19 | AR3: 20 | AS3: 21 | AT3: 22 | AU3: 23 | AV3: 24
E4: ="Recherche la configuration >> "&Calculs!$C$2020&" << =>" -> Recherche la configuration >> Colonne << => | F4: Schéma | G4: Colonne | H4: Ballon ECS avant Bouteille | I4: Ballon ECS aprés Bouteille | J4: Chauffage Seul | K4: Hybride et ballon ECS avant Bouteille | L4: Hybride et ballon ECS aprés Bouteille | M4: Hybride | N4: Hybride non Ebus et ballon ECS aprés Bouteille | O4: Hybride non Ebus chauffage Seul | P4: Colonne avec echangeur glycol | Q4: Ballon ECS avant Bouteille avec echangeur glycol | R4: Ballon ECS aprés Bouteille avec echangeur glycol | S4: Chauffage Seul avec echangeur glycol | T4: Hybride et ballon ECS avant Bouteille avec echangeur glycol | U4: Hybride et ballon ECS aprés Bouteille avec echangeur glycol | V4: Hybride avec echangeur glycol | W4: Hybride non Ebus et ballon ECS aprés Bouteille avec echangeur glycol | X4: Hybride non Ebus chauffage Seul avec echangeur glycol | Y4: circuit Direct | Z4: 2 circuits directs | AA4: circuit direct et mélangé | AB4: circuit direct sur bouteille | AC4: 2 circuits directs sur bouteille | AD4: 3 circuits directs sur bouteille | AE4: circuit mélangé sur bouteille | AF4: 2 circuits mélangés sur bouteille | AG4: 3 circuits mélangés sur bouteille | AH4: circuit direct et mélangé sur bouteille | AI4: 2 circuits directs et 1 mélangé sur bouteille | AJ4: 1 circuit direct et 2 mélangés sur bouteille | AK4: circuit Direct | AL4: 2 circuits directs | AM4: circuit direct et mélangé | AN4: circuit direct sur bouteille | AO4: 2 circuits directs sur bouteille | AP4: 3 circuits directs sur bouteille | AQ4: circuit mélangé sur bouteille | AR4: 2 circuits mélangés sur bouteille | AS4: 3 circuits mélangés sur bouteille | AT4: circuit direct et mélangé sur bouteille | AU4: 2 circuits directs et 1 mélangé sur bouteille | AV4: 1 circuit direct et 2 mélangés sur bouteille | AW4: Nombre de PAC valeur à multipliers au accessoires
B5: Vers PARAMETRAGE | F5: Appoint | G5: Appoint interne | H5: Electrique | I5: Electrique | J5: Electrique | K5: Chaudière neuve | L5: Chaudière neuve | M5: Chaudière neuve | N5: Chaudière existante | O5: Chaudière existante | P5: Appoint interne | Q5: Electrique | R5: Electrique | S5: Electrique | T5: Chaudière neuve | U5: Chaudière neuve | V5: Chaudière neuve | W5: Chaudière existante | X5: Chaudière existante | AW5: =_xlfn.NUMBERVALUE(Calculs!$C$2179) -> 1
E6: ="Recherche la configuration >> "&Calculs!G2086&" << =>" -> Recherche la configuration >> Q-B-D << => | F6: Mode gestion | G6: Simultané | H6: Simultané | I6: Simultané | J6: Simultané | K6: Simultané optimisé | L6: Simultané optimisé | M6: Simultané optimisé | N6: Simultané optimisé | O6: Simultané optimisé | P6: Simultané | Q6: Simultané | R6: Simultané | S6: Simultané | T6: Simultané optimisé | U6: Simultané optimisé | V6: Simultané optimisé | W6: Simultané optimisé | X6: Simultané optimisé
F7: ECS | G7: Var. impossible | H7: Var. possible | I7: Var. possible | J7: Var. possible | K7: Var. possible | L7: Var. possible | M7: Var. impossible | N7: Var. impossible | O7: Var. possible | P7: Var. possible | Q7: Var. possible | R7: Var. possible | S7: Var. possible | T7: Var. impossible | U7: Var. possible | V7: Var. impossible | W7: Var. possible | X7: Var. impossible
F8: =Calculs!D29 -> Régulation : | G8: Var. possible | H8: Var. possible | I8: Var. possible | J8: Var. possible | K8: Var. possible | L8: Var. possible | M8: Var. possible | N8: Var. possible | O8: Var. possible | P8: Var. possible | Q8: Var. possible | R8: Var. possible | S8: Var. possible | T8: Var. possible | U8: Var. possible | V8: Var. possible | W8: Var. possible | X8: Var. possible
E9: Dénomination de la colonne | F9: =Calculs!D30 -> Connectivité : | G9: Var. possible | H9: Var. possible | I9: Var. possible | J9: Var. possible | K9: Var. possible | L9: Var. possible | M9: Var. possible | N9: Var. possible | O9: Var. possible | P9: Var. possible | Q9: Var. possible | R9: Var. possible | S9: Var. possible | T9: Var. possible | U9: Var. possible | V9: Var. possible | W9: Var. possible | X9: Var. possible
E10: Genia Hybrid | F10: =Calculs!D31 -> Bouteille tampon | G10: Var. possible | H10: Var. possible | I10: Var. possible | J10: Var. impossible | K10: Var. possible | L10: Var. possible | M10: Var. possible | N10: Var. possible | O10: Var. possible | P10: Var. possible | Q10: Var. possible | R10: Var. possible | S10: Var. possible | T10: Var. possible | U10: Var. possible | V10: Var. possible | W10: Var. possible | X10: Var. possible
E11: Dénomination de la colonne | F11: =Calculs!D32 -> Découplage glycol : | G11: Var. possible | H11: Var. possible | I11: Var. possible | J11: Var. possible | K11: Var. possible | L11: Var. possible | M11: Var. possible | N11: Var. possible | O11: Var. possible | P11: Var. possible | Q11: Var. possible | R11: Var. possible | S11: Var. possible | T11: Var. possible | U11: Var. possible | V11: Var. possible | W11: Var. possible | X11: Var. possible
E12: GeniaSet | F12: =Calculs!D33 -> Supports unité extérieure : | G12: Var. possible | H12: Var. possible | I12: Var. possible | J12: Var. possible | K12: Var. possible | L12: Var. possible | M12: Var. possible | N12: Var. possible | O12: Var. possible | P12: Var. possible | Q12: Var. possible | R12: Var. possible | S12: Var. possible | T12: Var. possible | U12: Var. possible | V12: Var. possible | W12: Var. possible | X12: Var. possible
F13: .
D14: Réf. | E14: Dénomination | F14: PU HT
D15: . | E15: Pompes à chaleur de la gamme | F15: . | G15: . | H15: . | I15: . | J15: . | K15: . | L15: . | M15: . | N15: . | O15: . | P15: . | Q15: . | R15: . | S15: . | U15: . | V15: . | W15: . | X15: .
D16: 0010019770 | E16: GeniaAir 5/2 | F16: =VLOOKUP($D16,MATRICE_VA,3,FALSE) -> 5034 | G16: 1 | H16: 1 | I16: 1 | J16: 1 | K16: 1 | L16: 1 | M16: 1 | N16: 1 | O16: 1 | P16: 1 | Q16: 1 | R16: 1 | S16: 1 | T16: 1 | U16: 1 | V16: 1 | W16: 1 | X16: 1 | AW16: 1
D17: 0010019771 | E17: GeniaAir 8/2 | F17: =VLOOKUP($D17,MATRICE_VA,3,FALSE) -> 6527 | G17: 1 | H17: 1 | I17: 1 | J17: 1 | K17: 1 | L17: 1 | M17: 1 | N17: 1 | O17: 1 | P17: 1 | Q17: 1 | R17: 1 | S17: 1 | T17: 1 | U17: 1 | V17: 1 | W17: 1 | X17: 1 | AW17: 1
D18: 0010011923 | E18: GeniaAir 11 | F18: =VLOOKUP($D18,MATRICE_VA,3,FALSE) -> 8141 | G18: 1 | H18: 1 | I18: 1 | J18: 1 | K18: 1 | L18: 1 | M18: 1 | N18: 1 | O18: 1 | P18: 1 | Q18: 1 | R18: 1 | S18: 1 | T18: 1 | U18: 1 | V18: 1 | W18: 1 | X18: 1 | AW18: 1
D19: 0010014418 | E19: GeniaAir 15 | F19: =VLOOKUP($D19,MATRICE_VA,3,FALSE) -> 9546 | G19: 1 | H19: 1 | I19: 1 | J19: 1 | K19: 1 | L19: 1 | M19: 1 | N19: 1 | O19: 1 | P19: 1 | Q19: 1 | R19: 1 | S19: 1 | T19: 1 | U19: 1 | V19: 1 | W19: 1 | X19: 1 | AW19: 1
B30: PAC | C30: Puissance | D30: . | E30: =Paramétrage!L157 -> 0 | F30: . | G30: . | H30: . | I30: . | J30: . | O30: . | P30: . | Q30: . | R30: . | S30: .
B45: PAC | C45: Puissance | D45: . | E45: =Paramétrage!M157 -> Appoint électrique | F45: . | G45: . | H45: . | I45: . | J45: . | O45: . | P45: . | Q45: . | R45: . | S45: .
B46: GeniaAir 5/2 | C46: 6 | D46: 0020146366 | E46: =VLOOKUP($D46,MATRICE_VA,2,FALSE) -> Module appoint électrique 6 kW | F46: =VLOOKUP(D46,MATRICE_VA,3,FALSE) -> 602 | H46: 1 | I46: 1 | J46: 1 | Q46: 1 | R46: 1 | S46: 1
B47: GeniaAir 8/2 | C47: 6 | D47: 0020146366 | E47: =VLOOKUP($D47,MATRICE_VA,2,FALSE) -> Module appoint électrique 6 kW | F47: 602 | H47: 1 | I47: 1 | J47: 1 | Q47: 1 | R47: 1 | S47: 1
B48: GeniaAir 11 | C48: 6 | D48: 0020146366 | E48: =VLOOKUP($D48,MATRICE_VA,2,FALSE) -> Module appoint électrique 6 kW | F48: 602 | H48: 1 | I48: 1 | J48: 1 | Q48: 1 | R48: 1 | S48: 1
B49: GeniaAir 15 | C49: 6 | D49: 0020146366 | E49: =VLOOKUP($D49,MATRICE_VA,2,FALSE) -> Module appoint électrique 6 kW | F49: 602 | H49: 1 | I49: 1 | J49: 1 | Q49: 1 | R49: 1 | S49: 1
D53: 0020231661 | E53: =VLOOKUP($D53,MATRICE_VA,2,FALSE) -> Interface PAC GeniaAir VWZ RP | F53: 293 | H53: 1 | I53: 1 | J53: 1 | Q53: 1 | R53: 1 | S53: 1 | AW53: =_xlfn.NUMBERVALUE(AW$5-1) -> 0
D54: 050714 | E54: =VLOOKUP($D54,MATRICE_VA,2,FALSE) -> Vanne 3 voies motorisée | F54: =VLOOKUP(D54,MATRICE_VA,3,FALSE) -> 281 | H54: 1 | Q54: 1
C60: Puissance | D60: . | E60: Chaudière | F60: . | G60: . | H60: . | I60: . | J60: . | O60: . | P60: . | Q60: . | R60: . | S60: .
E61: chaudière | F61: 0 | K61: 1 | L61: 1 | M61: 1 | T61: 1 | U61: 1 | V61: 1
D62: . | E62: Accessoires chaudière | F62: . | G62: . | H62: . | I62: . | J62: . | K62: . | L62: . | M62: . | N62: . | O62: . | P62: . | Q62: . | R62: . | S62: . | T62: . | U62: . | V62: . | W62: . | X62: .
A63: BDD_Acc_Ch
B75: PAC | C75: Obligatoire | D75: . | E75: Préparateur ECS | F75: . | G75: . | H75: . | I75: . | J75: . | O75: . | P75: . | Q75: . | R75: . | S75: .
B90: PAC | C90: Obligatoire | D90: . | E90: Accessoires hydrauliques et électriques | F90: . | G90: . | H90: . | I90: . | J90: . | O90: . | P90: . | Q90: . | R90: . | S90: .
C91: Oui | D91: 0020231661 | E91: =VLOOKUP($D91,MATRICE_VA,2,FALSE) -> Interface PAC GeniaAir VWZ RP | F91: =VLOOKUP(D91,MATRICE_VA,3,FALSE) -> 293 | G91: =$AW91 -> 0 | H91: =$AW91 -> 0 | I91: =$AW91 -> 0 | J91: =$AW91 -> 0 | L91: =$AW91+1 -> 1 | M91: =$AW91+1 -> 1 | N91: =$AW91+1 -> 1 | O91: =$AW91+1 -> 1 | P91: =$AW91 -> 0 | Q91: =$AW91 -> 0 | R91: =$AW91 -> 0 | S91: =$AW91 -> 0 | U91: =$AW91+1 -> 1 | V91: =$AW91+1 -> 1 | W91: =$AW91+1 -> 1 | X91: =$AW91+1 -> 1 | AW91: =_xlfn.NUMBERVALUE(AW5-1) -> 0
B92: GeniaAir 5/2 | C92: Oui | D92: 0010019559 | E92: =VLOOKUP($D92,MATRICE_VA,2,FALSE) -> Colonne GeniaSet 5/8 (découp) | F92: =VLOOKUP(D92,MATRICE_VA,3,FALSE) -> 4026 | P92: 1
B93: GeniaAir 8/2 | C93: Oui | D93: 0010019559 | E93: =VLOOKUP($D93,MATRICE_VA,2,FALSE) -> Colonne GeniaSet 5/8 (découp) | F93: =VLOOKUP(D93,MATRICE_VA,3,FALSE) -> 4026 | P93: 1
B94: GeniaAir 11 | C94: Oui | D94: 0010019374 | E94: =VLOOKUP($D94,MATRICE_VA,2,FALSE) -> Colonne GeniaSet (non découp) | F94: =VLOOKUP(D94,MATRICE_VA,3,FALSE) -> 3534 | P94: 1
B96: GeniaAir 15 | C96: Oui | D96: 0010019374 | E96: =VLOOKUP($D96,MATRICE_VA,2,FALSE) -> Colonne GeniaSet (non découp) | F96: =VLOOKUP(D96,MATRICE_VA,3,FALSE) -> 3534 | P96: 1
C97: Oui | D97: 0010019374 | E97: =VLOOKUP($D97,MATRICE_VA,2,FALSE) -> Colonne GeniaSet (non découp) | F97: 3534 | G97: 1
C98: Oui | D98: 0020221268 | E98: =VLOOKUP(D98,MATRICE_VA,2,FALSE) -> Kit rac. GeniaSet chauf. seul | F98: 201 | G98: 1 | P98: 1
C99: Ajustez les quantités | D99: 0020020455 | E99: =VLOOKUP(D99,MATRICE_VA,2,FALSE) -> Mitigeur thermostatique | F99: 134 | G99: 1 | P99: 1
C100: Oui | D100: 0020139896 | E100: =VLOOKUP(D100,MATRICE_VA,2,FALSE) -> Carte interface eBus PAC HYB | F100: 96 | K100: 1 | L100: 1 | M100: 1 | T100: 1 | U100: 1 | V100: 1
C101: Oui | D101: 8000024513 | E101: =VLOOKUP(D101,MATRICE_VA,2,FALSE) -> Carte interf. eBus casc. Chaud | F101: 96 | G101: =$AW101 -> 0 | H101: =$AW101 -> 0 | I101: 0 | J101: 0 | K101: 0 | L101: 0 | M101: 0 | N101: 0 | O101: 0 | P101: 0 | Q101: 0 | R101: 0 | S101: 0 | T101: 0 | U101: 0 | V101: 0 | W101: 0 | X101: 0 | AW101: =_xlfn.NUMBERVALUE($AW$5-1) -> 0
C196: Ajustez les quantités | D196: A prévoir | E196: Zone 1 Circulateur (après bouteille ou ballon tampon) | F196: - | AB196: 1 | AC196: 1 | AD196: 1 | AH196: 1 | AI196: 1 | AJ196: 1 | AP196: 1 | AU196: 1 | AV196: 1
C197: Ajustez les quantités | D197: A prévoir | E197: Zone 2 Circulateur (après bouteille ou ballon tampon) | F197: - | AC197: 1 | AD197: 1 | AI197: 1 | AP197: 1 | AU197: 1
C198: Ajustez les quantités | D198: A prévoir | E198: Zone 3 Circulateur (après bouteille ou ballon tampon) | F198: - | AD198: 1 | AP198: 1
C199: Ajustez les quantités | D199: A prévoir | E199: Zone 1 Circulateur et vanne 3 voies motorisées (230 V) | F199: - | AE199: 1 | AF199: 1 | AG199: 1 | AQ199: 1 | AR199: 1 | AS199: 1
C200: Ajustez les quantités | D200: A prévoir | E200: Zone 2 Circulateur et vanne 3 voies motorisées (230 V) | F200: - | AF200: 1 | AG200: 1 | AH200: 1 | AJ200: 1 | AR200: 1 | AS200: 1 | AV200: 1
C201: Ajustez les quantités | D201: A prévoir | E201: Zone 3 Circulateur et vanne 3 voies motorisées (230 V) | F201: - | AG201: 1 | AI201: 1 | AJ201: 1 | AS201: 1 | AU201: 1 | AV201: 1
B291: PAC | C291: Obligatoire | D291: . | E291: =Calculs!H$95 -> Accessoires ECS : Chaudière seule ou électrique | F291: =Calculs!E$95 -> . | G291: . | H291: . | I291: . | J291: . | O291: . | P291: . | Q291: . | R291: . | S291: .
B302: PAC | C302: Obligatoire | D302: . | E302: =Calculs!H$96 -> Accessoires ECS : Ballon ECS 200 l PAC | F302: =Calculs!E$96 -> . | G302: . | H302: . | I302: . | J302: . | O302: . | P302: . | Q302: . | R302: . | S302: .
B303: GeniaAir 5/2 | C303: Non | D303: 0020197909 | E303: =VLOOKUP(D303,MATRICE_VA,2,FALSE) -> Ballon FEW 200 ME pour PAC | F303: =VLOOKUP(D303,MATRICE_VA,3,FALSE) -> 1800 | H303: 1 | I303: 1 | K303: 1 | L303: 1 | N303: 1 | Q303: 1 | R303: 1 | T303: 1 | U303: 1 | W303: 1
B304: GeniaAir 8/2 | C304: Non | D304: 0020197909 | E304: =VLOOKUP(D304,MATRICE_VA,2,FALSE) -> Ballon FEW 200 ME pour PAC | F304: =VLOOKUP(D304,MATRICE_VA,3,FALSE) -> 1800 | H304: 1 | I304: 1 | K304: 1 | L304: 1 | N304: 1 | Q304: 1 | R304: 1 | T304: 1 | U304: 1 | W304: 1
B305: GeniaAir 11 | C305: Non | D305: 0020197909 | E305: =VLOOKUP(D305,MATRICE_VA,2,FALSE) -> Ballon FEW 200 ME pour PAC | F305: =VLOOKUP(D305,MATRICE_VA,3,FALSE) -> 1800 | H305: 1 | I305: 1 | K305: 1 | L305: 1 | N305: 1 | Q305: 1 | R305: 1 | T305: 1 | U305: 1 | W305: 1
B306: GeniaAir 15 | C306: Non | D306: 0020197909 | E306: =VLOOKUP(D306,MATRICE_VA,2,FALSE) -> Ballon FEW 200 ME pour PAC | F306: =VLOOKUP(D306,MATRICE_VA,3,FALSE) -> 1800 | H306: 1 | I306: 1 | K306: 1 | L306: 1 | N306: 1 | Q306: 1 | R306: 1 | T306: 1 | U306: 1 | W306: 1
C310: Ajustez les quantités | D310: 0020020455 | E310: =VLOOKUP(D310,MATRICE_VA,2,FALSE) -> Mitigeur thermostatique | F310: =VLOOKUP(D310,MATRICE_VA,3,FALSE) -> 134 | H310: 1 | I310: 1 | K310: 1 | L310: 1 | N310: 1 | Q310: 1 | R310: 1 | T310: 1 | U310: 1 | W310: 1
C312: Ajustez les quantités | D312: 0020222637 | E312: =VLOOKUP(D312,MATRICE_VA,2,FALSE) -> Sonde ballon/chauff connecteur | F312: =VLOOKUP(D312,MATRICE_VA,3,FALSE) -> 30 | H312: 1 | I312: 1 | K312: 1 | L312: 1 | N312: 1 | Q312: 1 | R312: 1 | T312: 1 | U312: 1 | W312: 1
B313: PAC | C313: Obligatoire | D313: . | E313: =Calculs!H$97 -> Accessoires ECS : Ballon ECS 300 l PAC | F313: =Calculs!E$96 -> . | G313: . | H313: . | I313: . | J313: . | O313: . | P313: . | Q313: . | R313: . | S313: . | T313: .
B314: GeniaAir 5/2 | C314: Non | D314: 0010020656 | E314: =VLOOKUP(D314,MATRICE_VA,2,FALSE) -> Ballon FEW 300/3 MR pour PAC | F314: =VLOOKUP(D314,MATRICE_VA,3,FALSE) -> 2100 | H314: 1 | I314: 1 | K314: 1 | L314: 1 | N314: 1 | Q314: 1 | R314: 1 | T314: 1 | U314: 1 | W314: 1
B315: GeniaAir 8/2 | C315: Non | D315: 0010020656 | E315: =VLOOKUP(D315,MATRICE_VA,2,FALSE) -> Ballon FEW 300/3 MR pour PAC | F315: =VLOOKUP(D315,MATRICE_VA,3,FALSE) -> 2100 | H315: 1 | I315: 1 | K315: 1 | L315: 1 | N315: 1 | Q315: 1 | R315: 1 | T315: 1 | U315: 1 | W315: 1
B316: GeniaAir 11 | C316: Non | D316: 0010020656 | E316: =VLOOKUP(D316,MATRICE_VA,2,FALSE) -> Ballon FEW 300/3 MR pour PAC | F316: =VLOOKUP(D316,MATRICE_VA,3,FALSE) -> 2100 | H316: 1 | I316: 1 | K316: 1 | L316: 1 | N316: 1 | Q316: 1 | R316: 1 | T316: 1 | U316: 1 | W316: 1
B317: GeniaAir 15 | C317: Non | D317: 0010020656 | E317: =VLOOKUP(D317,MATRICE_VA,2,FALSE) -> Ballon FEW 300/3 MR pour PAC | F317: =VLOOKUP(D317,MATRICE_VA,3,FALSE) -> 2100 | H317: 1 | I317: 1 | K317: 1 | L317: 1 | N317: 1 | Q317: 1 | R317: 1 | T317: 1 | U317: 1 | W317: 1
C321: Ajustez les quantités | D321: 0020020455 | E321: =VLOOKUP(D321,MATRICE_VA,2,FALSE) -> Mitigeur thermostatique | F321: =VLOOKUP(D321,MATRICE_VA,3,FALSE) -> 134 | H321: 1 | I321: 1 | K321: 1 | L321: 1 | N321: 1 | Q321: 1 | R321: 1 | T321: 1 | U321: 1 | W321: 1
C323: Ajustez les quantités | D323: 0020222637 | E323: =VLOOKUP(D323,MATRICE_VA,2,FALSE) -> Sonde ballon/chauff connecteur | F323: =VLOOKUP(D323,MATRICE_VA,3,FALSE) -> 30 | H323: 1 | I323: 1 | K323: 1 | L323: 1 | N323: 1 | Q323: 1 | R323: 1 | T323: 1 | U323: 1 | W323: 1
B324: PAC | C324: Obligatoire | D324: . | E324: =Calculs!H$98 -> Accessoires ECS : Ballon ECS 200 l | F324: =Calculs!E$96 -> . | G324: . | H324: . | I324: . | J324: . | O324: . | P324: . | Q324: . | R324: . | S324: . | T324: .
B335: PAC | C335: Obligatoire | D335: . | E335: =Calculs!H$99 -> Accessoires ECS : Ballon ECS 300 l | F335: =Calculs!E$96 -> . | G335: . | H335: . | I335: . | J335: . | O335: . | P335: . | Q335: . | R335: . | S335: . | T335: .
B346: PAC | C346: Obligatoire | D346: . | E346: =Calculs!H$100 -> Accessoires ECS : Ballon ECS intégré | F346: =Calculs!I$100 -> . | G346: . | H346: . | I346: . | J346: . | O346: . | P346: . | Q346: . | R346: . | S346: .
B357: PAC | C357: Obligatoire | D357: . | E357: =Calculs!H$101 -> Régulation : MiPro Sense filaire (tactile) | F357: =Calculs!I$101 -> . | G357: . | H357: . | I357: . | J357: . | O357: . | P357: . | Q357: . | R357: . | S357: .
A358: BDD_Commun | C358: Oui | D358: 0020260971 | E358: =VLOOKUP(D358,MATRICE_VA,2,FALSE) -> MiPro Sense | F358: =VLOOKUP(D358,MATRICE_VA,3,FALSE) -> 268 | Y358: 1 | AB358: 1 | AC358: 1 | AD358: 1 | AE358: 1 | AF358: 1 | AG358: 1 | AH358: 1 | AI358: 1 | AJ358: 1 | AK358: 1 | AL358: 1 | AN358: 1 | AO358: 1 | AP358: 1 | AQ358: 1 | AR358: 1 | AS358: 1 | AT358: 1 | AU358: 1 | AV358: 1
C359: Non | D359: 0020260982 | E359: =VLOOKUP(D359,MATRICE_VA,2,FALSE) -> Commande déportée MiPro Sense | F359: 264 | AC359: 1 | AD359: 2 | AF359: 1 | AG359: 2 | AH359: 1 | AI359: 2 | AJ359: 2 | AL359: 1 | AO359: 1 | AP359: 2 | AR359: 1 | AS359: 2 | AT359: 1 | AU359: 2 | AV359: 2
C361: Ajustez les quantités | D361: 0020257510 | E361: Module RED 5 | F361: 280 | AC361: 1 | AD361: 1 | AE361: 1 | AF361: 1 | AG361: 1 | AH361: 1 | AI361: 1 | AJ361: 1 | AO361: 1 | AP361: 1 | AQ361: 1 | AR361: 1 | AS361: 1 | AT361: 1 | AU361: 1 | AV361: 1 | AW361: =IF(AW5>1,1,0) -> 0
C362: Ajustez les quantités | D362: 0020257508 | E362: Module RED 3 | F362: 208 | Y362: 0 | AB362: 0 | AK362: 0 | AL362: 0 | AN362: 0 | AW362: =IF(OR(AND(Gamme_BDD_Gx<>"BDD_G1",Systeme_PAC_hybride=TRUE),$AW$5>1),1,0) -> 0
C363: Oui | D363: 0020231681 | E363: =VLOOKUP(D363,MATRICE_VA,2,FALSE) -> Coupleur Bus pour cascade PAC | F363: 127 | Y363: 0 | AB363: 0 | AC363: 0 | AD363: 0 | AE363: 0 | AF363: 0 | AG363: 0 | AH363: 0 | AI363: 0 | AJ363: 0 | AK363: 0 | AN363: 0 | AO363: 0 | AP363: 0 | AQ363: 0 | AR363: 0 | AS363: 0 | AT363: 0 | AU363: 0 | AV363: 0 | AW363: =IF($AW$5>1,$AW$5-1,0) -> 0
C365: Oui | D365: 0020004238 | E365: =VLOOKUP(D365,MATRICE_VA,2,FALSE) -> Sonde ballon/chauffage | F365: 20 | AB365: 1 | AC365: 3 | AD365: 3 | AE365: 2 | AF365: 3 | AG365: 4 | AH365: 3 | AI365: 4 | AJ365: 4 | AK365: 0 | AL365: 3 | AN365: 1 | AO365: 3 | AP365: 4 | AQ365: 2 | AR365: 3 | AS365: 4 | AT365: 3 | AU365: 4 | AV365: 4 | AW365: =IF($AW$5>1,2,0) -> 0
B378: PAC | C378: Obligatoire | D378: . | E378: =Calculs!H$102 -> Régulation : MiPro Sense Radio (tactile) | F378: =Calculs!I$102 -> . | G378: . | H378: . | I378: . | J378: . | O378: . | P378: . | Q378: . | R378: . | S378: .
C379: Oui | D379: 0020260979 | E379: =VLOOKUP(D379,MATRICE_VA,2,FALSE) -> MiPro Sense radio | F379: =VLOOKUP(D379,MATRICE_VA,3,FALSE) -> 475 | Y379: 1 | AB379: 1 | AC379: 1 | AD379: 1 | AE379: 1 | AF379: 1 | AG379: 1 | AH379: 1 | AI379: 1 | AJ379: 1 | AK379: 1 | AL379: 1 | AM379: 1 | AN379: 1 | AO379: 1 | AP379: 1 | AQ379: 1 | AR379: 1 | AS379: 1 | AT379: 1 | AU379: 1 | AV379: 1
C380: Non | D380: 0020260988 | E380: =VLOOKUP(D380,MATRICE_VA,2,FALSE) -> Commande déport. MiPro Sense R | F380: =VLOOKUP(D380,MATRICE_VA,3,FALSE) -> 359 | AC380: 1 | AD380: 2 | AF380: 1 | AG380: 2 | AH380: 1 | AI380: 2 | AJ380: 2 | AL380: 1 | AM380: 1 | AO380: 1 | AP380: 2 | AR380: 1 | AS380: 2 | AT380: 1 | AU380: 2 | AV380: 2
C382: Ajustez les quantités | D382: 0020257510 | E382: Module RED 5 | F382: =VLOOKUP(D382,MATRICE_VA,3,FALSE) -> 280 | AC382: 1 | AD382: 1 | AE382: 1 | AF382: 1 | AG382: 1 | AH382: 1 | AI382: 1 | AJ382: 1 | AO382: 1 | AP382: 1 | AQ382: 1 | AR382: 1 | AS382: 1 | AT382: 1 | AU382: 1 | AV382: 1 | AW382: =IF($AW$5>1,1,0) -> 0
C383: Ajustez les quantités | D383: 0020257508 | E383: Module RED 3 | F383: =VLOOKUP(D383,MATRICE_VA,3,FALSE) -> 208 | Y383: 0 | AB383: 0 | AK383: 0 | AN383: 0 | AW383: =IF(OR(AND(Gamme_BDD_Gx<>"BDD_G1",Systeme_PAC_hybride=TRUE),$AW$5>1),1,0) -> 0
C384: Oui | D384: 0020231681 | E384: =VLOOKUP(D384,MATRICE_VA,2,FALSE) -> Coupleur Bus pour cascade PAC | F384: =VLOOKUP(D384,MATRICE_VA,3,FALSE) -> 127 | Y384: 0 | AB384: 0 | AC384: 0 | AD384: 0 | AE384: 0 | AF384: 0 | AG384: 0 | AH384: 0 | AI384: 0 | AJ384: 0 | AK384: 0 | AN384: 0 | AO384: 0 | AP384: 0 | AQ384: 0 | AR384: 0 | AS384: 0 | AT384: 0 | AU384: 0 | AV384: 0 | AW384: =IF($AW$5>1,$AW$5-1,0) -> 0
C386: Oui | D386: 0020004238 | E386: =VLOOKUP(D386,MATRICE_VA,2,FALSE) -> Sonde ballon/chauffage | F386: =VLOOKUP(D386,MATRICE_VA,3,FALSE) -> 20 | AB386: 1 | AC386: 3 | AD386: 4 | AE386: 2 | AF386: 3 | AG386: 4 | AH386: 3 | AI386: 4 | AJ386: 4 | AK386: 0 | AN386: 1 | AO386: 3 | AP386: 4 | AQ386: 2 | AR386: 3 | AS386: 4 | AT386: 3 | AU386: 4 | AV386: 4
B399: PAC | C399: Obligatoire | D399: . | E399: =Calculs!H$103 -> Accessoires Régulation : MiPro | F399: =Calculs!I$103 -> . | G399: . | H399: . | I399: . | J399: . | O399: . | P399: . | Q399: . | R399: . | S399: .
C400: Oui | D400: 0020218373 | E400: =VLOOKUP(D400,MATRICE_VA,2,FALSE) -> MiPro | F400: =VLOOKUP(D400,MATRICE_VA,3,FALSE) -> 229 | Y400: 1 | AB400: 1 | AC400: 1 | AD400: 1 | AE400: 1 | AF400: 1 | AG400: 1 | AH400: 1 | AI400: 1 | AJ400: 1 | AK400: 1 | AN400: 1 | AO400: 1 | AP400: 1 | AQ400: 1 | AR400: 1 | AS400: 1 | AT400: 1 | AU400: 1 | AV400: 1 | AW400: =IF($AW$5>1,0,1) -> 1
C401: Oui | D401: 0020218375 | E401: =VLOOKUP(D401,MATRICE_VA,2,FALSE) -> Commande déportée MiPro | F401: 217 | AC401: 1 | AD401: 2 | AF401: 1 | AG401: 2 | AH401: 1 | AI401: 2 | AJ401: 2 | AO401: 1 | AP401: 2 | AR401: 1 | AS401: 2 | AT401: 1 | AU401: 2 | AV401: 2 | AW401: =IF($AW$5>1,0,1) -> 1
C402: Oui | D402: 0020257510 | E402: Module RED 5 | F402: 280 | AC402: 1 | AD402: 1 | AE402: 1 | AF402: 1 | AG402: 1 | AH402: 1 | AI402: 1 | AJ402: 1 | AO402: 1 | AP402: 1 | AQ402: 1 | AR402: 1 | AS402: 1 | AT402: 1 | AU402: 1 | AV402: 1 | AW402: =IF($AW$5>1,1,0) -> 0
C403: Oui | D403: 0020257508 | E403: Module RED 3 | F403: 208 | Y403: 0 | AB403: 0 | AK403: 0 | AN403: 0 | AW403: =IF(OR(AND(Gamme_BDD_Gx<>"BDD_G1",Systeme_PAC_hybride=TRUE),$AW$5>1),1,0) -> 0
C404: Oui | D404: 0020231681 | E404: =VLOOKUP(D404,MATRICE_VA,2,FALSE) -> Coupleur Bus pour cascade PAC | F404: 127 | Y404: 0 | AB404: 0 | AC404: 0 | AD404: 0 | AE404: 0 | AF404: 0 | AG404: 0 | AH404: 0 | AI404: 0 | AJ404: 0 | AK404: 0 | AN404: 0 | AO404: 0 | AP404: 0 | AQ404: 0 | AR404: 0 | AS404: 0 | AT404: 0 | AU404: 0 | AV404: 0 | AW404: =IF($AW$5>1,$AW$5-1,0) -> 0
C406: Oui | D406: 0020004238 | E406: =VLOOKUP(D406,MATRICE_VA,2,FALSE) -> Sonde ballon/chauffage | F406: 20 | AB406: 1 | AC406: 2 | AD406: 4 | AE406: 2 | AF406: 3 | AG406: 4 | AH406: 2 | AI406: 4 | AJ406: 4 | AK406: 0 | AN406: 1 | AO406: 2 | AP406: 4 | AQ406: 2 | AR406: 3 | AS406: 4 | AT406: 2 | AU406: 4 | AV406: 4
B420: PAC | C420: Obligatoire | D420: . | E420: =Calculs!D$104 ->  | F420: =Calculs!E$104 ->  | G420: . | H420: . | I420: . | J420: . | O420: . | P420: . | Q420: . | R420: . | S420: .
B441: PAC | C441: Obligatoire | D441: . | E441: =Calculs!D$105 ->  | F441: =Calculs!E$105 ->  | G441: . | H441: . | I441: . | J441: . | O441: . | P441: . | Q441: . | R441: . | S441: . | AW441: .
A442: BDD_Commun
B462: PAC | C462: Obligatoire | D462: . | E462: =Calculs!H$106 -> Accessoires connectivité : MiGo Link | F462: =Calculs!I$106 -> . | G462: . | H462: . | I462: . | J462: . | O462: . | P462: . | Q462: . | R462: . | S462: .
C463: Oui | D463: 0010037345 | E463: =VLOOKUP(D463,MATRICE_VA,2,FALSE) -> MiGo Link | F463: =VLOOKUP(D463,MATRICE_VA,3,FALSE) -> 171 | G463: 1 | H463: 1 | I463: 1 | J463: 1 | K463: 1 | L463: 1 | M463: 1 | U463: 1 | V463: 1 | W463: 1 | X463: 1
B473: PAC | C473: Obligatoire | D473: . | E473: =Calculs!H$107 -> Accessoires connectivité : Sans | F473: =Calculs!I$107 -> . | G473: . | H473: . | I473: . | J473: . | O473: . | P473: . | Q473: . | R473: . | S473: .
B484: PAC | C484: Obligatoire | D484: . | E484: =Calculs!D$108 ->  | F484: =Calculs!E$108 ->  | G484: . | H484: . | I484: . | J484: . | O484: . | P484: . | Q484: . | R484: . | S484: .
B495: PAC | C495: Obligatoire | D495: . | E495: =Calculs!D$109 ->  | F495: =Calculs!E$109 ->  | G495: . | H495: . | I495: . | J495: . | O495: . | P495: . | Q495: . | R495: . | S495: .
B506: PAC | C506: Obligatoire | D506: . | E506: =Calculs!D$110 ->  | F506: =Calculs!E$110 ->  | G506: . | H506: . | I506: . | J506: . | O506: . | P506: . | Q506: . | R506: . | S506: .
B517: PAC | C517: Obligatoire | D517: . | E517: =Calculs!H$111 -> Accessoires Bouteille tampon En série externe | F517: =Calculs!I$111 -> . | G517: . | H517: . | I517: . | J517: . | K517: . | L517: . | M517: . | N517: . | O517: . | P517: . | Q517: . | R517: . | S517: . | T517: . | U517: . | V517: . | W517: . | X517: . | AW517: .
B521: GeniaAir 5/2 | C521: Non | D521: 0010034127 | E521: =VLOOKUP($D521,MATRICE_VA,2,FALSE) -> Ballon de découplage 45 litres | F521: =VLOOKUP(D521,MATRICE_VA,3,FALSE) -> 627 | K521: 1 | L521: 1 | M521: 1 | N521: 1 | O521: 1 | T521: 1 | U521: 1 | V521: 1 | W521: 1 | X521: 1
B522: GeniaAir 8/2 | C522: Non | D522: 0010034127 | E522: Ballon de découplage 45 litres | F522: 627 | K522: 1 | L522: 1 | M522: 1 | N522: 1 | O522: 1 | T522: 1 | U522: 1 | V522: 1 | W522: 1 | X522: 1
B523: GeniaAir 11 | C523: Ajustez les quantités | D523: A prévoir | E523: Ballon de découplage ou volume libre > 60 litres | F523: - | G523: 1 | H523: 1 | I523: 1 | J523: 1 | K523: 1 | L523: 1 | M523: 1 | N523: 1 | O523: 1 | P523: 1 | Q523: 1 | R523: 1 | S523: 1 | T523: 1 | U523: 1 | V523: 1 | W523: 1 | X523: 1
B524: GeniaAir 15 | C524: Ajustez les quantités | D524: A prévoir | E524: Ballon de découplage ou volume libre > 60 litres | F524: - | G524: 1 | H524: 1 | I524: 1 | J524: 1 | K524: 1 | L524: 1 | M524: 1 | N524: 1 | O524: 1 | P524: 1 | Q524: 1 | R524: 1 | S524: 1 | T524: 1 | U524: 1 | V524: 1 | W524: 1 | X524: 1
B528: GeniaAir 5/2 | C528: Ajustez les quantités | D528: 8000015076 | E528: =VLOOKUP(D528,MATRICE_VA,2,FALSE) -> Ballon tampon WN RW 50/3 B | F528: =VLOOKUP(D528,MATRICE_VA,3,FALSE) -> 615 | G528: 1 | H528: 1 | I528: 1 | J528: 1 | P528: 1 | Q528: 1 | R528: 1 | S528: 1
B529: GeniaAir 8/2 | C529: Ajustez les quantités | D529: 8000015076 | E529: Ballon tampon WN RW 50/3 B | F529: 615 | G529: 1 | H529: 1 | I529: 1 | J529: 1 | P529: 1 | Q529: 1 | R529: 1 | S529: 1
D533: 0010039990 | E533: =VLOOKUP(D533,MATRICE_VA,2,FALSE) -> Module Z 20 C | F533: =VLOOKUP(D533,MATRICE_VA,3,FALSE) -> 164 | Z533: 1 | AL533: 1
B538: PAC | C538: Obligatoire | D538: . | E538: =Calculs!H$112 -> Accessoires Bouteille tampon Tampon série 18L | F538: =Calculs!I$112 -> . | G538: . | H538: . | I538: . | J538: . | K538: . | L538: . | M538: . | N538: . | O538: . | P538: . | Q538: . | R538: . | S538: . | T538: . | U538: . | V538: . | W538: . | X538: .
B539: GeniaAir 5/2 | C539: Non | D539: 0020269274 | E539: =VLOOKUP($D539,MATRICE_VA,2,FALSE) -> Réservoir 18 litres - GeniaSet | F539: =VLOOKUP(D539,MATRICE_VA,3,FALSE) -> 560 | G539: 1 | K539: 1 | L539: 1 | M539: 1 | N539: 1 | O539: 1 | T539: 1 | U539: 1 | V539: 1 | W539: 1 | X539: 1
B540: GeniaAir 8/2 | C540: Non | D540: 0020269274 | E540: Réservoir 18 litres - GeniaSet | F540: 560 | G540: 1 | K540: 1 | L540: 1 | M540: 1 | N540: 1 | O540: 1 | T540: 1 | U540: 1 | V540: 1 | W540: 1 | X540: 1
B559: PAC | C559: Obligatoire | D559: . | E559: =Calculs!H$113 -> Accessoires Bouteille tampon En parallèle | F559: =Calculs!E$113 -> . | G559: . | H559: . | I559: . | J559: . | O559: . | P559: . | Q559: . | R559: . | S559: .
B563: GeniaAir 5/2 | C563: Non | D563: 0010034127 | E563: =VLOOKUP($D563,MATRICE_VA,2,FALSE) -> Ballon de découplage 45 litres | F563: =VLOOKUP(D563,MATRICE_VA,3,FALSE) -> 627 | K563: 1 | L563: 1 | M563: 1 | N563: 1 | O563: 1 | T563: 1 | U563: 1 | V563: 1 | W563: 1 | X563: 1
B564: GeniaAir 8/2 | C564: Non | D564: 0010034127 | E564: Ballon de découplage 45 litres | F564: 627 | K564: 1 | L564: 1 | M564: 1 | N564: 1 | O564: 1 | T564: 1 | U564: 1 | V564: 1 | W564: 1 | X564: 1
B565: GeniaAir 11 | C565: Ajustez les quantités | D565: A prévoir | E565: Ballon de découplage ou volume libre > 60 litres | F565: - | G565: 1 | H565: 1 | I565: 1 | J565: 1 | K565: 1 | L565: 1 | M565: 1 | N565: 1 | O565: 1 | P565: 1 | Q565: 1 | R565: 1 | S565: 1 | T565: 1 | U565: 1 | V565: 1 | W565: 1 | X565: 1
B566: GeniaAir 15 | C566: Ajustez les quantités | D566: A prévoir | E566: Ballon de découplage ou volume libre > 60 litres | F566: - | G566: 1 | H566: 1 | I566: 1 | J566: 1 | K566: 1 | L566: 1 | M566: 1 | N566: 1 | O566: 1 | P566: 1 | Q566: 1 | R566: 1 | S566: 1 | T566: 1 | U566: 1 | V566: 1 | W566: 1 | X566: 1
B567: GeniaAir 5/2 | C567: Ajustez les quantités | D567: 8000015076 | E567: =VLOOKUP(D567,MATRICE_VA,2,FALSE) -> Ballon tampon WN RW 50/3 B | F567: =VLOOKUP(D567,MATRICE_VA,3,FALSE) -> 615 | G567: 1 | H567: 1 | I567: 1 | J567: 1 | P567: 1 | Q567: 1 | R567: 1 | S567: 1
B568: GeniaAir 8/2 | C568: Ajustez les quantités | D568: 8000015076 | E568: Ballon tampon WN RW 50/3 B | F568: 615 | G568: 1 | H568: 1 | I568: 1 | J568: 1 | P568: 1 | Q568: 1 | R568: 1 | S568: 1
C575: Ajustez les quantités | D575: A prévoir | E575: Zone 1 Circulateur (après bouteille ou ballon tampon) | F575: - | AN575: 1 | AO575: 1 | AT575: 1
C576: Ajustez les quantités | D576: A prévoir | E576: Zone 2 Circulateur (après bouteille ou ballon tampon) | F576: - | AO576: 1
C577: Ajustez les quantités | D577: A prévoir | E577: Zone 2 Circulateur et vanne 3 voies motorisées (230 V) | F577: - | AT577: 1
B580: PAC | C580: Obligatoire | D580: . | E580: =Calculs!H$114 -> Accessoires Bouteille tampon En parallèle intégré | F580: =Calculs!E$114 -> . | G580: . | H580: . | I580: . | J580: . | O580: . | P580: . | Q580: . | R580: . | S580: .
C581: Oui | D581: 0020188585 | E581: =VLOOKUP($D581,MATRICE_VA,2,FALSE) -> Module L 10 | F581: =VLOOKUP(D581,MATRICE_VA,3,FALSE) -> 539 | AN581: 1 | AO581: 1 | AT581: 1
C582: Oui | D582: 0020188587 | E582: Extension L 10 | F582: 252 | AO582: 1
C583: Oui | D583: 0020188586 | E583: Extension L 11 | F583: 399 | AT583: 1
B585: GeniaAir 5/2 | C585: Ajustez les quantités | D585: A prévoir | E585: Volume d'eau en circulation libre > 18 litres | F585: - | AN585: 1 | AO585: 1 | AT585: 1
B586: GeniaAir 8/2 | C586: Ajustez les quantités | D586: A prévoir | E586: Volume d'eau en circulation libre > 18 litres | F586: - | AN586: 1 | AO586: 1 | AT586: 1
B587: GeniaAir 11 | C587: Ajustez les quantités | D587: A prévoir | E587: Volume d'eau en circulation libre > 45 litres | F587: - | AN587: 1 | AO587: 1 | AT587: 1
B588: GeniaAir 15 | C588: Ajustez les quantités | D588: A prévoir | E588: Volume d'eau en circulation libre > 60 litres | F588: - | AN588: 1 | AO588: 1 | AT588: 1
B601: PAC | C601: Obligatoire | D601: . | E601: =Calculs!H$115 ->  | F601: =Calculs!E$115 ->  | G601: . | H601: . | I601: . | J601: . | O601: . | P601: . | Q601: . | R601: . | S601: .
B622: PAC | C622: Obligatoire | D622: . | E622: =Calculs!H$116 -> Accessoires Découplage glycol : Avec échangeur | F622: =Calculs!I$116 -> . | G622: . | H622: . | I622: . | J622: . | O622: . | P622: . | Q622: . | R622: . | S622: .
C623: Oui | D623: 0020188186 | E623: =VLOOKUP($D623,MATRICE_VA,2,FALSE) -> Module mural découp. échangeur | F623: =VLOOKUP($D623,MATRICE_VA,3,FALSE) -> 875 | Q623: 1 | R623: 1 | S623: 1 | T623: 1 | U623: 1 | V623: 1 | W623: 1 | X623: 1
B624: GeniaAir 11 | C624: Oui | D624: 0020220370 | E624: =VLOOKUP($D624,MATRICE_VA,2,FALSE) -> Kit de découp. GeniaSet 11/15 | F624: =VLOOKUP(D624,MATRICE_VA,3,FALSE) -> 505 | P624: 1
B626: GeniaAir 15 | C626: Oui | D626: 0020220370 | E626: =VLOOKUP($D626,MATRICE_VA,2,FALSE) -> Kit de découp. GeniaSet 11/15 | F626: =VLOOKUP(D626,MATRICE_VA,3,FALSE) -> 505 | P626: 1
B633: PAC | C633: Obligatoire | D633: . | E633: =Calculs!H$117 -> Accessoires Découplage glycol : Pas de découplage | F633: =Calculs!I$117 -> . | G633: . | H633: . | I633: . | J633: . | O633: . | P633: . | Q633: . | R633: . | S633: .
B644: PAC | C644: Obligatoire | D644: . | E644: =Calculs!D$118 ->  | F644: =Calculs!E$118 ->  | G644: . | H644: . | I644: . | J644: . | O644: . | P644: . | Q644: . | R644: . | S644: .
B655: PAC | C655: Obligatoire | D655: . | E655: =Calculs!D$119 ->  | F655: =Calculs!E$119 ->  | G655: . | H655: . | I655: . | J655: . | O655: . | P655: . | Q655: . | R655: . | S655: .
B666: PAC | C666: Obligatoire | D666: . | E666: =Calculs!D$120 ->  | F666: =Calculs!E$120 ->  | G666: . | H666: . | I666: . | J666: . | O666: . | P666: . | Q666: . | R666: . | S666: .
B677: PAC | C677: Obligatoire | D677: . | E677: =Calculs!H$121 -> Accessoires Supports unité extérieure : Plots anti-vibratiles en caoutchouc (x4) | F677: =Calculs!I$121 -> . | G677: . | H677: . | I677: . | J677: . | O677: . | P677: . | Q677: . | R677: . | S677: .
C678: Non | D678: 0020252872 | E678: =VLOOKUP(D678,MATRICE_VA,2,FALSE) -> Plots anti-vibratiles (x4) | F678: =VLOOKUP(D678,MATRICE_VA,3,FALSE) -> 63 | G678: =_xlfn.NUMBERVALUE($AW678) -> 1 | H678: =_xlfn.NUMBERVALUE($AW678) -> 1 | I678: 1 | J678: 1 | K678: 1 | L678: 1 | M678: 1 | N678: 1 | O678: 1 | P678: 1 | Q678: 1 | R678: 1 | S678: 1 | T678: 1 | U678: 1 | V678: 1 | W678: 1 | X678: 1 | AW678: =_xlfn.NUMBERVALUE($AW$5) -> 1
B688: PAC | C688: Obligatoire | D688: . | E688: =Calculs!H$122 -> Accessoires Supports unité extérieure : Support anti-vibratiles en caoutchouc | F688: =Calculs!E$122 -> . | G688: . | H688: . | I688: . | J688: . | O688: . | P688: . | Q688: . | R688: . | S688: .
C689: Non | D689: 0020252059 | E689: =VLOOKUP(D689,MATRICE_VA,2,FALSE) -> Pieds anti-vibratiles 60 cm | F689: =VLOOKUP(D689,MATRICE_VA,3,FALSE) -> 125 | G689: =_xlfn.NUMBERVALUE($AW689) -> 1 | H689: 1 | I689: 1 | J689: 1 | K689: 1 | L689: 1 | M689: 1 | N689: 1 | O689: 1 | P689: 1 | Q689: 1 | R689: 1 | S689: 1 | T689: 1 | U689: 1 | V689: 1 | W689: 1 | X689: 1 | AW689: =_xlfn.NUMBERVALUE($AW$5) -> 1
B699: PAC | C699: Obligatoire | D699: . | E699: =Calculs!D$123 -> Accessoires Supports unité extérieure : Réhausse anti-neige (40 cm) | F699: =Calculs!E$123 -> . | G699: . | H699: . | I699: . | J699: . | O699: . | P699: . | Q699: . | R699: . | S699: .
C700: Non | D700: 0010027985 | E700: =VLOOKUP(D700,MATRICE_VA,2,FALSE) -> Réhausse anti-neige (+plots) | F700: =VLOOKUP(D700,MATRICE_VA,3,FALSE) -> 401 | G700: =_xlfn.NUMBERVALUE($AW700) -> 1 | H700: 1 | I700: 1 | J700: 1 | K700: 1 | L700: 1 | M700: 1 | N700: 1 | O700: 1 | P700: 1 | Q700: 1 | R700: 1 | S700: 1 | T700: 1 | U700: 1 | V700: 1 | W700: 1 | X700: 1 | AW700: =_xlfn.NUMBERVALUE($AW$5) -> 1
B710: PAC | C710: Obligatoire | D710: . | E710: =Calculs!D$124 -> Accessoires Supports unité extérieure : Support mural pour mur isolé (PAC < 10 kW) | F710: =Calculs!E$124 -> . | G710: . | H710: . | I710: . | J710: . | O710: . | P710: . | Q710: . | R710: . | S710: .
C711: Non | D711: 0020252046 | E711: =VLOOKUP(D711,MATRICE_VA,2,FALSE) -> Support mural pour mur isolé | F711: =VLOOKUP(D711,MATRICE_VA,3,FALSE) -> 469 | G711: =_xlfn.NUMBERVALUE($AW711) -> 1 | H711: 1 | I711: 1 | J711: 1 | K711: 1 | L711: 1 | M711: 1 | N711: 1 | O711: 1 | AW711: =_xlfn.NUMBERVALUE($AW$5) -> 1
B721: PAC | C721: Obligatoire | D721: . | E721: =Calculs!D$125 -> Accessoires Supports unité extérieure : Support mural standard (PAC < 10 kW) | F721: =Calculs!E$125 -> . | G721: . | H721: . | I721: . | J721: . | O721: . | P721: . | Q721: . | R721: . | S721: .
C722: Non | D722: 0020252047 | E722: =VLOOKUP(D722,MATRICE_VA,2,FALSE) -> Support mural standard | F722: =VLOOKUP(D722,MATRICE_VA,3,FALSE) -> 262 | G722: =_xlfn.NUMBERVALUE($AW722) -> 1 | H722: 1 | I722: 1 | J722: 1 | K722: 1 | L722: 1 | M722: 1 | N722: 1 | O722: 1 | AW722: =_xlfn.NUMBERVALUE($AW$5) -> 1
B732: PAC | C732: Obligatoire | D732: . | E732: Mise en service | F732: . | G732: . | H732: . | I732: . | J732: . | K732: . | L732: . | M732: . | N732: . | O732: . | P732: . | Q732: . | R732: . | S732: . | T732: . | U732: . | V732: . | W732: . | X732: . | AW732: .
C733: Oui | D733: 0010028531 | E733: =VLOOKUP(D733,MATRICE_VA,2,FALSE) -> Mise en service GeniaAir monobloc (à commander sur e-Shop) | F733: =VLOOKUP(D733,MATRICE_VA,3,FALSE) -> 300 | G733: =$AW733 -> 1 | H733: =$AW733 -> 1 | I733: 1 | J733: 1 | K733: 1 | L733: 1 | M733: 1 | N733: 1 | O733: 1 | P733: 1 | Q733: 1 | R733: 1 | S733: 1 | T733: 1 | U733: 1 | V733: 1 | W733: 1 | X733: 1 | AW733: =_xlfn.NUMBERVALUE($AW$5) -> 1
B743: PAC | C743: Obligatoire | D743: . | E743: Matériel à prévoir | F743: . | G743: . | H743: . | I743: . | J743: . | O743: . | P743: . | Q743: . | R743: . | S743: .
C744: Ajustez les quantités | D744: A prévoir | E744: Filtre à tamis sur le retour PAC | F744: - | G744: =$AW744 -> 1 | H744: =$AW744 -> 1 | I744: 1 | J744: 1 | K744: 1 | L744: 1 | M744: 1 | N744: 1 | O744: 1 | P744: 1 | Q744: 1 | R744: 1 | S744: 1 | T744: 1 | U744: 1 | V744: 1 | W744: 1 | X744: 1 | AW744: =_xlfn.NUMBERVALUE($AW$5) -> 1
C746: Ajustez les quantités | D746: A prévoir | E746: Soupape différentielle (repère 9d) | F746: - | G746: 1 | J746: 1 | M746: 1 | V746: 1 | X746: 1
C747: Ajustez les quantités | D747: A prévoir | E747: Electrovannes 230 V~ (repère 9b) | F747: -
C748: Ajustez les quantités | D748: A prévoir | E748: Vase expansion, soupape, manomètre. | F748: - | G748: 1 | H748: 1 | I748: 1 | J748: 1 | K748: 1 | L748: 1 | M748: 1 | U748: 1 | V748: 1 | W748: 1 | X748: 1
C749: Ajustez les quantités | D749: A prévoir | E749: En option circulateur bouclage sanitaire, vase expansion sanitaire… | F749: - | J749: 1 | K749: 1 | L749: 1 | M749: 1 | U749: 1 | V749: 1 | W749: 1 | X749: 1
B750: GeniaAir 5/2 | C750: Ajustez les quantités | D750: A prévoir | E750: Volume tampon minimal de 18 l | F750: - | G750: 1 | H750: 1 | I750: 1 | J750: 1 | K750: 1 | L750: 1 | M750: 1 | U750: 1 | V750: 1 | W750: 1 | X750: 1
B751: GeniaAir 8/2 | C751: Ajustez les quantités | D751: A prévoir | E751: Volume tampon minimal de 18 l | G751: 1 | H751: 1 | I751: 1 | J751: 1 | K751: 1 | L751: 1 | M751: 1 | U751: 1 | V751: 1 | W751: 1 | X751: 1
B752: GeniaAir 11 | C752: Ajustez les quantités | D752: A prévoir | E752: Volume tampon minimal de 35 l | F752: - | G752: 1 | H752: 1 | I752: 1 | J752: 1 | K752: 1 | L752: 1 | M752: 1 | U752: 1 | V752: 1 | W752: 1 | X752: 1
B754: GeniaAir 15 | C754: Ajustez les quantités | D754: A prévoir | E754: Volume tampon minimal de 60 l | F754: - | G754: 1 | H754: 1 | I754: 1 | J754: 1 | K754: 1 | L754: 1 | M754: 1 | U754: 1 | V754: 1 | W754: 1 | X754: 1
C759: Ajustez les quantités | D759: A prévoir | E759: Volume tampon minimal de 100 l | F759: - | G759: =$AW759 -> 0 | H759: 0 | I759: 0 | J759: 0 | K759: 0 | L759: 0 | M759: 0 | N759: 0 | O759: 0 | P759: 0 | Q759: 0 | R759: 0 | S759: 0 | T759: 0 | U759: 0 | V759: 0 | W759: =$AW759 -> 0 | X759: =$AW759 -> 0 | AW759: =IF(AND(_xlfn.NUMBERVALUE($AW$5)>1,_xlfn.NUMBERVALUE($AW$5)<4)=TRUE,1,0) -> 0
C760: Ajustez les quantités | D760: A prévoir | E760: Volume tampon minimal de 200 l | F760: - | G760: 0 | H760: 0 | I760: 0 | J760: 0 | K760: 0 | L760: 0 | M760: 0 | N760: 0 | O760: 0 | P760: 0 | Q760: 0 | R760: 0 | S760: 0 | T760: 0 | U760: 0 | V760: 0 | W760: =$AW760 -> 0 | X760: =$AW760 -> 0 | AW760: =IF(AND(_xlfn.NUMBERVALUE($AW$5)>3,_xlfn.NUMBERVALUE($AW$5)<8)=TRUE,1,0) -> 0

Sheet BDD_G2 (hidden)
D2: =Calculs!F93 -> INSTALLATIONS ET ACCESSOIRES pour la gamme BDD_G2 : GeniaAir Split | G2: Q-commun | H2: EI-commun | I2: commun-EI | J2: commun | K2: H-EI-commun | L2: H-commun-EI | M2: H-commun | N2: Hext-commun-EI | O2: Hext-commun | Y2: D | Z2: D2 | AA2: DM | AB2: B-D | AC2: B-D2 | AD2: B-D3 | AE2: B-M | AF2: B-M2 | AG2: B-M3 | AH2: B-DM | AI2: B-D2M | AJ2: B-DM2 | AK2: Q-D | AL2: Q-D2 | AM2: Q-DM | AN2: Q-B-D | AO2: Q-B-D2 | AP2: Q-B-D3 | AQ2: Q-B-M | AR2: Q-B-M2 | AS2: Q-B-M3 | AT2: Q-B-DM | AU2: Q-B-D2M | AV2: Q-B-DM2 | AW2: Cascade de PAC
G3: 1 | H3: 2 | I3: 3 | J3: 4 | K3: 5 | L3: 6 | M3: 7 | N3: 8 | O3: 9 | Y3: =COLUMN()-24 -> 1 | AB3: =COLUMN()-24 -> 4 | AC3: 5 | AD3: 6 | AE3: 7 | AF3: 8 | AG3: 9 | AH3: 10 | AI3: 11 | AJ3: 12 | AK3: 13 | AN3: =COLUMN()-24 -> 16 | AO3: 17 | AP3: 18 | AQ3: 19 | AR3: 20 | AS3: 21 | AT3: 22 | AU3: 23 | AV3: 24
E4: ="Recherche la configuration >> "&Calculs!$C$2020&" << =>" -> Recherche la configuration >> Colonne << => | F4: Schéma | G4: Colonne | H4: Ballon ECS avant Bouteille | I4: Ballon ECS aprés Bouteille | J4: Chauffage Seul | K4: Hybride et ballon ECS avant Bouteille | L4: Hybride et ballon ECS aprés Bouteille | M4: Hybride chauffage Seul | N4: Hybride non Ebus et ballon ECS aprés Bouteille | O4: Hybride non Ebus chauffage Seul | Y4: circuit Direct | Z4: 2 circuits directs | AA4: circuit direct et mélangé | AB4: circuit direct sur bouteille | AC4: 2 circuits directs sur bouteille | AD4: 3 circuits directs sur bouteille | AE4: circuit mélangé sur bouteille | AF4: 2 circuits mélangés sur bouteille | AG4: 3 circuits mélangés sur bouteille | AH4: circuit direct et mélangé sur bouteille | AI4: 2 circuits directs et 1 mélangé sur bouteille | AJ4: 1 circuit direct et 2 mélangés sur bouteille | AK4: circuit Direct | AL4: 2 circuits directs | AM4: circuit direct et mélangé | AN4: circuit direct sur bouteille | AO4: 2 circuits directs sur bouteille | AP4: 3 circuits directs sur bouteille | AQ4: circuit mélangé sur bouteille | AR4: 2 circuits mélangés sur bouteille | AS4: 3 circuits mélangés sur bouteille | AT4: circuit direct et mélangé sur bouteille | AU4: 2 circuits directs et 1 mélangé sur bouteille | AV4: 1 circuit direct et 2 mélangés sur bouteille | AW4: Nombre de PAC valeur à multipliers au accessoires
B5: Vers PARAMETRAGE | F5: Appoint | G5: Appoint interne | H5: Electrique | I5: Electrique | J5: Electrique | K5: Chaudière neuve | L5: Chaudière neuve | M5: Chaudière neuve | N5: Chaudière existante | O5: Chaudière existante | AW5: =_xlfn.NUMBERVALUE(Calculs!$C$2179) -> 1
E6: ="Recherche la configuration >> "&Calculs!G2086&" << =>" -> Recherche la configuration >> Q-B-D << => | F6: Mode gestion | G6: Simultané | H6: Simultané | I6: Simultané | J6: Simultané | K6: Simultané optimisé | L6: Simultané optimisé | M6: Simultané optimisé | N6: Simultané optimisé | O6: Simultané optimisé
F7: ECS | G7: Var. impossible | H7: Var. possible | I7: Var. possible | J7: Var. impossible | K7: Var. possible | L7: Var. possible | M7: Var. impossible | N7: Var. possible | O7: Var. impossible
F8: =Calculs!D24 -> Régulation : | G8: Var. possible | H8: Var. possible | I8: Var. possible | J8: Var. possible | K8: Var. possible | L8: Var. possible | M8: Var. possible | N8: Var. possible | O8: Var. possible
E9: Dénomination de la colonne | F9: =Calculs!D25 -> Connectivité : | G9: Var. possible | H9: Var. possible | I9: Var. possible | J9: Var. possible | K9: Var. possible | L9: Var. possible | M9: Var. possible | N9: Var. possible | O9: Var. possible
E10: Genia Hybrid Split | F10: =Calculs!D26 -> Bouteille tampon | G10: Var. possible | H10: Var. possible | I10: Var. possible | J10: Var. possible | K10: Var. possible | L10: Var. possible | M10: Var. possible | N10: Var. possible | O10: Var. possible
E11: Dénomination de la colonne | F11: =Calculs!D27 ->  | G11: Var. impossible | H11: Var. impossible | I11: Var. impossible | J11: Var. impossible | K11: Var. impossible | L11: Var. impossible | M11: Var. impossible | N11: Var. impossible | O11: Var. impossible
E12: GeniaSet Split | F12: =Calculs!D28 -> Supports unité extérieure : | G12: Var. possible | H12: Var. possible | I12: Var. possible | J12: Var. possible | K12: Var. possible | L12: Var. possible | M12: Var. possible | N12: Var. possible | O12: Var. possible
F13: .
D14: Réf. | E14: Dénomination | F14: PU HT
D15: . | E15: Pompes à chaleur de la gamme | F15: . | G15: . | H15: . | I15: . | J15: . | K15: . | L15: . | M15: . | N15: . | O15: .
D16: 0010021148 | E16: GeniaAir Split 3 - 230V | F16: =VLOOKUP(D16,MATRICE_VA,3,FALSE) -> 4842 | G16: 1 | H16: 1 | I16: 1 | J16: 1 | K16: 1 | L16: 1 | M16: 1 | N16: 1 | O16: 1 | AW16: 1
D17: 0010021149 | E17: GeniaAir Split 5 - 230V | F17: 5593 | G17: 1 | H17: 1 | I17: 1 | J17: 1 | K17: 1 | L17: 1 | M17: 1 | N17: 1 | O17: 1 | AW17: 1
D18: 0010021150 | E18: GeniaAir Split 7 - 230V | F18: 6744 | G18: 1 | H18: 1 | I18: 1 | J18: 1 | K18: 1 | L18: 1 | M18: 1 | N18: 1 | O18: 1 | AW18: 1
D19: 0010021151 | E19: GeniaAir Split 10 - 230V | F19: 8818 | G19: 1 | H19: 1 | I19: 1 | J19: 1 | K19: 1 | L19: 1 | M19: 1 | N19: 1 | O19: 1 | AW19: 1
D20: 0010021152 | E20: GeniaAir Split 10 - 400V | F20: 9293 | G20: =$AW20 -> 1 | H20: 1 | I20: 1 | J20: 1 | K20: 1 | L20: 1 | M20: 1 | N20: 1 | O20: 1 | AW20: =_xlfn.NUMBERVALUE($AW$5) -> 1
D21: 0010021153 | E21: GeniaAir Split 12 - 230V | F21: 9892 | G21: 1 | H21: 1 | I21: 1 | J21: 1 | K21: 1 | L21: 1 | M21: 1 | N21: 1 | O21: 1 | AW21: 1
D22: 0010021154 | E22: GeniaAir Split 12 - 400V | F22: 10422 | G22: =$AW22 -> 1 | H22: 1 | I22: 1 | J22: 1 | K22: 1 | L22: 1 | M22: 1 | N22: 1 | O22: 1 | AW22: =_xlfn.NUMBERVALUE($AW$5) -> 1
B30: PAC | C30: Puissance | D30: . | E30: =Paramétrage!L156 -> Appoint électrique double service | F30: . | G30: . | H30: . | I30: . | J30: . | O30: .
B31: GeniaAir Split 3 - 230V | C31: 5.4 | D31: 0010023496 | E31: =VLOOKUP(D31,MATRICE_VA,2,FALSE) -> Module mural Split 3-5 | F31: =VLOOKUP(D31,MATRICE_VA,3,FALSE) -> 2796 | H31: 1 | I31: 1 | J31: 1 | K31: 1 | L31: 1 | M31: 1 | N31: 1 | O31: 1 | AW31: 1
B32: GeniaAir Split 5 - 230V | C32: 5.4 | D32: 0010023496 | E32: Module mural Split 3-5 | F32: 2796 | H32: 1 | I32: 1 | J32: 1 | K32: 1 | L32: 1 | M32: 1 | N32: 1 | O32: 1 | AW32: 1
B33: GeniaAir Split 7 - 230V | C33: 5.4 | D33: 0010023497 | E33: Module mural Split 7 | F33: 2803 | H33: 1 | I33: 1 | J33: 1 | K33: 1 | L33: 1 | M33: 1 | N33: 1 | O33: 1 | AW33: 1
B34: GeniaAir Split 10 - 230V | C34: 5.4 | D34: 0010023527 | E34: Module mural Split 10-12 | F34: 3118 | H34: 1 | I34: 1 | J34: 1 | K34: 1 | L34: 1 | M34: 1 | N34: 1 | O34: 1 | AW34: 1
B35: GeniaAir Split 10 - 400V | C35: 8.9 | D35: 0010023527 | E35: Module mural Split 10-12 | F35: 3118 | G35: =$AW35-1 -> 0 | H35: =$AW35 -> 1 | I35: 1 | J35: 1 | K35: 1 | L35: 1 | M35: 1 | N35: 1 | O35: 1 | AW35: =_xlfn.NUMBERVALUE($AW$5) -> 1
B36: GeniaAir Split 12 - 230V | C36: 5.4 | D36: 0010023527 | E36: Module mural Split 10-12 | F36: 3118 | H36: 1 | I36: 1 | J36: 1 | K36: 1 | L36: 1 | M36: 1 | N36: 1 | O36: 1 | AW36: 1
B37: GeniaAir Split 12 - 400V | C37: 8.9 | D37: 0010023527 | E37: Module mural Split 10-12 | F37: 3118 | G37: =$AW37-1 -> 0 | H37: =$AW37 -> 1 | I37: 1 | J37: 1 | K37: 1 | L37: 1 | M37: 1 | N37: 1 | O37: 1 | AW37: =_xlfn.NUMBERVALUE($AW$5) -> 1
B45: PAC | C45: Puissance | D45: . | E45: =Paramétrage!M156 -> 0 | F45: . | G45: . | H45: . | I45: . | J45: . | O45: .
C60: Puissance | D60: . | E60: Chaudière | F60: . | G60: . | H60: . | I60: . | J60: . | O60: .
E61: chaudière | F61: 0 | K61: 1 | L61: 1 | M61: 1
D62: . | E62: Accessoires chaudière | F62: . | G62: . | H62: . | I62: . | J62: . | K62: . | L62: . | M62: . | N62: . | O62: .
A63: BDD_Acc_Ch
B75: PAC | C75: Obligatoire | D75: . | E75: Préparateur ECS | F75: . | G75: . | H75: . | I75: . | J75: . | O75: .
B90: PAC | C90: Obligatoire | D90: . | E90: Accessoires hydrauliques et électriques | F90: . | G90: . | H90: . | I90: . | J90: . | O90: .
B91: GeniaAir Split 3 - 230V | C91: Oui | D91: 0010023171 | E91: =VLOOKUP(D91,MATRICE_VA,2,FALSE) -> GeniaSet Split 3-5 col. hyd. | F91: =VLOOKUP(D91,MATRICE_VA,3,FALSE) -> 4648 | G91: 1
B92: GeniaAir Split 5 - 230V | C92: Oui | D92: 0010023171 | E92: GeniaSet Split 3-5 col. hyd. | F92: 4648 | G92: 1
B93: GeniaAir Split 7 - 230V | C93: Oui | D93: 0010023172 | E93: GeniaSet Split 7 col. hyd. | F93: 4654 | G93: 1
B94: GeniaAir Split 10 - 230V | C94: Oui | D94: 0010023173 | E94: GeniaSet Split 10-12 col. hyd. | F94: 4818 | G94: 1
B95: GeniaAir Split 10 - 400V | C95: Oui | D95: 0010023173 | E95: GeniaSet Split 10-12 col. hyd. | F95: 4818 | G95: 1
B96: GeniaAir Split 12 - 230V | C96: Oui | D96: 0010023173 | E96: GeniaSet Split 10-12 col. hyd. | F96: 4818 | G96: 1
B97: GeniaAir Split 12 - 400V | C97: Oui | D97: 0010023173 | E97: GeniaSet Split 10-12 col. hyd. | F97: 4818 | G97: 1
C98: Oui | D98: 0020221268 | E98: Kit rac. GeniaSet chauf. seul | F98: 201 | G98: 1
D99: 0020020455 | E99: =VLOOKUP(D99,MATRICE_VA,2,FALSE) -> Mitigeur thermostatique | F99: =VLOOKUP(D99,MATRICE_VA,3,FALSE) -> 134 | G99: 1
C100: Oui | D100: 0020139896 | E100: =VLOOKUP(D100,MATRICE_VA,2,FALSE) -> Carte interface eBus PAC HYB | F100: =VLOOKUP(D100,MATRICE_VA,3,FALSE) -> 96 | K100: 1 | L100: 1 | M100: 1
C101: Oui | D101: 0020231681 | E101: =VLOOKUP(D101,MATRICE_VA,2,FALSE) -> Coupleur Bus pour cascade PAC | F101: =VLOOKUP(D101,MATRICE_VA,3,FALSE) -> 127 | G101: =$AW101 -> 0 | H101: =$AW101 -> 0 | I101: 0 | J101: 0 | K101: 0 | L101: 0 | M101: 0 | N101: 0 | O101: 0 | AW101: =_xlfn.NUMBERVALUE($AW$5-1) -> 0
C196: Ajustez les quantités | D196: A prévoir | E196: Zone 1 Circulateur (après bouteille ou ballon tampon) | F196: - | AB196: 1 | AC196: 1 | AD196: 1 | AH196: 1 | AI196: 1 | AJ196: 1 | AP196: 1 | AU196: 1 | AV196: 1
C197: Ajustez les quantités | D197: A prévoir | E197: Zone 2 Circulateur (après bouteille ou ballon tampon) | F197: - | AC197: 1 | AD197: 1 | AI197: 1 | AP197: 1 | AU197: 1
C198: Ajustez les quantités | D198: A prévoir | E198: Zone 3 Circulateur (après bouteille ou ballon tampon) | F198: - | AD198: 1 | AP198: 1
C199: Ajustez les quantités | D199: A prévoir | E199: Zone 1 Circulateur et vanne 3 voies motorisées (230 V) | F199: - | AE199: 1 | AF199: 1 | AG199: 1 | AQ199: 1 | AR199: 1 | AS199: 1
C200: Ajustez les quantités | D200: A prévoir | E200: Zone 2 Circulateur et vanne 3 voies motorisées (230 V) | F200: - | AF200: 1 | AG200: 1 | AH200: 1 | AJ200: 1 | AR200: 1 | AS200: 1 | AV200: 1
C201: Ajustez les quantités | D201: A prévoir | E201: Zone 3 Circulateur et vanne 3 voies motorisées (230 V) | F201: - | AG201: 1 | AI201: 1 | AJ201: 1 | AS201: 1 | AU201: 1 | AV201: 1
B291: PAC | C291: Obligatoire | D291: . | E291: =Calculs!F$95 -> Accessoires ECS : Chaudière seule ou électrique | F291: =Calculs!E$95 -> . | G291: . | H291: . | I291: . | J291: . | O291: .
B302: PAC | C302: Obligatoire | D302: . | E302: =Calculs!F$96 -> Accessoires ECS : Ballon ECS 200 l PAC | F302: =Calculs!E$96 -> . | G302: . | H302: . | I302: . | J302: . | O302: .
B303: GeniaAir Split 3 - 230V | C303: Non | D303: 0020197909 | E303: =VLOOKUP(D303,MATRICE_VA,2,FALSE) -> Ballon FEW 200 ME pour PAC | F303: =VLOOKUP(D303,MATRICE_VA,3,FALSE) -> 1800 | H303: 1 | I303: 1 | K303: 1 | L303: 1 | N303: 1
B304: GeniaAir Split 5 - 230V | C304: Non | D304: 0020197909 | E304: Ballon FEW 200 ME pour PAC | F304: 1800 | H304: 1 | I304: 1 | K304: 1 | L304: 1 | N304: 1
B305: GeniaAir Split 7 - 230V | C305: Non | D305: 0020197909 | E305: Ballon FEW 200 ME pour PAC | F305: 1800 | H305: 1 | I305: 1 | K305: 1 | L305: 1 | N305: 1
B306: GeniaAir Split 10 - 230V | C306: Non | D306: 0020197909 | E306: Ballon FEW 200 ME pour PAC | F306: 1800 | H306: 1 | I306: 1 | K306: 1 | L306: 1 | N306: 1
B307: GeniaAir Split 10 - 400V | C307: Non | D307: 0020197909 | E307: Ballon FEW 200 ME pour PAC | F307: 1800 | H307: 1 | I307: 1 | K307: 1 | L307: 1 | N307: 1
B308: GeniaAir Split 12 - 230V | C308: Non | D308: 0020197909 | E308: Ballon FEW 200 ME pour PAC | F308: 1800 | H308: 1 | I308: 1 | K308: 1 | L308: 1 | N308: 1
B309: GeniaAir Split 12 - 400V | C309: Non | D309: 0020197909 | E309: Ballon FEW 200 ME pour PAC | F309: 1800 | H309: 1 | I309: 1 | K309: 1 | L309: 1 | N309: 1
C310: Non | D310: 0020020455 | E310: =VLOOKUP(D310,MATRICE_VA,2,FALSE) -> Mitigeur thermostatique | F310: =VLOOKUP(D310,MATRICE_VA,3,FALSE) -> 134 | H310: 1 | I310: 1 | K310: 1 | L310: 1 | N310: 1
C312: Ajustez les quantités | D312: 0020222637 | E312: =VLOOKUP(D312,MATRICE_VA,2,FALSE) -> Sonde ballon/chauff connecteur | F312: =VLOOKUP(D312,MATRICE_VA,3,FALSE) -> 30 | H312: 1 | I312: 1 | K312: 1 | L312: 1 | N312: 1
B313: PAC | C313: Obligatoire | D313: . | E313: =Calculs!F$97 -> Accessoires ECS : Ballon ECS 300 l PAC | F313: =Calculs!E$96 -> . | G313: . | H313: . | I313: . | J313: . | O313: .
B314: GeniaAir Split 3 - 230V | C314: Non | D314: 0010020656 | E314: Ballon uniSTOR VIH RW 300/3 BR (déconseillé avec le modèle 3) | F314: =VLOOKUP(D314,MATRICE_VA,3,FALSE) -> 2100 | H314: 1 | I314: 1 | K314: 1 | L314: 1 | N314: 1
B315: GeniaAir Split 5 - 230V | C315: Non | D315: 0010020656 | E315: =VLOOKUP(D315,MATRICE_VA,2,FALSE) -> Ballon FEW 300/3 MR pour PAC | F315: 2100 | H315: 1 | I315: 1 | K315: 1 | L315: 1 | N315: 1
B316: GeniaAir Split 7 - 230V | C316: Non | D316: 0010020656 | E316: Ballon FEW 300/3 MR pour PAC | F316: 2100 | H316: 1 | I316: 1 | K316: 1 | L316: 1 | N316: 1
B317: GeniaAir Split 10 - 230V | C317: Non | D317: 0010020656 | E317: Ballon FEW 300/3 MR pour PAC | F317: 2100 | H317: 1 | I317: 1 | K317: 1 | L317: 1 | N317: 1
B318: GeniaAir Split 10 - 400V | C318: Non | D318: 0010020656 | E318: Ballon FEW 300/3 MR pour PAC | F318: 2100 | H318: 1 | I318: 1 | K318: 1 | L318: 1 | N318: 1
B319: GeniaAir Split 12 - 230V | C319: Non | D319: 0010020656 | E319: Ballon FEW 300/3 MR pour PAC | F319: 2100 | H319: 1 | I319: 1 | K319: 1 | L319: 1 | N319: 1
B320: GeniaAir Split 12 - 400V | C320: Non | D320: 0010020656 | E320: Ballon FEW 300/3 MR pour PAC | F320: 2100 | H320: 1 | I320: 1 | K320: 1 | L320: 1 | N320: 1
C321: Non | D321: 0020020455 | E321: =VLOOKUP(D321,MATRICE_VA,2,FALSE) -> Mitigeur thermostatique | F321: =VLOOKUP(D321,MATRICE_VA,3,FALSE) -> 134 | H321: 1 | I321: 1 | K321: 1 | L321: 1 | N321: 1
C323: Ajustez les quantités | D323: 0020222637 | E323: =VLOOKUP(D323,MATRICE_VA,2,FALSE) -> Sonde ballon/chauff connecteur | F323: =VLOOKUP(D323,MATRICE_VA,3,FALSE) -> 30 | H323: 1 | I323: 1 | K323: 1 | L323: 1 | N323: 1
B324: PAC | C324: Obligatoire | D324: . | E324: =Calculs!F$98 -> Accessoires ECS : Ballon ECS 200 l | F324: =Calculs!E$96 -> . | G324: . | H324: . | I324: . | J324: . | O324: .
B325: GeniaAir Split 3 - 230V | C325: Non | D325: 0010015961 | E325: =VLOOKUP(D325,MATRICE_VA,2,FALSE) -> Ballon Sol FE 200 BA | F325: =VLOOKUP(D325,MATRICE_VA,3,FALSE) -> 1510 | H325: 1 | I325: 1 | K325: 1 | L325: 1 | N325: 1
B326: GeniaAir Split 5 - 230V | C326: Non | D326: 0010015961 | E326: =VLOOKUP(D326,MATRICE_VA,2,FALSE) -> Ballon Sol FE 200 BA | F326: =VLOOKUP(D326,MATRICE_VA,3,FALSE) -> 1510 | H326: 1 | I326: 1 | K326: 1 | L326: 1 | N326: 1
B327: GeniaAir Split 7 - 230V | C327: Non | D327: 0010015961 | E327: =VLOOKUP(D327,MATRICE_VA,2,FALSE) -> Ballon Sol FE 200 BA | F327: =VLOOKUP(D327,MATRICE_VA,3,FALSE) -> 1510 | H327: 1 | I327: 1 | K327: 1 | L327: 1 | N327: 1
C333: Non | D333: 0020020455 | E333: =VLOOKUP(D333,MATRICE_VA,2,FALSE) -> Mitigeur thermostatique | F333: =VLOOKUP(D333,MATRICE_VA,3,FALSE) -> 134 | H333: 1 | I333: 1 | K333: 1 | L333: 1 | N333: 1
C334: Ajustez les quantités | D334: 0020222637 | E334: =VLOOKUP(D334,MATRICE_VA,2,FALSE) -> Sonde ballon/chauff connecteur | F334: =VLOOKUP(D334,MATRICE_VA,3,FALSE) -> 30 | H334: 1 | I334: 1 | K334: 1 | L334: 1 | N334: 1
B335: PAC | C335: Obligatoire | D335: . | E335: =Calculs!F$99 -> Accessoires ECS : Ballon ECS 300 l | F335: =Calculs!E$96 -> . | G335: . | H335: . | I335: . | J335: . | O335: .
B336: GeniaAir Split 3 - 230V | C336: Non | D336: 0010020650 | E336: Ballon FE 300/3 MR | F336: =VLOOKUP(D336,MATRICE_VA,3,FALSE) -> 1789 | H336: 1 | I336: 1 | K336: 1 | L336: 1 | N336: 1
B337: GeniaAir Split 5 - 230V | C337: Non | D337: 0010020650 | E337: Ballon FE 300/3 MR | F337: =VLOOKUP(D337,MATRICE_VA,3,FALSE) -> 1789 | H337: 1 | I337: 1 | K337: 1 | L337: 1 | N337: 1
B338: GeniaAir Split 7 - 230V | C338: Non | D338: 0010020650 | E338: Ballon FE 300/3 MR | F338: =VLOOKUP(D338,MATRICE_VA,3,FALSE) -> 1789 | H338: 1 | I338: 1 | K338: 1 | L338: 1 | N338: 1
C344: Non | D344: 0020020455 | E344: =VLOOKUP(D344,MATRICE_VA,2,FALSE) -> Mitigeur thermostatique | F344: =VLOOKUP(D344,MATRICE_VA,3,FALSE) -> 134 | H344: 1 | I344: 1 | K344: 1 | L344: 1 | N344: 1
C345: Ajustez les quantités | D345: 0020222637 | E345: =VLOOKUP(D345,MATRICE_VA,2,FALSE) -> Sonde ballon/chauff connecteur | F345: =VLOOKUP(D345,MATRICE_VA,3,FALSE) -> 30 | H345: 1 | I345: 1 | K345: 1 | L345: 1 | N345: 1
B346: PAC | C346: Obligatoire | D346: . | E346: =Calculs!F$100 -> Accessoires ECS : Ballon ECS intégré | F346: =Calculs!E$100 -> . | G346: . | H346: . | I346: . | J346: . | O346: .
B357: PAC | C357: Obligatoire | D357: . | E357: =Calculs!F$101 -> Régulation : MiPro Sense filaire (tactile) | F357: =Calculs!E$101 -> . | G357: . | H357: . | I357: . | J357: . | O357: .
A358: BDD_Commun | C358: Oui | D358: 0020260971 | E358: =VLOOKUP(D358,MATRICE_VA,2,FALSE) -> MiPro Sense | F358: =VLOOKUP(D358,MATRICE_VA,3,FALSE) -> 268 | Y358: 1 | AB358: 1 | AC358: 1 | AD358: 1 | AE358: 1 | AF358: 1 | AG358: 1 | AH358: 1 | AI358: 1 | AJ358: 1 | AK358: 1 | AL358: 1 | AN358: 1 | AO358: 1 | AP358: 1 | AQ358: 1 | AR358: 1 | AS358: 1 | AT358: 1 | AU358: 1 | AV358: 1
C359: Non | D359: 0020260982 | E359: =VLOOKUP(D359,MATRICE_VA,2,FALSE) -> Commande déportée MiPro Sense | F359: 264 | AC359: 1 | AD359: 2 | AF359: 1 | AG359: 2 | AH359: 1 | AI359: 2 | AJ359: 2 | AL359: 1 | AO359: 1 | AP359: 2 | AR359: 1 | AS359: 2 | AT359: 1 | AU359: 2 | AV359: 2
C361: Ajustez les quantités | D361: 0020257510 | E361: Module RED 5 | F361: 280 | AC361: 1 | AD361: 1 | AE361: 1 | AF361: 1 | AG361: 1 | AH361: 1 | AI361: 1 | AJ361: 1 | AL361: 1 | AO361: 1 | AP361: 1 | AQ361: 1 | AR361: 1 | AS361: 1 | AT361: 1 | AU361: 1 | AV361: 1
C362: Ajustez les quantités | D362: 0020257508 | E362: Module RED 3 | F362: 208 | Y362: =$AW362 -> 0 | AB362: =$AW362 -> 0 | AK362: =$AW362 -> 0 | AL362: 0 | AN362: 0 | AW362: =IF(OR(Systeme_PAC_hybride=TRUE,$AW$5>1),1,0) -> 0
C365: Oui | D365: 0020004238 | E365: =VLOOKUP(D365,MATRICE_VA,2,FALSE) -> Sonde ballon/chauffage | F365: 20 | AB365: =$AW365 -> 0 | AC365: 3 | AD365: 3 | AE365: 2 | AF365: 3 | AG365: 4 | AH365: 3 | AI365: 4 | AJ365: 4 | AK365: =$AW365 -> 0 | AL365: 2 | AN365: 1 | AO365: 3 | AP365: 4 | AQ365: 2 | AR365: 3 | AS365: 4 | AT365: 3 | AU365: 4 | AV365: 4 | AW365: =IF($AW$5>1,2,0) -> 0
B378: PAC | C378: Obligatoire | D378: . | E378: =Calculs!F$102 -> Régulation : MiPro Sense Radio (tactile) | F378: =Calculs!E$102 -> . | G378: . | H378: . | I378: . | J378: . | O378: .
C379: Oui | D379: 0020260979 | E379: =VLOOKUP(D379,MATRICE_VA,2,FALSE) -> MiPro Sense radio | F379: =VLOOKUP(D379,MATRICE_VA,3,FALSE) -> 475 | Y379: 1 | AB379: 1 | AC379: 1 | AD379: 1 | AE379: 1 | AF379: 1 | AG379: 1 | AH379: 1 | AI379: 1 | AJ379: 1 | AK379: 1 | AL379: 1 | AM379: 1 | AN379: 1 | AO379: 1 | AP379: 1 | AQ379: 1 | AR379: 1 | AS379: 1 | AT379: 1 | AU379: 1 | AV379: 1
C380: Non | D380: 0020260988 | E380: =VLOOKUP(D380,MATRICE_VA,2,FALSE) -> Commande déport. MiPro Sense R | F380: =VLOOKUP(D380,MATRICE_VA,3,FALSE) -> 359 | AC380: 1 | AD380: 2 | AF380: 1 | AG380: 2 | AH380: 1 | AI380: 2 | AJ380: 2 | AL380: 1 | AM380: 1 | AO380: 1 | AP380: 2 | AR380: 1 | AS380: 2 | AT380: 1 | AU380: 2 | AV380: 2
C382: Ajustez les quantités | D382: 0020257510 | E382: Module RED 5 | F382: =VLOOKUP(D382,MATRICE_VA,3,FALSE) -> 280 | AC382: 1 | AD382: 1 | AE382: 1 | AF382: 1 | AG382: 1 | AH382: 1 | AI382: 1 | AJ382: 1 | AO382: 1 | AP382: 1 | AQ382: 1 | AR382: 1 | AS382: 1 | AT382: 1 | AU382: 1 | AV382: 1
C383: Ajustez les quantités | D383: 0020257508 | E383: Module RED 3 | F383: =VLOOKUP(D383,MATRICE_VA,3,FALSE) -> 208 | Y383: =$AW383 -> 0 | AB383: =$AW383 -> 0 | AK383: =$AW383 -> 0 | AN383: =$AW383 -> 0 | AW383: =IF(OR(Systeme_PAC_hybride=TRUE,$AW$5>1),1,0) -> 0
C386: Oui | D386: 0020004238 | E386: =VLOOKUP(D386,MATRICE_VA,2,FALSE) -> Sonde ballon/chauffage | F386: =VLOOKUP(D386,MATRICE_VA,3,FALSE) -> 20 | AB386: 1 | AC386: 3 | AD386: 4 | AE386: 2 | AF386: 3 | AG386: 4 | AH386: 3 | AI386: 4 | AJ386: 4 | AK386: =$AW386 -> 0 | AN386: 1 | AO386: 3 | AP386: 4 | AQ386: 2 | AR386: 3 | AS386: 4 | AT386: 3 | AU386: 4 | AV386: 4 | AW386: =IF($AW$5>1,2,0) -> 0
B399: PAC | C399: Obligatoire | D399: . | E399: =Calculs!F$103 -> Accessoires Régulation : MiPro | F399: =Calculs!E$103 -> . | G399: . | H399: . | I399: . | J399: . | O399: .
C400: Oui | D400: 0020218373 | E400: =VLOOKUP(D400,MATRICE_VA,2,FALSE) -> MiPro | F400: =VLOOKUP(D400,MATRICE_VA,3,FALSE) -> 229 | Y400: 1 | AB400: 1 | AC400: 1 | AD400: 1 | AE400: 1 | AF400: 1 | AG400: 1 | AH400: 1 | AI400: 1 | AJ400: 1 | AK400: 1 | AN400: 1 | AO400: 1 | AP400: 1 | AQ400: 1 | AR400: 1 | AS400: 1 | AT400: 1 | AU400: 1 | AV400: 1
C401: Oui | D401: 0020218375 | E401: =VLOOKUP(D401,MATRICE_VA,2,FALSE) -> Commande déportée MiPro | F401: 217 | AC401: 1 | AD401: 2 | AF401: 1 | AG401: 2 | AH401: 1 | AI401: 2 | AJ401: 2 | AO401: 1 | AP401: 2 | AR401: 1 | AS401: 2 | AT401: 1 | AU401: 2 | AV401: 2
C402: Oui | D402: 0020257510 | E402: Module RED 5 | F402: 280 | AC402: 1 | AD402: 1 | AE402: 1 | AF402: 1 | AG402: 1 | AH402: 1 | AI402: 1 | AJ402: 1 | AO402: 1 | AP402: 1 | AQ402: 1 | AR402: 1 | AS402: 1 | AT402: 1 | AU402: 1 | AV402: 1
C403: Oui | D403: 0020257508 | E403: Module RED 3 | F403: 208 | Y403: 0 | AB403: 0 | AK403: 0 | AN403: 0
C406: Oui | D406: 0020004238 | E406: =VLOOKUP(D406,MATRICE_VA,2,FALSE) -> Sonde ballon/chauffage | F406: 20 | AB406: 1 | AC406: 2 | AD406: 4 | AE406: 2 | AF406: 3 | AG406: 4 | AH406: 2 | AI406: 4 | AJ406: 4 | AK406: 0 | AN406: 1 | AO406: 2 | AP406: 4 | AQ406: 2 | AR406: 3 | AS406: 4 | AT406: 2 | AU406: 4 | AV406: 4
B420: PAC | C420: Obligatoire | D420: . | E420: =Calculs!D$104 ->  | F420: =Calculs!E$104 ->  | G420: . | H420: . | I420: . | J420: . | O420: .
B441: PAC | C441: Obligatoire | D441: . | E441: =Calculs!D$105 ->  | F441: =Calculs!E$105 ->  | G441: . | H441: . | I441: . | J441: . | O441: . | P441: . | Q441: . | R441: . | S441: . | AW441: .
A442: BDD_Commun
B462: PAC | C462: Obligatoire | D462: . | E462: =Calculs!F$106 -> Accessoires connectivité : MiGo Link | F462: =Calculs!E$106 -> . | G462: . | H462: . | I462: . | J462: . | O462: .
C463: Oui | D463: 0010037345 | E463: =VLOOKUP(D463,MATRICE_VA,2,FALSE) -> MiGo Link | F463: =VLOOKUP(D463,MATRICE_VA,3,FALSE) -> 171 | G463: 1 | H463: 1 | I463: 1 | J463: 1 | K463: 1 | L463: 1 | M463: 1
B473: PAC | C473: Obligatoire | D473: . | E473: =Calculs!F$107 -> Accessoires connectivité : Sans | F473: =Calculs!E$107 -> . | G473: . | H473: . | I473: . | J473: . | O473: .
B484: PAC | C484: Obligatoire | D484: . | E484: =Calculs!D$108 ->  | F484: =Calculs!E$108 ->  | G484: . | H484: . | I484: . | J484: . | O484: . | P484: . | Q484: . | R484: . | S484: .
B495: PAC | C495: Obligatoire | D495: . | E495: =Calculs!D$109 ->  | F495: =Calculs!E$109 ->  | G495: . | H495: . | I495: . | J495: . | O495: . | P495: . | Q495: . | R495: . | S495: .
B506: PAC | C506: Obligatoire | D506: . | E506: =Calculs!D$110 ->  | F506: =Calculs!E$110 ->  | G506: . | H506: . | I506: . | J506: . | O506: . | P506: . | Q506: . | R506: . | S506: .
B517: PAC | C517: Obligatoire | D517: . | E517: =Calculs!F$111 -> Accessoires Bouteille tampon En série externe | F517: =Calculs!E$111 -> . | G517: . | H517: . | I517: . | J517: . | K517: . | L517: . | M517: . | N517: . | O517: . | AW517: .
B518: GeniaAir Split 3 - 230V | C518: Non | D518: 0010034127 | E518: =VLOOKUP($D518,MATRICE_VA,2,FALSE) -> Ballon de découplage 45 litres | F518: =VLOOKUP(D518,MATRICE_VA,3,FALSE) -> 627 | K518: 1 | L518: 1 | M518: 1 | N518: 1 | O518: 1 | T518: 1 | U518: 1 | V518: 1 | W518: 1 | X518: 1
B519: GeniaAir Split 5 - 230V | C519: Non | D519: 0010034127 | E519: Ballon de découplage 45 litres | F519: 627 | K519: 1 | L519: 1 | M519: 1 | N519: 1 | O519: 1 | T519: 1 | U519: 1 | V519: 1 | W519: 1 | X519: 1
B520: GeniaAir Split 7 - 230V | C520: Non | D520: 0010034127 | E520: Ballon de découplage 45 litres | F520: 627 | K520: 1 | L520: 1 | M520: 1 | N520: 1 | O520: 1 | T520: 1 | U520: 1 | V520: 1 | W520: 1 | X520: 1
B521: GeniaAir Split 10 - 230V | C521: Non | D521: 0010034127 | E521: Ballon de découplage 45 litres | F521: 627 | K521: 1 | L521: 1 | M521: 1 | N521: 1 | O521: 1 | T521: 1 | U521: 1 | V521: 1 | W521: 1 | X521: 1
B522: GeniaAir Split 10 - 400V | C522: Non | D522: 0010034127 | E522: Ballon de découplage 45 litres | F522: 627 | K522: 1 | L522: 1 | M522: 1 | N522: 1 | O522: 1 | T522: 1 | U522: 1 | V522: 1 | W522: 1 | X522: 1
B523: GeniaAir Split 12 - 230V | C523: Ajustez les quantités | D523: A prévoir | E523: Ballon de découplage ou volume libre > 60 litres | F523: - | G523: 1 | H523: 1 | I523: 1 | J523: 1 | K523: 1 | L523: 1 | M523: 1 | N523: 1 | O523: 1 | P523: 1 | Q523: 1 | R523: 1 | S523: 1 | T523: 1 | U523: 1 | V523: 1 | W523: 1 | X523: 1
B524: GeniaAir Split 12 - 400V | C524: Ajustez les quantités | D524: A prévoir | E524: Ballon de découplage ou volume libre > 60 litres | F524: - | G524: 1 | H524: 1 | I524: 1 | J524: 1 | K524: 1 | L524: 1 | M524: 1 | N524: 1 | O524: 1 | P524: 1 | Q524: 1 | R524: 1 | S524: 1 | T524: 1 | U524: 1 | V524: 1 | W524: 1 | X524: 1
B528: GeniaAir Split 3 - 230V | C528: Ajustez les quantités | D528: 8000015076 | E528: =VLOOKUP(D528,MATRICE_VA,2,FALSE) -> Ballon tampon WN RW 50/3 B | F528: =VLOOKUP(D528,MATRICE_VA,3,FALSE) -> 615 | G528: 1 | H528: 1 | I528: 1 | J528: 1 | P528: 1 | Q528: 1 | R528: 1 | S528: 1
B529: GeniaAir Split 5 - 230V | C529: Ajustez les quantités | D529: 8000015076 | E529: Ballon tampon WN RW 50/3 B | F529: 615 | G529: 1 | H529: 1 | I529: 1 | J529: 1 | P529: 1 | Q529: 1 | R529: 1 | S529: 1
B530: GeniaAir Split 7 - 230V | C530: Ajustez les quantités | D530: 8000015076 | E530: Ballon tampon WN RW 50/3 B | F530: 615 | G530: 1 | H530: 1 | I530: 1 | J530: 1 | P530: 1 | Q530: 1 | R530: 1 | S530: 1
B531: GeniaAir Split 10 - 230V | C531: Ajustez les quantités | D531: 8000015076 | E531: Ballon tampon WN RW 50/3 B | F531: 615 | G531: 1 | H531: 1 | I531: 1 | J531: 1 | P531: 1 | Q531: 1 | R531: 1 | S531: 1
B532: GeniaAir Split 10 - 400V | C532: Ajustez les quantités | D532: 8000015076 | E532: Ballon tampon WN RW 50/3 B | F532: 615 | G532: 1 | H532: 1 | I532: 1 | J532: 1 | P532: 1 | Q532: 1 | R532: 1 | S532: 1
D533: 0010039990 | E533: Module Z 20 C | F533: 164 | Z533: 1 | AL533: 1
B538: PAC | C538: Obligatoire | D538: . | E538: =Calculs!F$112 -> Accessoires Bouteille tampon Tampon série 18L | F538: =Calculs!E$112 -> . | G538: . | H538: . | I538: . | J538: . | K538: . | L538: . | M538: . | N538: . | O538: .
B539: GeniaAir Split 3 - 230V | C539: Non | D539: 0020269274 | E539: =VLOOKUP($D539,MATRICE_VA,2,FALSE) -> Réservoir 18 litres - GeniaSet | F539: =VLOOKUP(D539,MATRICE_VA,3,FALSE) -> 560 | G539: 1 | K539: 1 | L539: 1 | M539: 1 | N539: 1 | O539: 1 | T539: 1 | U539: 1 | V539: 1 | W539: 1 | X539: 1
B540: GeniaAir Split 5 - 230V | C540: Non | D540: 0020269274 | E540: Réservoir 18 litres - GeniaSet | F540: 560 | G540: 1 | K540: 1 | L540: 1 | M540: 1 | N540: 1 | O540: 1 | T540: 1 | U540: 1 | V540: 1 | W540: 1 | X540: 1
B541: GeniaAir Split 7 - 230V | C541: Non | D541: 0020269274 | E541: Réservoir 18 litres - GeniaSet | F541: 560 | G541: 1 | K541: 1 | L541: 1 | M541: 1 | N541: 1 | O541: 1 | T541: 1 | U541: 1 | V541: 1 | W541: 1 | X541: 1
B559: PAC | C559: Obligatoire | D559: . | E559: =Calculs!D$113 -> Accessoires Bouteille tampon En parallèle | F559: =Calculs!E$113 -> . | G559: . | H559: . | I559: . | J559: . | O559: . | P559: . | Q559: . | R559: . | S559: .
B560: GeniaAir Split 3 - 230V | C560: Non | D560: 0010034127 | E560: =VLOOKUP($D560,MATRICE_VA,2,FALSE) -> Ballon de découplage 45 litres | F560: =VLOOKUP(D560,MATRICE_VA,3,FALSE) -> 627 | K560: 1 | L560: 1 | M560: 1 | N560: 1 | O560: 1
B561: GeniaAir Split 5 - 230V | C561: Non | D561: 0010034127 | E561: Ballon de découplage 45 litres | F561: 627 | K561: 1 | L561: 1 | M561: 1 | N561: 1 | O561: 1
B562: GeniaAir Split 7 - 230V | C562: Non | D562: 0010034127 | E562: Ballon de découplage 45 litres | F562: 627 | K562: 1 | L562: 1 | M562: 1 | N562: 1 | O562: 1
B563: GeniaAir Split 10 - 230V | C563: Non | D563: 0010034127 | E563: Ballon de découplage 45 litres | F563: 627 | K563: =$AW563 -> 0 | L563: 0 | M563: 0 | N563: 0 | O563: 0
B564: GeniaAir Split 10 - 400V | C564: Non | D564: 0010034127 | E564: Ballon de découplage 45 litres | F564: 627 | K564: 0 | L564: 0 | M564: 0 | N564: 0 | O564: 0
B565: GeniaAir Split 12 - 230V | C565: Ajustez les quantités | D565: A prévoir | E565: Ballon de découplage ou volume libre > 60 litres | F565: - | G565: 0 | H565: 0 | I565: 0 | J565: 0 | K565: 0 | L565: 0 | M565: 0 | N565: 0 | O565: 0
B566: GeniaAir Split 12 - 400V | C566: Ajustez les quantités | D566: A prévoir | E566: Ballon de découplage ou volume libre > 60 litres | F566: - | G566: 0 | H566: 0 | I566: 0 | J566: 0 | K566: 0 | L566: 0 | M566: 0 | N566: 0 | O566: 0
B567: GeniaAir Split 3 - 230V | C567: Ajustez les quantités | D567: 8000015076 | E567: =VLOOKUP(D567,MATRICE_VA,2,FALSE) -> Ballon tampon WN RW 50/3 B | F567: =VLOOKUP(D567,MATRICE_VA,3,FALSE) -> 615 | G567: 1 | H567: 1 | I567: 1 | J567: 1
B568: GeniaAir Split 5 - 230V | C568: Ajustez les quantités | D568: 8000015076 | E568: Ballon tampon WN RW 50/3 B | F568: 615 | G568: 1 | H568: 1 | I568: 1 | J568: 1
B569: GeniaAir Split 7 - 230V | C569: Ajustez les quantités | D569: 8000015076 | E569: Ballon tampon WN RW 50/3 B | F569: 615 | G569: 1 | H569: 1 | I569: 1 | J569: 1
B570: GeniaAir Split 10 - 230V | C570: Ajustez les quantités | D570: 8000015076 | E570: Ballon tampon WN RW 50/3 B | F570: 615 | G570: =$AW570 -> 1 | H570: 1 | I570: 1 | J570: 1 | K570: 1 | L570: 1 | M570: 1 | N570: 1 | O570: 1 | AW570: =IF($AW$5=1,1,0) -> 1
B571: GeniaAir Split 10 - 400V | C571: Ajustez les quantités | D571: 8000015076 | E571: Ballon tampon WN RW 50/3 B | F571: 615 | G571: 1 | H571: 1 | I571: 1 | J571: 1 | K571: 1 | L571: 1 | M571: 1 | N571: 1 | O571: 1 | AW571: =IF($AW$5=1,1,0) -> 1
C572: Ajustez les quantités | D572: A prévoir | E572: Volume tampon minimal de 100 l | F572: - | G572: 0 | H572: 0 | I572: 0 | J572: 0 | K572: 0 | L572: 0 | M572: 0 | N572: 0 | O572: 0 | AW572: =IF(AND(_xlfn.NUMBERVALUE($AW$5)>1,_xlfn.NUMBERVALUE($AW$5)<4)=TRUE,1,0) -> 0
C573: Ajustez les quantités | D573: A prévoir | E573: Volume tampon minimal de 200 l | F573: - | G573: 0 | H573: 0 | I573: 0 | J573: 0 | K573: 0 | L573: 0 | M573: 0 | N573: 0 | O573: 0 | AW573: =IF(AND(_xlfn.NUMBERVALUE($AW$5)>3,_xlfn.NUMBERVALUE($AW$5)<8)=TRUE,1,0) -> 0
C575: Ajustez les quantités | D575: A prévoir | E575: Zone 1 Circulateur (après bouteille ou ballon tampon) | F575: - | AN575: 1 | AO575: 1 | AT575: 1
C576: Ajustez les quantités | D576: A prévoir | E576: Zone 2 Circulateur (après bouteille ou ballon tampon) | F576: - | AO576: 1
C577: Ajustez les quantités | D577: A prévoir | E577: Zone 2 Circulateur et vanne 3 voies motorisées (230 V) | F577: - | AT577: 1
B580: PAC | C580: Obligatoire | D580: . | E580: =Calculs!D$114 -> Accessoires Bouteille tampon En parallèle intégré | F580: =Calculs!E$114 -> . | G580: . | H580: . | I580: . | J580: . | O580: . | P580: . | Q580: . | R580: . | S580: .
C581: Oui | D581: 0020188585 | E581: =VLOOKUP($D581,MATRICE_VA,2,FALSE) -> Module L 10 | F581: =VLOOKUP(D581,MATRICE_VA,3,FALSE) -> 539 | AN581: 1 | AO581: 1 | AT581: 1
C582: Oui | D582: 0020188587 | E582: Extension L 10 | F582: 252 | AO582: 1
C583: Oui | D583: 0020188586 | E583: Extension L 11 | F583: 399 | AT583: 1
C584: Ajustez les quantités | D584: A prévoir | E584: Volume d'eau en circulation libre > 18 litres | F584: - | AN584: 1 | AO584: 1 | AT584: 1
C585: Ajustez les quantités | D585: A prévoir | E585: Volume d'eau en circulation libre > 18 litres | F585: - | AN585: 1 | AO585: 1 | AT585: 1
C586: Ajustez les quantités | D586: A prévoir | E586: Volume d'eau en circulation libre > 18 litres | F586: - | AN586: 1 | AO586: 1 | AT586: 1
C587: Ajustez les quantités | D587: A prévoir | E587: Volume d'eau en circulation libre > 45 litres | F587: - | AN587: 1 | AO587: 1 | AT587: 1
C588: Ajustez les quantités | D588: A prévoir | E588: Volume d'eau en circulation libre > 45 litres | F588: - | AN588: 1 | AO588: 1 | AT588: 1
C589: Ajustez les quantités | D589: A prévoir | E589: Volume d'eau en circulation libre > 60 litres | F589: - | AN589: 1 | AO589: 1 | AT589: 1
C590: Ajustez les quantités | D590: A prévoir | E590: Volume d'eau en circulation libre > 60 litres | F590: - | AN590: 1 | AO590: 1 | AT590: 1
B601: PAC | C601: Obligatoire | D601: . | E601: =Calculs!D$115 ->  | F601: =Calculs!E$115 ->  | G601: . | H601: . | I601: . | J601: . | O601: . | P601: . | Q601: . | R601: . | S601: .
B622: PAC | C622: Obligatoire | D622: . | E622: =Calculs!F$116 ->  | F622: =Calculs!G$116 ->  | G622: . | H622: . | I622: . | J622: . | O622: .
B633: PAC | C633: Obligatoire | D633: . | E633: =Calculs!F$117 ->  | F633: =Calculs!G$117 ->  | G633: . | H633: . | I633: . | J633: . | O633: .
B644: PAC | C644: Obligatoire | D644: . | E644: =Calculs!D$118 ->  | F644: =Calculs!E$118 ->  | G644: . | H644: . | I644: . | J644: . | O644: . | P644: . | Q644: . | R644: . | S644: .
B655: PAC | C655: Obligatoire | D655: . | E655: =Calculs!D$119 ->  | F655: =Calculs!E$119 ->  | G655: . | H655: . | I655: . | J655: . | O655: . | P655: . | Q655: . | R655: . | S655: .
B666: PAC | C666: Obligatoire | D666: . | E666: =Calculs!D$120 ->  | F666: =Calculs!E$120 ->  | G666: . | H666: . | I666: . | J666: . | O666: . | P666: . | Q666: . | R666: . | S666: .
B677: PAC | C677: Obligatoire | D677: . | E677: =Calculs!F$121 -> Accessoires Supports unité extérieure : Plots anti-vibratiles en caoutchouc (x4) | F677: =Calculs!E$121 -> . | G677: . | H677: . | I677: . | J677: . | O677: .
C678: Non | D678: 0020252872 | E678: =VLOOKUP(D678,MATRICE_VA,2,FALSE) -> Plots anti-vibratiles (x4) | F678: =VLOOKUP(D678,MATRICE_VA,3,FALSE) -> 63 | G678: =_xlfn.NUMBERVALUE($AW678) -> 1 | H678: 1 | I678: 1 | J678: 1 | K678: 1 | L678: 1 | M678: 1 | N678: 1 | O678: 1 | AW678: =_xlfn.NUMBERVALUE($AW$5) -> 1
B688: PAC | C688: Obligatoire | D688: . | E688: =Calculs!F$122 -> Accessoires Supports unité extérieure : Support anti-vibratiles en caoutchouc | F688: =Calculs!E$122 -> . | G688: . | H688: . | I688: . | J688: . | O688: .
C689: Non | D689: 0020252059 | E689: =VLOOKUP(D689,MATRICE_VA,2,FALSE) -> Pieds anti-vibratiles 60 cm | F689: =VLOOKUP(D689,MATRICE_VA,3,FALSE) -> 125 | G689: =_xlfn.NUMBERVALUE($AW689) -> 1 | H689: 1 | I689: 1 | J689: 1 | K689: 1 | L689: 1 | M689: 1 | N689: 1 | O689: 1 | AW689: =_xlfn.NUMBERVALUE($AW$5) -> 1
B699: PAC | C699: Obligatoire | D699: . | E699: =Calculs!F$123 -> Accessoires Supports unité extérieure : Réhausse anti-neige (40 cm) | F699: =Calculs!E$123 -> . | G699: . | H699: . | I699: . | J699: . | O699: . | P699: . | Q699: . | R699: . | S699: .
C700: Non | D700: 0010027985 | E700: =VLOOKUP(D700,MATRICE_VA,2,FALSE) -> Réhausse anti-neige (+plots) | F700: =VLOOKUP(D700,MATRICE_VA,3,FALSE) -> 401 | G700: =_xlfn.NUMBERVALUE($AW700) -> 1 | H700: 1 | I700: 1 | J700: 1 | K700: 1 | L700: 1 | M700: 1 | N700: 1 | O700: 1 | P700: 1 | Q700: 1 | R700: 1 | S700: 1 | T700: 1 | U700: 1 | V700: 1 | W700: 1 | X700: 1 | AW700: =_xlfn.NUMBERVALUE($AW$5) -> 1
B710: PAC | C710: Obligatoire | D710: . | E710: =Calculs!F$124 -> Accessoires Supports unité extérieure : Support mural pour mur isolé (PAC < 10 kW) | F710: =Calculs!E$124 -> . | G710: . | H710: . | I710: . | J710: . | O710: . | P710: . | Q710: . | R710: . | S710: .
C711: Non | D711: 0020252046 | E711: =VLOOKUP(D711,MATRICE_VA,2,FALSE) -> Support mural pour mur isolé | F711: =VLOOKUP(D711,MATRICE_VA,3,FALSE) -> 469 | G711: =_xlfn.NUMBERVALUE($AW711) -> 1 | H711: 1 | I711: 1 | J711: 1 | K711: 1 | L711: 1 | M711: 1 | N711: 1 | O711: 1 | AW711: =_xlfn.NUMBERVALUE($AW$5) -> 1
B721: PAC | C721: Obligatoire | D721: . | E721: =Calculs!D$125 -> Accessoires Supports unité extérieure : Support mural standard (PAC < 10 kW) | F721: =Calculs!E$125 -> . | G721: . | H721: . | I721: . | J721: . | O721: . | P721: . | Q721: . | R721: . | S721: .
C722: Non | D722: 0020252047 | E722: =VLOOKUP(D722,MATRICE_VA,2,FALSE) -> Support mural standard | F722: =VLOOKUP(D722,MATRICE_VA,3,FALSE) -> 262 | G722: =_xlfn.NUMBERVALUE($AW722) -> 1 | H722: 1 | I722: 1 | J722: 1 | K722: 1 | L722: 1 | M722: 1 | N722: 1 | O722: 1 | AW722: =_xlfn.NUMBERVALUE($AW$5) -> 1
B732: PAC | C732: Obligatoire | D732: . | E732: Mise en service | F732: . | G732: . | H732: . | I732: . | J732: . | K732: . | L732: . | M732: . | N732: . | O732: . | AW732: .
C733: Oui | D733: 0010028532 | E733: =VLOOKUP(D733,MATRICE_VA,2,FALSE) -> Mise en service GeniaAir Split, GeniaAir Tek (à commander sur e-Shop) | F733: =VLOOKUP(D733,MATRICE_VA,3,FALSE) -> 350 | G733: =$AW733 -> 1 | H733: 1 | I733: 1 | J733: 1 | K733: 1 | L733: 1 | M733: 1 | N733: 1 | O733: 1 | AW733: =_xlfn.NUMBERVALUE($AW$5) -> 1
B743: PAC | C743: Obligatoire | D743: . | E743: Matériel à prévoir | F743: . | G743: . | H743: . | I743: . | J743: . | O743: .
C744: Ajustez les quantités | D744: A prévoir | E744: Filtre à tamis sur le retour PAC | F744: - | G744: =$AW744 -> 1 | H744: 1 | I744: 1 | J744: 1 | K744: 1 | L744: 1 | M744: 1 | N744: 1 | O744: 1 | AW744: =_xlfn.NUMBERVALUE($AW$5) -> 1
C745: Ajustez les quantités | D745: A prévoir | E745: Soupape différentielle (repère 9d) | F745: - | G745: 1 | J745: 1 | M745: 1
C746: Ajustez les quantités | D746: A prévoir | E746: Electrovannes 230 V~ (repère 9b) | F746: -
C747: Ajustez les quantités | D747: A prévoir | E747: Vase expansion, soupape, manomètre. | F747: - | G747: 1 | H747: 1 | I747: 1 | J747: 1 | K747: 1 | L747: 1 | M747: 1
C748: Ajustez les quantités | D748: A prévoir | E748: En option circulateur bouclage sanitaire, vase expansion sanitaire… | F748: - | J748: 1 | K748: 1 | L748: 1 | M748: 1
B749: GeniaAir Split 3 - 230V | C749: Ajustez les quantités | D749: A prévoir | E749: Volume tampon minimal de 18 l | F749: - | G749: 1 | H749: 1 | I749: 1 | J749: 1 | K749: 1 | L749: 1 | M749: 1
B750: GeniaAir Split 5 - 230V | C750: Ajustez les quantités | D750: A prévoir | E750: Volume tampon minimal de 18 l | F750: - | G750: 1 | H750: 1 | I750: 1 | J750: 1 | K750: 1 | L750: 1 | M750: 1
B751: GeniaAir Split 7 - 230V | C751: Ajustez les quantités | D751: A prévoir | E751: Volume tampon minimal de 18 l | F751: - | G751: 1 | H751: 1 | I751: 1 | J751: 1 | K751: 1 | L751: 1 | M751: 1
B752: GeniaAir Split 10 - 230V | C752: Ajustez les quantités | D752: A prévoir | E752: Volume tampon minimal de 35 l | F752: - | G752: 1 | H752: 1 | I752: 1 | J752: 1 | K752: 1 | L752: 1 | M752: 1
B753: GeniaAir Split 10 - 400V | C753: Ajustez les quantités | D753: A prévoir | E753: Volume tampon minimal de 35 l | F753: - | G753: =$AW753 -> 0 | H753: 0 | I753: 0 | J753: 0 | K753: 0 | L753: 0 | M753: 0 | N753: 0 | O753: 0
B754: GeniaAir Split 12 - 230V | C754: Ajustez les quantités | D754: A prévoir | E754: Volume tampon minimal de 60 l | F754: - | G754: 1 | H754: 1 | I754: 1 | J754: 1 | K754: 1 | L754: 1 | M754: 1 | AW754: =_xlfn.VALUETOTEXT(IF($AW$5>1,0,1)) -> 1
B755: GeniaAir Split 12 - 400V | C755: Ajustez les quantités | D755: A prévoir | E755: Volume tampon minimal de 60 l | F755: - | G755: =$AW755 -> 1 | H755: 1 | I755: 1 | J755: 1 | K755: 1 | L755: 1 | M755: 1 | N755: 1 | O755: 1 | AW755: =_xlfn.VALUETOTEXT(IF($AW$5>1,0,1)) -> 1

Sheet BDD_G1 (hidden)
M1: =COLUMN() -> 13
D2: =Calculs!D93 -> INSTALLATIONS ET ACCESSOIRES pour la gamme BDD_G1 : GeniaAir Max | G2: Q-commun | H2: EI-commun | I2: commun-EI | J2: commun | K2: H-EI-commun | L2: H-commun-EI | M2: H-commun | N2: Hext-commun-EI | O2: Hext-commun | P2: Q-E-commun | Q2: EI-E-commun | R2: E-commun-EI | S2: E-commun | T2: E-H-EI-commun | U2: E-H-commun-EI | V2: E-H-commun | W2: E-Hext-commun-EI | X2: E-Hext-commun | Y2: D | Z2: D2 | AA2: DM | AB2: B-D | AC2: B-D2 | AD2: B-D3 | AE2: B-M | AF2: B-M2 | AG2: B-M3 | AH2: B-DM | AI2: B-D2M | AJ2: B-DM2 | AK2: Q-D | AL2: Q-D2 | AM2: Q-DM | AN2: Q-B-D | AO2: Q-B-D2 | AP2: Q-B-D3 | AQ2: Q-B-M | AR2: Q-B-M2 | AS2: Q-B-M3 | AT2: Q-B-DM | AU2: Q-B-D2M | AV2: Q-B-DM2 | AW2: Cascade de PAC
G3: =COLUMN()-6 -> 1 | H3: 2 | I3: 3 | J3: 4 | K3: 5 | L3: 6 | M3: 7 | N3: 8 | O3: 9 | P3: 10 | Q3: 11 | R3: 12 | S3: 13 | T3: 14 | U3: 15 | V3: 16 | W3: 17 | X3: =COLUMN() -> 24 | Y3: =COLUMN()-24 -> 1 | AB3: =COLUMN()-24 -> 4 | AC3: 5 | AD3: 6 | AE3: 7 | AF3: 8 | AG3: 9 | AH3: 10 | AI3: 11 | AJ3: 12 | AK3: 13 | AN3: =COLUMN()-24 -> 16 | AO3: 17 | AP3: 18 | AQ3: 19 | AR3: 20 | AS3: 21 | AT3: 22 | AU3: 23 | AV3: 24
E4: ="Recherche la configuration >> "&Calculs!$C$2020&" << =>" -> Recherche la configuration >> Colonne << => | F4: Schéma | G4: Colonne | H4: Ballon ECS avant Bouteille | I4: Ballon ECS aprés Bouteille | J4: Chauffage Seul | K4: Hybride et ballon ECS avant Bouteille | L4: Hybride et ballon ECS aprés Bouteille | M4: Hybride | N4: Hybride non Ebus et ballon ECS aprés Bouteille | O4: Hybride non Ebus chauffage Seul | P4: Colonne avec echangeur glycol | Q4: Ballon ECS avant Bouteille avec echangeur glycol | R4: Ballon ECS aprés Bouteille avec echangeur glycol | S4: Chauffage Seul avec echangeur glycol | T4: Hybride et ballon ECS avant Bouteille avec echangeur glycol | U4: Hybride et ballon ECS aprés Bouteille avec echangeur glycol | V4: Hybride avec echangeur glycol | W4: Hybride non Ebus et ballon ECS aprés Bouteille avec echangeur glycol | X4: Hybride non Ebus chauffage Seul avec echangeur glycol | Y4: circuit Direct | Z4: 2 circuits directs | AA4: circuit direct et mélangé | AB4: circuit direct sur bouteille | AC4: 2 circuits directs sur bouteille | AD4: 3 circuits directs sur bouteille | AE4: circuit mélangé sur bouteille | AF4: 2 circuits mélangés sur bouteille | AG4: 3 circuits mélangés sur bouteille | AH4: circuit direct et mélangé sur bouteille | AI4: 2 circuits directs et 1 mélangé sur bouteille | AJ4: 1 circuit direct et 2 mélangés sur bouteille | AK4: circuit Direct | AL4: 2 circuits directs | AM4: circuit direct et mélangé | AN4: circuit direct sur bouteille | AO4: 2 circuits directs sur bouteille | AP4: 3 circuits directs sur bouteille | AQ4: circuit mélangé sur bouteille | AR4: 2 circuits mélangés sur bouteille | AS4: 3 circuits mélangés sur bouteille | AT4: circuit direct et mélangé sur bouteille | AU4: 2 circuits directs et 1 mélangé sur bouteille | AV4: 1 circuit direct et 2 mélangés sur bouteille | AW4: Nombre de PAC valeur à multipliers au accessoires
B5: Vers PARAMETRAGE | F5: Appoint | G5: Appoint interne | H5: Electrique | I5: Electrique | J5: Electrique | K5: Chaudière neuve | L5: Chaudière neuve | M5: Chaudière neuve | N5: Chaudière existante | O5: Chaudière existante | P5: Appoint interne | Q5: Electrique | R5: Electrique | S5: Electrique | T5: Chaudière neuve | U5: Chaudière neuve | V5: Chaudière neuve | W5: Chaudière existante | X5: Chaudière existante | AW5: =_xlfn.NUMBERVALUE(Calculs!$C$2179) -> 1
E6: ="Recherche la configuration >> "&Calculs!G2086&" << =>" -> Recherche la configuration >> Q-B-D << => | F6: Mode gestion | G6: Simultané | H6: Simultané | I6: Simultané | J6: Simultané | K6: Simultané optimisé | L6: Simultané optimisé | M6: Simultané optimisé | N6: Simultané optimisé | O6: Simultané optimisé | P6: Simultané | Q6: Simultané | R6: Simultané | S6: Simultané | T6: Simultané optimisé | U6: Simultané optimisé | V6: Simultané optimisé | W6: Simultané optimisé | X6: Simultané optimisé
F7: ECS | G7: Var. impossible | H7: Var. possible | I7: Var. possible | J7: Var. possible | K7: Var. possible | L7: Var. possible | M7: Var. impossible | N7: Var. impossible | O7: Var. possible | P7: Var. possible | Q7: Var. possible | R7: Var. possible | S7: Var. possible | T7: Var. impossible | U7: Var. possible | V7: Var. impossible | W7: Var. possible | X7: Var. impossible
F8: =Calculs!D19 -> Régulation : | G8: Var. possible | H8: Var. possible | I8: Var. possible | J8: Var. possible | K8: Var. possible | L8: Var. possible | M8: Var. possible | N8: Var. possible | O8: Var. possible | P8: Var. possible | Q8: Var. possible | R8: Var. possible | S8: Var. possible | T8: Var. possible | U8: Var. possible | V8: Var. possible | W8: Var. possible | X8: Var. possible
E9: Dénomination de la colonne | F9: =Calculs!D20 -> Connectivité : | G9: Var. possible | H9: Var. possible | I9: Var. possible | J9: Var. possible | K9: Var. possible | L9: Var. possible | M9: Var. possible | N9: Var. possible | O9: Var. possible | P9: Var. possible | Q9: Var. possible | R9: Var. possible | S9: Var. possible | T9: Var. possible | U9: Var. possible | V9: Var. possible | W9: Var. possible | X9: Var. possible
E10: Genia Hybrid Max | F10: =Calculs!D21 -> Bouteille tampon | G10: Var. possible | H10: Var. possible | I10: Var. possible | J10: Var. possible | K10: Var. possible | L10: Var. possible | M10: Var. possible | N10: Var. possible | O10: Var. possible | P10: Var. possible | Q10: Var. possible | R10: Var. possible | S10: Var. possible | T10: Var. possible | U10: Var. possible | V10: Var. possible | W10: Var. possible | X10: Var. possible
E11: Dénomination de la colonne | F11: =Calculs!D22 -> Découplage glycol : | G11: Var. possible | H11: Var. possible | I11: Var. possible | J11: Var. possible | K11: Var. possible | L11: Var. possible | M11: Var. possible | N11: Var. possible | O11: Var. possible | P11: Var. possible | Q11: Var. possible | R11: Var. possible | S11: Var. possible | T11: Var. possible | U11: Var. possible | V11: Var. possible | W11: Var. possible | X11: Var. possible
E12: GeniaSet Max | F12: =Calculs!D23 -> Supports unité extérieure : | G12: Var. possible | H12: Var. possible | I12: Var. possible | J12: Var. possible | K12: Var. possible | L12: Var. possible | M12: Var. possible | N12: Var. possible | O12: Var. possible | P12: Var. possible | Q12: Var. possible | R12: Var. possible | S12: Var. possible | T12: Var. possible | U12: Var. possible | V12: Var. possible | W12: Var. possible | X12: Var. possible
F13: .
D14: Réf. | E14: Dénomination | F14: PU HT
D15: . | E15: Pompes à chaleur de la gamme | F15: . | G15: . | H15: . | I15: . | J15: . | K15: . | L15: . | M15: . | N15: . | O15: . | P15: . | Q15: . | R15: . | S15: . | U15: . | V15: . | W15: . | X15: . | Y15: . | AB15: . | AC15: . | AD15: . | AE15: . | AF15: . | AG15: . | AH15: . | AI15: . | AJ15: . | AK15: . | AN15: . | AO15: . | AP15: . | AQ15: . | AR15: . | AS15: . | AT15: . | AU15: . | AV15: . | AW15: .
D16: 0010031692 | E16: GeniaAir Max 4 - 230 V | F16: =VLOOKUP(D16,MATRICE_VA,3,FALSE) -> 6494 | G16: 1 | H16: 1 | I16: 1 | J16: 1 | K16: 1 | L16: 1 | M16: 1 | N16: 1 | O16: 1 | P16: 1 | Q16: 1 | R16: 1 | S16: 1 | T16: 1 | U16: 1 | V16: 1 | W16: 1 | X16: 1 | AW16: 1
D17: 0010031693 | E17: GeniaAir Max 5 - 230 V | F17: 7200 | G17: 1 | H17: 1 | I17: 1 | J17: 1 | K17: 1 | L17: 1 | M17: 1 | N17: 1 | O17: 1 | P17: 1 | Q17: 1 | R17: 1 | S17: 1 | T17: 1 | U17: 1 | V17: 1 | W17: 1 | X17: 1 | AW17: 1
D18: 0010031695 | E18: GeniaAir Max 8 - 230 V | F18: 9726 | G18: 1 | H18: 1 | I18: 1 | J18: 1 | K18: 1 | L18: 1 | M18: 1 | N18: 1 | O18: 1 | P18: 1 | Q18: 1 | R18: 1 | S18: 1 | T18: 1 | U18: 1 | V18: 1 | W18: 1 | X18: 1 | AW18: 1
D19: 0010031696 | E19: GeniaAir Max 12 - 230 V | F19: 11689 | G19: 1 | H19: 1 | I19: 1 | J19: 1 | K19: 1 | L19: 1 | M19: 1 | N19: 1 | O19: 1 | P19: 1 | Q19: 1 | R19: 1 | S19: 1 | T19: 1 | U19: 1 | V19: 1 | W19: 1 | X19: 1 | AW19: 1
D20: 0010031697 | E20: GeniaAir Max 12 - 400 V | F20: 12057 | G20: =$AW20 -> 1 | H20: 1 | I20: 1 | J20: 1 | K20: 1 | L20: 1 | M20: 1 | N20: 1 | O20: 1 | P20: 1 | Q20: 1 | R20: 1 | S20: 1 | T20: 1 | U20: 1 | V20: 1 | W20: 1 | X20: =$AW20 -> 1 | AW20: =_xlfn.NUMBERVALUE($AW$5) -> 1
D21: 0010031698 | E21: GeniaAir Max 15 - 230 V | F21: 12397 | G21: 1 | H21: 1 | I21: 1 | J21: 1 | K21: 1 | L21: 1 | M21: 1 | N21: 1 | O21: 1 | P21: 1 | Q21: 1 | R21: 1 | S21: 1 | T21: 1 | U21: 1 | V21: 1 | W21: 1 | X21: 1 | AW21: 1
D22: 0010031699 | E22: GeniaAir Max 15 - 400 V | F22: 12788 | G22: =$AW22 -> 1 | H22: 1 | I22: 1 | J22: 1 | K22: 1 | L22: 1 | M22: 1 | N22: 1 | O22: 1 | P22: 1 | Q22: 1 | R22: 1 | S22: 1 | T22: 1 | U22: 1 | V22: 1 | W22: 1 | X22: 1 | AW22: =_xlfn.NUMBERVALUE($AW$5) -> 1
B30: PAC | C30: Puissance | D30: . | E30: =Paramétrage!L155 -> Appoint électrique double service | F30: . | G30: . | H30: . | I30: . | J30: . | O30: . | P30: . | Q30: . | R30: . | S30: . | Y30: . | AB30: . | AC30: . | AD30: . | AE30: . | AF30: . | AG30: . | AH30: . | AI30: . | AJ30: . | AK30: . | AN30: . | AO30: . | AP30: . | AQ30: . | AR30: . | AS30: . | AT30: . | AU30: . | AV30: .
B31: GeniaAir Max 4 - 230 V | C31: 5.4 | D31: 0010023615 | E31: Module hydraulique mural double service | F31: =VLOOKUP(D31,MATRICE_VA,3,FALSE) -> 2500 | H31: 1 | I31: 1 | J31: 1 | Q31: 1 | R31: 1 | S31: 1 | AW31: 1
B32: GeniaAir Max 5 - 230 V | C32: 5.4 | D32: 0010023615 | E32: Module hydraulique mural double service | F32: 2500 | H32: 1 | I32: 1 | J32: 1 | Q32: 1 | R32: 1 | S32: 1 | AW32: 1
B33: GeniaAir Max 8 - 230 V | C33: 5.4 | D33: 0010023615 | E33: Module hydraulique mural double service | F33: 2500 | H33: 1 | I33: 1 | J33: 1 | Q33: 1 | R33: 1 | S33: 1 | AW33: 1
B34: GeniaAir Max 12 - 230 V | C34: 5.4 | D34: 0010023615 | E34: Module hydraulique mural double service | F34: 2500 | H34: 1 | I34: 1 | J34: 1 | Q34: 1 | R34: 1 | S34: 1 | AW34: 1
B35: GeniaAir Max 12 - 400 V | C35: 8.9 | D35: 0010023615 | E35: Module hydraulique mural double service | F35: 2500 | H35: 1 | I35: 1 | J35: 1 | Q35: 1 | R35: 1 | S35: 1 | AW35: 1
B36: GeniaAir Max 15 - 230 V | C36: 5.4 | D36: 0010023615 | E36: Module hydraulique mural double service | F36: 2500 | H36: 1 | I36: 1 | J36: 1 | Q36: 1 | R36: 1 | S36: 1 | AW36: 1
B37: GeniaAir Max 15 - 400 V | C37: 8.9 | D37: 0010023615 | E37: Module hydraulique mural double service | F37: 2500 | H37: 1 | I37: 1 | J37: 1 | Q37: 1 | R37: 1 | S37: 1 | AW37: 1
B45: PAC | C45: Puissance | D45: . | E45: =Paramétrage!M155 -> Appoint électrique | F45: . | G45: . | H45: . | I45: . | J45: . | O45: . | P45: . | Q45: . | R45: . | S45: .
B46: GeniaAir Max 4 - 230 V | C46: 6 | D46: 0020146366 | E46: Module électrique chauffage seul | F46: =VLOOKUP(D46,MATRICE_VA,3,FALSE) -> 602 | H46: 1 | I46: 1 | J46: 1 | Q46: 1 | R46: 1 | S46: 1
B47: GeniaAir Max 5 - 230 V | C47: 6 | D47: 0020146366 | E47: Module électrique chauffage seul | F47: 602 | H47: 1 | I47: 1 | J47: 1 | Q47: 1 | R47: 1 | S47: 1
B48: GeniaAir Max 8 - 230 V | C48: 6 | D48: 0020146366 | E48: Module électrique chauffage seul | F48: 602 | H48: 1 | I48: 1 | J48: 1 | Q48: 1 | R48: 1 | S48: 1
B49: GeniaAir Max 12 - 230 V | C49: 6 | D49: 0020146366 | E49: Module électrique chauffage seul | F49: 602 | H49: 1 | I49: 1 | J49: 1 | Q49: 1 | R49: 1 | S49: 1
B50: GeniaAir Max 12 - 400 V | C50: 6 | D50: 0020146366 | E50: Module électrique chauffage seul | F50: 602 | H50: 1 | I50: 1 | J50: 1 | Q50: 1 | R50: 1 | S50: 1
B51: GeniaAir Max 15 - 230 V | C51: 6 | D51: 0020146366 | E51: Module électrique chauffage seul | F51: 602 | H51: 1 | I51: 1 | J51: 1 | Q51: 1 | R51: 1 | S51: 1
B52: GeniaAir Max 15 - 400 V | C52: 6 | D52: 0020146366 | E52: Module électrique chauffage seul | F52: 602 | H52: 1 | I52: 1 | J52: 1 | Q52: 1 | R52: 1 | S52: 1
D53: 0010031650 | E53: Module interface PAC HPIM SD | F53: 266 | H53: 1 | I53: 1 | J53: 1 | Q53: 1 | R53: 1 | S53: 1 | AW53: =_xlfn.NUMBERVALUE($AW$5) -> 1
C60: Puissance | D60: . | E60: Chaudière | F60: . | G60: . | H60: . | I60: . | J60: . | O60: . | P60: . | Q60: . | R60: . | S60: .
E61: chaudière | F61: 0 | K61: 1 | L61: 1 | M61: 1 | T61: 1 | U61: 1 | V61: 1
D62: . | E62: Accessoires chaudière | F62: . | G62: . | H62: . | I62: . | J62: . | K62: . | L62: . | M62: . | N62: . | O62: . | P62: . | Q62: . | R62: . | S62: . | T62: . | U62: . | V62: . | W62: . | X62: .
B75: PAC | C75: Obligatoire | D75: . | E75: Préparateur ECS | F75: . | G75: . | H75: . | I75: . | J75: . | O75: . | P75: . | Q75: . | R75: . | S75: . | Y75: . | AB75: . | AC75: . | AD75: . | AE75: . | AF75: .
B90: PAC | C90: Obligatoire | D90: . | E90: Accessoires hydrauliques et électriques | F90: . | G90: . | H90: . | I90: . | J90: . | O90: . | P90: . | Q90: . | R90: . | S90: . | Y90: . | AB90: . | AC90: . | AD90: . | AE90: . | AF90: . | AG90: . | AH90: . | AI90: . | AJ90: . | AK90: . | AN90: . | AO90: . | AP90: . | AQ90: . | AR90: . | AS90: . | AT90: . | AU90: . | AV90: .
C91: Oui | D91: 0010031650 | E91: =VLOOKUP(D91,MATRICE_VA,2,FALSE) -> Interface GeniaAir Max HPIM SD | F91: =VLOOKUP(D91,MATRICE_VA,3,FALSE) -> 266 | G91: =$AW91 -> 0 | H91: =$AW91 -> 0 | I91: =$AW91 -> 0 | J91: =$AW91 -> 0 | L91: =$AW91+1 -> 1 | M91: =$AW91+1 -> 1 | N91: =$AW91+1 -> 1 | O91: =$AW91+1 -> 1 | P91: =$AW91 -> 0 | Q91: =$AW91 -> 0 | R91: =$AW91 -> 0 | S91: =$AW91 -> 0 | U91: =$AW91+1 -> 1 | V91: =$AW91+1 -> 1 | W91: =$AW91+1 -> 1 | X91: =$AW91+1 -> 1 | AW91: =_xlfn.NUMBERVALUE($AW$5-1) -> 0
C92: Oui | D92: 0020139896 | E92: Carte interface eBus PAC HYB | F92: 96 | K92: 1 | L92: 1 | M92: 1 | T92: 1 | U92: 1 | V92: 1
C93: Oui | D93: 0020231681 | E93: Coupleur Bus pour cascade PAC | F93: 127 | G93: =$AW93 -> 0 | H93: =$AW93 -> 0 | I93: 0 | J93: 0 | K93: 0 | L93: 0 | M93: 0 | N93: 0 | O93: 0 | P93: 0 | Q93: 0 | R93: 0 | S93: 0 | T93: 0 | U93: 0 | V93: 0 | W93: 0 | X93: 0 | AW93: =_xlfn.NUMBERVALUE($AW$5-1) -> 0
C94: Oui | D94: 0010036670 | E94: GeniaSet Max colonne hydr. | F94: 4051 | G94: 1 | P94: 1
C95: Oui | D95: 0020221268 | E95: Kit rac. GeniaSet chauf. seul | F95: 201 | G95: 1 | P95: 1
D96: 0020020455 | E96: Mitigeur thermostatique | F96: 134 | G96: 1 | P96: 1
AW111: =IF(_xlfn.NUMBERVALUE($AE$5)>1,0,1) -> 1
AW112: 1
AW113: 1
AW121: 1
AW122: 1
AW123: 1
AW124: 1
AW125: 1
AW126: 1
AW127: 1
AW128: 1
AW129: 1
AW130: 1
AW131: 1
AW132: 1
C196: Ajustez les quantités | D196: A prévoir | E196: Zone 1 Circulateur (après bouteille ou ballon tampon) | F196: - | AB196: 1 | AC196: 1 | AD196: 1 | AH196: 1 | AI196: 1 | AJ196: 1 | AP196: 1 | AU196: 1 | AV196: 1
C197: Ajustez les quantités | D197: A prévoir | E197: Zone 2 Circulateur (après bouteille ou ballon tampon) | F197: - | AC197: 1 | AD197: 1 | AI197: 1 | AP197: 1 | AU197: 1
C198: Ajustez les quantités | D198: A prévoir | E198: Zone 3 Circulateur (après bouteille ou ballon tampon) | F198: - | AD198: 1 | AP198: 1
C199: Ajustez les quantités | D199: A prévoir | E199: Zone 1 Circulateur et vanne 3 voies motorisées (230 V) | F199: - | AE199: 1 | AF199: 1 | AG199: 1 | AQ199: 1 | AR199: 1 | AS199: 1
C200: Ajustez les quantités | D200: A prévoir | E200: Zone 2 Circulateur et vanne 3 voies motorisées (230 V) | F200: - | AF200: 1 | AG200: 1 | AH200: 1 | AJ200: 1 | AR200: 1 | AS200: 1 | AV200: 1
C201: Ajustez les quantités | D201: A prévoir | E201: Zone 3 Circulateur et vanne 3 voies motorisées (230 V) | F201: - | AG201: 1 | AI201: 1 | AJ201: 1 | AS201: 1 | AU201: 1 | AV201: 1
B291: PAC | C291: Obligatoire | D291: . | E291: =Calculs!D$95 -> Accessoires ECS : Chaudière seule ou électrique | F291: =Calculs!E$95 -> . | G291: . | H291: . | I291: . | J291: . | O291: . | P291: . | Q291: . | R291: . | S291: .
B302: PAC | C302: Obligatoire | D302: . | E302: =Calculs!D$96 -> Accessoires ECS : Ballon ECS 200 l PAC | F302: =Calculs!E$96 -> . | G302: . | H302: . | I302: . | J302: . | O302: . | P302: . | Q302: . | R302: . | S302: . | Y302: . | AB302: . | AC302: . | AD302: . | AE302: . | AF302: . | AG302: . | AH302: . | AI302: . | AJ302: . | AK302: . | AN302: . | AO302: . | AP302: . | AQ302: . | AR302: . | AS302: . | AT302: . | AU302: . | AV302: .
B303: GeniaAir Max 4 - 230 V | C303: Non | D303: 0020197909 | E303: =VLOOKUP(D303,MATRICE_VA,2,FALSE) -> Ballon FEW 200 ME pour PAC | F303: =VLOOKUP(D303,MATRICE_VA,3,FALSE) -> 1800 | H303: 1 | I303: 1 | K303: 1 | L303: 1 | N303: 1 | Q303: 1 | R303: 1 | T303: 1 | U303: 1 | W303: 1
B304: GeniaAir Max 5 - 230 V | D304: 0020197909 | E304: Ballon FEW 200 ME pour PAC | F304: 1800 | H304: 1 | I304: 1 | K304: 1 | L304: 1 | N304: 1 | Q304: 1 | R304: 1 | T304: 1 | U304: 1 | W304: 1
B305: GeniaAir Max 8 - 230 V | D305: 0020197909 | E305: Ballon FEW 200 ME pour PAC | F305: 1800 | H305: 1 | I305: 1 | K305: 1 | L305: 1 | N305: 1 | Q305: 1 | R305: 1 | T305: 1 | U305: 1 | W305: 1
B306: GeniaAir Max 12 - 230 V | D306: 0020197909 | E306: Ballon FEW 200 ME pour PAC | F306: 1800 | H306: 1 | I306: 1 | K306: 1 | L306: 1 | N306: 1 | Q306: 1 | R306: 1 | T306: 1 | U306: 1 | W306: 1
B307: GeniaAir Max 12 - 400 V | D307: 0020197909 | E307: Ballon FEW 200 ME pour PAC | F307: 1800 | H307: 1 | I307: 1 | K307: 1 | L307: 1 | N307: 1 | Q307: 1 | R307: 1 | T307: 1 | U307: 1 | W307: 1
B308: GeniaAir Max 15 - 230 V | D308: 0020197909 | E308: Ballon FEW 200 ME pour PAC | F308: 1800 | H308: 1 | I308: 1 | K308: 1 | L308: 1 | N308: 1 | Q308: 1 | R308: 1 | T308: 1 | U308: 1 | W308: 1
B309: GeniaAir Max 15 - 400 V | D309: 0020197909 | E309: Ballon FEW 200 ME pour PAC | F309: 1800 | H309: 1 | I309: 1 | K309: 1 | L309: 1 | N309: 1 | Q309: 1 | R309: 1 | T309: 1 | U309: 1 | W309: 1
C310: Non | D310: 0020020455 | E310: =VLOOKUP(D310,MATRICE_VA,2,FALSE) -> Mitigeur thermostatique | F310: =VLOOKUP(D310,MATRICE_VA,3,FALSE) -> 134 | H310: 1 | I310: 1 | K310: 1 | L310: 1 | N310: 1 | Q310: 1 | R310: 1 | T310: 1 | U310: 1 | W310: 1
C312: Ajustez les quantités | D312: 0020222637 | E312: =VLOOKUP(D312,MATRICE_VA,2,FALSE) -> Sonde ballon/chauff connecteur | F312: =VLOOKUP(D312,MATRICE_VA,3,FALSE) -> 30 | H312: 1 | I312: 1 | K312: 1 | L312: 1 | N312: 1 | Q312: 1 | R312: 1 | T312: 1 | U312: 1 | W312: 1
B313: PAC | C313: Obligatoire | D313: . | E313: =Calculs!D$97 -> Accessoires ECS : Ballon ECS 300 l PAC | F313: =Calculs!E$96 -> . | G313: . | H313: . | I313: . | J313: . | N313: . | Q313: . | R313: . | T313: . | Y313: . | AB313: . | AC313: . | AD313: . | AE313: . | AF313: . | AG313: . | AH313: . | AI313: . | AJ313: . | AK313: . | AN313: . | AO313: . | AP313: . | AQ313: . | AR313: . | AS313: . | AT313: . | AU313: . | AV313: .
B314: GeniaAir Max 4 - 230 V | C314: Non | D314: 0010020656 | E314: Ballon uniSTOR VIH RW 300/3 BR (déconseillé avec le modèle 45/6) | F314: =VLOOKUP(D314,MATRICE_VA,3,FALSE) -> 2100 | H314: 1 | I314: 1 | K314: 1 | L314: 1 | N314: 1 | Q314: 1 | R314: 1 | T314: 1 | U314: 1 | W314: 1
B315: GeniaAir Max 5 - 230 V | C315: Non | D315: 0010020656 | E315: =VLOOKUP(D315,MATRICE_VA,2,FALSE) -> Ballon FEW 300/3 MR pour PAC | F315: 2100 | H315: 1 | I315: 1 | K315: 1 | L315: 1 | N315: 1 | Q315: 1 | R315: 1 | T315: 1 | U315: 1 | W315: 1
B316: GeniaAir Max 8 - 230 V | C316: Non | D316: 0010020656 | E316: Ballon FEW 300/3 MR pour PAC | F316: 2100 | H316: 1 | I316: 1 | K316: 1 | L316: 1 | N316: 1 | Q316: 1 | R316: 1 | T316: 1 | U316: 1 | W316: 1
B317: GeniaAir Max 12 - 230 V | C317: Non | D317: 0010020656 | E317: Ballon FEW 300/3 MR pour PAC | F317: 2100 | H317: 1 | I317: 1 | K317: 1 | L317: 1 | N317: 1 | Q317: 1 | R317: 1 | T317: 1 | U317: 1 | W317: 1
B318: GeniaAir Max 12 - 400 V | C318: Non | D318: 0010020656 | E318: Ballon FEW 300/3 MR pour PAC | F318: 2100 | H318: 1 | I318: 1 | K318: 1 | L318: 1 | N318: 1 | Q318: 1 | R318: 1 | T318: 1 | U318: 1 | W318: 1
B319: GeniaAir Max 15 - 230 V | C319: Non | D319: 0010020656 | E319: Ballon FEW 300/3 MR pour PAC | F319: 2100 | H319: 1 | I319: 1 | K319: 1 | L319: 1 | N319: 1 | Q319: 1 | R319: 1 | T319: 1 | U319: 1 | W319: 1
B320: GeniaAir Max 15 - 400 V | C320: Non | D320: 0010020656 | E320: Ballon FEW 300/3 MR pour PAC | F320: 2100 | H320: 1 | I320: 1 | K320: 1 | L320: 1 | N320: 1 | Q320: 1 | R320: 1 | T320: 1 | U320: 1 | W320: 1
C321: Non | D321: 0020020455 | E321: =VLOOKUP(D321,MATRICE_VA,2,FALSE) -> Mitigeur thermostatique | F321: =VLOOKUP(D321,MATRICE_VA,3,FALSE) -> 134 | H321: 1 | I321: 1 | K321: 1 | L321: 1 | N321: 1 | Q321: 1 | R321: 1 | T321: 1 | U321: 1 | W321: 1
C323: Ajustez les quantités | D323: 0020222637 | E323: =VLOOKUP(D323,MATRICE_VA,2,FALSE) -> Sonde ballon/chauff connecteur | F323: =VLOOKUP(D323,MATRICE_VA,3,FALSE) -> 30 | H323: 1 | I323: 1 | K323: 1 | L323: 1 | N323: 1 | Q323: 1 | R323: 1 | T323: 1 | U323: 1 | W323: 1
B324: PAC | C324: Obligatoire | D324: . | E324: =Calculs!D$98 -> Accessoires ECS : Ballon ECS 200 l | F324: =Calculs!E$96 -> . | G324: . | H324: . | I324: . | J324: . | N324: . | Q324: . | R324: . | T324: . | Y324: . | AB324: . | AC324: . | AD324: . | AE324: . | AF324: . | AG324: . | AH324: . | AI324: . | AJ324: . | AK324: . | AN324: . | AO324: . | AP324: . | AQ324: . | AR324: . | AS324: . | AT324: . | AU324: . | AV324: .
B335: PAC | C335: Obligatoire | D335: . | E335: =Calculs!D$99 -> Accessoires ECS : Ballon ECS 300 l | F335: =Calculs!E$96 -> . | G335: . | H335: . | I335: . | J335: . | N335: . | Q335: . | R335: . | T335: . | Y335: . | AB335: . | AC335: . | AD335: . | AE335: . | AF335: . | AG335: . | AH335: . | AI335: . | AJ335: . | AK335: . | AN335: . | AO335: . | AP335: . | AQ335: . | AR335: . | AS335: . | AT335: . | AU335: . | AV335: .
B346: PAC | C346: Obligatoire | D346: . | E346: =Calculs!D$100 -> Accessoires ECS : Ballon ECS intégré | F346: =Calculs!E$100 -> . | G346: . | H346: . | I346: . | J346: . | O346: . | P346: . | Q346: . | R346: . | S346: . | Y346: . | AB346: . | AC346: . | AD346: . | AE346: . | AF346: . | AG346: . | AH346: . | AI346: . | AJ346: . | AK346: . | AN346: . | AO346: . | AP346: . | AQ346: . | AR346: . | AS346: . | AT346: . | AU346: . | AV346: .
B357: PAC | C357: Obligatoire | D357: . | E357: =Calculs!D$101 -> Régulation : MiPro Sense filaire (tactile) | F357: =Calculs!E$101 -> . | G357: . | H357: . | I357: . | J357: . | O357: . | P357: . | Q357: . | R357: . | S357: . | Y357: . | AB357: . | AC357: . | AD357: . | AE357: . | AF357: . | AG357: . | AH357: . | AI357: . | AJ357: . | AK357: . | AN357: . | AO357: . | AP357: . | AQ357: . | AR357: . | AS357: . | AT357: . | AU357: . | AV357: . | AW357: .
C358: Oui | D358: 0020260971 | E358: =VLOOKUP(D358,MATRICE_VA,2,FALSE) -> MiPro Sense | F358: =VLOOKUP(D358,MATRICE_VA,3,FALSE) -> 268 | Y358: 1 | AB358: 1 | AC358: 1 | AD358: 1 | AE358: 1 | AF358: 1 | AG358: 1 | AH358: 1 | AI358: 1 | AJ358: 1 | AK358: 1 | AL358: 1 | AN358: 1 | AO358: 1 | AP358: 1 | AQ358: 1 | AR358: 1 | AS358: 1 | AT358: 1 | AU358: 1 | AV358: 1
C359: Non | D359: 0020260982 | E359: =VLOOKUP(D359,MATRICE_VA,2,FALSE) -> Commande déportée MiPro Sense | F359: 264 | AC359: 1 | AD359: 2 | AF359: 1 | AG359: 2 | AH359: 1 | AI359: 2 | AJ359: 2 | AL359: 1 | AO359: 1 | AP359: 2 | AR359: 1 | AS359: 2 | AT359: 1 | AU359: 2 | AV359: 2
C361: Ajustez les quantités | D361: 0020257510 | E361: Module RED 5 | F361: 280 | AC361: 1 | AD361: 1 | AE361: 1 | AF361: 1 | AG361: 1 | AH361: 1 | AI361: 1 | AJ361: 1 | AO361: 1 | AP361: 1 | AQ361: 1 | AR361: 1 | AS361: 1 | AT361: 1 | AU361: 1 | AV361: 1
C362: Ajustez les quantités | D362: 0020257508 | E362: Module RED 3 | F362: 208 | Y362: =$AW362 -> 0 | AB362: =$AW362 -> 0 | AN362: =$AW362 -> 0 | AW362: =IF(OR(Systeme_PAC_hybride=TRUE,$AW$5>1),1,0) -> 0
C365: Oui | D365: 0020004238 | E365: =VLOOKUP(D365,MATRICE_VA,2,FALSE) -> Sonde ballon/chauffage | F365: 20 | AB365: =$AW365 -> 0 | AC365: 3 | AD365: 3 | AE365: 2 | AF365: 3 | AG365: 4 | AH365: 3 | AI365: 4 | AJ365: 4 | AK365: =$AW365 -> 0 | AL365: 3 | AN365: 1 | AO365: 3 | AP365: 4 | AQ365: 2 | AR365: 3 | AS365: 4 | AT365: 3 | AU365: 4 | AV365: 4 | AW365: =IF($AW$5>1,2,0) -> 0
B378: PAC | C378: Obligatoire | D378: . | E378: =Calculs!D$102 -> Régulation : MiPro Sense Radio (tactile) | F378: =Calculs!E$102 -> . | G378: . | H378: . | I378: . | J378: . | O378: . | P378: . | Q378: . | R378: . | S378: . | Y378: . | AB378: . | AC378: . | AD378: . | AE378: . | AF378: . | AG378: . | AH378: . | AI378: . | AJ378: . | AK378: . | AN378: . | AO378: . | AP378: . | AQ378: . | AR378: . | AS378: . | AT378: . | AU378: . | AV378: . | AW378: .
C379: Oui | D379: 0020260979 | E379: =VLOOKUP(D379,MATRICE_VA,2,FALSE) -> MiPro Sense radio | F379: =VLOOKUP(D379,MATRICE_VA,3,FALSE) -> 475 | Y379: 1 | AB379: 1 | AC379: 1 | AD379: 1 | AE379: 1 | AF379: 1 | AG379: 1 | AH379: 1 | AI379: 1 | AJ379: 1 | AK379: 1 | AL379: 1 | AM379: 1 | AN379: 1 | AO379: 1 | AP379: 1 | AQ379: 1 | AR379: 1 | AS379: 1 | AT379: 1 | AU379: 1 | AV379: 1
C380: Non | D380: 0020260988 | E380: =VLOOKUP(D380,MATRICE_VA,2,FALSE) -> Commande déport. MiPro Sense R | F380: =VLOOKUP(D380,MATRICE_VA,3,FALSE) -> 359 | AC380: 1 | AD380: 2 | AF380: 1 | AG380: 2 | AH380: 1 | AI380: 2 | AJ380: 2 | AL380: 1 | AM380: 1 | AO380: 1 | AP380: 2 | AR380: 1 | AS380: 2 | AT380: 1 | AU380: 2 | AV380: 2
C382: Ajustez les quantités | D382: 0020257510 | E382: Module RED 5 | F382: =VLOOKUP(D382,MATRICE_VA,3,FALSE) -> 280 | AC382: 1 | AD382: 1 | AE382: 1 | AF382: 1 | AG382: 1 | AH382: 1 | AI382: 1 | AJ382: 1 | AO382: 1 | AP382: 1 | AQ382: 1 | AR382: 1 | AS382: 1 | AT382: 1 | AU382: 1 | AV382: 1
C383: Ajustez les quantités | D383: 0020257508 | E383: Module RED 3 | F383: =VLOOKUP(D383,MATRICE_VA,3,FALSE) -> 208 | Y383: =$AW383 -> 0 | AB383: =$AW383 -> 0 | AK383: =$AW383 -> 0 | AN383: =$AW383 -> 0 | AW383: =IF(OR(Systeme_PAC_hybride=TRUE,$AW$5>1),1,0) -> 0
C386: Oui | D386: 0020004238 | E386: =VLOOKUP(D386,MATRICE_VA,2,FALSE) -> Sonde ballon/chauffage | F386: =VLOOKUP(D386,MATRICE_VA,3,FALSE) -> 20 | AB386: =$AW386 -> 0 | AC386: 3 | AD386: 4 | AE386: 2 | AF386: 3 | AG386: 4 | AH386: 3 | AI386: 4 | AJ386: 4 | AK386: =$AW386 -> 0 | AN386: 1 | AO386: 3 | AP386: 4 | AQ386: 2 | AR386: 3 | AS386: 4 | AT386: 3 | AU386: 4 | AV386: 4 | AW386: =IF($AW$5>1,2,0) -> 0
B399: PAC | C399: Obligatoire | D399: . | E399: =Calculs!D$103 -> Accessoires régulation : MiPro | F399: =Calculs!E$103 -> . | G399: . | H399: . | I399: . | J399: . | O399: . | P399: . | Q399: . | R399: . | S399: . | Y399: . | AB399: . | AC399: . | AD399: . | AE399: . | AF399: . | AG399: . | AH399: . | AI399: . | AJ399: . | AK399: . | AN399: . | AO399: . | AP399: . | AQ399: . | AR399: . | AS399: . | AT399: . | AU399: . | AV399: . | AW399: .
C400: Oui | D400: 0020218373 | E400: =VLOOKUP(D400,MATRICE_VA,2,FALSE) -> MiPro | F400: =VLOOKUP(D400,MATRICE_VA,3,FALSE) -> 229 | Y400: 1 | AB400: 1 | AC400: 1 | AD400: 1 | AE400: 1 | AF400: 1 | AG400: 1 | AH400: 1 | AI400: 1 | AJ400: 1 | AK400: 1 | AN400: 1 | AO400: 1 | AP400: 1 | AQ400: 1 | AR400: 1 | AS400: 1 | AT400: 1 | AU400: 1 | AV400: 1
C401: Oui | D401: 0020218375 | E401: =VLOOKUP(D401,MATRICE_VA,2,FALSE) -> Commande déportée MiPro | F401: 217 | AC401: 1 | AD401: 2 | AF401: 1 | AG401: 2 | AH401: 1 | AI401: 2 | AJ401: 2 | AO401: 1 | AP401: 2 | AR401: 1 | AS401: 2 | AT401: 1 | AU401: 2 | AV401: 2
C402: Oui | D402: 0020257510 | E402: Module RED 5 | F402: 280 | AC402: 1 | AD402: 1 | AE402: 1 | AF402: 1 | AG402: 1 | AH402: 1 | AI402: 1 | AJ402: 1 | AO402: 1 | AP402: 1 | AQ402: 1 | AR402: 1 | AS402: 1 | AT402: 1 | AU402: 1 | AV402: 1
C406: Oui | D406: 0020004238 | E406: =VLOOKUP(D406,MATRICE_VA,2,FALSE) -> Sonde ballon/chauffage | F406: 20 | AB406: 1 | AC406: 2 | AD406: 4 | AE406: 2 | AF406: 3 | AG406: 4 | AH406: 2 | AI406: 4 | AJ406: 4 | AK406: 0 | AN406: 1 | AO406: 2 | AP406: 4 | AQ406: 2 | AR406: 3 | AS406: 4 | AT406: 2 | AU406: 4 | AV406: 4
B420: PAC | C420: Obligatoire | D420: . | E420: =Calculs!D$104 ->  | F420: =Calculs!E$104 ->  | G420: . | H420: . | I420: . | J420: . | O420: . | P420: . | Q420: . | R420: . | S420: . | Y420: . | AB420: . | AC420: . | AD420: . | AE420: . | AF420: . | AG420: . | AH420: . | AI420: . | AJ420: . | AK420: . | AN420: . | AO420: . | AP420: . | AQ420: . | AR420: . | AS420: . | AT420: . | AU420: . | AV420: . | AW420: .
B441: PAC | C441: Obligatoire | D441: . | E441: =Calculs!D$105 ->  | F441: =Calculs!E$105 ->  | G441: . | H441: . | I441: . | J441: . | O441: . | P441: . | Q441: . | R441: . | S441: . | Y441: . | AB441: . | AC441: . | AD441: . | AE441: . | AF441: . | AG441: . | AH441: . | AI441: . | AJ441: . | AK441: . | AN441: . | AO441: . | AP441: . | AQ441: . | AR441: . | AS441: . | AT441: . | AU441: . | AV441: . | AW441: .
B462: PAC | C462: Obligatoire | D462: . | E462: =Calculs!D$106 -> Accessoires connectivité : MiGo Link | F462: =Calculs!E$106 -> . | G462: . | H462: . | I462: . | J462: . | O462: . | P462: . | Q462: . | R462: . | S462: . | Y462: . | AB462: . | AC462: . | AD462: . | AE462: . | AF462: . | AG462: . | AH462: . | AI462: . | AJ462: . | AK462: . | AN462: . | AO462: . | AP462: . | AQ462: . | AR462: . | AS462: . | AT462: . | AU462: . | AV462: . | AW462: .
C463: Oui | D463: 0010037345 | E463: =VLOOKUP(D463,MATRICE_VA,2,FALSE) -> MiGo Link | F463: =VLOOKUP(D463,MATRICE_VA,3,FALSE) -> 171 | G463: 1 | H463: 1 | I463: 1 | J463: 1 | K463: 1 | L463: 1 | M463: 1 | U463: 1 | V463: 1 | W463: 1 | X463: 1
B473: PAC | C473: Obligatoire | D473: . | E473: =Calculs!D$107 -> Accessoires connectivité : Sans | F473: =Calculs!E$107 -> . | G473: . | H473: . | I473: . | J473: . | O473: . | P473: . | Q473: . | R473: . | S473: . | Y473: . | AB473: . | AC473: . | AD473: . | AE473: . | AF473: . | AG473: . | AH473: . | AI473: . | AJ473: . | AK473: . | AN473: . | AO473: . | AP473: . | AQ473: . | AR473: . | AS473: . | AT473: . | AU473: . | AV473: . | AW473: .
B484: PAC | C484: Obligatoire | D484: . | E484: =Calculs!D$108 ->  | F484: =Calculs!E$108 ->  | G484: . | H484: . | I484: . | J484: . | O484: . | P484: . | Q484: . | R484: . | S484: . | Y484: . | AB484: . | AC484: . | AD484: . | AE484: . | AF484: . | AG484: . | AH484: . | AI484: . | AJ484: . | AK484: . | AN484: . | AO484: . | AP484: . | AQ484: . | AR484: . | AS484: . | AT484: . | AU484: . | AV484: . | AW484: .
B495: PAC | C495: Obligatoire | D495: . | E495: =Calculs!D$109 ->  | F495: =Calculs!E$109 ->  | G495: . | H495: . | I495: . | J495: . | O495: . | P495: . | Q495: . | R495: . | S495: . | Y495: . | AB495: . | AC495: . | AD495: . | AE495: . | AF495: . | AG495: . | AH495: . | AI495: . | AJ495: . | AK495: . | AN495: . | AO495: . | AP495: . | AQ495: . | AR495: . | AS495: . | AT495: . | AU495: . | AV495: . | AW495: .
B506: PAC | C506: Obligatoire | D506: . | E506: =Calculs!D$110 ->  | F506: =Calculs!E$110 ->  | G506: . | H506: . | I506: . | J506: . | O506: . | P506: . | Q506: . | R506: . | S506: . | Y506: . | AB506: . | AC506: . | AD506: . | AE506: . | AF506: . | AG506: . | AH506: . | AI506: . | AJ506: . | AK506: . | AN506: . | AO506: . | AP506: . | AQ506: . | AR506: . | AS506: . | AT506: . | AU506: . | AV506: . | AW506: .
B517: PAC | C517: Obligatoire | D517: . | E517: =Calculs!D$111 -> Accessoires Bouteille tampon En série externe | F517: =Calculs!E$111 -> . | G517: . | H517: . | I517: . | J517: . | K517: . | L517: . | M517: . | N517: . | O517: . | P517: . | Q517: . | R517: . | S517: . | T517: . | U517: . | V517: . | W517: . | X517: . | Y517: . | AB517: . | AC517: . | AD517: . | AE517: . | AF517: . | AG517: . | AH517: . | AI517: . | AJ517: . | AK517: . | AN517: . | AO517: . | AP517: . | AQ517: . | AR517: . | AS517: . | AT517: . | AU517: . | AV517: . | AW517: .
B518: GeniaAir Max 4 - 230 V | C518: Non | D518: 0010034127 | E518: =VLOOKUP($D518,MATRICE_VA,2,FALSE) -> Ballon de découplage 45 litres | F518: =VLOOKUP(D518,MATRICE_VA,3,FALSE) -> 627 | K518: 1 | L518: 1 | M518: 1 | N518: 1 | O518: 1 | T518: 1 | U518: 1 | V518: 1 | W518: 1 | X518: 1
B519: GeniaAir Max 5 - 230 V | C519: Non | D519: 0010034127 | E519: Ballon de découplage 45 litres | F519: 627 | K519: 1 | L519: 1 | M519: 1 | N519: 1 | O519: 1 | T519: 1 | U519: 1 | V519: 1 | W519: 1 | X519: 1
B520: GeniaAir Max 8 - 230 V | C520: Non | D520: 0010034127 | E520: Ballon de découplage 45 litres | F520: 627 | K520: 1 | L520: 1 | M520: 1 | N520: 1 | O520: 1 | T520: 1 | U520: 1 | V520: 1 | W520: 1 | X520: 1
B521: GeniaAir Max 12 - 230 V | C521: Non | D521: 0010034127 | E521: Ballon de découplage 45 litres | F521: 627 | K521: 1 | L521: 1 | M521: 1 | N521: 1 | O521: 1 | T521: 1 | U521: 1 | V521: 1 | W521: 1 | X521: 1
B522: GeniaAir Max 12 - 400 V | C522: Non | D522: 0010034127 | E522: Ballon de découplage 45 litres | F522: 627 | K522: 1 | L522: 1 | M522: 1 | N522: 1 | O522: 1 | T522: 1 | U522: 1 | V522: 1 | W522: 1 | X522: 1
B523: GeniaAir Max 15 - 230 V | C523: Ajustez les quantités | D523: A prévoir | E523: Ballon de découplage ou volume libre > 60 litres | F523: - | G523: 1 | H523: 1 | I523: 1 | J523: 1 | K523: 1 | L523: 1 | M523: 1 | N523: 1 | O523: 1 | P523: 1 | Q523: 1 | R523: 1 | S523: 1 | T523: 1 | U523: 1 | V523: 1 | W523: 1 | X523: 1
B524: GeniaAir Max 15 - 400 V | C524: Ajustez les quantités | D524: A prévoir | E524: Ballon de découplage ou volume libre > 60 litres | F524: - | G524: 1 | H524: 1 | I524: 1 | J524: 1 | K524: 1 | L524: 1 | M524: 1 | N524: 1 | O524: 1 | P524: 1 | Q524: 1 | R524: 1 | S524: 1 | T524: 1 | U524: 1 | V524: 1 | W524: 1 | X524: 1
B528: GeniaAir Max 4 - 230 V | C528: Ajustez les quantités | D528: 8000015076 | E528: =VLOOKUP(D528,MATRICE_VA,2,FALSE) -> Ballon tampon WN RW 50/3 B | F528: =VLOOKUP(D528,MATRICE_VA,3,FALSE) -> 615 | G528: 1 | H528: 1 | I528: 1 | J528: 1 | P528: 1 | Q528: 1 | R528: 1 | S528: 1
B529: GeniaAir Max 5 - 230 V | C529: Ajustez les quantités | D529: 8000015076 | E529: Ballon tampon WN RW 50/3 B | F529: 615 | G529: 1 | H529: 1 | I529: 1 | J529: 1 | P529: 1 | Q529: 1 | R529: 1 | S529: 1
B530: GeniaAir Max 8 - 230 V | C530: Ajustez les quantités | D530: 8000015076 | E530: Ballon tampon WN RW 50/3 B | F530: 615 | G530: 1 | H530: 1 | I530: 1 | J530: 1 | P530: 1 | Q530: 1 | R530: 1 | S530: 1
B531: GeniaAir Max 12 - 230 V | C531: Ajustez les quantités | D531: 8000015076 | E531: Ballon tampon WN RW 50/3 B | F531: 615 | G531: 1 | H531: 1 | I531: 1 | J531: 1 | P531: 1 | Q531: 1 | R531: 1 | S531: 1
B532: GeniaAir Max 12 - 400 V | C532: Ajustez les quantités | D532: 8000015076 | E532: Ballon tampon WN RW 50/3 B | F532: 615 | G532: 1 | H532: 1 | I532: 1 | J532: 1 | P532: 1 | Q532: 1 | R532: 1 | S532: 1
D533: 0010039990 | E533: Module Z 20 C | F533: 164 | Z533: 1 | AL533: 1
B538: PAC | C538: Obligatoire | D538: . | E538: =Calculs!D$112 -> Accessoires Bouteille tampon Tampon série 18L | F538: =Calculs!E$112 -> . | G538: . | H538: . | I538: . | J538: . | K538: . | L538: . | M538: . | N538: . | O538: . | P538: . | Q538: . | R538: . | S538: . | T538: . | U538: . | V538: . | W538: . | X538: . | Y538: . | AB538: . | AC538: . | AD538: . | AE538: . | AF538: . | AG538: . | AH538: . | AI538: . | AJ538: . | AK538: . | AL538: . | AM538: . | AN538: . | AO538: . | AP538: . | AQ538: . | AR538: . | AS538: . | AT538: . | AU538: . | AV538: . | AW538: .
B539: GeniaAir Max 4 - 230 V | C539: Non | D539: 0020269274 | E539: =VLOOKUP($D539,MATRICE_VA,2,FALSE) -> Réservoir 18 litres - GeniaSet | F539: =VLOOKUP(D539,MATRICE_VA,3,FALSE) -> 560 | G539: 1 | K539: 1 | L539: 1 | M539: 1 | N539: 1 | O539: 1 | T539: 1 | U539: 1 | V539: 1 | W539: 1 | X539: 1 | AK539: 1
B540: GeniaAir Max 5 - 230 V | C540: Non | D540: 0020269274 | E540: Réservoir 18 litres - GeniaSet | F540: 560 | G540: 1 | K540: 1 | L540: 1 | M540: 1 | N540: 1 | O540: 1 | T540: 1 | U540: 1 | V540: 1 | W540: 1 | X540: 1 | AK540: 1
B541: GeniaAir Max 8 - 230 V | C541: Non | D541: 0020269274 | E541: Réservoir 18 litres - GeniaSet | F541: 560 | G541: 1 | K541: 1 | L541: 1 | M541: 1 | N541: 1 | O541: 1 | T541: 1 | U541: 1 | V541: 1 | W541: 1 | X541: 1 | AK541: 1
B559: PAC | C559: Obligatoire | D559: . | E559: =Calculs!D$113 -> Accessoires Bouteille tampon En parallèle | F559: =Calculs!E$113 -> . | G559: . | H559: . | I559: . | J559: . | O559: . | P559: . | Q559: . | R559: . | S559: . | Y559: . | AB559: . | AC559: . | AD559: . | AE559: . | AF559: . | AG559: . | AH559: . | AI559: . | AJ559: . | AK559: . | AN559: . | AO559: . | AP559: . | AQ559: . | AR559: . | AS559: . | AT559: . | AU559: . | AV559: . | AW559: .
B560: GeniaAir Max 4 - 230 V | C560: Non | D560: 0010034127 | E560: =VLOOKUP($D560,MATRICE_VA,2,FALSE) -> Ballon de découplage 45 litres | F560: =VLOOKUP(D560,MATRICE_VA,3,FALSE) -> 627 | K560: 1 | L560: 1 | M560: 1 | N560: 1 | O560: 1 | T560: 1 | U560: 1 | V560: 1 | W560: 1 | X560: 1
B561: GeniaAir Max 5 - 230 V | C561: Non | D561: 0010034127 | E561: Ballon de découplage 45 litres | F561: 627 | K561: 1 | L561: 1 | M561: 1 | N561: 1 | O561: 1 | T561: 1 | U561: 1 | V561: 1 | W561: 1 | X561: 1
B562: GeniaAir Max 8 - 230 V | C562: Non | D562: 0010034127 | E562: Ballon de découplage 45 litres | F562: 627 | K562: 1 | L562: 1 | M562: 1 | N562: 1 | O562: 1 | T562: 1 | U562: 1 | V562: 1 | W562: 1 | X562: 1
B563: GeniaAir Max 12 - 230 V | C563: Non | D563: 0010034127 | E563: Ballon de découplage 45 litres | F563: 627 | K563: =$AW563 -> 1 | L563: 1 | M563: 1 | N563: 1 | O563: 1 | T563: =$AW563 -> 1 | U563: 1 | V563: 1 | W563: 1 | X563: 1 | AW563: =IF($AW$5=1,1,0) -> 1
B564: GeniaAir Max 12 - 400 V | C564: Non | D564: 0010034127 | E564: Ballon de découplage 45 litres | F564: 627 | K564: 1 | L564: 1 | M564: 1 | N564: 1 | O564: 1 | T564: 1 | U564: 1 | V564: 1 | W564: 1 | X564: 1 | AW564: =IF($AW$5=1,1,0) -> 1
B565: GeniaAir Max 15 - 230 V | C565: Ajustez les quantités | D565: A prévoir | E565: Ballon de découplage ou volume libre > 60 litres | F565: - | G565: =$AW565 -> 1 | H565: 1 | I565: 1 | J565: 1 | K565: 1 | L565: 1 | M565: 1 | N565: 1 | O565: 1 | P565: 1 | Q565: 1 | R565: 1 | S565: 1 | T565: 1 | U565: 1 | V565: 1 | W565: 1 | X565: 1 | AW565: =IF($AW$5=1,1,0) -> 1
B566: GeniaAir Max 15 - 400 V | C566: Ajustez les quantités | D566: A prévoir | E566: Ballon de découplage ou volume libre > 60 litres | F566: - | G566: 1 | H566: 1 | I566: 1 | J566: 1 | K566: 1 | L566: 1 | M566: 1 | N566: 1 | O566: 1 | P566: 1 | Q566: 1 | R566: 1 | S566: 1 | T566: 1 | U566: 1 | V566: 1 | W566: 1 | X566: 1 | AW566: =IF($AW$5=1,1,0) -> 1
B567: GeniaAir Max 4 - 230 V | C567: Ajustez les quantités | D567: 8000015076 | E567: =VLOOKUP(D567,MATRICE_VA,2,FALSE) -> Ballon tampon WN RW 50/3 B | F567: =VLOOKUP(D567,MATRICE_VA,3,FALSE) -> 615 | G567: 1 | H567: 1 | I567: 1 | J567: 1 | P567: 1 | Q567: 1 | R567: 1 | S567: 1
B568: GeniaAir Max 5 - 230 V | C568: Ajustez les quantités | D568: 8000015076 | E568: Ballon tampon WN RW 50/3 B | F568: 615 | G568: 1 | H568: 1 | I568: 1 | J568: 1 | P568: 1 | Q568: 1 | R568: 1 | S568: 1
B569: GeniaAir Max 8 - 230 V | C569: Ajustez les quantités | D569: 8000015076 | E569: Ballon tampon WN RW 50/3 B | F569: 615 | G569: 1 | H569: 1 | I569: 1 | J569: 1 | P569: 1 | Q569: 1 | R569: 1 | S569: 1
B570: GeniaAir Max 12 - 230 V | C570: Ajustez les quantités | D570: 8000015076 | E570: Ballon tampon WN RW 50/3 B | F570: 615 | G570: =$AW570 -> 1 | H570: 1 | I570: 1 | J570: 1 | P570: 1 | Q570: 1 | R570: 1 | S570: 1 | AW570: =IF($AW$5=1,1,0) -> 1
B571: GeniaAir Max 12 - 400 V | C571: Ajustez les quantités | D571: 8000015076 | E571: Ballon tampon WN RW 50/3 B | F571: 615 | G571: 1 | H571: 1 | I571: 1 | J571: 1 | P571: 1 | Q571: 1 | R571: 1 | S571: 1 | AW571: =IF($AW$5=1,1,0) -> 1
C572: Ajustez les quantités | D572: A prévoir | E572: Volume tampon minimal de 100 l | F572: - | G572: 0 | H572: 0 | I572: 0 | J572: 0 | K572: 0 | L572: 0 | M572: 0 | N572: 0 | O572: 0 | P572: 0 | Q572: 0 | R572: 0 | S572: 0 | T572: 0 | U572: 0 | V572: 0 | W572: =$AW572 -> 0 | X572: =$AW572 -> 0 | AW572: =IF(AND(_xlfn.NUMBERVALUE($AW$5)>1,_xlfn.NUMBERVALUE($AW$5)<4)=TRUE,1,0) -> 0
C573: Ajustez les quantités | D573: A prévoir | E573: Volume tampon minimal de 200 l | F573: - | G573: 0 | H573: 0 | I573: 0 | J573: 0 | K573: 0 | L573: 0 | M573: 0 | N573: 0 | O573: 0 | P573: 0 | Q573: 0 | R573: 0 | S573: 0 | T573: 0 | U573: 0 | V573: 0 | W573: =$AW573 -> 0 | X573: =$AW573 -> 0 | AW573: =IF(AND(_xlfn.NUMBERVALUE($AW$5)>3,_xlfn.NUMBERVALUE($AW$5)<8)=TRUE,1,0) -> 0
C575: Ajustez les quantités | D575: A prévoir | E575: Zone 1 Circulateur (après bouteille ou ballon tampon) | F575: - | AN575: 1 | AO575: 1 | AT575: 1
C576: Ajustez les quantités | D576: A prévoir | E576: Zone 2 Circulateur (après bouteille ou ballon tampon) | F576: - | AO576: 1
C577: Ajustez les quantités | D577: A prévoir | E577: Zone 2 Circulateur et vanne 3 voies motorisées (230 V) | F577: - | AT577: 1
C578: Ajustez les quantités | D578: A prévoir | E578: Vanne(s) de réglage de débit sur le secondaire | F578: - | AB578: 1 | AC578: 1 | AD578: 1 | AE578: 1 | AF578: 1 | AG578: 1 | AH578: 1 | AI578: 1 | AJ578: 1 | AN578: 1 | AO578: 1 | AP578: 1 | AQ578: 1 | AR578: 1 | AS578: 1 | AT578: 1 | AU578: 1 | AV578: 1
B580: PAC | C580: Obligatoire | D580: . | E580: =Calculs!D$114 -> Accessoires Bouteille tampon En parallèle intégré | F580: =Calculs!E$114 -> . | G580: . | H580: . | I580: . | J580: . | O580: . | P580: . | Q580: . | R580: . | S580: . | Y580: . | AB580: . | AC580: . | AD580: . | AE580: . | AF580: . | AG580: . | AH580: . | AI580: . | AJ580: . | AK580: . | AN580: . | AO580: . | AP580: . | AQ580: . | AR580: . | AS580: . | AT580: . | AU580: . | AV580: . | AW580: .
C581: Oui | D581: 0020188585 | E581: =VLOOKUP($D581,MATRICE_VA,2,FALSE) -> Module L 10 | F581: =VLOOKUP(D581,MATRICE_VA,3,FALSE) -> 539 | AN581: 1 | AO581: 1 | AT581: 1
C582: Oui | D582: 0020188587 | E582: Extension L 10 | F582: 252 | AO582: 1
C583: Oui | D583: 0020188586 | E583: Extension L 11 | F583: 399 | AT583: 1
B584: GeniaAir Max 4 - 230 V | C584: Ajustez les quantités | D584: A prévoir | E584: Volume d'eau en circulation libre > 18 litres | F584: - | AN584: 1 | AO584: 1 | AT584: 1
B585: GeniaAir Max 5 - 230 V | C585: Ajustez les quantités | D585: A prévoir | E585: Volume d'eau en circulation libre > 18 litres | F585: - | AN585: 1 | AO585: 1 | AT585: 1
B586: GeniaAir Max 8 - 230 V | C586: Ajustez les quantités | D586: A prévoir | E586: Volume d'eau en circulation libre > 18 litres | F586: - | AN586: 1 | AO586: 1 | AT586: 1
B587: GeniaAir Max 12 - 230 V | C587: Ajustez les quantités | D587: A prévoir | E587: Volume d'eau en circulation libre > 45 litres | F587: - | AN587: 1 | AO587: 1 | AT587: 1
B588: GeniaAir Max 12 - 400 V | C588: Ajustez les quantités | D588: A prévoir | E588: Volume d'eau en circulation libre > 45 litres | F588: - | AN588: 1 | AO588: 1 | AT588: 1
B589: GeniaAir Max 15 - 230 V | C589: Ajustez les quantités | D589: A prévoir | E589: Volume d'eau en circulation libre > 60 litres | F589: - | AN589: 1 | AO589: 1 | AT589: 1
B590: GeniaAir Max 15 - 400 V | C590: Ajustez les quantités | D590: A prévoir | E590: Volume d'eau en circulation libre > 60 litres | F590: - | AN590: 1 | AO590: 1 | AT590: 1
C591: Ajustez les quantités | D591: A prévoir | E591: Vanne(s) de réglage de débit sur le secondaire | F591: - | AB591: 1 | AC591: 1 | AD591: 1 | AE591: 1 | AF591: 1 | AG591: 1 | AH591: 1 | AI591: 1 | AJ591: 1 | AN591: 1 | AO591: 1 | AP591: 1 | AQ591: 1 | AR591: 1 | AS591: 1 | AT591: 1 | AU591: 1 | AV591: 1
B601: PAC | C601: Obligatoire | D601: . | E601: =Calculs!D$115 ->  | F601: =Calculs!E$115 ->  | G601: . | H601: . | I601: . | J601: . | O601: . | P601: . | Q601: . | R601: . | S601: . | Y601: . | AB601: . | AC601: . | AD601: . | AE601: . | AF601: . | AG601: . | AH601: . | AI601: . | AJ601: . | AK601: . | AN601: . | AO601: . | AP601: . | AQ601: . | AR601: . | AS601: . | AT601: . | AU601: . | AV601: . | AW601: .
B622: PAC | C622: Obligatoire | D622: . | E622: =Calculs!D$116 -> Accessoires Découplage glycol : Avec échangeur | F622: =Calculs!E$116 -> . | G622: . | H622: . | I622: . | J622: . | O622: . | P622: . | Q622: . | R622: . | S622: . | Y622: . | Z622: . | AA622: . | AB622: . | AC622: . | AD622: . | AE622: . | AF622: . | AG622: . | AH622: . | AI622: . | AJ622: . | AK622: . | AN622: . | AO622: . | AP622: . | AQ622: . | AR622: . | AS622: . | AT622: . | AU622: . | AV622: .
B623: GeniaAir Max 4 - 230 V | C623: Oui | D623: 0010027983 | E623: =VLOOKUP($D623,MATRICE_VA,2,FALSE) -> Kit découp. GeniaSet Max 4-8 | F623: =VLOOKUP($D623,MATRICE_VA,3,FALSE) -> 612 | P623: 1
B624: GeniaAir Max 5 - 230 V | C624: Oui | D624: 0010027983 | E624: Kit découp. GeniaSet Max 4-8 | F624: =VLOOKUP(D624,MATRICE_VA,3,FALSE) -> 612 | P624: 1
B625: GeniaAir Max 8 - 230 V | C625: Oui | D625: 0010027983 | E625: Kit découp. GeniaSet Max 4-8 | F625: 612 | P625: 1
B626: GeniaAir Max 12 - 230 V | C626: Oui | D626: 0010027975 | E626: Kit découp. GeniaSet Max 12-15 | F626: 672 | P626: 1
B627: GeniaAir Max 12 - 400 V | C627: Oui | D627: 0010027975 | E627: Kit découp. GeniaSet Max 12-15 | F627: 672 | P627: 1
B628: GeniaAir Max 15 - 230 V | C628: Oui | D628: 0010027975 | E628: Kit découp. GeniaSet Max 12-15 | F628: 672 | P628: 1
B629: GeniaAir Max 15 - 400 V | C629: Oui | D629: 0010027975 | E629: Kit découp. GeniaSet Max 12-15 | F629: 672 | P629: 1
C630: Non | D630: 0020020406 | E630: Mélange glycolé 30% - 20L sola | F630: 214 | P630: 1 | Q630: 1 | R630: 1 | S630: 1 | T630: 1 | U630: 1 | V630: 1 | W630: 1 | X630: 1
C631: Non | D631: 0020020440 | E631: Mélange glycolé 30% - 10L sola | F631: =VLOOKUP(D631,MATRICE_VA,3,FALSE) -> 102 | P631: 1 | Q631: 1 | R631: 1 | S631: 1 | T631: 1 | U631: 1 | V631: 1 | W631: 1 | X631: 1
C632: Oui | D632: 0020188186 | E632: Module mural découp. échangeur | F632: =VLOOKUP(D632,MATRICE_VA,3,FALSE) -> 875 | Q632: 1 | R632: 1 | S632: 1 | T632: 1 | U632: 1 | V632: 1 | W632: 1 | X632: 1
B633: PAC | C633: Obligatoire | D633: . | E633: =Calculs!D$117 -> Accessoires Découplage glycol : Pas de découplage | F633: =Calculs!E$117 -> . | G633: . | H633: . | I633: . | J633: . | O633: . | P633: . | Q633: . | R633: . | S633: . | Y633: . | AB633: . | AC633: . | AD633: . | AE633: . | AF633: . | AG633: . | AH633: . | AI633: . | AJ633: . | AK633: . | AN633: . | AO633: . | AP633: . | AQ633: . | AR633: . | AS633: . | AT633: . | AU633: . | AV633: .
C634: Ajustez les quantités | D634: A prévoir | E634: Vannes type EXOGEL ® | F634: - | G634: 1 | H634: 1 | I634: 1 | J634: 1 | K634: 1 | L634: 1 | M634: 1 | N634: 1 | O634: 1
B644: PAC | C644: Obligatoire | D644: . | E644: =Calculs!D$118 ->  | F644: =Calculs!E$118 ->  | G644: . | H644: . | I644: . | J644: . | O644: . | P644: . | Q644: . | R644: . | S644: . | Y644: . | AB644: . | AC644: . | AD644: . | AE644: . | AF644: . | AG644: . | AH644: . | AI644: . | AJ644: . | AK644: . | AN644: . | AO644: . | AP644: . | AQ644: . | AR644: . | AS644: . | AT644: . | AU644: . | AV644: .
B655: PAC | C655: Obligatoire | D655: . | E655: =Calculs!D$119 ->  | F655: =Calculs!E$119 ->  | G655: . | H655: . | I655: . | J655: . | O655: . | P655: . | Q655: . | R655: . | S655: . | Y655: . | AB655: . | AC655: . | AD655: . | AE655: . | AF655: . | AG655: . | AH655: . | AI655: . | AJ655: . | AK655: . | AN655: . | AO655: . | AP655: . | AQ655: . | AR655: . | AS655: . | AT655: . | AU655: . | AV655: .
B666: PAC | C666: Obligatoire | D666: . | E666: =Calculs!D$120 ->  | F666: =Calculs!E$120 ->  | G666: . | H666: . | I666: . | J666: . | O666: . | P666: . | Q666: . | R666: . | S666: . | Y666: . | AB666: . | AC666: . | AD666: . | AE666: . | AF666: . | AG666: . | AH666: . | AI666: . | AJ666: . | AK666: . | AN666: . | AO666: . | AP666: . | AQ666: . | AR666: . | AS666: . | AT666: . | AU666: . | AV666: .
B677: PAC | C677: Obligatoire | D677: . | E677: =Calculs!D$121 -> Accessoires Supports unité extérieure : Plots anti-vibratiles en caoutchouc (x4) | F677: =Calculs!E$121 -> . | G677: . | H677: . | I677: . | J677: . | O677: . | P677: . | Q677: . | R677: . | S677: . | Y677: . | AB677: . | AC677: . | AD677: . | AE677: . | AF677: . | AG677: . | AH677: . | AI677: . | AJ677: . | AK677: . | AN677: . | AO677: . | AP677: . | AQ677: . | AR677: . | AS677: . | AT677: . | AU677: . | AV677: .
C678: Ajustez les quantités | D678: 0020252872 | E678: =VLOOKUP(D678,MATRICE_VA,2,FALSE) -> Plots anti-vibratiles (x4) | F678: =VLOOKUP(D678,MATRICE_VA,3,FALSE) -> 63 | G678: =_xlfn.NUMBERVALUE($AW678) -> 1 | H678: =_xlfn.NUMBERVALUE($AW678) -> 1 | I678: 1 | J678: 1 | K678: 1 | L678: 1 | M678: 1 | N678: 1 | O678: 1 | P678: 1 | Q678: 1 | R678: 1 | S678: 1 | T678: 1 | U678: 1 | V678: 1 | W678: 1 | X678: 1 | AW678: =_xlfn.NUMBERVALUE($AW$5) -> 1
B688: PAC | C688: Obligatoire | D688: . | E688: =Calculs!D$122 -> Accessoires Supports unité extérieure : Support anti-vibratiles en caoutchouc | F688: =Calculs!E$122 -> . | G688: . | H688: . | I688: . | J688: . | O688: . | P688: . | Q688: . | R688: . | S688: . | Y688: . | AB688: . | AC688: . | AD688: . | AE688: . | AF688: . | AG688: . | AH688: . | AI688: . | AJ688: . | AK688: . | AN688: . | AO688: . | AP688: . | AQ688: . | AR688: . | AS688: . | AT688: . | AU688: . | AV688: .
C689: Ajustez les quantités | D689: 0020252059 | E689: =VLOOKUP(D689,MATRICE_VA,2,FALSE) -> Pieds anti-vibratiles 60 cm | F689: =VLOOKUP(D689,MATRICE_VA,3,FALSE) -> 125 | G689: =_xlfn.NUMBERVALUE($AW689) -> 1 | H689: 1 | I689: 1 | J689: 1 | K689: 1 | L689: 1 | M689: 1 | N689: 1 | O689: 1 | P689: 1 | Q689: 1 | R689: 1 | S689: 1 | T689: 1 | U689: 1 | V689: 1 | W689: 1 | X689: 1 | AW689: =_xlfn.NUMBERVALUE($AW$5) -> 1
B699: PAC | C699: Obligatoire | D699: . | E699: =Calculs!D$123 -> Accessoires Supports unité extérieure : Réhausse anti-neige (40 cm) | F699: =Calculs!E$123 -> . | G699: . | H699: . | I699: . | J699: . | O699: . | P699: . | Q699: . | R699: . | S699: . | Y699: . | AB699: . | AC699: . | AD699: . | AE699: . | AF699: . | AG699: . | AH699: . | AI699: . | AJ699: . | AK699: . | AN699: . | AO699: . | AP699: . | AQ699: . | AR699: . | AS699: . | AT699: . | AU699: . | AV699: .
C700: Non | D700: 0010027985 | E700: =VLOOKUP(D700,MATRICE_VA,2,FALSE) -> Réhausse anti-neige (+plots) | F700: =VLOOKUP(D700,MATRICE_VA,3,FALSE) -> 401 | G700: =_xlfn.NUMBERVALUE($AW700) -> 1 | H700: 1 | I700: 1 | J700: 1 | K700: 1 | L700: 1 | M700: 1 | N700: 1 | O700: 1 | P700: 1 | Q700: 1 | R700: 1 | S700: 1 | T700: 1 | U700: 1 | V700: 1 | W700: 1 | X700: 1 | AW700: =_xlfn.NUMBERVALUE($AW$5) -> 1
B710: PAC | C710: Obligatoire | D710: . | E710: =Calculs!D$124 -> Accessoires Supports unité extérieure : Support mural pour mur isolé (PAC < 10 kW) | F710: =Calculs!E$124 -> . | G710: . | H710: . | I710: . | J710: . | O710: . | P710: . | Q710: . | R710: . | S710: . | Y710: . | AB710: . | AC710: . | AD710: . | AE710: . | AF710: . | AG710: . | AH710: . | AI710: . | AJ710: . | AK710: . | AN710: . | AO710: . | AP710: . | AQ710: . | AR710: . | AS710: . | AT710: . | AU710: . | AV710: .
C711: Non | D711: 0020252046 | E711: =VLOOKUP(D711,MATRICE_VA,2,FALSE) -> Support mural pour mur isolé | F711: =VLOOKUP(D711,MATRICE_VA,3,FALSE) -> 469 | G711: =_xlfn.NUMBERVALUE($AW711) -> 1 | H711: 1 | I711: 1 | J711: 1 | K711: 1 | L711: 1 | M711: 1 | N711: 1 | O711: 1 | P711: 1 | Q711: 1 | R711: 1 | S711: 1 | T711: 1 | U711: 1 | V711: 1 | W711: 1 | X711: 1 | AW711: =_xlfn.NUMBERVALUE($AW$5) -> 1
B721: PAC | C721: Obligatoire | D721: . | E721: =Calculs!D$125 -> Accessoires Supports unité extérieure : Support mural standard (PAC < 10 kW) | F721: =Calculs!E$125 -> . | G721: . | H721: . | I721: . | J721: . | O721: . | P721: . | Q721: . | R721: . | S721: . | Y721: . | AB721: . | AC721: . | AD721: . | AE721: . | AF721: . | AG721: . | AH721: . | AI721: . | AJ721: . | AK721: . | AN721: . | AO721: . | AP721: . | AQ721: . | AR721: . | AS721: . | AT721: . | AU721: . | AV721: .
C722: Ajustez les quantités | D722: 0020252047 | E722: =VLOOKUP(D722,MATRICE_VA,2,FALSE) -> Support mural standard | F722: =VLOOKUP(D722,MATRICE_VA,3,FALSE) -> 262 | G722: =_xlfn.NUMBERVALUE($AW722) -> 1 | H722: 1 | I722: 1 | J722: 1 | K722: 1 | L722: 1 | M722: 1 | N722: 1 | O722: 1 | P722: 1 | Q722: 1 | R722: 1 | S722: 1 | T722: 1 | U722: 1 | V722: 1 | W722: 1 | X722: 1 | AW722: =_xlfn.NUMBERVALUE($AW$5) -> 1
B732: PAC | C732: Obligatoire | D732: . | E732: Mise en service | F732: . | G732: . | H732: . | I732: . | J732: . | K732: . | L732: . | M732: . | N732: . | O732: . | P732: . | Q732: . | R732: . | S732: . | T732: . | U732: . | V732: . | W732: . | X732: . | Y732: . | AB732: . | AC732: . | AD732: . | AE732: . | AF732: . | AI732: . | AJ732: . | AK732: . | AN732: . | AO732: . | AP732: . | AQ732: . | AR732: . | AS732: . | AT732: . | AU732: . | AV732: . | AW732: .
C733: Oui | D733: 0010028531 | E733: =VLOOKUP(D733,MATRICE_VA,2,FALSE) -> Mise en service GeniaAir monobloc (à commander sur e-Shop) | F733: =VLOOKUP(D733,MATRICE_VA,3,FALSE) -> 300 | G733: =$AW733 -> 1 | H733: =$AW733 -> 1 | I733: 1 | J733: 1 | K733: 1 | L733: 1 | M733: 1 | N733: 1 | O733: 1 | P733: 1 | Q733: 1 | R733: 1 | S733: 1 | T733: 1 | U733: 1 | V733: 1 | W733: 1 | X733: 1 | AW733: =_xlfn.NUMBERVALUE($AW$5) -> 1
B743: PAC | C743: Obligatoire | D743: . | E743: Matériel à prévoir | F743: . | G743: . | H743: . | I743: . | J743: . | O743: . | P743: . | Q743: . | R743: . | S743: . | Y743: . | AB743: . | AC743: . | AD743: . | AE743: . | AF743: . | AG743: . | AH743: . | AI743: . | AJ743: . | AK743: . | AN743: . | AO743: . | AP743: . | AQ743: . | AR743: . | AS743: . | AT743: . | AU743: . | AV743: .
C744: Ajustez les quantités | D744: A prévoir | E744: Filtre à tamis sur le retour PAC | F744: - | G744: =$AW744 -> 1 | H744: =$AW744 -> 1 | I744: 1 | J744: 1 | K744: 1 | L744: 1 | M744: 1 | N744: 1 | O744: 1 | P744: 1 | Q744: 1 | R744: 1 | S744: 1 | T744: 1 | U744: 1 | V744: 1 | W744: 1 | X744: 1 | AW744: =_xlfn.NUMBERVALUE($AW$5) -> 1
... 4 more rows

Sheet BDD_Commun (hidden)
B1: Logiciel PAC_2020 v2
D2: =Calculs!Z93 -> INSTALLATIONS ET ACCESSOIRES pour la gamme BDD_G12 : 0 | G2: D | H2: D2 | I2: DM | J2: B-D | K2: B-D2 | L2: B-D3 | M2: B-M | N2: B-M2 | O2: B-M3 | P2: B-DM | Q2: B-D2M | R2: B-DM2 | S2: Q-D | T2: Q-D2 | U2: Q-DM | V2: Q-B-D | W2: Q-B-D2 | X2: Q-B-D3 | Y2: Q-B-M | Z2: Q-B-M2 | AA2: Q-B-M3 | AB2: Q-B-DM | AC2: Q-B-D2M | AD2: Q-B-DM2 | AE2: Cascade de PAC
B3: 02/08/2022 | G3: 1 | J3: 2 | K3: 3 | L3: 4 | M3: 5 | N3: 6 | O3: 7 | P3: 8 | Q3: 9 | R3: 10 | S3: 11 | V3: 12 | W3: 13 | X3: 14 | Y3: 15 | Z3: 16 | AA3: 17 | AB3: 18 | AC3: 19 | AD3: 20
E4: ="Recherche la configuration >> "&Calculs!G2086&" << =>" -> Recherche la configuration >> Q-B-D << => | F4: Schéma | G4: circuit Direct | H4: 2 circuits directs | I4: circuit direct et mélangé | J4: circuit direct sur bouteille | K4: 2 circuits directs sur bouteille | L4: 3 circuits directs sur bouteille | M4: circuit mélangé sur bouteille | N4: 2 circuits mélangés sur bouteille | O4: 3 circuits mélangés sur bouteille | P4: circuit direct et mélangé sur bouteille | Q4: 2 circuits directs et 1 mélangé sur bouteille | R4: 1 circuit direct et 2 mélangés sur bouteille | S4: circuit Direct | T4: 2 circuits directs | U4: circuit direct et mélangé | V4: circuit direct sur bouteille | W4: 2 circuits directs sur bouteille | X4: 3 circuits directs sur bouteille | Y4: circuit mélangé sur bouteille | Z4: 2 circuits mélangés sur bouteille | AA4: 3 circuits mélangés sur bouteille | AB4: circuit direct et mélangé sur bouteille | AC4: 2 circuits directs et 1 mélangé sur bouteille | AD4: 1 circuit direct et 2 mélangés sur bouteille | AE4: Nombre de PAC valeur à multipliers au accessoires
F5: Appoint | AE5: =Calculs!$C$2179 -> 1
F6: Mode gestion
F7: ECS
F8: BDD_G1 | G8: Var. possible | H8: Var. impossible | I8: Var. impossible | J8: Var. possible | K8: Var. possible | L8: Var. possible | M8: Var. possible | N8: Var. possible | O8: Var. possible | P8: Var. possible | Q8: Var. possible | R8: Var. possible | S8: Var. possible | T8: Var. impossible | U8: Var. impossible | V8: Var. possible | W8: Var. possible | X8: Var. possible | Y8: Var. possible | Z8: Var. possible | AA8: Var. possible | AB8: Var. possible | AC8: Var. possible | AD8: Var. possible
F9: BDD_G2 | G9: Var. possible | H9: Var. impossible | I9: Var. impossible | J9: Var. possible | K9: Var. possible | L9: Var. possible | M9: Var. possible | N9: Var. possible | O9: Var. possible | P9: Var. possible | Q9: Var. possible | R9: Var. possible | S9: Var. possible | T9: Var. impossible | U9: Var. impossible | V9: Var. possible | W9: Var. possible | X9: Var. possible | Y9: Var. possible | Z9: Var. possible | AA9: Var. possible | AB9: Var. possible | AC9: Var. possible | AD9: Var. possible
F10: BDD_G3 | G10: Var. possible | H10: Var. impossible | I10: Var. impossible | J10: Var. possible | K10: Var. possible | L10: Var. possible | M10: Var. possible | N10: Var. possible | O10: Var. possible | P10: Var. possible | Q10: Var. possible | R10: Var. possible | S10: Var. possible | T10: Var. impossible | U10: Var. impossible | V10: Var. possible | W10: Var. possible | X10: Var. possible | Y10: Var. possible | Z10: Var. possible | AA10: Var. possible | AB10: Var. possible | AC10: Var. possible | AD10: Var. possible
F11: BDD_G4 | G11: Var. possible | H11: Var. possible | I11: Var. possible | J11: Var. possible | K11: Var. possible | L11: Var. possible | M11: Var. possible | N11: Var. possible | O11: Var. possible | P11: Var. possible | Q11: Var. possible | R11: Var. possible | S11: Var. possible | T11: Var. possible | U11: Var. possible | V11: Var. possible | W11: Var. possible | X11: Var. possible | Y11: Var. possible | Z11: Var. possible | AA11: Var. possible | AB11: Var. possible | AC11: Var. possible | AD11: Var. possible
F12: BDD_G5 | G12: Var. possible | H12: Var. possible | I12: Var. possible | J12: Var. possible | K12: Var. possible | L12: Var. possible | M12: Var. possible | N12: Var. possible | O12: Var. possible | P12: Var. possible | Q12: Var. possible | R12: Var. possible | S12: Var. possible | T12: Var. possible | U12: Var. possible | V12: Var. possible | W12: Var. possible | X12: Var. possible | Y12: Var. possible | Z12: Var. possible | AA12: Var. possible | AB12: Var. possible | AC12: Var. possible | AD12: Var. possible
F13: .
D14: Réf. | E14: Dénomination | F14: PU HT
D15: . | E15: Pompes à chaleur de la gamme | G15: . | J15: . | K15: . | L15: . | M15: . | N15: . | O15: . | P15: . | Q15: . | R15: . | S15: . | V15: . | W15: . | X15: . | Y15: . | Z15: . | AA15: . | AB15: . | AC15: . | AD15: .
C30: Puissance | D30: . | E30: Appoint | G30: . | J30: . | K30: . | L30: . | M30: . | N30: . | O30: . | P30: . | Q30: . | R30: . | S30: . | V30: . | W30: . | X30: . | Y30: . | Z30: . | AA30: . | AB30: . | AC30: . | AD30: .
B75: PAC | C75: Obligatoire | D75: . | E75: Préparateur ECS | G75: . | J75: . | K75: . | L75: . | M75: . | N75: .
B90: PAC | C90: Obligatoire | D90: . | E90: Accessoires spécifiques à la gamme | G90: . | J90: . | K90: . | L90: . | M90: . | N90: . | O90: . | P90: . | Q90: . | R90: . | S90: . | V90: . | W90: . | X90: . | Y90: . | Z90: . | AA90: . | AB90: . | AC90: . | AD90: .
A111: BDD_Commun | B111: GeniaAir Max 4 - 230 V | C111: Non | D111: 0020269274 | E111: =VLOOKUP($D111,MATRICE_VA,2,FALSE) -> Réservoir 18 litres - GeniaSet | F111: =VLOOKUP(D111,MATRICE_VA,3,FALSE) -> 560 | S111: =$AE111 -> 1 | AE111: =IF(_xlfn.NUMBERVALUE($AE$5)>1,0,1) -> 1
B112: GeniaAir Max 5 - 230 V | C112: Non | D112: 0020269274 | E112: Réservoir 18 litres - GeniaSet | F112: 560 | S112: =$AE112 -> 1 | AE112: 1
B113: GeniaAir Max 8 - 230 V | C113: Non | D113: 0020269274 | E113: Réservoir 18 litres - GeniaSet | F113: 560 | S113: =$AE113 -> 1 | AE113: 1
B114: GeniaAir Max 4 - 230 V | C114: Non | D114: 0010034127 | E114: Ballon de découplage 45 litres | F114: 627 | G114: =$AE114 -> 1 | J114: =$AE114 -> 1 | K114: 1 | L114: 1 | M114: 1 | N114: 1 | O114: 1 | P114: =$AE114 -> 1 | Q114: =$AE114 -> 1 | R114: =$AE114 -> 1 | X114: =$AE114 -> 1 | Y114: 1 | Z114: 1 | AA114: 1 | AC114: =$AE114 -> 1 | AD114: =$AE114 -> 1 | AE114: 1
B115: GeniaAir Max 5 - 230 V | C115: Non | D115: 0010034127 | E115: Ballon de découplage 45 litres | F115: 627 | G115: 1 | J115: 1 | K115: 1 | L115: 1 | M115: 1 | N115: 1 | O115: 1 | P115: 1 | Q115: 1 | R115: 1 | X115: 1 | Y115: 1 | Z115: 1 | AA115: 1 | AC115: 1 | AD115: 1 | AE115: 1
B116: GeniaAir Max 8 - 230 V | C116: Non | D116: 0010034127 | E116: Ballon de découplage 45 litres | F116: 627 | G116: 1 | J116: 1 | K116: 1 | L116: 1 | M116: 1 | N116: 1 | O116: 1 | P116: 1 | Q116: 1 | R116: 1 | X116: 1 | Y116: 1 | Z116: 1 | AA116: 1 | AC116: 1 | AD116: 1 | AE116: 1
B117: GeniaAir Max 12 - 230 V | C117: Non | D117: 0010034127 | E117: Ballon de découplage 45 litres | F117: 627 | G117: 1 | J117: 1 | K117: 1 | L117: 1 | M117: 1 | N117: 1 | O117: 1 | P117: 1 | Q117: 1 | R117: 1 | V117: 1 | X117: 1 | Y117: 1 | Z117: 1 | AA117: 1 | AB117: =$AE117 -> 1 | AC117: 1 | AD117: 1 | AE117: 1
B118: GeniaAir Max 12 - 400 V | C118: Non | D118: 0010034127 | E118: Ballon de découplage 45 litres | F118: 627 | G118: 1 | J118: 1 | K118: 1 | L118: 1 | M118: 1 | N118: 1 | O118: 1 | P118: 1 | Q118: 1 | R118: 1 | V118: 1 | X118: 1 | Y118: 1 | Z118: 1 | AA118: 1 | AB118: 1 | AC118: 1 | AD118: 1 | AE118: 1
B119: GeniaAir Max 15 - 230 V | C119: Ajustez les quantités | D119: A prévoir | E119: Ballon de découplage ou volume libre > 60 litres | F119: - | G119: 1 | J119: 1 | K119: 1 | L119: 1 | M119: 1 | N119: 1 | O119: 1 | P119: 1 | Q119: 1 | R119: 1 | V119: 1 | X119: 1 | Y119: 1 | Z119: 1 | AA119: 1 | AB119: 1 | AC119: 1 | AD119: 1 | AE119: 1
B120: GeniaAir Max 15 - 400 V | C120: Ajustez les quantités | D120: A prévoir | E120: Ballon de découplage ou volume libre > 60 litres | F120: - | G120: 1 | J120: 1 | K120: 1 | L120: 1 | M120: 1 | N120: 1 | O120: 1 | P120: 1 | Q120: 1 | R120: 1 | V120: 1 | X120: 1 | Y120: 1 | Z120: 1 | AA120: 1 | AB120: 1 | AC120: 1 | AD120: 1 | AE120: 1
B121: GeniaAir Max 4 - 230 V | C121: Ajustez les quantités | D121: 0020188585 | E121: =VLOOKUP($D121,MATRICE_VA,2,FALSE) -> Module L 10 | F121: =VLOOKUP(D121,MATRICE_VA,3,FALSE) -> 539 | V121: 1 | W121: =$AE121 -> 1 | AB121: 1 | AE121: 1
B122: GeniaAir Max 5 - 230 V | C122: Ajustez les quantités | D122: 0020188585 | E122: Module L 10 | F122: =VLOOKUP(D122,MATRICE_VA,3,FALSE) -> 539 | V122: 1 | W122: 1 | AB122: 1 | AE122: 1
B123: GeniaAir Max 8 - 230 V | C123: Ajustez les quantités | D123: 0020188585 | E123: Module L 10 | F123: 539 | V123: 1 | W123: 1 | AB123: 1 | AE123: 1
B124: GeniaAir Max 4 - 230 V | C124: Ajustez les quantités | D124: 0020188587 | E124: Extension L 10 | F124: 252 | W124: 1 | AE124: 1
B125: GeniaAir Max 5 - 230 V | C125: Ajustez les quantités | D125: 0020188587 | E125: Extension L 10 | F125: 252 | W125: 1 | AE125: 1
B126: GeniaAir Max 8 - 230 V | C126: Ajustez les quantités | D126: 0020188587 | E126: Extension L 10 | F126: 252 | W126: 1 | AE126: 1
B127: GeniaAir Max 4 - 230 V | C127: Ajustez les quantités | D127: 0020188586 | E127: =VLOOKUP($D127,MATRICE_VA,2,FALSE) -> Extension L 11 | F127: 399 | AB127: =$AE127 -> 1 | AE127: 1
B128: GeniaAir Max 5 - 230 V | C128: Ajustez les quantités | D128: 0020188586 | E128: Extension L 11 | F128: 399 | AB128: =$AE128 -> 1 | AE128: 1
B129: GeniaAir Max 8 - 230 V | C129: Ajustez les quantités | D129: 0020188586 | E129: Extension L 11 | F129: 399 | AB129: =$AE129 -> 1 | AE129: 1
B130: GeniaAir Split 3 - 230V | C130: Non | D130: 0020269274 | E130: Réservoir 18 litres - GeniaSet | F130: 560 | S130: =$AE130 -> 1 | AE130: 1
B131: GeniaAir Split 5 - 230V | C131: Non | D131: 0020269274 | E131: Réservoir 18 litres - GeniaSet | F131: 560 | S131: 1 | AE131: 1
B132: GeniaAir Split 7 - 230V | C132: Non | D132: 0020269274 | E132: Réservoir 18 litres - GeniaSet | F132: 560 | S132: 1 | AE132: 1
B133: GeniaAir Split 3 - 230V | C133: Non | D133: 0010034127 | E133: Ballon de découplage 45 litres | F133: 627 | G133: =$AE133 -> 1 | J133: =$AE133 -> 1 | K133: 1 | L133: 1 | M133: 1 | N133: 1 | O133: 1 | P133: 1 | Q133: 1 | R133: 1 | X133: =$AE133 -> 1 | Y133: 1 | Z133: 1 | AA133: 1 | AC133: =$AE133 -> 1 | AD133: =$AE133 -> 1 | AE133: 1
B134: GeniaAir Split 5 - 230V | C134: Non | D134: 0010034127 | E134: Ballon de découplage 45 litres | F134: 627 | G134: 1 | J134: 1 | K134: 1 | L134: 1 | M134: 1 | N134: 1 | O134: 1 | P134: 1 | Q134: 1 | R134: 1 | X134: 1 | Y134: 1 | Z134: 1 | AA134: 1 | AC134: 1 | AD134: 1 | AE134: 1
B135: GeniaAir Split 7 - 230V | C135: Non | D135: 0010034127 | E135: Ballon de découplage 45 litres | F135: 627 | G135: 1 | J135: 1 | K135: 1 | L135: 1 | M135: 1 | N135: 1 | O135: 1 | P135: 1 | Q135: 1 | R135: 1 | X135: 1 | Y135: 1 | Z135: 1 | AA135: 1 | AC135: 1 | AD135: 1 | AE135: 1
B136: GeniaAir Split 10 - 230V | C136: Non | D136: 0010034127 | E136: Ballon de découplage 45 litres | F136: 627 | G136: 1 | J136: 1 | K136: 1 | L136: 1 | M136: 1 | N136: 1 | O136: 1 | P136: 1 | Q136: 1 | R136: 1 | V136: 1 | X136: 1 | Y136: 1 | Z136: 1 | AA136: 1 | AB136: 1 | AC136: 1 | AD136: 1 | AE136: 1
B137: GeniaAir Split 10 - 400V | C137: Non | D137: 0010034127 | E137: Ballon de découplage 45 litres | F137: 627 | G137: 1 | J137: 1 | K137: 1 | L137: 1 | M137: 1 | N137: 1 | O137: 1 | P137: 1 | Q137: 1 | R137: 1 | V137: 1 | X137: 1 | Y137: 1 | Z137: 1 | AA137: 1 | AB137: 1 | AC137: 1 | AD137: 1 | AE137: 1
B138: GeniaAir Split 12 - 230V | C138: Ajustez les quantités | D138: A prévoir | E138: Ballon de découplage ou volume libre > 60 litres | F138: - | G138: 1 | J138: 1 | K138: 1 | L138: 1 | M138: 1 | N138: 1 | O138: 1 | P138: 1 | Q138: 1 | R138: 1 | V138: 1 | X138: 1 | Y138: 1 | Z138: 1 | AA138: 1 | AB138: 1 | AC138: 1 | AD138: 1 | AE138: 1
B139: GeniaAir Split 12 - 400V | C139: Ajustez les quantités | D139: A prévoir | E139: Ballon de découplage ou volume libre > 60 litres | F139: - | G139: 1 | J139: 1 | K139: 1 | L139: 1 | M139: 1 | N139: 1 | O139: 1 | P139: 1 | Q139: 1 | R139: 1 | V139: 1 | X139: 1 | Y139: 1 | Z139: 1 | AA139: 1 | AB139: 1 | AC139: 1 | AD139: 1 | AE139: 1
B142: GeniaAir Split 3 - 230V | C142: Ajustez les quantités | D142: 0020188585 | E142: =VLOOKUP($D142,MATRICE_VA,2,FALSE) -> Module L 10 | F142: =VLOOKUP(D142,MATRICE_VA,3,FALSE) -> 539 | V142: 1 | W142: =$AE142 -> 1 | AB142: =$AE142 -> 1 | AE142: 1
B143: GeniaAir Split 5 - 230V | C143: Ajustez les quantités | D143: 0020188585 | E143: Module L 10 | F143: 539 | V143: 1 | W143: 1 | AB143: =$AE143 -> 1 | AE143: 1
B144: GeniaAir Split 7 - 230V | C144: Ajustez les quantités | D144: 0020188585 | E144: Module L 10 | F144: 539 | V144: 1 | W144: 1 | AB144: =$AE144 -> 1 | AE144: 1
B145: GeniaAir Split 3 - 230V | C145: Ajustez les quantités | D145: 0020188587 | E145: Extension L 10 | F145: 252 | W145: 1 | AE145: 1
B146: GeniaAir Split 5 - 230V | C146: Ajustez les quantités | D146: 0020188587 | E146: Extension L 10 | F146: 252 | W146: 1 | AE146: 1
B147: GeniaAir Split 7 - 230V | C147: Ajustez les quantités | D147: 0020188587 | E147: Extension L 10 | F147: 252 | W147: 1 | AE147: 1
B148: GeniaAir Split 3 - 230V | C148: Ajustez les quantités | D148: 0020188586 | E148: Extension L 11 | F148: 399 | AB148: =$AE148 -> 1 | AE148: 1
B149: GeniaAir Split 5 - 230V | C149: Ajustez les quantités | D149: 0020188586 | E149: Extension L 11 | F149: 399 | AB149: =$AE149 -> 1 | AE149: 1
B150: GeniaAir Split 7 - 230V | C150: Ajustez les quantités | D150: 0020188586 | E150: Extension L 11 | F150: 399 | AB150: =$AE150 -> 1 | AE150: 1
B151: GeniaAir 5/2 | C151: Non | D151: 0020269274 | E151: Réservoir 18 litres - GeniaSet | F151: 560 | S151: =$AE151 -> 1 | AE151: 1
B152: GeniaAir 8/2 | C152: Non | D152: 0020269274 | E152: Réservoir 18 litres - GeniaSet | F152: 560 | S152: 1 | AE152: 1
B153: GeniaAir 5/2 | C153: Non | D153: 0010034127 | E153: Ballon de découplage 45 litres | F153: 627 | G153: =$AE153 -> 1 | J153: =$AE153 -> 1 | K153: 1 | L153: 1 | M153: 1 | N153: 1 | O153: 1 | P153: 1 | Q153: 1 | R153: 1 | V153: =$AE153 -> 1 | X153: 1 | Y153: 1 | Z153: 1 | AA153: 1 | AC153: =$AE153 -> 1 | AD153: 1 | AE153: 1
B154: GeniaAir 8/2 | C154: Non | D154: 0010034127 | E154: Ballon de découplage 45 litres | F154: 627 | G154: =$AE154 -> 1 | J154: 1 | K154: 1 | L154: 1 | M154: 1 | N154: 1 | O154: 1 | P154: 1 | Q154: 1 | R154: 1 | V154: 1 | X154: 1 | Y154: 1 | Z154: 1 | AA154: 1 | AC154: 1 | AD154: 1 | AE154: 1
B155: GeniaAir 11 | C155: Non | D155: 0010034127 | E155: Ballon de découplage 45 litres | F155: 627 | G155: =$AE155 -> 1 | J155: 1 | K155: 1 | L155: 1 | M155: 1 | N155: 1 | O155: 1 | P155: 1 | Q155: 1 | R155: 1 | V155: 1 | X155: 1 | Y155: 1 | Z155: 1 | AA155: 1 | AC155: 1 | AD155: 1 | AE155: 1
B156: GeniaAir 15 | C156: Ajustez les quantités | D156: A prévoir | E156: Ballon de découplage ou volume libre > 60 litres | F156: - | G156: =$AE156 -> 1 | J156: 1 | K156: 1 | L156: 1 | M156: 1 | N156: 1 | O156: 1 | P156: 1 | Q156: 1 | R156: 1 | V156: 1 | X156: 1 | Y156: 1 | Z156: 1 | AA156: 1 | AB156: 1 | AC156: 1 | AD156: 1 | AE156: 1
B157: GeniaAir 5/2 | C157: Ajustez les quantités | D157: 0020188585 | E157: Module L 10 | F157: =VLOOKUP(D157,MATRICE_VA,3,FALSE) -> 539 | V157: 1 | W157: =$AE157 -> 1 | AB157: =$AE157 -> 1 | AE157: 1
B158: GeniaAir 8/2 | C158: Ajustez les quantités | D158: 0020188585 | E158: Module L 10 | F158: 539 | V158: 1 | W158: =$AE158 -> 1 | AB158: =$AE158 -> 1 | AE158: 1
B159: GeniaAir 5/2 | C159: Ajustez les quantités | D159: 0020188587 | E159: Extension L 10 | F159: 252 | W159: =$AE159 -> 1 | AE159: 1
B160: GeniaAir 8/2 | C160: Ajustez les quantités | D160: 0020188587 | E160: Extension L 10 | F160: 252 | W160: =$AE160 -> 1 | AE160: 1
B161: GeniaAir 5/2 | C161: Ajustez les quantités | D161: 0020188586 | E161: Extension L 11 | F161: 399 | AB161: =$AE161 -> 1 | AE161: 1
B162: GeniaAir 8/2 | C162: Ajustez les quantités | D162: 0020188586 | E162: Extension L 11 | F162: 399 | AB162: =$AE162 -> 1 | AE162: 1
B163: GeniaAir Tek 4 230 V | C163: Non | D163: 0010034127 | E163: Ballon de découplage 45 litres | F163: 627 | G163: =$AE163 -> 1 | J163: =$AE163 -> 1 | K163: 1 | L163: 1 | M163: 1 | N163: 1 | O163: 1 | P163: 1 | Q163: 1 | R163: 1 | X163: =$AE163 -> 1 | Y163: 1 | Z163: 1 | AA163: 1 | AB163: 1 | AC163: =$AE163 -> 1 | AD163: =$AE163 -> 1 | AE163: 1
B164: GeniaAir Tek 6 230 V | C164: Non | D164: 0010034127 | E164: Ballon de découplage 45 litres | F164: 627 | G164: =$AE164 -> 1 | J164: 1 | K164: 1 | L164: 1 | M164: 1 | N164: 1 | O164: 1 | P164: 1 | Q164: 1 | R164: 1 | X164: 1 | Y164: 1 | Z164: 1 | AA164: 1 | AB164: 1 | AC164: 1 | AD164: 1 | AE164: 1
B165: GeniaAir Tek 8 230 V | C165: Non | D165: 0010034127 | E165: Ballon de découplage 45 litres | F165: 627 | G165: =$AE165 -> 1 | J165: 1 | K165: 1 | L165: 1 | M165: 1 | N165: 1 | O165: 1 | P165: 1 | Q165: 1 | R165: 1 | X165: 1 | Y165: 1 | Z165: 1 | AA165: 1 | AB165: 1 | AC165: 1 | AD165: 1 | AE165: 1
B166: GeniaAir Tek 10 230 V | C166: Non | D166: 0010034127 | E166: Ballon de découplage 45 litres | F166: 627 | G166: =$AE166 -> 1 | J166: 1 | K166: 1 | L166: 1 | M166: 1 | N166: 1 | O166: 1 | P166: 1 | Q166: 1 | R166: 1 | X166: 1 | Y166: 1 | Z166: 1 | AA166: 1 | AB166: 1 | AC166: 1 | AD166: 1 | AE166: 1
B167: GeniaAir Tek 4 230 V | C167: Oui | D167: 0010038166 | E167: =VLOOKUP(D167,MATRICE_VA,2,FALSE) -> GeniaSet Tek - 1 Zone | F167: 5117 | S167: 1 | T167: 1 | V167: 1 | W167: 1 | X167: 1 | Y167: 1 | Z167: 1 | AA167: 1 | AB167: 1 | AC167: 1 | AD167: 1
B168: GeniaAir Tek 6 230 V | C168: Oui | D168: 0010038166 | E168: GeniaSet Tek - 1 Zone | F168: 5117 | S168: 1 | T168: 1 | V168: 1 | W168: 1 | X168: 1 | Y168: 1 | Z168: 1 | AA168: 1 | AB168: 1 | AC168: 1 | AD168: 1
B169: GeniaAir Tek 8 230 V | C169: Oui | D169: 0010038166 | E169: GeniaSet Tek - 1 Zone | F169: 5117 | S169: 1 | T169: 1 | V169: 1 | W169: 1 | X169: 1 | Y169: 1 | Z169: 1 | AA169: 1 | AB169: 1 | AC169: 1 | AD169: 1
B170: GeniaAir Tek 10 230 V | C170: Oui | D170: 0010038166 | E170: GeniaSet Tek - 1 Zone | F170: 5117 | S170: 1 | T170: 1 | V170: 1 | W170: 1 | X170: 1 | Y170: 1 | Z170: 1 | AA170: 1 | AB170: 1 | AC170: 1 | AD170: 1
B171: GeniaAir Tek 4 230 V | C171: Oui | D171: 0010038167 | E171: GeniaSet Tek - 2 Zones | F171: 6340 | U171: 1
B172: GeniaAir Tek 6 230 V | C172: Oui | D172: 0010038167 | E172: GeniaSet Tek - 2 Zones | F172: 6340 | U172: 1
B173: GeniaAir Tek 8 230 V | C173: Oui | D173: 0010038167 | E173: GeniaSet Tek - 2 Zones | F173: 6340 | U173: 1
B174: GeniaAir Tek 10 230 V | C174: Oui | D174: 0010038167 | E174: GeniaSet Tek - 2 Zones | F174: 6340 | U174: 1
B175: GeniaAir Tek 4 230 V | C175: Oui | D175: 0010039990 | E175: Module Z 20 C | F175: 164 | H175: 1 | T175: 1
B176: GeniaAir Tek 6 230 V | C176: Oui | D176: 0010039990 | E176: Module Z 20 C | F176: 164 | H176: 1 | T176: 1
B177: GeniaAir Tek 8 230 V | C177: Oui | D177: 0010039990 | E177: Module Z 20 C | F177: 164 | H177: 1 | T177: 1
B178: GeniaAir Tek 10 230 V | C178: Oui | D178: 0010039990 | E178: Module Z 20 C | F178: 164 | H178: 1 | T178: 1
B179: GeniaAir Max 12 - 230 V | C179: Ajustez les quantités | D179: A prévoir | E179: Circulateur zone 1 (après bouteille ou ballon tampon) | F179: - | V179: 1 | AB179: 1
B180: GeniaAir Max 12 - 400 V | C180: Ajustez les quantités | D180: A prévoir | E180: Circulateur zone 1 (après bouteille ou ballon tampon) | F180: - | V180: 1 | AB180: 1
B181: GeniaAir Max 15 - 230 V | C181: Ajustez les quantités | D181: A prévoir | E181: Circulateur zone 1 (après bouteille ou ballon tampon) | F181: - | V181: 1 | AB181: 1
B182: GeniaAir Max 15 - 400 V | C182: Ajustez les quantités | D182: A prévoir | E182: Circulateur zone 1 (après bouteille ou ballon tampon) | F182: - | V182: 1 | AB182: 1
B183: GeniaAir Split 10 - 230V | C183: Ajustez les quantités | D183: A prévoir | E183: Circulateur zone 1 (après bouteille ou ballon tampon) | F183: - | V183: 1 | AB183: 1
B184: GeniaAir Split 10 - 400V | C184: Ajustez les quantités | D184: A prévoir | E184: Circulateur zone 1 (après bouteille ou ballon tampon) | F184: - | V184: 1 | AB184: 1
B185: GeniaAir Split 12 - 230V | C185: Ajustez les quantités | D185: A prévoir | E185: Circulateur zone 1 (après bouteille ou ballon tampon) | F185: - | V185: 1 | AB185: 1
B186: GeniaAir Split 12 - 400V | C186: Ajustez les quantités | D186: A prévoir | E186: Circulateur zone 1 (après bouteille ou ballon tampon) | F186: - | V186: 1 | AB186: 1
B187: GeniaAir 11 | C187: Ajustez les quantités | D187: A prévoir | E187: Circulateur zone 1 (après bouteille ou ballon tampon) | F187: - | V187: 1 | AB187: 1
B188: GeniaAir 15 | C188: Ajustez les quantités | D188: A prévoir | E188: Circulateur zone 1 (après bouteille ou ballon tampon) | F188: - | V188: 1 | AB188: 1
B189: GeniaAir Max 12 - 230 V | C189: Ajustez les quantités | D189: A prévoir | E189: Circulateur zone 2 et vanne 3 voies motorisées (230 V) | F189: - | AB189: 1
B190: GeniaAir Max 12 - 400 V | C190: Ajustez les quantités | D190: A prévoir | E190: Circulateur zone 2 et vanne 3 voies motorisées (230 V) | F190: - | AB190: 1
B191: GeniaAir Max 15 - 230 V | C191: Ajustez les quantités | D191: A prévoir | E191: Circulateur zone 2 et vanne 3 voies motorisées (230 V) | F191: - | AB191: 1
B192: GeniaAir Max 15 - 400 V | C192: Ajustez les quantités | D192: A prévoir | E192: Circulateur zone 2 et vanne 3 voies motorisées (230 V) | F192: - | AB192: 1
B193: GeniaAir Split 10 - 230V | C193: Ajustez les quantités | D193: A prévoir | E193: Circulateur zone 2 et vanne 3 voies motorisées (230 V) | F193: - | AB193: 1
B194: GeniaAir Split 10 - 400V | C194: Ajustez les quantités | D194: A prévoir | E194: Circulateur zone 2 et vanne 3 voies motorisées (230 V) | F194: - | AB194: 1
B195: GeniaAir Split 12 - 230V | C195: Ajustez les quantités | D195: A prévoir | E195: Circulateur zone 2 et vanne 3 voies motorisées (230 V) | F195: - | AB195: 1
B196: GeniaAir Split 12 - 400V | C196: Ajustez les quantités | D196: A prévoir | E196: Circulateur zone 2 et vanne 3 voies motorisées (230 V) | F196: - | AB196: 1
B197: GeniaAir 11 | C197: Ajustez les quantités | D197: A prévoir | E197: Circulateur zone 2 et vanne 3 voies motorisées (230 V) | F197: - | AB197: 1
B198: GeniaAir 15 | C198: Ajustez les quantités | D198: A prévoir | E198: Circulateur zone 2 et vanne 3 voies motorisées (230 V) | F198: - | AB198: 1
C199: Ajustez les quantités | D199: A prévoir | E199: Circulateur(s) (après bouteille ou ballon tampon) | F199: - | J199: 1 | K199: 2 | L199: 3 | M199: 1 | N199: 2 | O199: 3 | P199: 2 | Q199: 3 | R199: 3 | W199: 2 | X199: 3 | Y199: 1 | Z199: 2 | AA199: 3 | AC199: 2 | AD199: 3
C200: Ajustez les quantités | D200: A prévoir | E200: Vanne(s) 3 voies motorisées (230 V) | F200: - | M200: 1 | N200: 2 | O200: 3 | P200: 1 | Q200: 1 | R200: 2 | Y200: 1 | Z200: 2 | AA200: 3 | AC200: 1 | AD200: 2
B291: PAC | C291: Obligatoire | D291: . | E291: =Calculs!Z$95 -> Accessoires ECS : Chaudière seule ou électrique | G291: . | J291: . | K291: . | L291: . | M291: . | N291: . | O291: . | P291: . | Q291: . | R291: . | S291: . | V291: . | W291: . | X291: . | Y291: . | Z291: . | AA291: . | AB291: . | AC291: . | AD291: .
B302: PAC | C302: Obligatoire | D302: . | E302: =Calculs!Z$96 -> Accessoires ECS : Ballon ECS 200 l PAC | G302: . | J302: . | K302: . | L302: . | M302: . | N302: . | O302: . | P302: . | Q302: . | R302: . | S302: . | V302: . | W302: . | X302: . | Y302: . | Z302: . | AA302: . | AB302: . | AC302: . | AD302: .
B313: PAC | C313: Obligatoire | D313: . | E313: =Calculs!Z$97 -> Accessoires ECS : Ballon ECS 300 l PAC | G313: . | J313: . | K313: . | L313: . | M313: . | N313: . | O313: . | P313: . | Q313: . | R313: . | S313: . | V313: . | W313: . | X313: . | Y313: . | Z313: . | AA313: . | AB313: . | AC313: . | AD313: .
B324: PAC | C324: Obligatoire | D324: . | E324: =Calculs!Z$96 -> Accessoires ECS : Ballon ECS 200 l PAC | G324: . | J324: . | K324: . | L324: . | M324: . | N324: . | O324: . | P324: . | Q324: . | R324: . | S324: . | V324: . | W324: . | X324: . | Y324: . | Z324: . | AA324: . | AB324: . | AC324: . | AD324: .
B335: PAC | C335: Obligatoire | D335: . | E335: =Calculs!Z$97 -> Accessoires ECS : Ballon ECS 300 l PAC | G335: . | J335: . | K335: . | L335: . | M335: . | N335: . | O335: . | P335: . | Q335: . | R335: . | S335: . | V335: . | W335: . | X335: . | Y335: . | Z335: . | AA335: . | AB335: . | AC335: . | AD335: .
B346: PAC | C346: Obligatoire | D346: . | E346: =Calculs!Z$100 -> Accessoires ECS : Ballon ECS intégré | G346: . | J346: . | K346: . | L346: . | M346: . | N346: . | O346: . | P346: . | Q346: . | R346: . | S346: . | V346: . | W346: . | X346: . | Y346: . | Z346: . | AA346: . | AB346: . | AC346: . | AD346: .
A357: BDD_Commun | B357: PAC | C357: Obligatoire | D357: . | E357: Accessoires régulation : MiPro Sense (tactile) | F357: . | G357: . | J357: . | K357: . | L357: . | M357: . | N357: . | O357: . | P357: . | Q357: . | R357: . | S357: . | V357: . | W357: . | X357: . | Y357: . | Z357: . | AA357: . | AB357: . | AC357: . | AD357: .
C358: Oui | D358: 0020260971 | E358: =VLOOKUP(D358,MATRICE_VA,2,FALSE) -> MiPro Sense | F358: =VLOOKUP(D358,MATRICE_VA,3,FALSE) -> 268 | G358: 1 | J358: 1 | K358: 1 | L358: 1 | M358: 1 | N358: 1 | O358: 1 | P358: 1 | Q358: 1 | R358: 1 | S358: 1 | T358: 1 | V358: 1 | W358: 1 | X358: 1 | Y358: 1 | Z358: 1 | AA358: 1 | AB358: 1 | AC358: 1 | AD358: 1
C359: Non | D359: 0020260982 | E359: =VLOOKUP(D359,MATRICE_VA,2,FALSE) -> Commande déportée MiPro Sense | F359: 264 | K359: 1 | L359: 2 | N359: 1 | O359: 2 | P359: 1 | Q359: 2 | R359: 2 | T359: 1 | W359: 1 | X359: 2 | Z359: 1 | AA359: 2 | AB359: 1 | AC359: 2 | AD359: 2
C361: Ajustez les quantités | D361: 0020257510 | E361: Module RED 5 | F361: 280 | K361: 1 | L361: 1 | M361: 1 | N361: 1 | O361: 1 | P361: 1 | Q361: 1 | R361: 1 | W361: 1 | X361: 1 | Y361: 1 | Z361: 1 | AA361: 1 | AB361: 1 | AC361: 1 | AD361: 1 | AE361: =IF($AE$5>1,1,0) -> 0
C362: Ajustez les quantités | D362: 0020257508 | E362: Module RED 3 | F362: 208 | G362: =$AE362 -> 0 | J362: =$AE362 -> 0 | S362: =$AE$362 -> 0 | T362: =$AE$362 -> 0 | V362: =$AE$362 -> 0 | AE362: =IF(OR(AND(Gamme_BDD_Gx<>"BDD_G1",Systeme_PAC_hybride=TRUE),$AE$5>1),1,0) -> 0
C363: Oui | D363: 0020231681 | E363: =VLOOKUP(D363,MATRICE_VA,2,FALSE) -> Coupleur Bus pour cascade PAC | F363: 127 | G363: =$AE363 -> 0 | J363: =$AE363 -> 0 | K363: =$AE363 -> 0 | L363: 0 | M363: 0 | N363: 0 | O363: 0 | P363: 0 | Q363: 0 | R363: 0 | S363: 0 | V363: =$AE363 -> 0 | W363: 0 | X363: 0 | Y363: 0 | Z363: 0 | AA363: 0 | AB363: 0 | AC363: 0 | AD363: 0 | AE363: =IF($AE$5>1,$AE$5-1,0) -> 0
C365: Oui | D365: 0020004238 | E365: =VLOOKUP(D365,MATRICE_VA,2,FALSE) -> Sonde ballon/chauffage | F365: 20 | J365: =IF(AE5>1,2,1) -> 1 | K365: 3 | L365: 3 | M365: 2 | N365: 3 | O365: 4 | P365: 3 | Q365: 4 | R365: 4 | S365: =$AE$365 -> 0 | T365: 3 | V365: 1 | W365: 3 | X365: 4 | Y365: 2 | Z365: 3 | AA365: 4 | AB365: 3 | AC365: 4 | AD365: 4 | AE365: =IF($AE$5>1,2,0) -> 0
C367: Oui | D367: 0020260979 | E367: MiPro Sense radio (obligatoire avec GeniaSet Tek 2 zones) | F367: =VLOOKUP(D367,MATRICE_VA,3,FALSE) -> 475 | U367: 1
C368: Non | D368: 0020260988 | E368: =VLOOKUP(D368,MATRICE_VA,2,FALSE) -> Commande déport. MiPro Sense R | F368: =VLOOKUP(D368,MATRICE_VA,3,FALSE) -> 359 | U368: 1
B369: GeniaAir Tek 4 230 V | C369: Ajustez les quantités | D369: A prévoir | E369: https://www.saunierduval.fr/professionnel/outils-professionnels/outils-avant-vente/schematheque/?q=0020318110 | F369: - | T369: 1
B370: GeniaAir Tek 6 230 V | C370: Ajustez les quantités | D370: A prévoir | E370: https://www.saunierduval.fr/professionnel/outils-professionnels/outils-avant-vente/schematheque/?q=0020318110 | F370: - | T370: 1
B371: GeniaAir Tek 8 230 V | C371: Ajustez les quantités | D371: A prévoir | E371: https://www.saunierduval.fr/professionnel/outils-professionnels/outils-avant-vente/schematheque/?q=0020318110 | F371: - | T371: 1
B372: GeniaAir Tek 10 230 V | C372: Ajustez les quantités | D372: A prévoir | E372: https://www.saunierduval.fr/professionnel/outils-professionnels/outils-avant-vente/schematheque/?q=0020318110 | F372: - | T372: 1
A378: BDD_Commun | B378: PAC | C378: Obligatoire | D378: . | E378: Accessoires régulation : MiPro Sense Radio (tactile) | F378: . | G378: . | J378: . | K378: . | L378: . | M378: . | N378: . | O378: . | P378: . | Q378: . | R378: . | S378: . | V378: . | W378: . | X378: . | Y378: . | Z378: . | AA378: . | AB378: . | AC378: . | AD378: .
C379: Oui | D379: 0020260979 | E379: =VLOOKUP(D379,MATRICE_VA,2,FALSE) -> MiPro Sense radio | F379: =VLOOKUP(D379,MATRICE_VA,3,FALSE) -> 475 | G379: 1 | J379: 1 | K379: 1 | L379: 1 | M379: 1 | N379: 1 | O379: 1 | P379: 1 | Q379: 1 | R379: 1 | S379: 1 | T379: 1 | U379: 1 | V379: 1 | W379: 1 | X379: 1 | Y379: 1 | Z379: 1 | AA379: 1 | AB379: 1 | AC379: 1 | AD379: 1
C380: Non | D380: 0020260988 | E380: =VLOOKUP(D380,MATRICE_VA,2,FALSE) -> Commande déport. MiPro Sense R | F380: =VLOOKUP(D380,MATRICE_VA,3,FALSE) -> 359 | K380: 1 | L380: 2 | N380: 1 | O380: 2 | P380: 1 | Q380: 2 | R380: 2 | T380: 1 | U380: 1 | W380: 1 | X380: 2 | Z380: 1 | AA380: 2 | AB380: 1 | AC380: 2 | AD380: 2
C382: Ajustez les quantités | D382: 0020257510 | E382: Module RED 5 | F382: =VLOOKUP(D382,MATRICE_VA,3,FALSE) -> 280 | K382: 1 | L382: 1 | M382: 1 | N382: 1 | O382: 1 | P382: 1 | Q382: 1 | R382: 1 | W382: 1 | X382: 1 | Y382: 1 | Z382: 1 | AA382: 1 | AB382: 1 | AC382: 1 | AD382: 1 | AE382: =IF($AE$5>1,1,0) -> 0
C383: Ajustez les quantités | D383: 0020257508 | E383: Module RED 3 | F383: =VLOOKUP(D383,MATRICE_VA,3,FALSE) -> 208 | G383: =$AE383 -> 0 | J383: =$AE383 -> 0 | S383: =$AE$362 -> 0 | V383: =$AE$362 -> 0 | AE383: =IF(OR(AND(Gamme_BDD_Gx<>"BDD_G1",Systeme_PAC_hybride=TRUE),$AE$5>1),1,0) -> 0
C384: Oui | D384: 0020231681 | E384: =VLOOKUP(D384,MATRICE_VA,2,FALSE) -> Coupleur Bus pour cascade PAC | F384: =VLOOKUP(D384,MATRICE_VA,3,FALSE) -> 127 | G384: =$AE384 -> 0 | J384: =$AE384 -> 0 | K384: =$AE384 -> 0 | L384: 0 | M384: 0 | N384: 0 | O384: 0 | P384: 0 | Q384: 0 | R384: 0 | S384: 0 | V384: =$AE384 -> 0 | W384: 0 | X384: 0 | Y384: 0 | Z384: 0 | AA384: 0 | AB384: 0 | AC384: 0 | AD384: 0 | AE384: =IF($AE$5>1,$AE$5-1,0) -> 0
C386: Oui | D386: 0020004238 | E386: =VLOOKUP(D386,MATRICE_VA,2,FALSE) -> Sonde ballon/chauffage | F386: =VLOOKUP(D386,MATRICE_VA,3,FALSE) -> 20 | J386: 1 | K386: 3 | L386: 4 | M386: 2 | N386: 3 | O386: 4 | P386: 3 | Q386: 4 | R386: 4 | S386: =$AE$365 -> 0 | V386: 1 | W386: 3 | X386: 4 | Y386: 2 | Z386: 3 | AA386: 4 | AB386: 3 | AC386: 4 | AD386: 4
A399: BDD_Commun | B399: PAC | C399: Obligatoire | D399: . | E399: Accessoires régulation : MiPro filaire | F399: . | G399: . | J399: . | K399: . | L399: . | M399: . | N399: . | O399: . | P399: . | Q399: . | R399: . | S399: . | V399: . | W399: . | X399: . | Y399: . | Z399: . | AA399: . | AB399: . | AC399: . | AD399: .
C400: Oui | D400: 0020218373 | E400: =VLOOKUP(D400,MATRICE_VA,2,FALSE) -> MiPro | F400: =VLOOKUP(D400,MATRICE_VA,3,FALSE) -> 229 | G400: =$AE400 -> 1 | J400: =$AE400 -> 1 | K400: 1 | L400: 1 | M400: 1 | N400: 1 | O400: 1 | P400: 1 | Q400: 1 | R400: 1 | S400: 1 | V400: 1 | W400: 1 | X400: 1 | Y400: 1 | Z400: 1 | AA400: 1 | AB400: 1 | AC400: 1 | AD400: 1 | AE400: =IF($AE$5>1,0,1) -> 1
C401: Oui | D401: 0020218375 | E401: =VLOOKUP(D401,MATRICE_VA,2,FALSE) -> Commande déportée MiPro | F401: 217 | K401: 1 | L401: 2 | N401: 1 | O401: 2 | P401: 1 | Q401: 2 | R401: 2 | W401: 1 | X401: 2 | Z401: 1 | AA401: 2 | AB401: 1 | AC401: 2 | AD401: 2 | AE401: =IF($AE$5>1,0,1) -> 1
C402: Oui | D402: 0020257510 | E402: Module RED 5 | F402: 280 | K402: 1 | L402: 1 | M402: 1 | N402: 1 | O402: 1 | P402: 1 | Q402: 1 | R402: 1 | W402: 1 | X402: 1 | Y402: 1 | Z402: 1 | AA402: 1 | AB402: 1 | AC402: 1 | AD402: 1 | AE402: =IF($AE$5>1,1,0) -> 0
C403: Oui | D403: 0020257508 | E403: Module RED 3 | F403: 208 | G403: =$AE403 -> 0 | J403: =$AE403 -> 0 | S403: =$AE$362 -> 0 | V403: =$AE$362 -> 0 | AE403: =IF(OR(AND(Gamme_BDD_Gx<>"BDD_G1",Systeme_PAC_hybride=TRUE),$AE$5>1),1,0) -> 0
C404: Oui | D404: 0020231681 | E404: =VLOOKUP(D404,MATRICE_VA,2,FALSE) -> Coupleur Bus pour cascade PAC | F404: 127 | G404: =$AE404 -> 0 | J404: =$AE404 -> 0 | K404: =$AE404 -> 0 | L404: 0 | M404: 0 | N404: 0 | O404: 0 | P404: 0 | Q404: 0 | R404: 0 | S404: 0 | V404: =$AE404 -> 0 | W404: 0 | X404: 0 | Y404: 0 | Z404: 0 | AA404: 0 | AB404: 0 | AC404: 0 | AD404: 0 | AE404: =IF($AE$5>1,$AE$5-1,0) -> 0
C406: Oui | D406: 0020004238 | E406: =VLOOKUP(D406,MATRICE_VA,2,FALSE) -> Sonde ballon/chauffage | F406: 20 | J406: 1 | K406: 2 | L406: 4 | M406: 2 | N406: 3 | O406: 4 | P406: 2 | Q406: 4 | R406: 4 | S406: 0 | V406: 1 | W406: 2 | X406: 4 | Y406: 2 | Z406: 3 | AA406: 4 | AB406: 2 | AC406: 4 | AD406: 4
A420: BDD_Commun | B420: PAC | C420: Obligatoire | D420: . | E420: =Calculs!Z$104 ->  | F420: =Calculs!AA$104 ->  | G420: . | J420: . | K420: . | L420: . | M420: . | N420: . | O420: . | P420: . | Q420: . | R420: . | S420: . | V420: . | W420: . | X420: . | Y420: . | Z420: . | AA420: . | AB420: . | AC420: . | AD420: .
A441: BDD_Commun | B441: PAC | C441: Obligatoire | D441: . | E441: =Calculs!Z$105 ->  | F441: =Calculs!AA$105 ->  | G441: . | J441: . | K441: . | L441: . | M441: . | N441: . | O441: . | P441: . | Q441: . | R441: . | S441: . | V441: . | W441: . | X441: . | Y441: . | Z441: . | AA441: . | AB441: . | AC441: . | AD441: . | AE441: .
B462: PAC | C462: Obligatoire | D462: . | E462: =Calculs!Z$106 ->  | F462: =Calculs!AA$106 ->  | G462: . | J462: . | K462: . | L462: . | M462: . | N462: . | O462: . | P462: . | Q462: . | R462: . | S462: . | V462: . | W462: . | X462: . | Y462: . | Z462: . | AA462: . | AB462: . | AC462: . | AD462: . | AE462: .
B473: PAC | C473: Obligatoire | D473: . | E473: =Calculs!Z$107 ->  | F473: =Calculs!AA$107 ->  | G473: . | J473: . | K473: . | L473: . | M473: . | N473: . | O473: . | P473: . | Q473: . | R473: . | S473: . | V473: . | W473: . | X473: . | Y473: . | Z473: . | AA473: . | AB473: . | AC473: . | AD473: . | AE473: .
B484: PAC | C484: Obligatoire | D484: . | E484: =Calculs!Z$108 ->  | F484: =Calculs!AA$108 ->  | G484: . | J484: . | K484: . | L484: . | M484: . | N484: . | O484: . | P484: . | Q484: . | R484: . | S484: . | V484: . | W484: . | X484: . | Y484: . | Z484: . | AA484: . | AB484: . | AC484: . | AD484: .
B495: PAC | C495: Obligatoire | D495: . | G495: . | J495: . | K495: . | L495: . | M495: . | N495: . | O495: . | P495: . | Q495: . | R495: . | S495: . | V495: . | W495: . | X495: . | Y495: . | Z495: . | AA495: . | AB495: . | AC495: . | AD495: .
B506: PAC | C506: Obligatoire | D506: . | G506: . | J506: . | K506: . | L506: . | M506: . | N506: . | O506: . | P506: . | Q506: . | R506: . | S506: . | V506: . | W506: . | X506: . | Y506: . | Z506: . | AA506: . | AB506: . | AC506: . | AD506: .
A517: BDD_Commun | B517: PAC | C517: Obligatoire | D517: . | E517: =INDIRECT(ADDRESS(ROW(),COLUMN(),1,1,Calculs!$G$1328)) -> Accessoires Bouteille tampon En série externe | F517: =INDIRECT(ADDRESS(ROW(),COLUMN(),1,1,Calculs!$G$1328)) -> . | G517: . | J517: . | K517: . | L517: . | M517: . | N517: . | O517: . | P517: . | Q517: . | R517: . | S517: . | V517: . | W517: . | X517: . | Y517: . | Z517: . | AA517: . | AB517: . | AC517: . | AD517: .
A528: BDD_Commun | B528: PAC | C528: Obligatoire | D528: . | E528: =INDIRECT(ADDRESS(ROW(),COLUMN(),1,1,Calculs!$G$1328)) -> Ballon tampon WN RW 50/3 B | F528: =INDIRECT(ADDRESS(ROW(),COLUMN(),1,1,Calculs!$G$1328)) -> 615 | G528: . | J528: . | K528: . | L528: . | M528: . | N528: . | O528: . | P528: . | Q528: . | R528: . | S528: . | T528: . | U528: . | V528: . | W528: . | X528: . | Y528: . | Z528: . | AA528: . | AB528: . | AC528: . | AD528: .
C529: Oui | D529: 0020188585 | E529: =VLOOKUP($D529,MATRICE_VA,2,FALSE) -> Module L 10 | F529: =VLOOKUP(D529,MATRICE_VA,3,FALSE) -> 539 | V529: 1
C530: Oui | D530: 0020188586 | E530: Extension L 11 | F530: 399
C531: Oui | D531: 0010038166 | E531: =VLOOKUP(D531,MATRICE_VA,2,FALSE) -> GeniaSet Tek - 1 Zone | F531: 5117
C532: Oui | D532: 0010038167 | E532: GeniaSet Tek - 2 Zones | F532: 6340
C533: Oui | D533: 0010039990 | E533: Module Z 20 C | F533: 164
C534: Ajustez les quantités | D534: A prévoir | E534: Circulateur zone 1 (après bouteille ou ballon tampon) | F534: -
C535: Ajustez les quantités | D535: A prévoir | E535: Circulateur zone 2 et vanne 3 voies motorisées (230 V) | F535: -
C536: Ajustez les quantités | D536: A prévoir | E536: Circulateur(s) (après bouteille ou ballon tampon) | F536: -
C537: Ajustez les quantités | D537: A prévoir | E537: Vanne(s) 3 voies motorisées (230 V) | F537: -
A539: BDD_Commun | B539: PAC | C539: Obligatoire | D539: . | E539: =INDIRECT(ADDRESS(ROW(),COLUMN(),1,1,Calculs!$G$1328)) -> Réservoir 18 litres - GeniaSet | F539: =INDIRECT(ADDRESS(ROW(),COLUMN(),1,1,Calculs!$G$1328)) -> 560 | G539: . | J539: . | K539: . | L539: . | M539: . | N539: . | O539: . | P539: . | Q539: . | R539: . | S539: . | V539: . | W539: . | X539: . | Y539: . | Z539: . | AA539: . | AB539: . | AC539: . | AD539: .
C540: Non | D540: 0020269274 | E540: =VLOOKUP($D540,MATRICE_VA,2,FALSE) -> Réservoir 18 litres - GeniaSet | F540: =VLOOKUP(D540,MATRICE_VA,3,FALSE) -> 560
C541: Non | D541: 0010034127 | E541: Ballon de découplage 45 litres | F541: 627
C545: Ajustez les quantités | D545: A prévoir | E545: Circulateur zone 1 (après bouteille ou ballon tampon) | F545: -
C546: Ajustez les quantités | D546: A prévoir | E546: Circulateur zone 2 et vanne 3 voies motorisées (230 V) | F546: -
C547: Ajustez les quantités | D547: A prévoir | E547: Circulateur(s) (après bouteille ou ballon tampon) | F547: -
C548: Ajustez les quantités | D548: A prévoir | E548: Vanne(s) 3 voies motorisées (230 V) | F548: -
A550: BDD_Commun | B550: PAC | C550: Obligatoire | D550: . | E550: =INDIRECT(ADDRESS(ROW(),COLUMN(),1,1,Calculs!$G$1328)) -> 0 | F550: =INDIRECT(ADDRESS(ROW(),COLUMN(),1,1,Calculs!$G$1328)) -> 0 | G550: . | J550: . | K550: . | L550: . | M550: . | N550: . | O550: . | P550: . | Q550: . | R550: . | S550: . | V550: . | W550: . | X550: . | Y550: . | Z550: . | AA550: . | AB550: . | AC550: . | AD550: .
A561: BDD_Commun | B561: PAC | C561: Obligatoire | D561: . | E561: =INDIRECT(ADDRESS(ROW(),COLUMN(),1,1,Calculs!$G$1328)) -> Ballon de découplage 45 litres | F561: =INDIRECT(ADDRESS(ROW(),COLUMN(),1,1,Calculs!$G$1328)) -> 627 | G561: . | J561: . | K561: . | L561: . | M561: . | N561: . | O561: . | P561: . | Q561: . | R561: . | S561: . | V561: . | W561: . | X561: . | Y561: . | Z561: . | AA561: . | AB561: . | AC561: . | AD561: .
B572: PAC | C572: Obligatoire | D572: . | E572: =Calculs!Z$116 ->  | F572: =INDIRECT(ADDRESS(ROW(),COLUMN(),1,1,Calculs!$G$1328)) -> - | G572: . | J572: . | K572: . | L572: . | M572: . | N572: . | O572: . | P572: . | Q572: . | R572: . | S572: . | V572: . | W572: . | X572: . | Y572: . | Z572: . | AA572: . | AB572: . | AC572: . | AD572: .
B583: PAC | C583: Obligatoire | D583: . | E583: =Calculs!Z$117 ->  | F583: =Calculs!AA$117 ->  | G583: . | J583: . | K583: . | L583: . | M583: . | N583: . | O583: . | P583: . | Q583: . | R583: . | S583: . | V583: . | W583: . | X583: . | Y583: . | Z583: . | AA583: . | AB583: . | AC583: . | AD583: .
B594: PAC | C594: Obligatoire | D594: . | E594: =Calculs!Z$118 ->  | F594: =Calculs!AA$118 ->  | G594: . | J594: . | K594: . | L594: . | M594: . | N594: . | O594: . | P594: . | Q594: . | R594: . | S594: . | V594: . | W594: . | X594: . | Y594: . | Z594: . | AA594: . | AB594: . | AC594: . | AD594: .
B605: PAC | C605: Obligatoire | D605: . | E605: =Calculs!Z$119 ->  | F605: =Calculs!AA$119 ->  | G605: . | J605: . | K605: . | L605: . | M605: . | N605: . | O605: . | P605: . | Q605: . | R605: . | S605: . | V605: . | W605: . | X605: . | Y605: . | Z605: . | AA605: . | AB605: . | AC605: . | AD605: .
B616: PAC | C616: Obligatoire | D616: . | E616: =Calculs!Z$120 ->  | F616: =Calculs!AA$120 ->  | G616: . | J616: . | K616: . | L616: . | M616: . | N616: . | O616: . | P616: . | Q616: . | R616: . | S616: . | V616: . | W616: . | X616: . | Y616: . | Z616: . | AA616: . | AB616: . | AC616: . | AD616: .
B627: PAC | C627: Obligatoire | D627: . | E627: =Calculs!Z$121 ->  | F627: =Calculs!AA$121 ->  | G627: . | J627: . | K627: . | L627: . | M627: . | N627: . | O627: . | P627: . | Q627: . | R627: . | S627: . | V627: . | W627: . | X627: . | Y627: . | Z627: . | AA627: . | AB627: . | AC627: . | AD627: .
B638: PAC | C638: Obligatoire | D638: . | E638: =Calculs!Z$122 ->  | F638: =Calculs!AA$122 ->  | G638: . | J638: . | K638: . | L638: . | M638: . | N638: . | O638: . | P638: . | Q638: . | R638: . | S638: . | V638: . | W638: . | X638: . | Y638: . | Z638: . | AA638: . | AB638: . | AC638: . | AD638: .
B649: PAC | C649: Obligatoire | D649: . | E649: =Calculs!Z$123 ->  | F649: =Calculs!AA$123 ->  | G649: . | J649: . | K649: . | L649: . | M649: . | N649: . | O649: . | P649: . | Q649: . | R649: . | S649: . | V649: . | W649: . | X649: . | Y649: . | Z649: . | AA649: . | AB649: . | AC649: . | AD649: .
B660: PAC | C660: Obligatoire | D660: . | E660: =Calculs!Z$124 ->  | F660: =Calculs!AA$124 ->  | G660: . | J660: . | K660: . | L660: . | M660: . | N660: . | O660: . | P660: . | Q660: . | R660: . | S660: . | V660: . | W660: . | X660: . | Y660: . | Z660: . | AA660: . | AB660: . | AC660: . | AD660: .
B671: PAC | C671: Obligatoire | D671: . | E671: =Calculs!Z$125 ->  | F671: =Calculs!AA$125 ->  | G671: . | J671: . | K671: . | L671: . | M671: . | N671: . | O671: . | P671: . | Q671: . | R671: . | S671: . | V671: . | W671: . | X671: . | Y671: . | Z671: . | AA671: . | AB671: . | AC671: . | AD671: .
B682: PAC | C682: Obligatoire | D682: . | E682: Mise en service | F682: . | G682: . | J682: . | K682: . | L682: . | M682: . | N682: . | Q682: . | R682: . | S682: . | V682: . | W682: . | X682: . | Y682: . | Z682: . | AA682: . | AB682: . | AC682: . | AD682: .
B693: PAC | C693: Obligatoire | D693: . | E693: Autres accessoires | G693: . | J693: . | K693: . | L693: . | M693: . | N693: . | O693: . | P693: . | Q693: . | R693: . | S693: . | V693: . | W693: . | X693: . | Y693: . | Z693: . | AA693: . | AB693: . | AC693: . | AD693: .

Sheet SchémaListe (hidden)
B1: Logiciel PAC_2020 v2
C2: Vers page PRINCIPALE | E2: Base de données de schémas
B3: 2022-08-02 | K3: K5=@INDEX($K$6:$K$125;Calculs!$G$1141;1) au 2021-03-10
B4: Marque | C4: Gamme | D4: N°schéma | E4: SCHEMA | F4: Variante | G4: Variante | H4: N° Configuration Système Vaillant VRC 700 | I4: N° Schema hydraulique vaillant VR 70/71 | J4: RT2012 Puissance pompe Vaillant autre que generateur | K4: Index du schéma elctrique à afficher | L4: Index du schéma Hydrauliqueà afficher | M4: ="Report Nouvelle adresse des ''schémas'' "&"Ligne : "&Calculs!C2183+6 -> Report Nouvelle adresse des ''schémas'' Ligne : 374 | N4: N° schéma groupe | O4: Variante 2 schema groupe radio < 10kW | P4: Variante 3 schema groupe > 10 kW | Q4: Si un schéma correspond à des critères hyper particulier | R4: Correspondance exacte ? | S4: Si pas de correspondance exacte, Nom du schéma proposé | T4: Lien Schéma groupe
K5: =INDEX($K$6:$K$1096,Calculs!$I$1331,1) -> 12 | L5: =INDEX($L$6:$L$1096,Calculs!$I$1331,1) -> 12 | M5: =Calculs!J2016 -> GeniaAir Max-Q-B-D | N5: =IF(ISNA(Q5),INDEX($N$6:$N$1096,Calculs!$I$1331,1),Q5) -> 0020284561 | O5: =INDEX($O$6:$O$1096,Calculs!$I$1331,1) -> 0 | P5: =INDEX($P$6:$P$1096,Calculs!$I$1331,1) -> 0 | Q5: =INDEX(N6:N1147,MATCH(TRUE,Q6:Q1147)) ->  | R5: =IF(ISNA(Q5),INDEX($R$6:$R$1096,Calculs!$I$1331,1),TRUE) -> TRUE | S5: =INDEX($S$6:$S$1096,Calculs!$I$1331,1) -> 0 | T5: ="https://www.saunierduval.fr/professionnel/outils-professionnels/outils-avant-vente/schematheque/?q="&IF(ISNA(Q5),NoSchemaGroupe,Q5) -> https://www.saunierduval.fr/professionnel/outils-professionnels/outils-avant-vente/schematheque/?q=0020284561
F6: 0020314910 | G6: 0020284619 | M6: GeniaAir Max2-B-D | N6: 0020314927 | R6: FALSE | S6: APPOINT DANS LE BALLON | T6: ="https://www.saunierduval.fr/professionnel/outils-professionnels/outils-avant-vente/schematheque/?q="&N6 -> https://www.saunierduval.fr/professionnel/outils-professionnels/outils-avant-vente/schematheque/?q=0020314927
M7: GeniaAir Max2-B-D2
M8: GeniaAir Max2-B-D2-EI
M9: GeniaAir Max2-B-D2M
M10: GeniaAir Max2-B-D2M-EI
M11: GeniaAir Max2-B-D3
M12: GeniaAir Max2-B-D3-EI
M13: GeniaAir Max2-B-D-EI
K14: 7 | L14: =ROW(D14)-ROW(D$5) -> 9 | M14: GeniaAir Max2-B-DM | N14: 0020328272 | R14: TRUE | T14: ="https://www.saunierduval.fr/professionnel/outils-professionnels/outils-avant-vente/schematheque/?q="&N14 -> https://www.saunierduval.fr/professionnel/outils-professionnels/outils-avant-vente/schematheque/?q=0020328272
M15: GeniaAir Max2-B-DM | N15: 0020328272 | R15: TRUE | T15: ="https://www.saunierduval.fr/professionnel/outils-professionnels/outils-avant-vente/schematheque/?q="&N15 -> https://www.saunierduval.fr/professionnel/outils-professionnels/outils-avant-vente/schematheque/?q=0020328272
M16: GeniaAir Max2-B-DM2 | N16: 0020322547 | R16: FALSE | S16: GeniaAir Max2-B-M | T16: ="https://www.saunierduval.fr/professionnel/outils-professionnels/outils-avant-vente/schematheque/?q="&N16 -> https://www.saunierduval.fr/professionnel/outils-professionnels/outils-avant-vente/schematheque/?q=0020322547
M17: GeniaAir Max2-B-DM2-EI
M18: GeniaAir Max2-B-DM-EI
F19: 0020284163 sans appoint | M19: GeniaAir Max2-B-M | N19: 0020322547 | R19: TRUE | T19: ="https://www.saunierduval.fr/professionnel/outils-professionnels/outils-avant-vente/schematheque/?q="&N19 -> https://www.saunierduval.fr/professionnel/outils-professionnels/outils-avant-vente/schematheque/?q=0020322547
M20: GeniaAir Max2-B-M2 | N20: 0020324375 | R20: TRUE | T20: ="https://www.saunierduval.fr/professionnel/outils-professionnels/outils-avant-vente/schematheque/?q="&N20 -> https://www.saunierduval.fr/professionnel/outils-professionnels/outils-avant-vente/schematheque/?q=0020324375
M21: GeniaAir Max2-B-M2-EI
M22: GeniaAir Max2-B-M3 | N22: 0020284632 | R22: TRUE | S22: SANS APPOINT | T22: ="https://www.saunierduval.fr/professionnel/outils-professionnels/outils-avant-vente/schematheque/?q="&N22 -> https://www.saunierduval.fr/professionnel/outils-professionnels/outils-avant-vente/schematheque/?q=0020284632
M23: GeniaAir Max2-B-M3-EI
M24: GeniaAir Max2-B-M-EI | N24: 0020314931 | R24: FALSE | S24: APPOINT DANS LE BALLON | T24: ="https://www.saunierduval.fr/professionnel/outils-professionnels/outils-avant-vente/schematheque/?q="&N24 -> https://www.saunierduval.fr/professionnel/outils-professionnels/outils-avant-vente/schematheque/?q=0020314931
M25: GeniaAir Max2-D
M26: GeniaAir Max2-E-B-D
M27: GeniaAir Max2-E-B-D2
M28: GeniaAir Max2-E-B-D2-EI
M29: GeniaAir Max2-E-B-D2M
M30: GeniaAir Max2-E-B-D2M-EI
M31: GeniaAir Max2-E-B-D3
M32: GeniaAir Max2-E-B-D3-EI
M33: GeniaAir Max2-E-B-D-EI
I34: (VR 71) FM5 : 3 | J34: 48 | K34: =ROW(C34)-ROW(C$5) -> 29 | L34: =ROW(D34)-ROW(D$5) -> 29 | M34: GeniaAir Max2-E-B-DM | N34: 0020328272 | R34: TRUE | T34: ="https://www.saunierduval.fr/professionnel/outils-professionnels/outils-avant-vente/schematheque/?q="&N34 -> https://www.saunierduval.fr/professionnel/outils-professionnels/outils-avant-vente/schematheque/?q=0020328272
M35: GeniaAir Max2-E-B-DM2
M36: GeniaAir Max2-E-B-DM2-EI
M37: GeniaAir Max2-E-B-DM-EI
M38: GeniaAir Max2-E-B-M
M39: GeniaAir Max2-E-B-M2
M40: GeniaAir Max2-E-B-M2-EI
M41: GeniaAir Max2-E-B-M3
M42: GeniaAir Max2-E-B-M3-EI
M43: GeniaAir Max2-E-B-M-EI
M44: GeniaAir Max2-E-D
M45: GeniaAir Max2-E-H-B-D
M46: GeniaAir Max2-E-H-B-D2
M47: GeniaAir Max2-E-H-B-D2-EI
M48: GeniaAir Max2-E-H-B-D2M
M49: GeniaAir Max2-E-H-B-D2M-EI
M50: GeniaAir Max2-E-H-B-D3
M51: GeniaAir Max2-E-H-B-D3-EI
M52: GeniaAir Max2-E-H-B-D-EI
M53: GeniaAir Max2-E-H-B-DM
M54: GeniaAir Max2-E-H-B-DM2
M55: GeniaAir Max2-E-H-B-DM2-EI
M56: GeniaAir Max2-E-H-B-DM-EI
M57: GeniaAir Max2-E-H-B-M
M58: GeniaAir Max2-E-H-B-M2
M59: GeniaAir Max2-E-H-B-M2-EI
M60: GeniaAir Max2-E-H-B-M3
M61: GeniaAir Max2-E-H-B-M3-EI
M62: GeniaAir Max2-E-H-B-M-EI
M63: GeniaAir Max2-E-H-D
M64: GeniaAir Max2-E-H-D-EI
M65: GeniaAir Max2-E-Hext-B-D
M66: GeniaAir Max2-E-Hext-B-D2
M67: GeniaAir Max2-E-Hext-B-D2-EI
M68: GeniaAir Max2-E-Hext-B-D2M
M69: GeniaAir Max2-E-Hext-B-D2M-EI
M70: GeniaAir Max2-E-Hext-B-D3
M71: GeniaAir Max2-E-Hext-B-D3-EI
M72: GeniaAir Max2-E-Hext-B-D-EI
M73: GeniaAir Max2-E-Hext-B-DM
M74: GeniaAir Max2-E-Hext-B-DM2
M75: GeniaAir Max2-E-Hext-B-DM2-EI
M76: GeniaAir Max2-E-Hext-B-DM-EI
M77: GeniaAir Max2-E-Hext-B-M
M78: GeniaAir Max2-E-Hext-B-M2
M79: GeniaAir Max2-E-Hext-B-M2-EI
M80: GeniaAir Max2-E-Hext-B-M3
M81: GeniaAir Max2-E-Hext-B-M3-EI
M82: GeniaAir Max2-E-Hext-B-M-EI | N82: 0020318098 | R82: TRUE | S82: GeniaAir Max2-EI-B-M | T82: ="https://www.saunierduval.fr/professionnel/outils-professionnels/outils-avant-vente/schematheque/?q="&N82 -> https://www.saunierduval.fr/professionnel/outils-professionnels/outils-avant-vente/schematheque/?q=0020318098
M83: GeniaAir Max2-EI-B-D | T83: https://www.saunierduval.fr/professionnel/outils-professionnels/outils-avant-vente/schematheque/?q=
M84: GeniaAir Max2-EI-B-D2 | N84: 0020318115 | R84: FALSE | S84: GeniaAir Max2-EI-B-M | T84: https://www.saunierduval.fr/professionnel/outils-professionnels/outils-avant-vente/schematheque/?q=0020318115
M85: GeniaAir Max2-EI-B-D2M | N85: 0020318115 | R85: FALSE | S85: GeniaAir Max2-EI-B-M | T85: https://www.saunierduval.fr/professionnel/outils-professionnels/outils-avant-vente/schematheque/?q=0020318115
M86: GeniaAir Max2-EI-B-D3 | T86: https://www.saunierduval.fr/professionnel/outils-professionnels/outils-avant-vente/schematheque/?q=
M87: GeniaAir Max2-EI-B-DM | N87: 0020318115 | R87: FALSE | S87: GeniaAir Max2-EI-B-M | T87: https://www.saunierduval.fr/professionnel/outils-professionnels/outils-avant-vente/schematheque/?q=0020318115
M88: GeniaAir Max2-EI-B-DM2 | N88: 0020318115 | R88: FALSE | S88: GeniaAir Max2-EI-B-M | T88: https://www.saunierduval.fr/professionnel/outils-professionnels/outils-avant-vente/schematheque/?q=0020318115
M89: GeniaAir Max2-EI-B-M | N89: 0020318115 | R89: TRUE | T89: https://www.saunierduval.fr/professionnel/outils-professionnels/outils-avant-vente/schematheque/?q=0020318115
M90: GeniaAir Max2-EI-B-M2 | N90: 0020318115 | R90: FALSE | S90: GeniaAir Max2-EI-B-M | T90: https://www.saunierduval.fr/professionnel/outils-professionnels/outils-avant-vente/schematheque/?q=0020318115
M91: GeniaAir Max2-EI-B-M3 | N91: 0020324353 | R91: FALSE | S91: GeniaAir Max2-EI-B-M3P | T91: https://www.saunierduval.fr/professionnel/outils-professionnels/outils-avant-vente/schematheque/?q=0020324353
M92: GeniaAir Max2-EI-D
M93: GeniaAir Max2-EI-E-B-D
M94: GeniaAir Max2-EI-E-B-D2
M95: GeniaAir Max2-EI-E-B-D2M
M96: GeniaAir Max2-EI-E-B-D3
M97: GeniaAir Max2-EI-E-B-DM
M98: GeniaAir Max2-EI-E-B-DM2
M99: GeniaAir Max2-EI-E-B-M
M100: GeniaAir Max2-EI-E-B-M2
M101: GeniaAir Max2-EI-E-B-M3
M102: GeniaAir Max2-EI-E-D
M103: GeniaAir Max2-E-Res-B-D
M104: GeniaAir Max2-E-Res-B-D2
M105: GeniaAir Max2-E-Res-B-D2-EI
M106: GeniaAir Max2-E-Res-B-D2M
M107: GeniaAir Max2-E-Res-B-D2M-EI
M108: GeniaAir Max2-E-Res-B-D3
M109: GeniaAir Max2-E-Res-B-D3-EI
M110: GeniaAir Max2-E-Res-B-D-EI
M111: GeniaAir Max2-E-Res-B-DM
M112: GeniaAir Max2-E-Res-B-DM2
M113: GeniaAir Max2-E-Res-B-DM2-EI
M114: GeniaAir Max2-E-Res-B-DM-EI
M115: GeniaAir Max2-E-Res-B-M
M116: GeniaAir Max2-E-Res-B-M2
M117: GeniaAir Max2-E-Res-B-M2-EI
M118: GeniaAir Max2-E-Res-B-M3
M119: GeniaAir Max2-E-Res-B-M3-EI
M120: GeniaAir Max2-E-Res-B-M-EI
M121: GeniaAir Max2-E-Res-D
M122: GeniaAir Max2-H-B-D | N122: 0020284640 | R122: TRUE | T122: ="https://www.saunierduval.fr/professionnel/outils-professionnels/outils-avant-vente/schematheque/?q="&N122 -> https://www.saunierduval.fr/professionnel/outils-professionnels/outils-avant-vente/schematheque/?q=0020284640
M123: GeniaAir Max2-H-B-D2
M124: GeniaAir Max2-H-B-D2-EI
M125: GeniaAir Max2-H-B-D2M
M126: GeniaAir Max2-H-B-D2M-EI
M127: GeniaAir Max2-H-B-D3
M128: GeniaAir Max2-H-B-D3-EI
M129: GeniaAir Max2-H-B-D-EI
M130: GeniaAir Max2-H-B-DM
M131: GeniaAir Max2-H-B-DM2
M132: GeniaAir Max2-H-B-DM2-EI
M133: GeniaAir Max2-H-B-DM-EI | U133: ="https://www.saunierduval.fr/professionnel/outils-professionnels/outils-avant-vente/schematheque/?q="&N133 -> https://www.saunierduval.fr/professionnel/outils-professionnels/outils-avant-vente/schematheque/?q=
M134: GeniaAir Max2-H-B-M
M135: GeniaAir Max2-H-B-M2
M136: GeniaAir Max2-H-B-M2-EI
M137: GeniaAir Max2-H-B-M3 | N137: 0020314880 | R137: TRUE | T137: ="https://www.saunierduval.fr/professionnel/outils-professionnels/outils-avant-vente/schematheque/?q="&N137 -> https://www.saunierduval.fr/professionnel/outils-professionnels/outils-avant-vente/schematheque/?q=0020314880
M138: GeniaAir Max2-H-B-M3-EI
M139: GeniaAir Max2-H-B-M-EI
M140: GeniaAir Max2-H-D
M141: GeniaAir Max2-H-D-EI
M142: GeniaAir Max2-Hext-B-D
M143: GeniaAir Max2-Hext-B-D2
M144: GeniaAir Max2-Hext-B-D2-EI
M145: GeniaAir Max2-Hext-B-D2M
M146: GeniaAir Max2-Hext-B-D2M-EI
M147: GeniaAir Max2-Hext-B-D3
M148: GeniaAir Max2-Hext-B-D3-EI
M149: GeniaAir Max2-Hext-B-D-EI
M150: GeniaAir Max2-Hext-B-DM
M151: GeniaAir Max2-Hext-B-DM2
M152: GeniaAir Max2-Hext-B-DM2-EI
M153: GeniaAir Max2-Hext-B-DM-EI
M154: GeniaAir Max2-Hext-B-M
M155: GeniaAir Max2-Hext-B-M2 | N155: 0020284040 | R155: TRUE | T155: ="https://www.saunierduval.fr/professionnel/outils-professionnels/outils-avant-vente/schematheque/?q="&N155 -> https://www.saunierduval.fr/professionnel/outils-professionnels/outils-avant-vente/schematheque/?q=0020284040
M156: GeniaAir Max2-Hext-B-M2-EI
M157: GeniaAir Max2-Hext-B-M3
M158: GeniaAir Max2-Hext-B-M3-EI
F159: 0020284708 | G159: 0020318115 | M159: GeniaAir Max2-Hext-B-M-EI | N159: 0020318098 | R159: TRUE | T159: ="https://www.saunierduval.fr/professionnel/outils-professionnels/outils-avant-vente/schematheque/?q="&N159 -> https://www.saunierduval.fr/professionnel/outils-professionnels/outils-avant-vente/schematheque/?q=0020318098
K160: =ROW(C160)-ROW(C$5) -> 155 | L160: =ROW(D160)-ROW(D$5) -> 155 | M160: GeniaAir Max2-Q-B-D | N160: 0020318111 | R160: TRUE | T160: ="https://www.saunierduval.fr/professionnel/outils-professionnels/outils-avant-vente/schematheque/?q="&N160 -> https://www.saunierduval.fr/professionnel/outils-professionnels/outils-avant-vente/schematheque/?q=0020318111
M161: GeniaAir Max2-Q-B-D | N161: 0020318111 | R161: FALSE | S161: GeniaAir Max7-Q-B-D | T161: ="https://www.saunierduval.fr/professionnel/outils-professionnels/outils-avant-vente/schematheque/?q="&N161 -> https://www.saunierduval.fr/professionnel/outils-professionnels/outils-avant-vente/schematheque/?q=0020318111
M162: GeniaAir Max2-Q-B-D2
M163: GeniaAir Max2-Q-B-D2M
M164: GeniaAir Max2-Q-B-D3
M165: GeniaAir Max2-Q-B-DM | N165: 0020322558 | R165: TRUE | T165: ="https://www.saunierduval.fr/professionnel/outils-professionnels/outils-avant-vente/schematheque/?q="&N165 -> https://www.saunierduval.fr/professionnel/outils-professionnels/outils-avant-vente/schematheque/?q=0020322558
M166: GeniaAir Max2-Q-B-DM2 | N166: 0020322559 | R166: FALSE | S166: GeniaAir Max7-Q-B-DM2 | T166: ="https://www.saunierduval.fr/professionnel/outils-professionnels/outils-avant-vente/schematheque/?q="&N166 -> https://www.saunierduval.fr/professionnel/outils-professionnels/outils-avant-vente/schematheque/?q=0020322559
M167: GeniaAir Max2-Q-B-M
M168: GeniaAir Max2-Q-B-M2
M169: GeniaAir Max2-Q-B-M3
M170: GeniaAir Max2-Q-D | N170: 0020318111 | R170: FALSE | S170: GeniaAir Max7-Q-B-D | T170: ="https://www.saunierduval.fr/professionnel/outils-professionnels/outils-avant-vente/schematheque/?q="&N170 -> https://www.saunierduval.fr/professionnel/outils-professionnels/outils-avant-vente/schematheque/?q=0020318111
M171: GeniaAir Max2-Q-E-B-D
M172: GeniaAir Max2-Q-E-B-D2
M173: GeniaAir Max2-Q-E-B-D2M
M174: GeniaAir Max2-Q-E-B-D3
M175: GeniaAir Max2-Q-E-B-DM
M176: GeniaAir Max2-Q-E-B-DM2
M177: GeniaAir Max2-Q-E-B-M
M178: GeniaAir Max2-Q-E-B-M2
M179: GeniaAir Max2-Q-E-B-M3
M180: GeniaAir Max2-Q-E-D
M181: GeniaAir Max2-Res-B-D
M182: GeniaAir Max2-Res-B-D2
M183: GeniaAir Max2-Res-B-D2-EI
M184: GeniaAir Max2-Res-B-D2M
M185: GeniaAir Max2-Res-B-D2M-EI
M186: GeniaAir Max2-Res-B-D3
M187: GeniaAir Max2-Res-B-D3-EI
M188: GeniaAir Max2-Res-B-D-EI
M189: GeniaAir Max2-Res-B-DM
M190: GeniaAir Max2-Res-B-DM2
M191: GeniaAir Max2-Res-B-DM2-EI
M192: GeniaAir Max2-Res-B-DM-EI
M193: GeniaAir Max2-Res-B-M
M194: GeniaAir Max2-Res-B-M2
M195: GeniaAir Max2-Res-B-M2-EI
M196: GeniaAir Max2-Res-B-M3
M197: GeniaAir Max2-Res-B-M3-EI
M198: GeniaAir Max2-Res-B-M-EI
M199: GeniaAir Max2-Res-D
M200: GeniaAir Max2-Res-EI-B-D
... 943 more rows

Sheet CP Villes (hidden)
A1: Code postaux | B1: Villes | C1: Lettre
A2: 01000 | B2: SAINT-DENIS-LES-BOURG | C2: G
A3: 01000 | B3: BOURG-EN-BRESSE | C3: G
A4: 01090 | B4: MONTMERLE-SUR-SAONE | C4: G
A5: 01090 | B5: LURCY | C5: G
A6: 01090 | B6: GUEREINS | C6: G
A7: 01090 | B7: GENOUILLEUX | C7: G
A8: 01090 | B8: MONTCEAUX | C8: G
A9: 01090 | B9: FRANCHELEINS | C9: G
A10: 01100 | B10: GROISSIAT | C10: G
A11: 01100 | B11: GEOVREISSET | C11: G
A12: 01100 | B12: MARTIGNAT | C12: G
A13: 01100 | B13: BELLIGNAT | C13: G
A14: 01100 | B14: OYONNAX | C14: G
A15: 01100 | B15: APREMONT | C15: G
A16: 01100 | B16: ARBENT | C16: G
A17: 01110 | B17: PLATEAU-D'HAUTEVILLE | C17: G
A18: 01110 | B18: CHAMPDOR-CORCELLES | C18: G
A19: 01110 | B19: CORLIER | C19: G
A20: 01110 | B20: ARANC | C20: G
A21: 01110 | B21: HOSTIAZ | C21: G
A22: 01110 | B22: PREMILLIEU | C22: G
A23: 01110 | B23: CORCELLES | C23: G
A24: 01110 | B24: HAUTEVILLE-LOMPNES | C24: G
A25: 01110 | B25: THEZILLIEU | C25: G
A26: 01110 | B26: CHAMPDOR | C26: G
A27: 01110 | B27: CORMARANCHE-EN-BUGEY | C27: G
A28: 01110 | B28: BRENOD | C28: G
A29: 01120 | B29: THIL | C29: G
A30: 01120 | B30: MONTLUEL | C30: G
A31: 01120 | B31: LA BOISSE | C31: G
A32: 01120 | B32: SAINTE-CROIX | C32: G
A33: 01120 | B33: NIEVROZ | C33: G
A34: 01120 | B34: DAGNEUX | C34: G
A35: 01120 | B35: PIZAY | C35: G
A36: 01130 | B36: LE POIZAT-LALLEYRIAT | C36: G
A37: 01130 | B37: NANTUA | C37: G
A38: 01130 | B38: LES NEYROLLES | C38: G
A39: 01130 | B39: LE POIZAT | C39: G
A40: 01130 | B40: CHARIX | C40: G
A41: 01130 | B41: PLAGNE | C41: G
A42: 01130 | B42: LALLEYRIAT | C42: G
A43: 01130 | B43: ECHALLON | C43: G
A44: 01130 | B44: SAINT-GERMAIN-DE-JOUX | C44: G
A45: 01130 | B45: GIRON | C45: G
A46: 01130 | B46: BELLEYDOUX | C46: G
A47: 01140 | B47: THOISSEY | C47: G
A48: 01140 | B48: SAINT-DIDIER-SUR-CHALARONNE | C48: G
A49: 01140 | B49: MOGNENEINS | C49: G
A50: 01140 | B50: PEYZIEUX-SUR-SAONE | C50: G
A51: 01140 | B51: GARNERANS | C51: G
A52: 01140 | B52: VALEINS | C52: G
A53: 01140 | B53: SAINT-ETIENNE-SUR-CHALARONNE | C53: G
A54: 01140 | B54: ILLIAT | C54: G
A55: 01150 | B55: BLYES | C55: G
A56: 01150 | B56: CHAZEY-SUR-AIN | C56: G
A57: 01150 | B57: SAINT-VULBAS | C57: G
A58: 01150 | B58: SAINTE-JULIE | C58: G
A59: 01150 | B59: LEYMENT | C59: G
A60: 01150 | B60: LAGNIEU | C60: G
A61: 01150 | B61: VAUX-EN-BUGEY | C61: G
A62: 01150 | B62: SAINT-SORLIN-EN-BUGEY | C62: G
A63: 01150 | B63: SAULT-BRENAZ | C63: G
A64: 01150 | B64: SOUCLIN | C64: G
A65: 01150 | B65: VILLEBOIS | C65: G
A66: 01160 | B66: LA TRANCLIERE | C66: G
A67: 01160 | B67: PRIAY | C67: G
A68: 01160 | B68: DRUILLAT | C68: G
A69: 01160 | B69: VARAMBON | C69: G
A70: 01160 | B70: SAINT-MARTIN-DU-MONT | C70: G
A71: 01160 | B71: PONT-D'AIN | C71: G
A72: 01160 | B72: NEUVILLE-SUR-AIN | C72: G
A73: 01170 | B73: CROZET | C73: G
A74: 01170 | B74: ECHENEVEX | C74: G
A75: 01170 | B75: GEX | C75: G
A76: 01170 | B76: CHEVRY | C76: G
A77: 01170 | B77: SEGNY | C77: G
A78: 01170 | B78: CESSY | C78: G
A79: 01170 | B79: VESANCY | C79: G
A80: 01190 | B80: REYSSOUZE | C80: G
A81: 01190 | B81: BOZ | C81: G
A82: 01190 | B82: OZAN | C82: G
A83: 01190 | B83: PONT-DE-VAUX | C83: G
A84: 01190 | B84: GORREVOD | C84: G
A85: 01190 | B85: SAINT-BENIGNE | C85: G
A86: 01190 | B86: ARBIGNY | C86: G
A87: 01190 | B87: CHEVROUX | C87: G
A88: 01190 | B88: SERMOYER | C88: G
A89: 01190 | B89: BOISSEY | C89: G
A90: 01190 | B90: SAINT-ETIENNE-SUR-REYSSOUZE | C90: G
A91: 01190 | B91: CHAVANNES-SUR-REYSSOUZE | C91: G
A92: 01200 | B92: VALSERHONE | C92: G
A93: 01200 | B93: VILLES | C93: G
A94: 01200 | B94: INJOUX-GENISSIAT | C94: G
A95: 01200 | B95: BILLIAT | C95: G
A96: 01200 | B96: CHATILLON-EN-MICHAILLE | C96: G
A97: 01200 | B97: MONTANGES | C97: G
A98: 01200 | B98: BELLEGARDE-SUR-VALSERINE | C98: G
A99: 01200 | B99: CONFORT | C99: G
A100: 01200 | B100: LANCRANS | C100: G
A101: 01200 | B101: LEAZ | C101: G
A102: 01200 | B102: ELOISE | C102: G
A103: 01210 | B103: ORNEX | C103: G
A104: 01210 | B104: VERSONNEX | C104: G
A105: 01210 | B105: FERNEY-VOLTAIRE | C105: G
A106: 01220 | B106: SAUVERNY | C106: G
A107: 01220 | B107: GRILLY | C107: G
A108: 01220 | B108: DIVONNE-LES-BAINS | C108: G
A109: 01230 | B109: TORCIEU | C109: G
A110: 01230 | B110: CLEYZIEU | C110: G
A111: 01230 | B111: SAINT-RAMBERT-EN-BUGEY | C111: G
A112: 01230 | B112: NIVOLLET-MONTGRIFFON | C112: G
A113: 01230 | B113: ONCIEU | C113: G
A114: 01230 | B114: CONAND | C114: G
A115: 01230 | B115: ARGIS | C115: G
A116: 01230 | B116: ARANDAS | C116: G
A117: 01230 | B117: EVOSGES | C117: G
A118: 01230 | B118: TENAY | C118: G
A119: 01230 | B119: CHALEY | C119: G
A120: 01240 | B120: LA CHAPELLE-DU-CHATELARD | C120: G
A121: 01240 | B121: SAINT-GERMAIN-SUR-RENON | C121: G
A122: 01240 | B122: MARLIEUX | C122: G
A123: 01240 | B123: SAINT-ANDRE-LE-BOUCHOUX | C123: G
A124: 01240 | B124: SAINT-PAUL-DE-VARAX | C124: G
A125: 01240 | B125: LENT | C125: G
A126: 01240 | B126: DOMPIERRE-SUR-VEYLE | C126: G
A127: 01240 | B127: CERTINES | C127: G
A128: 01250 | B128: NIVIGNE-ET-SURAN | C128: G
A129: 01250 | B129: MONTAGNAT | C129: G
A130: 01250 | B130: SAINT-JUST | C130: G
A131: 01250 | B131: TOSSIAT | C131: G
A132: 01250 | B132: JASSERON | C132: G
A133: 01250 | B133: CEYZERIAT | C133: G
A134: 01250 | B134: JOURNANS | C134: G
A135: 01250 | B135: REVONNAS | C135: G
A136: 01250 | B136: RAMASSE | C136: G
A137: 01250 | B137: DROM | C137: G
A138: 01250 | B138: BOHAS-MEYRIAT-RIGNAT | C138: G
A139: 01250 | B139: VILLEREVERSURE | C139: G
A140: 01250 | B140: CHAVANNES-SUR-SURAN | C140: G
A141: 01250 | B141: SIMANDRE-SUR-SURAN | C141: G
A142: 01250 | B142: POUILLAT | C142: G
A143: 01250 | B143: HAUTECOURT-ROMANECHE | C143: G
A144: 01250 | B144: GRAND-CORENT | C144: G
A145: 01250 | B145: GERMAGNAT | C145: G
A146: 01250 | B146: CIZE | C146: G
A147: 01250 | B147: CORVEISSIAT | C147: G
A148: 01260 | B148: HAUT-VALROMEY | C148: G
A149: 01260 | B149: VALROMEY-SUR-SERAN | C149: G
A150: 01260 | B150: ARVIERE-EN-VALROMEY | C150: G
A151: 01260 | B151: SUTRIEU | C151: G
A152: 01260 | B152: BELMONT-LUTHEZIEU | C152: G
A153: 01260 | B153: LE PETIT-ABERGEMENT | C153: G
A154: 01260 | B154: RUFFIEU | C154: G
A155: 01260 | B155: LOMPNIEU | C155: G
A156: 01260 | B156: LE GRAND-ABERGEMENT | C156: G
A157: 01260 | B157: VIEU | C157: G
A158: 01260 | B158: CHAMPAGNE-EN-VALROMEY | C158: G
A159: 01260 | B159: HOTONNES | C159: G
A160: 01260 | B160: SONGIEU | C160: G
A161: 01260 | B161: VIRIEU-LE-PETIT | C161: G
A162: 01260 | B162: BRENAZ | C162: G
A163: 01260 | B163: LOCHIEU | C163: G
A164: 01270 | B164: BEAUPONT | C164: G
A165: 01270 | B165: PIRAJOUX | C165: G
A166: 01270 | B166: DOMSURE | C166: G
A167: 01270 | B167: VILLEMOTIER | C167: G
A168: 01270 | B168: COLIGNY | C168: G
A169: 01270 | B169: SALAVRE | C169: G
A170: 01270 | B170: VERJON | C170: G
A171: 01280 | B171: PREVESSIN-MOENS | C171: G
A172: 01290 | B172: CORMORANCHE-SUR-SAONE | C172: G
A173: 01290 | B173: GRIEGES | C173: G
A174: 01290 | B174: BEY | C174: G
A175: 01290 | B175: CRUZILLES-LES-MEPILLAT | C175: G
A176: 01290 | B176: CROTTET | C176: G
A177: 01290 | B177: PONT-DE-VEYLE | C177: G
A178: 01290 | B178: LAIZ | C178: G
A179: 01290 | B179: SAINT-ANDRE-D'HUIRIAT | C179: G
A180: 01290 | B180: SAINT-JEAN-SUR-VEYLE | C180: G
A181: 01290 | B181: BIZIAT | C181: G
A182: 01300 | B182: PARVES-ET-NATTAGES | C182: G
A183: 01300 | B183: ARBOYS-EN-BUGEY | C183: G
A184: 01300 | B184: GROSLEE-SAINT-BENOIT | C184: G
A185: 01300 | B185: SAINT-BENOIT | C185: G
A186: 01300 | B186: AMBLEON | C186: G
A187: 01300 | B187: CONZIEU | C187: G
A188: 01300 | B188: BREGNIER-CORDON | C188: G
A189: 01300 | B189: SAINT-GERMAIN-LES-PAROISSES | C189: G
A190: 01300 | B190: CONTREVOZ | C190: G
A191: 01300 | B191: COLOMIEU | C191: G
A192: 01300 | B192: SAINT-BOIS | C192: G
A193: 01300 | B193: IZIEU | C193: G
A194: 01300 | B194: PREMEYZEL | C194: G
A195: 01300 | B195: ARBIGNIEU | C195: G
A196: 01300 | B196: ANDERT-ET-CONDON | C196: G
A197: 01300 | B197: MURS-ET-GELIGNIEUX | C197: G
A198: 01300 | B198: CUZIEU | C198: G
A199: 01300 | B199: PEYRIEU | C199: G
A200: 01300 | B200: BELLEY | C200: G
... 4300 more rows

Sheet Fiche_ErP (hidden)
B1: https://outils-avv.saunierduval.fr/outils_synergies/Outils_SD/Etiquette_fiche_Erp/
B3: GeniaAir Max | C3: =NOT(ISERR(SEARCH(Gamme_1,PAC_dans_le_devis))) -> TRUE | E3: Fichier de données ErP à télécharger : | F3: =IF(ISNA(MATCH(TRUE,ErP_fiche_valide,0)),"",Adresse_etiquette_fiche_ErP&INDEX(ErP_nom_des_fiches,MATCH(TRUE,ErP_fiche_valide,0))) -> https://outils-avv.saunierduval.fr/outils_synergies/Outils_SD/Etiquette_fiche_Erp/GeniaSet Max/Product Information - HA 12-6 O B3 + FEW 200-6.pdf
B4: GeniaAir Split | C4: =NOT(ISERR(SEARCH(Gamme_2,PAC_dans_le_devis))) -> FALSE | E4: Etiquette ErP à télécharger : | F4: =IF(ISNA(MATCH(TRUE,ErP_etiquette_valide,0)),"",Adresse_etiquette_fiche_ErP&INDEX(ErP_liste_des_etiquettes,MATCH(TRUE,ErP_etiquette_valide,0))) -> https://outils-avv.saunierduval.fr/outils_synergies/Outils_SD/Etiquette_fiche_Erp/GeniaSet Max/0010031697 + 0010036670_HA 12-6 O B3 + FEW 200-6.pdf
B5: GeniaAir Tek | C5: =NOT(ISERR(SEARCH(Gamme_4,PAC_dans_le_devis))) -> FALSE
B6: Max 4 | C6: =NOT(ISERR(SEARCH("Max 4",PAC_dans_le_devis))) -> FALSE
B7: Max 5 | C7: =NOT(ISERR(SEARCH("Max 5",PAC_dans_le_devis))) -> FALSE
B8: Max 8 | C8: =NOT(ISERR(SEARCH("Max 8",PAC_dans_le_devis))) -> FALSE
B9: Max 12.230 | C9: =NOT(ISERR(SEARCH("Max 12 - 230",PAC_dans_le_devis))) -> FALSE
B10: Max 15.230 | C10: =NOT(ISERR(SEARCH("Max 15 - 230",PAC_dans_le_devis))) -> FALSE
B11: Max 12.400 | C11: =NOT(ISERR(SEARCH("Max 12 - 400",PAC_dans_le_devis))) -> TRUE
B12: Max 15.400 | C12: =NOT(ISERR(SEARCH("Max 15 - 400",PAC_dans_le_devis))) -> FALSE
B13: Split 3 | C13: =NOT(ISERR(SEARCH("Split 3",PAC_dans_le_devis))) -> FALSE
B14: Split 5 | C14: =NOT(ISERR(SEARCH("Split 5",PAC_dans_le_devis))) -> FALSE
B15: Split 7 | C15: =NOT(ISERR(SEARCH("Split 7",PAC_dans_le_devis))) -> FALSE
B16: Split 10.230 | C16: =NOT(ISERR(SEARCH("Split 10 - 230",PAC_dans_le_devis))) -> FALSE
B17: Split 12.230 | C17: =NOT(ISERR(SEARCH("Split 12 - 230",PAC_dans_le_devis))) -> FALSE
B18: Split 10.400 | C18: =NOT(ISERR(SEARCH("Split 10 - 400",PAC_dans_le_devis))) -> FALSE
B19: Split 12.400 | C19: =NOT(ISERR(SEARCH("Split 12 - 400",PAC_dans_le_devis))) -> FALSE
B20: Tek 4 | C20: =NOT(ISERR(SEARCH("Tek 4",PAC_dans_le_devis))) -> FALSE
B21: Tek 6 | C21: =NOT(ISERR(SEARCH("Tek 6",PAC_dans_le_devis))) -> FALSE
B22: Tek 8 | C22: =NOT(ISERR(SEARCH("Tek 8",PAC_dans_le_devis))) -> FALSE
B23: Tek 10 | C23: =NOT(ISERR(SEARCH("Tek 10",PAC_dans_le_devis))) -> FALSE
B24: GeniaSet Tek - 1 zone | C24: =NOT(ISNA(MATCH("0010038166",Liste_codes_articles_chiffrage,0))) -> FALSE
B25: GeniaSet Tek - 2 zone | C25: =NOT(ISNA(MATCH("0010038167",Liste_codes_articles_chiffrage,0))) -> FALSE
B26: Module mural Tek | C26: =NOT(ISNA(MATCH("0010038171",Liste_codes_articles_chiffrage,0))) -> FALSE
B27: GeniaSet Max | C27: =NOT(ISNA(MATCH("0010036670",Liste_codes_articles_chiffrage,0))) -> TRUE
B28: Module mural Max | C28: =NOT(ISNA(MATCH("0010023615",Liste_codes_articles_chiffrage,0))) -> FALSE
B29: GeniaSet split | C29: =NOT(ISNA(MATCH("0010023173",Liste_codes_articles_chiffrage,0))) -> FALSE
B30: Module mural split | C30: =NOT(ISNA(MATCH("0010023527",Liste_codes_articles_chiffrage,0))) -> FALSE
B31: Hybride | C31: =NOT(ISERR(SEARCH("Hybride",Type_de_schema))) -> FALSE
B32: Chaudière séléctionnée est Duo-30-90 | C32: =AND(NOT(ISERR(SEARCH("Duo",Chaudiere_selectionnee))),NOT(ISERR(SEARCH("30 90",Chaudiere_selectionnee)))) -> FALSE
B33: Chaudière séléctionnée est Fast-26 | C33: =AND(NOT(ISERR(SEARCH("Fast",Chaudiere_selectionnee))),NOT(ISERR(SEARCH("26",Chaudiere_selectionnee)))) -> FALSE
B34: Chaudière séléctionnée est Plus-31 | C34: =AND(NOT(ISERR(SEARCH("Plus",Chaudiere_selectionnee))),NOT(ISERR(SEARCH("31",Chaudiere_selectionnee)))) -> FALSE
B35: Chaudière séléctionnée est Plus-36 | C35: =AND(NOT(ISERR(SEARCH("Plus",Chaudiere_selectionnee))),NOT(ISERR(SEARCH("36",Chaudiere_selectionnee)))) -> FALSE
B36: Chaudière séléctionnée est Twin-26 | C36: =AND(NOT(ISERR(SEARCH("Twin",Chaudiere_selectionnee))),NOT(ISERR(SEARCH("26",Chaudiere_selectionnee)))) -> FALSE
B37: Chaudière séléctionnée est Twin-31 | C37: =AND(NOT(ISERR(SEARCH("Twin",Chaudiere_selectionnee))),NOT(ISERR(SEARCH("31",Chaudiere_selectionnee)))) -> FALSE
B39: Liste des fiches de données ErP | E39: Liste des etiquettes ErP
B40: Hybride/Genia-Hybrid-Max_Duo-30-90.pdf | C40: =AND(ErP_GeniaAir_Max,ErP_Hybride,ErP_Duo_30_90) -> FALSE | E40: Hybride/Genia-Hybrid-Max-4_Duo-30-90.pdf | F40: =AND(ErP_Max_4,ErP_Hybride,ErP_Duo_30_90) -> FALSE
B41: Hybride/Genia-Hybrid-Max_Fast-26.pdf | C41: =AND(ErP_GeniaAir_Max,ErP_Hybride,ErP_Fast_26) -> FALSE | E41: Hybride/Genia-Hybrid-Max-4_Fast-26.pdf | F41: =AND(ErP_Max_4,ErP_Hybride,ErP_Fast_26) -> FALSE
B42: Hybride/Genia-Hybrid-Max_Plus-31.pdf | C42: =AND(ErP_GeniaAir_Max,ErP_Hybride,ErP_Plus_31) -> FALSE | E42: Hybride/Genia-Hybrid-Max-4_Plus-31.pdf | F42: =AND(ErP_Max_4,ErP_Hybride,ErP_Plus_31) -> FALSE
B43: Hybride/Genia-Hybrid-Max_Plus-36.pdf | C43: =AND(ErP_GeniaAir_Max,ErP_Hybride,ErP_Plus_36) -> FALSE | E43: Hybride/Genia-Hybrid-Max-4_Plus-36.pdf | F43: =AND(ErP_Max_4,ErP_Hybride,ErP_Plus_36) -> FALSE
B44: Hybride/Genia-Hybrid-Max_Twin-26.pdf | C44: =AND(ErP_GeniaAir_Max,ErP_Hybride,ErP_Twin_26) -> FALSE | E44: Hybride/Genia-Hybrid-Max-4_Twin-26.pdf | F44: =AND(ErP_Max_4,ErP_Hybride,ErP_Twin_26) -> FALSE
B45: Hybride/Genia-Hybrid-Max_Twin-31.pdf | C45: =AND(ErP_GeniaAir_Max,ErP_Hybride,ErP_Twin_31) -> FALSE | E45: Hybride/Genia-Hybrid-Max-4_Twin-31.pdf | F45: =AND(ErP_Max_4,ErP_Hybride,ErP_Twin_31) -> FALSE
B46: Hybride/Genia-Hybrid-Tek_Duo-30-90.pdf | C46: =AND(ErP_GeniaAir_Tek,ErP_Hybride,ErP_Duo_30_90) -> FALSE | E46: Hybride/Genia-Hybrid-Max-5_Duo-30-90.pdf | F46: =AND(ErP_Max_5,ErP_Hybride,ErP_Duo_30_90) -> FALSE
B47: Hybride/Genia-Hybrid-Tek_Fast-26.pdf | C47: =AND(ErP_GeniaAir_Tek,ErP_Hybride,ErP_Fast_26) -> FALSE | E47: Hybride/Genia-Hybrid-Max-5_Fast-26.pdf | F47: =AND(ErP_Max_5,ErP_Hybride,ErP_Fast_26) -> FALSE
B48: Hybride/Genia-Hybrid-Tek_Plus-31.pdf | C48: =AND(ErP_GeniaAir_Tek,ErP_Hybride,ErP_Plus_31) -> FALSE | E48: Hybride/Genia-Hybrid-Max-5_Plus-31.pdf | F48: =AND(ErP_Max_5,ErP_Hybride,ErP_Plus_31) -> FALSE
B49: Hybride/Genia-Hybrid-Tek_Plus-36.pdf | C49: =AND(ErP_GeniaAir_Tek,ErP_Hybride,ErP_Plus_36) -> FALSE | E49: Hybride/Genia-Hybrid-Max-5_Plus-36.pdf | F49: =AND(ErP_Max_5,ErP_Hybride,ErP_Plus_36) -> FALSE
B50: Hybride/Genia-Hybrid-Tek_Twin-26.pdf | C50: =AND(ErP_GeniaAir_Tek,ErP_Hybride,ErP_Twin_26) -> FALSE | E50: Hybride/Genia-Hybrid-Max-5_Twin-26.pdf | F50: =AND(ErP_Max_5,ErP_Hybride,ErP_Twin_26) -> FALSE
B51: Hybride/Genia-Hybrid-Tek_Twin-31.pdf | C51: =AND(ErP_GeniaAir_Tek,ErP_Hybride,ErP_Twin_31) -> FALSE | E51: Hybride/Genia-Hybrid-Max-5_Twin-31.pdf | F51: =AND(ErP_Max_5,ErP_Hybride,ErP_Twin_31) -> FALSE
E52: Hybride/Genia-Hybrid-Max-8_Duo-30-90.pdf | F52: =AND(ErP_Max_8,ErP_Hybride,ErP_Duo_30_90) -> FALSE
B53: GeniaSet Tek/1 zone/Product Information - HA 4-7.2 OS 230V B3 + HA 10-7.2 STB.pdf | C53: =AND(ErP_Tek_4,NOT(ErP_Hybride),ErP_Colonne_Tek_1_zone) -> FALSE | E53: Hybride/Genia-Hybrid-Max-8_Fast-26.pdf | F53: =AND(ErP_Max_8,ErP_Hybride,ErP_Fast_26) -> FALSE
B54: GeniaSet Tek/1 zone/Product Information - HA 6-7.2 OS 230V B3 + HA 10-7.2 STB.pdf | C54: =AND(ErP_Tek_6,NOT(ErP_Hybride),ErP_Colonne_Tek_1_zone) -> FALSE | E54: Hybride/Genia-Hybrid-Max-8_Plus-31.pdf | F54: =AND(ErP_Max_8,ErP_Hybride,ErP_Plus_31) -> FALSE
B55: GeniaSet Tek/1 zone/Product Information - HA 8-7.2 OS 230V B3 + HA 10-7.2 STB.pdf | C55: =AND(ErP_Tek_8,NOT(ErP_Hybride),ErP_Colonne_Tek_1_zone) -> FALSE | E55: Hybride/Genia-Hybrid-Max-8_Plus-36.pdf | F55: =AND(ErP_Max_8,ErP_Hybride,ErP_Plus_36) -> FALSE
B56: GeniaSet Tek/1 zone/Product Information - HA 10-7.2 OS 230V B3 + HA 10-7.2 STB.pdf | C56: =AND(ErP_Tek_10,NOT(ErP_Hybride),ErP_Colonne_Tek_1_zone) -> FALSE | E56: Hybride/Genia-Hybrid-Max-8_Twin-26.pdf | F56: =AND(ErP_Max_8,ErP_Hybride,ErP_Twin_26) -> FALSE
E57: Hybride/Genia-Hybrid-Max-8_Twin-31.pdf | F57: =AND(ErP_Max_8,ErP_Hybride,ErP_Twin_31) -> FALSE
B58: GeniaSet Tek/2 zones/Product Information - HA 4-7.2 OS 230V B3 + HA 10-7.2 STB C2.pdf | C58: =AND(ErP_Tek_4,NOT(ErP_Hybride),ErP_Colonne_Tek_2_zones) -> FALSE | E58: Hybride/Genia-Hybrid-Max-12.230_Duo-30-90.pdf | F58: =AND(ErP_Max_12_230,ErP_Hybride,ErP_Duo_30_90) -> FALSE
B59: GeniaSet Tek/2 zones/Product Information - HA 6-7.2 OS 230V B3 + HA 10-7.2 STB C2.pdf | C59: =AND(ErP_Tek_6,NOT(ErP_Hybride),ErP_Colonne_Tek_2_zones) -> FALSE | E59: Hybride/Genia-Hybrid-Max-12.230_Fast-26.pdf | F59: =AND(ErP_Max_12_230,ErP_Hybride,ErP_Fast_26) -> FALSE
B60: GeniaSet Tek/2 zones/Product Information - HA 8-7.2 OS 230V B3 + HA 10-7.2 STB C2.pdf | C60: =AND(ErP_Tek_8,NOT(ErP_Hybride),ErP_Colonne_Tek_2_zones) -> FALSE | E60: Hybride/Genia-Hybrid-Max-12.230_Plus-31.pdf | F60: =AND(ErP_Max_12_230,ErP_Hybride,ErP_Plus_31) -> FALSE
B61: GeniaSet Tek/2 zones/Product Information - HA 10-7.2 OS 230V B3 + HA 10-7.2 STB C2.pdf | C61: =AND(ErP_Tek_10,NOT(ErP_Hybride),ErP_Colonne_Tek_2_zones) -> FALSE | E61: Hybride/Genia-Hybrid-Max-12.230_Plus-36.pdf | F61: =AND(ErP_Max_12_230,ErP_Hybride,ErP_Plus_36) -> FALSE
E62: Hybride/Genia-Hybrid-Max-12.230_Twin-26.pdf | F62: =AND(ErP_Max_12_230,ErP_Hybride,ErP_Twin_26) -> FALSE
B63: GeniaSet Tek/Module mural/Product Information - HA 4-7.2 OS 230V B3 + HA 10-7.2 WSB.pdf | C63: =AND(ErP_Tek_4,NOT(ErP_Hybride),ErP_Module_mural_Tek) -> FALSE | E63: Hybride/Genia-Hybrid-Max-12.230_Twin-31.pdf | F63: =AND(ErP_Max_12_230,ErP_Hybride,ErP_Twin_31) -> FALSE
B64: GeniaSet Tek/Module mural/Product Information - HA 6-7.2 OS 230V B3 + HA 10-7.2 WSB.pdf | C64: =AND(ErP_Tek_6,NOT(ErP_Hybride),ErP_Module_mural_Tek) -> FALSE | E64: Hybride/Genia-Hybrid-Max-12.400_Duo-30-90.pdf | F64: =AND(ErP_Max_12_400,ErP_Hybride,ErP_Duo_30_90) -> FALSE
B65: GeniaSet Tek/Module mural/Product Information - HA 8-7.2 OS 230V B3 + HA 10-7.2 WSB.pdf | C65: =AND(ErP_Tek_8,NOT(ErP_Hybride),ErP_Module_mural_Tek) -> FALSE | E65: Hybride/Genia-Hybrid-Max-12.400_Fast-26.pdf | F65: =AND(ErP_Max_12_400,ErP_Hybride,ErP_Fast_26) -> FALSE
B66: GeniaSet Tek/Module mural/Product Information - HA 10-7.2 OS 230V B3 + HA 10-7.2 WSB.pdf | C66: =AND(ErP_Tek_10,NOT(ErP_Hybride),ErP_Module_mural_Tek) -> FALSE | E66: Hybride/Genia-Hybrid-Max-12.400_Plus-31.pdf | F66: =AND(ErP_Max_12_400,ErP_Hybride,ErP_Plus_31) -> FALSE
E67: Hybride/Genia-Hybrid-Max-12.400_Plus-36.pdf | F67: =AND(ErP_Max_12_400,ErP_Hybride,ErP_Plus_36) -> FALSE
B68: GeniaSet Max/Product Information - HA 4-6 O 230V B3 + FEW 200-6.pdf | C68: =AND(ErP_Max_4,NOT(ErP_Hybride),Erp_Colonne_GeniaSet_Max) -> FALSE | E68: Hybride/Genia-Hybrid-Max-12.400_Twin-26.pdf | F68: =AND(ErP_Max_12_400,ErP_Hybride,ErP_Twin_26) -> FALSE
B69: GeniaSet Max/Product Information - HA 5-6 O 230V B3 + FEW 200-6.pdf | C69: =AND(ErP_Max_5,NOT(ErP_Hybride),Erp_Colonne_GeniaSet_Max) -> FALSE | E69: Hybride/Genia-Hybrid-Max-12.400_Twin-31.pdf | F69: =AND(ErP_Max_12_400,ErP_Hybride,ErP_Twin_31) -> FALSE
B70: GeniaSet Max/Product Information - HA 8-6 O 230V B3 + FEW 200-6.pdf | C70: =AND(ErP_Max_8,NOT(ErP_Hybride),Erp_Colonne_GeniaSet_Max) -> FALSE | E70: Hybride/Genia-Hybrid-Max-15.230_Duo-30-90.pdf | F70: =AND(ErP_Max_15_230,ErP_Hybride,ErP_Duo_30_90) -> FALSE
B71: GeniaSet Max/Product Information - HA 12-6 O 230V B3 + FEW 200-6.pdf | C71: =AND(ErP_Max_12_230,NOT(ErP_Hybride),Erp_Colonne_GeniaSet_Max) -> FALSE | E71: Hybride/Genia-Hybrid-Max-15.230_Fast-26.pdf | F71: =AND(ErP_Max_15_230,ErP_Hybride,ErP_Fast_26) -> FALSE
B72: GeniaSet Max/Product Information - HA 12-6 O B3 + FEW 200-6.pdf | C72: =AND(ErP_Max_12_400,NOT(ErP_Hybride),Erp_Colonne_GeniaSet_Max) -> TRUE | E72: Hybride/Genia-Hybrid-Max-15.230_Plus-31.pdf | F72: =AND(ErP_Max_15_230,ErP_Hybride,ErP_Plus_31) -> FALSE
B73: GeniaSet Max/Product Information - HA 15-6 O 230V B3 + FEW 200-6.pdf | C73: =AND(ErP_Max_15_230,NOT(ErP_Hybride),Erp_Colonne_GeniaSet_Max) -> FALSE | E73: Hybride/Genia-Hybrid-Max-15.230_Plus-36.pdf | F73: =AND(ErP_Max_15_230,ErP_Hybride,ErP_Plus_36) -> FALSE
B74: GeniaSet Max/Product Information - HA 15-6 O B3 + FEW 200-6.pdf | C74: =AND(ErP_Max_15_400,NOT(ErP_Hybride),Erp_Colonne_GeniaSet_Max) -> FALSE | E74: Hybride/Genia-Hybrid-Max-15.230_Twin-26.pdf | F74: =AND(ErP_Max_15_230,ErP_Hybride,ErP_Twin_26) -> FALSE
E75: Hybride/Genia-Hybrid-Max-15.230_Twin-31.pdf | F75: =AND(ErP_Max_15_230,ErP_Hybride,ErP_Twin_31) -> FALSE
B76: GeniaAir Max chauffage seul/Product Information - HA 4-6 O 230V B3.pdf | C76: =AND(ErP_Max_4,NOT(ErP_Hybride),ErP_Module_mural_Max) -> FALSE | E76: Hybride/Genia-Hybrid-Max-15.400_Duo-30-90.pdf | F76: =AND(ErP_Max_15_400,ErP_Hybride,ErP_Duo_30_90) -> FALSE
B77: GeniaAir Max chauffage seul/Product Information - HA 5-6 O 230V B3.pdf | C77: =AND(ErP_Max_5,NOT(ErP_Hybride),ErP_Module_mural_Max) -> FALSE | E77: Hybride/Genia-Hybrid-Max-15.400_Fast-26.pdf | F77: =AND(ErP_Max_15_400,ErP_Hybride,ErP_Fast_26) -> FALSE
B78: GeniaAir Max chauffage seul/Product Information - HA 8-6 O 230V B3.pdf | C78: =AND(ErP_Max_8,NOT(ErP_Hybride),ErP_Module_mural_Max) -> FALSE | E78: Hybride/Genia-Hybrid-Max-15.400_Plus-31.pdf | F78: =AND(ErP_Max_15_400,ErP_Hybride,ErP_Plus_31) -> FALSE
B79: GeniaAir Max chauffage seul/Product Information - HA 12-6 O 230V B3.pdf | C79: =AND(ErP_Max_12_230,NOT(ErP_Hybride),ErP_Module_mural_Max) -> FALSE | E79: Hybride/Genia-Hybrid-Max-15.400_Plus-36.pdf | F79: =AND(ErP_Max_15_400,ErP_Hybride,ErP_Plus_36) -> FALSE
B80: GeniaAir Max chauffage seul/Product Information - HA 12-6 O B3.pdf | C80: =AND(ErP_Max_12_400,NOT(ErP_Hybride),ErP_Module_mural_Max) -> FALSE | E80: Hybride/Genia-Hybrid-Max-15.400_Twin-26.pdf | F80: =AND(ErP_Max_15_400,ErP_Hybride,ErP_Twin_26) -> FALSE
B81: GeniaAir Max chauffage seul/Product Information - HA 15-6 O 230V B3.pdf | C81: =AND(ErP_Max_15_230,NOT(ErP_Hybride),ErP_Module_mural_Max) -> FALSE | E81: Hybride/Genia-Hybrid-Max-15.400_Twin-31.pdf | F81: =AND(ErP_Max_15_400,ErP_Hybride,ErP_Twin_31) -> FALSE
B82: GeniaAir Max chauffage seul/Product Information - HA 15-6 O B3.pdf | C82: =AND(ErP_Max_15_400,NOT(ErP_Hybride),ErP_Module_mural_Max) -> FALSE | E82: Hybride/Genia-Hybrid-Tek-4_Duo-30-90.pdf | F82: =AND(ErP_Tek_4,ErP_Hybride,ErP_Duo_30_90) -> FALSE
E83: Hybride/Genia-Hybrid-Tek-4_Fast-26.pdf | F83: =AND(ErP_Tek_4,ErP_Hybride,ErP_Fast_26) -> FALSE
B84: GeniaSet split/Product Information - HA 3-5 OS 230V + HA 5-5 STB.pdf | C84: =AND(ErP_Split_3,NOT(ErP_Hybride),Erp_Colonne_GeniaSet_split) -> FALSE | E84: Hybride/Genia-Hybrid-Tek-4_Plus-31.pdf | F84: =AND(ErP_Tek_4,ErP_Hybride,ErP_Plus_31) -> FALSE
B85: GeniaSet split/Product Information - HA 5-5 OS 230V + HA 5-5 STB.pdf | C85: =AND(ErP_Split_5,NOT(ErP_Hybride),Erp_Colonne_GeniaSet_split) -> FALSE | E85: Hybride/Genia-Hybrid-Tek-4_Plus-36.pdf | F85: =AND(ErP_Tek_4,ErP_Hybride,ErP_Plus_36) -> FALSE
B86: GeniaSet split/Product Information - HA 7-5 OS 230V + HA 7-5 STB.pdf | C86: =AND(ErP_Split_7,NOT(ErP_Hybride),Erp_Colonne_GeniaSet_split) -> FALSE | E86: Hybride/Genia-Hybrid-Tek-4_Twin-26.pdf | F86: =AND(ErP_Tek_4,ErP_Hybride,ErP_Twin_26) -> FALSE
B87: GeniaSet split/Product Information - HA 10-5 OS 230V + HA 12-5 STB.pdf | C87: =AND(ErP_Split_10_230,NOT(ErP_Hybride),Erp_Colonne_GeniaSet_split) -> FALSE | E87: Hybride/Genia-Hybrid-Tek-4_Twin-31.pdf | F87: =AND(ErP_Tek_4,ErP_Hybride,ErP_Twin_31) -> FALSE
B88: GeniaSet split/Product Information - HA 10-5 OS + HA 12-5 STB.pdf | C88: =AND(ErP_Split_10_400,NOT(ErP_Hybride),Erp_Colonne_GeniaSet_split) -> FALSE | E88: Hybride/Genia-Hybrid-Tek-6_Duo-30-90.pdf | F88: =AND(ErP_Tek_6,ErP_Hybride,ErP_Duo_30_90) -> FALSE
B89: GeniaSet split/Product Information - HA 12-5 OS 230V + HA 12-5 STB.pdf | C89: =AND(ErP_Split_12_230,NOT(ErP_Hybride),Erp_Colonne_GeniaSet_split) -> FALSE | E89: Hybride/Genia-Hybrid-Tek-6_Fast-26.pdf | F89: =AND(ErP_Tek_6,ErP_Hybride,ErP_Fast_26) -> FALSE
B90: GeniaSet split/Product Information - HA 12-5 OS + HA 12-5 STB.pdf | C90: =AND(ErP_Split_12_400,NOT(ErP_Hybride),Erp_Colonne_GeniaSet_split) -> FALSE | E90: Hybride/Genia-Hybrid-Tek-6_Plus-31.pdf | F90: =AND(ErP_Tek_6,ErP_Hybride,ErP_Plus_31) -> FALSE
E91: Hybride/Genia-Hybrid-Tek-6_Plus-36.pdf | F91: =AND(ErP_Tek_6,ErP_Hybride,ErP_Plus_36) -> FALSE
B92: GeniaAir split chauffage seul/Product Information - HA 3-5 OS 230V + HA 5-5 WSB.pdf | C92: =AND(ErP_Split_3,NOT(ErP_Hybride),ErP_Module_mural_split) -> FALSE | E92: Hybride/Genia-Hybrid-Tek-6_Twin-26.pdf | F92: =AND(ErP_Tek_6,ErP_Hybride,ErP_Twin_26) -> FALSE
B93: GeniaAir split chauffage seul/Product Information - HA 5-5 OS 230V + HA 5-5 WSB.pdf | C93: =AND(ErP_Split_5,NOT(ErP_Hybride),ErP_Module_mural_split) -> FALSE | E93: Hybride/Genia-Hybrid-Tek-6_Twin-31.pdf | F93: =AND(ErP_Tek_6,ErP_Hybride,ErP_Twin_31) -> FALSE
B94: GeniaAir split chauffage seul/Product Information - HA 7-5 OS 230V + HA 7-5 WSB.pdf | C94: =AND(ErP_Split_7,NOT(ErP_Hybride),ErP_Module_mural_split) -> FALSE | E94: Hybride/Genia-Hybrid-Tek-8_Duo-30-90.pdf | F94: =AND(ErP_Tek_8,ErP_Hybride,ErP_Duo_30_90) -> FALSE
B95: GeniaAir split chauffage seul/Product Information - HA 10-5 OS 230V + HA 12-5 WSB.pdf | C95: =AND(ErP_Split_10_230,NOT(ErP_Hybride),ErP_Module_mural_split) -> FALSE | E95: Hybride/Genia-Hybrid-Tek-8_Fast-26.pdf | F95: =AND(ErP_Tek_8,ErP_Hybride,ErP_Fast_26) -> FALSE
B96: GeniaAir split chauffage seul/Product Information - HA 10-5 OS + HA 12-5 WSB.pdf | C96: =AND(ErP_Split_10_400,NOT(ErP_Hybride),ErP_Module_mural_split) -> FALSE | E96: Hybride/Genia-Hybrid-Tek-8_Plus-31.pdf | F96: =AND(ErP_Tek_8,ErP_Hybride,ErP_Plus_31) -> FALSE
B97: GeniaAir split chauffage seul/Product Information - HA 12-5 OS 230V + HA 12-5 WSB.pdf | C97: =AND(ErP_Split_12_230,NOT(ErP_Hybride),ErP_Module_mural_split) -> FALSE | E97: Hybride/Genia-Hybrid-Tek-8_Plus-36.pdf | F97: =AND(ErP_Tek_8,ErP_Hybride,ErP_Plus_36) -> FALSE
B98: GeniaAir split chauffage seul/Product Information - HA 12-5 OS + HA 12-5 WSB.pdf | C98: =AND(ErP_Split_12_400,NOT(ErP_Hybride),ErP_Module_mural_split) -> FALSE | E98: Hybride/Genia-Hybrid-Tek-8_Twin-26.pdf | F98: =AND(ErP_Tek_8,ErP_Hybride,ErP_Twin_26) -> FALSE
E99: Hybride/Genia-Hybrid-Tek-8_Twin-31.pdf | F99: =AND(ErP_Tek_8,ErP_Hybride,ErP_Twin_31) -> FALSE
E100: Hybride/Genia-Hybrid-Tek-10_Duo-30-90.pdf | F100: =AND(ErP_Tek_10,ErP_Hybride,ErP_Duo_30_90) -> FALSE
E101: Hybride/Genia-Hybrid-Tek-10_Fast-26.pdf | F101: =AND(ErP_Tek_10,ErP_Hybride,ErP_Fast_26) -> FALSE
E102: Hybride/Genia-Hybrid-Tek-10_Plus-31.pdf | F102: =AND(ErP_Tek_10,ErP_Hybride,ErP_Plus_31) -> FALSE
E103: Hybride/Genia-Hybrid-Tek-10_Plus-36.pdf | F103: =AND(ErP_Tek_10,ErP_Hybride,ErP_Plus_36) -> FALSE
E104: Hybride/Genia-Hybrid-Tek-10_Twin-26.pdf | F104: =AND(ErP_Tek_10,ErP_Hybride,ErP_Twin_26) -> FALSE
E105: Hybride/Genia-Hybrid-Tek-10_Twin-31.pdf | F105: =AND(ErP_Tek_10,ErP_Hybride,ErP_Twin_31) -> FALSE
E107: GeniaSet Tek/1 zone/0010038671 + 0010038166_HA 4-7.2 OS 230V B3 + HA 10-7.2 STB.pdf | F107: =AND(ErP_Tek_4,NOT(ErP_Hybride),ErP_Colonne_Tek_1_zone) -> FALSE
E108: GeniaSet Tek/1 zone/0010038672 + 0010038166_HA 6-7.2 OS 230V B3 + HA 10-7.2 STB.pdf | F108: =AND(ErP_Tek_6,NOT(ErP_Hybride),ErP_Colonne_Tek_1_zone) -> FALSE
E109: GeniaSet Tek/1 zone/0010038673 + 0010038166_HA 8-7.2 OS 230V B3 + HA 10-7.2 STB.pdf | F109: =AND(ErP_Tek_8,NOT(ErP_Hybride),ErP_Colonne_Tek_1_zone) -> FALSE
E110: GeniaSet Tek/1 zone/0010038674 + 0010038166_HA 10-7.2 OS 230V B3 + HA 10-7.2 STB.pdf | F110: =AND(ErP_Tek_10,NOT(ErP_Hybride),ErP_Colonne_Tek_1_zone) -> FALSE
E112: GeniaSet Tek/2 zones/0010038671 + 0010038167_HA 4-7.2 OS 230V B3 + HA 10-7.2 STB C2.pdf | F112: =AND(ErP_Tek_4,NOT(ErP_Hybride),ErP_Colonne_Tek_2_zones) -> FALSE
E113: GeniaSet Tek/2 zones/0010038672 + 0010038167_HA 6-7.2 OS 230V B3 + HA 10-7.2 STB C2.pdf | F113: =AND(ErP_Tek_6,NOT(ErP_Hybride),ErP_Colonne_Tek_2_zones) -> FALSE
E114: GeniaSet Tek/2 zones/0010038673 + 0010038167_HA 8-7.2 OS 230V B3 + HA 10-7.2 STB C2.pdf | F114: =AND(ErP_Tek_8,NOT(ErP_Hybride),ErP_Colonne_Tek_2_zones) -> FALSE
E115: GeniaSet Tek/2 zones/0010038674 + 0010038167_HA 10-7.2 OS 230V B3 + HA 10-7.2 STB C2.pdf | F115: =AND(ErP_Tek_10,NOT(ErP_Hybride),ErP_Colonne_Tek_2_zones) -> FALSE
E117: GeniaSet Tek/Module mural/0010038671 + 0010038171_HA 4-7.2 OS 230V B3 + HA 10-7.2 WSB.pdf | F117: =AND(ErP_Tek_4,NOT(ErP_Hybride),ErP_Module_mural_Tek) -> FALSE
E118: GeniaSet Tek/Module mural/0010038672 + 0010038171_HA 6-7.2 OS 230V B3 + HA 10-7.2 WSB.pdf | F118: =AND(ErP_Tek_6,NOT(ErP_Hybride),ErP_Module_mural_Tek) -> FALSE
E119: GeniaSet Tek/Module mural/0010038673 + 0010038171_HA 8-7.2 OS 230V B3 + HA 10-7.2 WSB.pdf | F119: =AND(ErP_Tek_8,NOT(ErP_Hybride),ErP_Module_mural_Tek) -> FALSE
E120: GeniaSet Tek/Module mural/0010038674 + 0010038171_HA 10-7.2 OS 230V B3 + HA 10-7.2 WSB.pdf | F120: =AND(ErP_Tek_10,NOT(ErP_Hybride),ErP_Module_mural_Tek) -> FALSE
E122: GeniaSet Max/0010031692 + 0010036670_HA 4-6 O 230V B3 + FEW 200-6.pdf | F122: =AND(ErP_Max_4,NOT(ErP_Hybride),Erp_Colonne_GeniaSet_Max) -> FALSE
E123: GeniaSet Max/0010031693 + 0010036670_HA 5-6 O 230V B3 + FEW 200-6.pdf | F123: =AND(ErP_Max_5,NOT(ErP_Hybride),Erp_Colonne_GeniaSet_Max) -> FALSE
E124: GeniaSet Max/0010031695 + 0010036670_HA 8-6 O 230V B3 + FEW 200-6.pdf | F124: =AND(ErP_Max_8,NOT(ErP_Hybride),Erp_Colonne_GeniaSet_Max) -> FALSE
E125: GeniaSet Max/0010031696 + 0010036670_HA 12-6 O 230V B3 + FEW 200-6.pdf | F125: =AND(ErP_Max_12_230,NOT(ErP_Hybride),Erp_Colonne_GeniaSet_Max) -> FALSE
E126: GeniaSet Max/0010031697 + 0010036670_HA 12-6 O B3 + FEW 200-6.pdf | F126: =AND(ErP_Max_12_400,NOT(ErP_Hybride),Erp_Colonne_GeniaSet_Max) -> TRUE
E127: GeniaSet Max/0010031698 + 0010036670_HA 15-6 O 230V B3 + FEW 200-6.pdf | F127: =AND(ErP_Max_15_230,NOT(ErP_Hybride),Erp_Colonne_GeniaSet_Max) -> FALSE
E128: GeniaSet Max/0010031699 + 0010036670_HA 15-6 O B3 + FEW 200-6.pdf | F128: =AND(ErP_Max_15_400,NOT(ErP_Hybride),Erp_Colonne_GeniaSet_Max) -> FALSE
E130: GeniaAir Max chauffage seul/0010031692_HA 4-6 O 230V B3.pdf | F130: =AND(ErP_Max_4,NOT(ErP_Hybride),ErP_Module_mural_Max) -> FALSE
